Workbook

Sheet Notes
A1: Seasonal Leveraged ETF Strategy.xlsm
A2: Coded 2012-AUG-14 by Ronald McAllister (rpmac_xltt@sprynet.com)
A4: This Workbook demonstrates an EXCEL version of the ideas presented
A5: by Gerald Gardner in an article titled "A Seasonal Strategy With Leveraged ETFs"
A6: which appeared in the October 2012 issue of
A7: "Technical Analysis of Stocks and Commodities" magazine.
A9: Data for this EXCEL example was retrieved from Yahoo Finance.
A11: Price History files used in this article can be retrieved from Yahoo Finance: http://finance.yahoo.com
A12: The Yahoo Finance symbols for the various indices are the same as used in the article: DBC and DDM.
A13: At the top of the page enter the symbol and then "Get Quotes". This takes you to the summary page for the selected symbol. Capture the name here.
A14: Select "Historical Prices" from the left margin.
A15: At the top of the history page select the bullet for "Daily", set a date range, and then click "Get Prices". The "Get Prices" button sets the type and date extents of download for the next step.
A16: Then go to the bottom of the page and click "Download to Spreadsheet".
A17: Use the "Save As" option to save the file to your drive for later input processing. This would be a good time to name the file with the captured name/symbol. (See "Automated data import" below)
A18: Note: The resulting .csv files are in date-descending sequence (most recent first) and may be used in this spread sheet with out sorting.
A20: Automated data import
A21: Each of the InputPriceData tabs now has a button that will automate importing Price History data which you have previously downloaded to your hard drive from Yahoo Finance (.csv format please!)
A22: The VBA macro code behind this button uses the standard EXCEL file open dialog to allow you to navigate to the directory where you have stored the downloaded
A23: history files. You may then select the file you are interested in.
A24: Subsequent processing will adjust the Open, High, Low, and Close prices as indicated by the Adjusted Close values provided in the downloaded file.
A25: Both the Raw and the Adjusted data will be copied to the InputPriceData tab for use in this workbook.
A26: However, YOU must:
B27: a. | C27: Enter the symbol and description in cell A1 of the InputPriceData tab after you use the button: YAHOO history files DO NOT contain the symbol or a description!
B28: b. | C28: Manually adjust/align the data on each tab so that the date in cell B11 of each Input tab matches! This worksheet will not do it for you!
C29: However, if you downloaded all 6 sets of history on the same day and import all 6, they should be date aligned.
A30: Note: After the data has been transferred to this workbook, the source history file will be closed with out saving it so that it remains unchanged for future uses.
A32: Development Notes:
A33: 1 | C33: This workbook contains and uses VBA macros.
A35: 2 | C35: Input Data
B36: A. | C36: The data in this workbook is sorted date descending (most recent date at the top) and the formulas are built accordingly.
B38: B. | C38: I have had a number of inquiries regarding replacing, or just adding data to previous EXCEL based Traders Tips.
C39: In previous versions, adding/changing data was problematic because the formulas were coded in the same rows as the input data and were
C40: inextricably tied to the input data locations and to each other.
C41: In this workbook I have taken steps to facilitate your ability to alter the input data by isolating the calculations from the input data as much as possible.
C42: I strongly suggest that you take advantage of the button on the InputPriceData tab to perform complete replacements as that automates the whole process. However, if you so desire,
C43: you may still freely add data rows to the InputData worksheets at the top, bottom, middle of the data section. Or you may completely replace the data detail rows, as long as
C44: you do not disturb the headings in row 10 or the computations in cells B7 or G7:G8. Do update the symbol and name in InputPriceData cell A1 if you change securities.
C45: The CalculationsAndCharts worksheet obtains it's data from the InputPriceData worksheet using OFFSET references relative to the headings in row 10.
B47: C. | C47: You must make sure that the Date in cell B11 of both input data sheets is the same: Downloading the history for both symbols on the same day wil usually accomplish this for you.
C48: Otherwaise you will have some fairly strange chart results.
A50: Calculation and Chart Worksheet Usage Comments:
A51: 1 | C51: In General, Items in Bolded BLUE are items you may freely change to play what-if games.
C52: Be sure to have a backup copy of the spreadsheet before you alter anything else.
A53: 2 | C53: Data windowing can be performed by changing cell A11. Positive values logically "Pan" the data window represented by the Calculation sheet down the input sheet and back in time.
C54: This can have two side effects: First, data may fall outside of the fixed Y-axis scales and be clipped or fall well inside the Y-axis scales wasting a lot of chart vertical space.
C55: Second, you may move far enough back that you do not have sufficient data points to fill the left of the chart.
A56: 3 | C56: The VBA macros behind the Green button address these Data Windowing problems and also resizes and vertically aligns all charts on the work sheet to match the Price chart
C57: and then horizontally adjusts the X-axis positions of all charts on the work sheet so that the corresponding data points align vertically.
C58: The macros behind the green button are sensitive to the user control values in cells A11 and A12, and also uses the computed values in cells A8, F11, and F12
A60: Chart Notes:
A61: 1 | C61: The chart presented here attempts to replicate Figure 3 from the article. Not all of the available data is used due to #ZeroDevide for ROC values within 75 days of oldest available data
A62: 2 | C62: Price Data is plotted on primary axis of the main chart as candlesticks. The very visible difference in vertical display from Figure 3 of the article is due to plotting the value axis as a normal scale where
C63: the price chart in the article is plotted on a logarithmic scale. EXCEL's handling of LOG scales is awkward at best so I tend to avoid using LOG scales.
A64: 3 | C64: SRMind plotted as stacked bar
A65: 4 | C65: All data plotted in reverse order to get dates/times to read ascending left to right.

Sheet CalculationsAndCharts
A1: Seasonal Leveraged ETF Strategy
A4: User Charting Controls
A5: Data Control
A6: =MIN('InputData-DBC'!$B$7,'InputData-DDM'!$B$7) -> 1550 | B6: Available Input Data Rows | E6: Earliest: | F6: =OFFSET('InputData-DBC'!B10,CalculationsAndCharts!A6,0,1,1) -> 2006-06-21
E7: Latest: | F7: =OFFSET('InputData-DBC'!B10,1,0,1,1) -> 2012-08-14
A8: =MIN(A6-A11,COUNTA(B33:B7838)) -> 1233 | B8: Logically Available for Calc / Plot
F9: Primary | G9: Secondary
A10: Price Chart Windowing Controls | F10: Y Range | G10: Y Range
A11: 60 | B11: Input Data Offset (Pan) | E11: DBC Max High+ | F11: =CEILING(MAX(OFFSET($E$33,0,0,$A$12,1),OFFSET($H$33,0,0,$A$12,1)),1)+1 -> 47 | G11: =CEILING(MAX(OFFSET($R$33,0,0,$A$12,1)),5000)+5000 -> 55000
A12: 1233 | B12: Data Points to Plot (Zoom) | E12: DBC Min Low- | F12: =FLOOR(MIN(OFFSET($F$33,0,0,$A$12,1),OFFSET($H$33,0,0,$A$12,1)),1)-1 -> 16 | G12: =FLOOR(MIN(OFFSET($R$33,0,0,$A$12,1)),5000)-5000 -> 15000
B13: First: | C13: =OFFSET(B32,A12,0,1,1) -> 2007-06-29 | E13: DDM Max High+ | F13: =CEILING(MAX(OFFSET($V$33,0,0,$A$12,1),OFFSET($Y$33,0,0,$A$12,1)),1)+1 -> 95 | G13: =CEILING(MAX(OFFSET($AI$33,0,0,$A$12,1)),5000)+5000 -> 60000
B14: Last: | C14: =B33 -> 2012-05-18 | E14: DDM Min Low- | F14: =FLOOR(MIN(OFFSET($W$33,0,0,$A$12,1),OFFSET($Y$33,0,0,$A$12,1)),1)-1 -> 15 | G14: =FLOOR(MIN(OFFSET($AI$33,0,0,$A$12,1)),5000)-5000 -> 10000
E15: Combo Max High+ | F15: =CEILING(MAX(OFFSET($AJ$33,0,0,$A$12,1)),5000)+5000 -> 110000 | G15: 0
A16: Controls: | E16: Combo Min Low- | F16: =FLOOR(MIN(OFFSET($AJ$33,0,0,$A$12,1)),5000)-5000 -> 40000 | G16: 0
A17: Period
A18: 50 | B18: Simple Moving Average Period
A19: 0.97 | B19: Max Percent at Risk
A22: Help! I would like to plot data | D22: Chart Windowing values to use
B23: From | C23: 2010-09-01 | D23: =OFFSET('InputData-DBC'!$A$10,MATCH(C23,OFFSET('InputData-DBC'!B10,1,0,'InputData-DBC'!$B$7,1),0),0,1,1)-D24 -> 433 | E23: ==> for Points to Plot
B24: To | C24: 2012-05-18 | D24: =OFFSET('InputData-DBC'!$A$10,MATCH(C24,OFFSET('InputData-DBC'!B10,1,0,'InputData-DBC'!$B$7,1),0),0,1,1)-1 -> 60 | E24: ==> for Offset
AJ29: =AE30+N30 -> 50000
H30: ="DBC SMA("&A18&") of Close " -> DBC SMA(50) of Close | I30: Buy Signal | J30: Sell Signal | K30: Market Position | N30: 25000 | O30: Equity | P30: Net | Q30: Profit / | R30: DBC Account Value | Y30: ="DDM SMA("&$A$18&") Close " -> DDM SMA(50) Close | Z30: Buy Signal | AA30: Sell Signal | AB30: Market Position | AE30: 25000 | AF30: Equity | AG30: Net | AH30: Profit / | AI30: DDM Account Value | AJ30: Combined Account Value
A31: Rel Row | B31: ='InputData-DBC'!A1 -> PowerShares DB Commodity Index Tracking (DBC) | N31: Cash | O31: Invested | P31: of | Q31: Loss | S31: ='InputData-DDM'!A1 -> ProShares Ultra Dow30 (DDM) | X31: DDM Close | AE31: Running | AF31: Invested | AG31: of | AH31: Loss
B32: Date | C32: Volume | D32: Open | E32: High | F32: Low | G32: DBC Close | L32: Buy @ | M32: Sell @ | N32: Position | P32: Sale | S32: Date | T32: Volume | U32: Open | V32: High | W32: Low | AC32: Buy @ | AD32: Sell @ | AE32: Cash | AG32: Sale
A33: 1 | B33: =OFFSET('InputData-DBC'!$B$10,CalculationsAndCharts!$A33+$A$11,0,1,1) -> 2012-05-18 | C33: =OFFSET('InputData-DBC'!$G$10,CalculationsAndCharts!$A33+$A$11,0,1,1) -> 2698600 | D33: =OFFSET('InputData-DBC'!$J$10,CalculationsAndCharts!$A33+$A$11,0,1,1) -> 26.37 | E33: =OFFSET('InputData-DBC'!$K$10,CalculationsAndCharts!$A33+$A$11,0,1,1) -> 26.5 | F33: =OFFSET('InputData-DBC'!$L$10,CalculationsAndCharts!$A33+$A$11,0,1,1) -> 26.25 | G33: =OFFSET('InputData-DBC'!$M$10,CalculationsAndCharts!$A33+$A$11,0,1,1) -> 26.27 | H33: =AVERAGE(OFFSET($G$32,$A33,0,$A$18,1)) -> 28.2162 | I33: =IF(MONTH(B33)=10,IF(G34>H34,IF(K34=0,1,0),0),0) -> 0 | J33: =IF(AND(MONTH(B33)=5,K34>0),-1,0) -> 0 | K33: =IF(AND(K34=0,I34=1),N34*$A$19/L33,IF(AND(K34>0,J34=-1),0,K34)) -> 0 | L33: =IF(AND(K34=0,I34=1),D33,0) -> 0 | M33: =IF(AND(K34>0,J34=-1),D33,0) -> 0 | N33: =IF(K33<>K34,N34-O33,N34)+P33 -> 47603.31127 | O33: =IF(K33<>K34,K33*L33,O34) -> 0 | P33: =K34*M33 -> 0 | Q33: =IF(P33<>P34,P33-O34,0) -> 0 | R33: =N33+K33*D33 -> 47603.31127 | S33: =OFFSET('InputData-DDM'!$B$10,CalculationsAndCharts!$A33+$A$11,0,1,1) -> 2012-05-18 | T33: =OFFSET('InputData-DDM'!$G$10,CalculationsAndCharts!$A33+$A$11,0,1,1) -> 739700 | U33: =OFFSET('InputData-DDM'!$J$10,CalculationsAndCharts!$A33+$A$11,0,1,1) -> 63.3 | V33: =OFFSET('InputData-DDM'!$K$10,CalculationsAndCharts!$A33+$A$11,0,1,1) -> 63.36 | W33: =OFFSET('InputData-DDM'!$L$10,CalculationsAndCharts!$A33+$A$11,0,1,1) -> 61.81 | X33: =OFFSET('InputData-DDM'!$M$10,CalculationsAndCharts!$A33+$A$11,0,1,1) -> 62.04 | Y33: =AVERAGE(OFFSET($X$32,$A33,0,$A$18,1)) -> 68.546 | Z33: =IF(MONTH(S33)=10,IF(X34>Y34,IF(AB34=0,1,0),0),0) -> 0 | AA33: =IF(AND(MONTH(S33)=5,AB34>0),-1,0) -> 0 | AB33: =IF(AND(AB34=0,Z34=1),AE34*$A$19/AC33,IF(AND(AB34>0,AA34=-1),0,AB34)) -> 0 | AC33: =IF(AND(AB34=0,Z34=1),U33,0) -> 0 | AD33: =IF(AND(AB34>0,AA34=-1),U33,0) -> 0 | AE33: =IF(AB33<>AB34,AE34-AF33,AE34)+AG33 -> 54533.77242 | AF33: =IF(AB33<>AB34,AB33*AC33,AF34) -> 0 | AG33: =AB34*AD33 -> 0 | AH33: =IF(AG33<>AG34,AG33-AF34,0) -> 0 | AI33: =AE33+AB33*U33 -> 54533.77242 | AJ33: =R33+AI33 -> 102137.0837
A34: 2 | B34: =OFFSET('InputData-DBC'!$B$10,CalculationsAndCharts!$A34+$A$11,0,1,1) -> 2012-05-17 | C34: =OFFSET('InputData-DBC'!$G$10,CalculationsAndCharts!$A34+$A$11,0,1,1) -> 1222100 | D34: =OFFSET('InputData-DBC'!$J$10,CalculationsAndCharts!$A34+$A$11,0,1,1) -> 26.43 | E34: =OFFSET('InputData-DBC'!$K$10,CalculationsAndCharts!$A34+$A$11,0,1,1) -> 26.48 | F34: =OFFSET('InputData-DBC'!$L$10,CalculationsAndCharts!$A34+$A$11,0,1,1) -> 26.27 | G34: =OFFSET('InputData-DBC'!$M$10,CalculationsAndCharts!$A34+$A$11,0,1,1) -> 26.29 | H34: 28.2754 | I34: 0 | J34: 0 | K34: 0 | L34: 0 | M34: 0 | N34: 47603.31127 | O34: 0 | P34: 0 | Q34: 0 | R34: 47603.31127 | S34: =OFFSET('InputData-DDM'!$B$10,CalculationsAndCharts!$A34+$A$11,0,1,1) -> 2012-05-17 | T34: =OFFSET('InputData-DDM'!$G$10,CalculationsAndCharts!$A34+$A$11,0,1,1) -> 826900 | U34: =OFFSET('InputData-DDM'!$J$10,CalculationsAndCharts!$A34+$A$11,0,1,1) -> 64.58 | V34: =OFFSET('InputData-DDM'!$K$10,CalculationsAndCharts!$A34+$A$11,0,1,1) -> 64.61 | W34: =OFFSET('InputData-DDM'!$L$10,CalculationsAndCharts!$A34+$A$11,0,1,1) -> 62.87 | X34: =OFFSET('InputData-DDM'!$M$10,CalculationsAndCharts!$A34+$A$11,0,1,1) -> 62.87 | Y34: =AVERAGE(OFFSET($X$32,$A34,0,$A$18,1)) -> 68.6512 | Z34: 0 | AA34: 0 | AB34: 0 | AC34: 0 | AD34: 0 | AE34: 54533.77242 | AF34: 0 | AG34: 0 | AH34: 0 | AI34: 54533.77242 | AJ34: =R34+AI34 -> 102137.0837
A35: 3 | B35: =OFFSET('InputData-DBC'!$B$10,CalculationsAndCharts!$A35+$A$11,0,1,1) -> 2012-05-16 | C35: =OFFSET('InputData-DBC'!$G$10,CalculationsAndCharts!$A35+$A$11,0,1,1) -> 1589200 | D35: =OFFSET('InputData-DBC'!$J$10,CalculationsAndCharts!$A35+$A$11,0,1,1) -> 26.36 | E35: =OFFSET('InputData-DBC'!$K$10,CalculationsAndCharts!$A35+$A$11,0,1,1) -> 26.56 | F35: =OFFSET('InputData-DBC'!$L$10,CalculationsAndCharts!$A35+$A$11,0,1,1) -> 26.31 | G35: =OFFSET('InputData-DBC'!$M$10,CalculationsAndCharts!$A35+$A$11,0,1,1) -> 26.35 | H35: 28.3294 | I35: 0 | J35: 0 | K35: 0 | L35: 0 | M35: 0 | N35: 47603.31127 | O35: 0 | P35: 0 | Q35: 0 | R35: 47603.31127 | S35: =OFFSET('InputData-DDM'!$B$10,CalculationsAndCharts!$A35+$A$11,0,1,1) -> 2012-05-16 | T35: =OFFSET('InputData-DDM'!$G$10,CalculationsAndCharts!$A35+$A$11,0,1,1) -> 602000 | U35: =OFFSET('InputData-DDM'!$J$10,CalculationsAndCharts!$A35+$A$11,0,1,1) -> 65.16 | V35: =OFFSET('InputData-DDM'!$K$10,CalculationsAndCharts!$A35+$A$11,0,1,1) -> 65.77 | W35: =OFFSET('InputData-DDM'!$L$10,CalculationsAndCharts!$A35+$A$11,0,1,1) -> 64.49 | X35: =OFFSET('InputData-DDM'!$M$10,CalculationsAndCharts!$A35+$A$11,0,1,1) -> 64.54 | Y35: 68.7252 | Z35: 0 | AA35: 0 | AB35: 0 | AC35: 0 | AD35: 0 | AE35: 54533.77242 | AF35: 0 | AG35: 0 | AH35: 0 | AI35: 54533.77242 | AJ35: 102137.0837
A36: 4 | B36: =OFFSET('InputData-DBC'!$B$10,CalculationsAndCharts!$A36+$A$11,0,1,1) -> 2012-05-15 | C36: =OFFSET('InputData-DBC'!$G$10,CalculationsAndCharts!$A36+$A$11,0,1,1) -> 8431800 | D36: =OFFSET('InputData-DBC'!$J$10,CalculationsAndCharts!$A36+$A$11,0,1,1) -> 26.48 | E36: =OFFSET('InputData-DBC'!$K$10,CalculationsAndCharts!$A36+$A$11,0,1,1) -> 26.59 | F36: =OFFSET('InputData-DBC'!$L$10,CalculationsAndCharts!$A36+$A$11,0,1,1) -> 26.37 | G36: =OFFSET('InputData-DBC'!$M$10,CalculationsAndCharts!$A36+$A$11,0,1,1) -> 26.38 | H36: 28.3796 | I36: 0 | J36: 0 | K36: 0 | L36: 0 | M36: 0 | N36: 47603.31127 | O36: 0 | P36: 0 | Q36: 0 | R36: 47603.31127 | S36: =OFFSET('InputData-DDM'!$B$10,CalculationsAndCharts!$A36+$A$11,0,1,1) -> 2012-05-15 | T36: =OFFSET('InputData-DDM'!$G$10,CalculationsAndCharts!$A36+$A$11,0,1,1) -> 781200 | U36: =OFFSET('InputData-DDM'!$J$10,CalculationsAndCharts!$A36+$A$11,0,1,1) -> 65.21 | V36: =OFFSET('InputData-DDM'!$K$10,CalculationsAndCharts!$A36+$A$11,0,1,1) -> 65.99 | W36: =OFFSET('InputData-DDM'!$L$10,CalculationsAndCharts!$A36+$A$11,0,1,1) -> 64.45 | X36: =OFFSET('InputData-DDM'!$M$10,CalculationsAndCharts!$A36+$A$11,0,1,1) -> 64.68 | Y36: 68.7484 | Z36: 0 | AA36: 0 | AB36: 0 | AC36: 0 | AD36: 0 | AE36: 54533.77242 | AF36: 0 | AG36: 0 | AH36: 0 | AI36: 54533.77242 | AJ36: 102137.0837
A37: 5 | B37: =OFFSET('InputData-DBC'!$B$10,CalculationsAndCharts!$A37+$A$11,0,1,1) -> 2012-05-14 | C37: =OFFSET('InputData-DBC'!$G$10,CalculationsAndCharts!$A37+$A$11,0,1,1) -> 5751700 | D37: =OFFSET('InputData-DBC'!$J$10,CalculationsAndCharts!$A37+$A$11,0,1,1) -> 26.41 | E37: =OFFSET('InputData-DBC'!$K$10,CalculationsAndCharts!$A37+$A$11,0,1,1) -> 26.48 | F37: =OFFSET('InputData-DBC'!$L$10,CalculationsAndCharts!$A37+$A$11,0,1,1) -> 26.31 | G37: =OFFSET('InputData-DBC'!$M$10,CalculationsAndCharts!$A37+$A$11,0,1,1) -> 26.33 | H37: 28.4388 | I37: 0 | J37: 0 | K37: 0 | L37: 0 | M37: 0 | N37: 47603.31127 | O37: 0 | P37: 0 | Q37: 0 | R37: 47603.31127 | S37: =OFFSET('InputData-DDM'!$B$10,CalculationsAndCharts!$A37+$A$11,0,1,1) -> 2012-05-14 | T37: =OFFSET('InputData-DDM'!$G$10,CalculationsAndCharts!$A37+$A$11,0,1,1) -> 704500 | U37: =OFFSET('InputData-DDM'!$J$10,CalculationsAndCharts!$A37+$A$11,0,1,1) -> 65.59 | V37: =OFFSET('InputData-DDM'!$K$10,CalculationsAndCharts!$A37+$A$11,0,1,1) -> 66.1 | W37: =OFFSET('InputData-DDM'!$L$10,CalculationsAndCharts!$A37+$A$11,0,1,1) -> 64.98 | X37: =OFFSET('InputData-DDM'!$M$10,CalculationsAndCharts!$A37+$A$11,0,1,1) -> 65.34 | Y37: 68.811 | Z37: 0 | AA37: 0 | AB37: 0 | AC37: 0 | AD37: 0 | AE37: 54533.77242 | AF37: 0 | AG37: 0 | AH37: 0 | AI37: 54533.77242 | AJ37: 102137.0837
A38: 6 | B38: =OFFSET('InputData-DBC'!$B$10,CalculationsAndCharts!$A38+$A$11,0,1,1) -> 2012-05-11 | C38: =OFFSET('InputData-DBC'!$G$10,CalculationsAndCharts!$A38+$A$11,0,1,1) -> 1518900 | D38: =OFFSET('InputData-DBC'!$J$10,CalculationsAndCharts!$A38+$A$11,0,1,1) -> 26.72 | E38: =OFFSET('InputData-DBC'!$K$10,CalculationsAndCharts!$A38+$A$11,0,1,1) -> 26.91 | F38: =OFFSET('InputData-DBC'!$L$10,CalculationsAndCharts!$A38+$A$11,0,1,1) -> 26.67 | G38: =OFFSET('InputData-DBC'!$M$10,CalculationsAndCharts!$A38+$A$11,0,1,1) -> 26.68 | H38: 28.5018 | I38: 0 | J38: 0 | K38: 0 | L38: 0 | M38: 0 | N38: 47603.31127 | O38: 0 | P38: 0 | Q38: 0 | R38: 47603.31127 | S38: =OFFSET('InputData-DDM'!$B$10,CalculationsAndCharts!$A38+$A$11,0,1,1) -> 2012-05-11 | T38: =OFFSET('InputData-DDM'!$G$10,CalculationsAndCharts!$A38+$A$11,0,1,1) -> 364100 | U38: =OFFSET('InputData-DDM'!$J$10,CalculationsAndCharts!$A38+$A$11,0,1,1) -> 66.2 | V38: =OFFSET('InputData-DDM'!$K$10,CalculationsAndCharts!$A38+$A$11,0,1,1) -> 67.65 | W38: =OFFSET('InputData-DDM'!$L$10,CalculationsAndCharts!$A38+$A$11,0,1,1) -> 66.13 | X38: =OFFSET('InputData-DDM'!$M$10,CalculationsAndCharts!$A38+$A$11,0,1,1) -> 66.59 | Y38: 68.8632 | Z38: 0 | AA38: 0 | AB38: 0 | AC38: 0 | AD38: 0 | AE38: 54533.77242 | AF38: 0 | AG38: 0 | AH38: 0 | AI38: 54533.77242 | AJ38: 102137.0837
A39: 7 | B39: =OFFSET('InputData-DBC'!$B$10,CalculationsAndCharts!$A39+$A$11,0,1,1) -> 2012-05-10 | C39: =OFFSET('InputData-DBC'!$G$10,CalculationsAndCharts!$A39+$A$11,0,1,1) -> 1631300 | D39: =OFFSET('InputData-DBC'!$J$10,CalculationsAndCharts!$A39+$A$11,0,1,1) -> 26.95 | E39: =OFFSET('InputData-DBC'!$K$10,CalculationsAndCharts!$A39+$A$11,0,1,1) -> 26.99 | F39: =OFFSET('InputData-DBC'!$L$10,CalculationsAndCharts!$A39+$A$11,0,1,1) -> 26.86 | G39: =OFFSET('InputData-DBC'!$M$10,CalculationsAndCharts!$A39+$A$11,0,1,1) -> 26.88 | H39: 28.5638 | I39: 0 | J39: 0 | K39: 0 | L39: 0 | M39: 0 | N39: 47603.31127 | O39: 0 | P39: 0 | Q39: 0 | R39: 47603.31127 | S39: =OFFSET('InputData-DDM'!$B$10,CalculationsAndCharts!$A39+$A$11,0,1,1) -> 2012-05-10 | T39: =OFFSET('InputData-DDM'!$G$10,CalculationsAndCharts!$A39+$A$11,0,1,1) -> 638000 | U39: =OFFSET('InputData-DDM'!$J$10,CalculationsAndCharts!$A39+$A$11,0,1,1) -> 67.33 | V39: =OFFSET('InputData-DDM'!$K$10,CalculationsAndCharts!$A39+$A$11,0,1,1) -> 67.7 | W39: =OFFSET('InputData-DDM'!$L$10,CalculationsAndCharts!$A39+$A$11,0,1,1) -> 66.68 | X39: =OFFSET('InputData-DDM'!$M$10,CalculationsAndCharts!$A39+$A$11,0,1,1) -> 66.89 | Y39: 68.8912 | Z39: 0 | AA39: 0 | AB39: 0 | AC39: 0 | AD39: 0 | AE39: 54533.77242 | AF39: 0 | AG39: 0 | AH39: 0 | AI39: 54533.77242 | AJ39: 102137.0837
A40: 8 | B40: =OFFSET('InputData-DBC'!$B$10,CalculationsAndCharts!$A40+$A$11,0,1,1) -> 2012-05-09 | C40: =OFFSET('InputData-DBC'!$G$10,CalculationsAndCharts!$A40+$A$11,0,1,1) -> 3238300 | D40: =OFFSET('InputData-DBC'!$J$10,CalculationsAndCharts!$A40+$A$11,0,1,1) -> 26.76 | E40: =OFFSET('InputData-DBC'!$K$10,CalculationsAndCharts!$A40+$A$11,0,1,1) -> 26.94 | F40: =OFFSET('InputData-DBC'!$L$10,CalculationsAndCharts!$A40+$A$11,0,1,1) -> 26.7 | G40: =OFFSET('InputData-DBC'!$M$10,CalculationsAndCharts!$A40+$A$11,0,1,1) -> 26.87 | H40: 28.6126 | I40: 0 | J40: 0 | K40: 0 | L40: 0 | M40: 0 | N40: 47603.31127 | O40: 0 | P40: 0 | Q40: 0 | R40: 47603.31127 | S40: =OFFSET('InputData-DDM'!$B$10,CalculationsAndCharts!$A40+$A$11,0,1,1) -> 2012-05-09 | T40: =OFFSET('InputData-DDM'!$G$10,CalculationsAndCharts!$A40+$A$11,0,1,1) -> 859700 | U40: =OFFSET('InputData-DDM'!$J$10,CalculationsAndCharts!$A40+$A$11,0,1,1) -> 66.42 | V40: =OFFSET('InputData-DDM'!$K$10,CalculationsAndCharts!$A40+$A$11,0,1,1) -> 67.61 | W40: =OFFSET('InputData-DDM'!$L$10,CalculationsAndCharts!$A40+$A$11,0,1,1) -> 65.78 | X40: =OFFSET('InputData-DDM'!$M$10,CalculationsAndCharts!$A40+$A$11,0,1,1) -> 66.78 | Y40: 68.9082 | Z40: 0 | AA40: 0 | AB40: 0 | AC40: 0 | AD40: 0 | AE40: 54533.77242 | AF40: 0 | AG40: 0 | AH40: 0 | AI40: 54533.77242 | AJ40: 102137.0837
A41: 9 | B41: =OFFSET('InputData-DBC'!$B$10,CalculationsAndCharts!$A41+$A$11,0,1,1) -> 2012-05-08 | C41: =OFFSET('InputData-DBC'!$G$10,CalculationsAndCharts!$A41+$A$11,0,1,1) -> 3472300 | D41: =OFFSET('InputData-DBC'!$J$10,CalculationsAndCharts!$A41+$A$11,0,1,1) -> 27.01 | E41: =OFFSET('InputData-DBC'!$K$10,CalculationsAndCharts!$A41+$A$11,0,1,1) -> 27.08 | F41: =OFFSET('InputData-DBC'!$L$10,CalculationsAndCharts!$A41+$A$11,0,1,1) -> 26.72 | G41: =OFFSET('InputData-DBC'!$M$10,CalculationsAndCharts!$A41+$A$11,0,1,1) -> 27.08 | H41: 28.6638 | I41: 0 | J41: 0 | K41: 0 | L41: 0 | M41: 0 | N41: 47603.31127 | O41: 0 | P41: 0 | Q41: 0 | R41: 47603.31127 | S41: =OFFSET('InputData-DDM'!$B$10,CalculationsAndCharts!$A41+$A$11,0,1,1) -> 2012-05-08 | T41: =OFFSET('InputData-DDM'!$G$10,CalculationsAndCharts!$A41+$A$11,0,1,1) -> 675400 | U41: =OFFSET('InputData-DDM'!$J$10,CalculationsAndCharts!$A41+$A$11,0,1,1) -> 67.64 | V41: =OFFSET('InputData-DDM'!$K$10,CalculationsAndCharts!$A41+$A$11,0,1,1) -> 67.84 | W41: =OFFSET('InputData-DDM'!$L$10,CalculationsAndCharts!$A41+$A$11,0,1,1) -> 66.34 | X41: =OFFSET('InputData-DDM'!$M$10,CalculationsAndCharts!$A41+$A$11,0,1,1) -> 67.59 | Y41: 68.939 | Z41: 0 | AA41: 0 | AB41: 0 | AC41: 0 | AD41: 0 | AE41: 54533.77242 | AF41: 0 | AG41: 0 | AH41: 0 | AI41: 54533.77242 | AJ41: 102137.0837
A42: 10 | B42: =OFFSET('InputData-DBC'!$B$10,CalculationsAndCharts!$A42+$A$11,0,1,1) -> 2012-05-07 | C42: =OFFSET('InputData-DBC'!$G$10,CalculationsAndCharts!$A42+$A$11,0,1,1) -> 5400000 | D42: =OFFSET('InputData-DBC'!$J$10,CalculationsAndCharts!$A42+$A$11,0,1,1) -> 26.99 | E42: =OFFSET('InputData-DBC'!$K$10,CalculationsAndCharts!$A42+$A$11,0,1,1) -> 27.21 | F42: =OFFSET('InputData-DBC'!$L$10,CalculationsAndCharts!$A42+$A$11,0,1,1) -> 26.93 | G42: =OFFSET('InputData-DBC'!$M$10,CalculationsAndCharts!$A42+$A$11,0,1,1) -> 27.18 | H42: 28.711 | I42: 0 | J42: 0 | K42: 0 | L42: 0 | M42: 0 | N42: 47603.31127 | O42: 0 | P42: 0 | Q42: 0 | R42: 47603.31127 | S42: =OFFSET('InputData-DDM'!$B$10,CalculationsAndCharts!$A42+$A$11,0,1,1) -> 2012-05-07 | T42: =OFFSET('InputData-DDM'!$G$10,CalculationsAndCharts!$A42+$A$11,0,1,1) -> 488000 | U42: =OFFSET('InputData-DDM'!$J$10,CalculationsAndCharts!$A42+$A$11,0,1,1) -> 68.03 | V42: =OFFSET('InputData-DDM'!$K$10,CalculationsAndCharts!$A42+$A$11,0,1,1) -> 68.8 | W42: =OFFSET('InputData-DDM'!$L$10,CalculationsAndCharts!$A42+$A$11,0,1,1) -> 67.98 | X42: =OFFSET('InputData-DDM'!$M$10,CalculationsAndCharts!$A42+$A$11,0,1,1) -> 68.36 | Y42: 68.948 | Z42: 0 | AA42: 0 | AB42: 0 | AC42: 0 | AD42: 0 | AE42: 54533.77242 | AF42: 0 | AG42: 0 | AH42: 0 | AI42: 54533.77242 | AJ42: 102137.0837
A43: 11 | B43: =OFFSET('InputData-DBC'!$B$10,CalculationsAndCharts!$A43+$A$11,0,1,1) -> 2012-05-04 | C43: =OFFSET('InputData-DBC'!$G$10,CalculationsAndCharts!$A43+$A$11,0,1,1) -> 1968400 | D43: =OFFSET('InputData-DBC'!$J$10,CalculationsAndCharts!$A43+$A$11,0,1,1) -> 27.45 | E43: =OFFSET('InputData-DBC'!$K$10,CalculationsAndCharts!$A43+$A$11,0,1,1) -> 27.46 | F43: =OFFSET('InputData-DBC'!$L$10,CalculationsAndCharts!$A43+$A$11,0,1,1) -> 27.04 | G43: =OFFSET('InputData-DBC'!$M$10,CalculationsAndCharts!$A43+$A$11,0,1,1) -> 27.24 | H43: 28.761 | I43: 0 | J43: 0 | K43: 0 | L43: 0 | M43: 0 | N43: 47603.31127 | O43: 0 | P43: 0 | Q43: 0 | R43: 47603.31127 | S43: =OFFSET('InputData-DDM'!$B$10,CalculationsAndCharts!$A43+$A$11,0,1,1) -> 2012-05-04 | T43: =OFFSET('InputData-DDM'!$G$10,CalculationsAndCharts!$A43+$A$11,0,1,1) -> 698400 | U43: =OFFSET('InputData-DDM'!$J$10,CalculationsAndCharts!$A43+$A$11,0,1,1) -> 69.82 | V43: =OFFSET('InputData-DDM'!$K$10,CalculationsAndCharts!$A43+$A$11,0,1,1) -> 69.94 | W43: =OFFSET('InputData-DDM'!$L$10,CalculationsAndCharts!$A43+$A$11,0,1,1) -> 68.51 | X43: =OFFSET('InputData-DDM'!$M$10,CalculationsAndCharts!$A43+$A$11,0,1,1) -> 68.64 | Y43: 68.9416 | Z43: 0 | AA43: 0 | AB43: 0 | AC43: 0 | AD43: 0 | AE43: 54533.77242 | AF43: 0 | AG43: 0 | AH43: 0 | AI43: 54533.77242 | AJ43: 102137.0837
A44: 12 | B44: =OFFSET('InputData-DBC'!$B$10,CalculationsAndCharts!$A44+$A$11,0,1,1) -> 2012-05-03 | C44: =OFFSET('InputData-DBC'!$G$10,CalculationsAndCharts!$A44+$A$11,0,1,1) -> 1624000 | D44: =OFFSET('InputData-DBC'!$J$10,CalculationsAndCharts!$A44+$A$11,0,1,1) -> 27.92 | E44: =OFFSET('InputData-DBC'!$K$10,CalculationsAndCharts!$A44+$A$11,0,1,1) -> 27.98 | F44: =OFFSET('InputData-DBC'!$L$10,CalculationsAndCharts!$A44+$A$11,0,1,1) -> 27.68 | G44: =OFFSET('InputData-DBC'!$M$10,CalculationsAndCharts!$A44+$A$11,0,1,1) -> 27.73 | H44: 28.8062 | I44: 0 | J44: 0 | K44: 0 | L44: 0 | M44: 0 | N44: 47603.31127 | O44: 0 | P44: 0 | Q44: 0 | R44: 47603.31127 | S44: =OFFSET('InputData-DDM'!$B$10,CalculationsAndCharts!$A44+$A$11,0,1,1) -> 2012-05-03 | T44: =OFFSET('InputData-DDM'!$G$10,CalculationsAndCharts!$A44+$A$11,0,1,1) -> 628400 | U44: =OFFSET('InputData-DDM'!$J$10,CalculationsAndCharts!$A44+$A$11,0,1,1) -> 71.14 | V44: =OFFSET('InputData-DDM'!$K$10,CalculationsAndCharts!$A44+$A$11,0,1,1) -> 71.34 | W44: =OFFSET('InputData-DDM'!$L$10,CalculationsAndCharts!$A44+$A$11,0,1,1) -> 70.17 | X44: =OFFSET('InputData-DDM'!$M$10,CalculationsAndCharts!$A44+$A$11,0,1,1) -> 70.48 | Y44: 68.929 | Z44: 0 | AA44: 0 | AB44: 0 | AC44: 0 | AD44: 0 | AE44: 54533.77242 | AF44: 0 | AG44: 0 | AH44: 0 | AI44: 54533.77242 | AJ44: 102137.0837
A45: 13 | B45: =OFFSET('InputData-DBC'!$B$10,CalculationsAndCharts!$A45+$A$11,0,1,1) -> 2012-05-02 | C45: =OFFSET('InputData-DBC'!$G$10,CalculationsAndCharts!$A45+$A$11,0,1,1) -> 1311300 | D45: =OFFSET('InputData-DBC'!$J$10,CalculationsAndCharts!$A45+$A$11,0,1,1) -> 28.28 | E45: =OFFSET('InputData-DBC'!$K$10,CalculationsAndCharts!$A45+$A$11,0,1,1) -> 28.32 | F45: =OFFSET('InputData-DBC'!$L$10,CalculationsAndCharts!$A45+$A$11,0,1,1) -> 28.01 | G45: =OFFSET('InputData-DBC'!$M$10,CalculationsAndCharts!$A45+$A$11,0,1,1) -> 28.04 | H45: 28.8398 | I45: 0 | J45: -1 | K45: 0 | L45: 0 | M45: 28.28 | N45: 47603.31127 | O45: 0 | P45: 46203.14948 | Q45: 931.2515983 | R45: 47603.31127 | S45: =OFFSET('InputData-DDM'!$B$10,CalculationsAndCharts!$A45+$A$11,0,1,1) -> 2012-05-02 | T45: =OFFSET('InputData-DDM'!$G$10,CalculationsAndCharts!$A45+$A$11,0,1,1) -> 377900 | U45: =OFFSET('InputData-DDM'!$J$10,CalculationsAndCharts!$A45+$A$11,0,1,1) -> 70.77 | V45: =OFFSET('InputData-DDM'!$K$10,CalculationsAndCharts!$A45+$A$11,0,1,1) -> 71.22 | W45: =OFFSET('InputData-DDM'!$L$10,CalculationsAndCharts!$A45+$A$11,0,1,1) -> 70.32 | X45: =OFFSET('InputData-DDM'!$M$10,CalculationsAndCharts!$A45+$A$11,0,1,1) -> 71.11 | Y45: 68.8696 | Z45: 0 | AA45: -1 | AB45: 0 | AC45: 0 | AD45: 70.77 | AE45: 54533.77242 | AF45: 0 | AG45: 53297.20587 | AH45: 13314.88766 | AI45: 54533.77242 | AJ45: 102137.0837
A46: 14 | B46: =OFFSET('InputData-DBC'!$B$10,CalculationsAndCharts!$A46+$A$11,0,1,1) -> 2012-05-01 | C46: =OFFSET('InputData-DBC'!$G$10,CalculationsAndCharts!$A46+$A$11,0,1,1) -> 1495500 | D46: =OFFSET('InputData-DBC'!$J$10,CalculationsAndCharts!$A46+$A$11,0,1,1) -> 28.32 | E46: =OFFSET('InputData-DBC'!$K$10,CalculationsAndCharts!$A46+$A$11,0,1,1) -> 28.5 | F46: =OFFSET('InputData-DBC'!$L$10,CalculationsAndCharts!$A46+$A$11,0,1,1) -> 28.29 | G46: =OFFSET('InputData-DBC'!$M$10,CalculationsAndCharts!$A46+$A$11,0,1,1) -> 28.41 | H46: 28.8618 | I46: 0 | J46: -1 | K46: 1633.774734 | L46: 0 | M46: 0 | N46: 1400.16179 | O46: 45271.89788 | P46: 0 | Q46: 0 | R46: 47668.66226 | S46: =OFFSET('InputData-DDM'!$B$10,CalculationsAndCharts!$A46+$A$11,0,1,1) -> 2012-05-01 | T46: =OFFSET('InputData-DDM'!$G$10,CalculationsAndCharts!$A46+$A$11,0,1,1) -> 419400 | U46: =OFFSET('InputData-DDM'!$J$10,CalculationsAndCharts!$A46+$A$11,0,1,1) -> 70.61 | V46: =OFFSET('InputData-DDM'!$K$10,CalculationsAndCharts!$A46+$A$11,0,1,1) -> 71.91 | W46: =OFFSET('InputData-DDM'!$L$10,CalculationsAndCharts!$A46+$A$11,0,1,1) -> 70.04 | X46: =OFFSET('InputData-DDM'!$M$10,CalculationsAndCharts!$A46+$A$11,0,1,1) -> 71.26 | Y46: 68.803 | Z46: 0 | AA46: -1 | AB46: 753.1045058 | AC46: 0 | AD46: 0 | AE46: 1236.566543 | AF46: 39982.31821 | AG46: 0 | AH46: 0 | AI46: 54413.2757 | AJ46: 102081.938
A47: 15 | B47: =OFFSET('InputData-DBC'!$B$10,CalculationsAndCharts!$A47+$A$11,0,1,1) -> 2012-04-30 | C47: =OFFSET('InputData-DBC'!$G$10,CalculationsAndCharts!$A47+$A$11,0,1,1) -> 1377500 | D47: =OFFSET('InputData-DBC'!$J$10,CalculationsAndCharts!$A47+$A$11,0,1,1) -> 28.23 | E47: =OFFSET('InputData-DBC'!$K$10,CalculationsAndCharts!$A47+$A$11,0,1,1) -> 28.44 | F47: =OFFSET('InputData-DBC'!$L$10,CalculationsAndCharts!$A47+$A$11,0,1,1) -> 28.19 | G47: =OFFSET('InputData-DBC'!$M$10,CalculationsAndCharts!$A47+$A$11,0,1,1) -> 28.41 | H47: 28.8674 | I47: 0 | J47: 0 | K47: 1633.774734 | L47: 0 | M47: 0 | N47: 1400.16179 | O47: 45271.89788 | P47: 0 | Q47: 0 | R47: 47521.62253 | S47: =OFFSET('InputData-DDM'!$B$10,CalculationsAndCharts!$A47+$A$11,0,1,1) -> 2012-04-30 | T47: =OFFSET('InputData-DDM'!$G$10,CalculationsAndCharts!$A47+$A$11,0,1,1) -> 470100 | U47: =OFFSET('InputData-DDM'!$J$10,CalculationsAndCharts!$A47+$A$11,0,1,1) -> 70.53 | V47: =OFFSET('InputData-DDM'!$K$10,CalculationsAndCharts!$A47+$A$11,0,1,1) -> 70.72 | W47: =OFFSET('InputData-DDM'!$L$10,CalculationsAndCharts!$A47+$A$11,0,1,1) -> 70.15 | X47: =OFFSET('InputData-DDM'!$M$10,CalculationsAndCharts!$A47+$A$11,0,1,1) -> 70.52 | Y47: 68.7306 | Z47: 0 | AA47: 0 | AB47: 753.1045058 | AC47: 0 | AD47: 0 | AE47: 1236.566543 | AF47: 39982.31821 | AG47: 0 | AH47: 0 | AI47: 54353.02733 | AJ47: 101874.6499
A48: 16 | B48: =OFFSET('InputData-DBC'!$B$10,CalculationsAndCharts!$A48+$A$11,0,1,1) -> 2012-04-27 | C48: =OFFSET('InputData-DBC'!$G$10,CalculationsAndCharts!$A48+$A$11,0,1,1) -> 750500 | D48: =OFFSET('InputData-DBC'!$J$10,CalculationsAndCharts!$A48+$A$11,0,1,1) -> 28.26 | E48: =OFFSET('InputData-DBC'!$K$10,CalculationsAndCharts!$A48+$A$11,0,1,1) -> 28.33 | F48: =OFFSET('InputData-DBC'!$L$10,CalculationsAndCharts!$A48+$A$11,0,1,1) -> 28.2 | G48: =OFFSET('InputData-DBC'!$M$10,CalculationsAndCharts!$A48+$A$11,0,1,1) -> 28.3 | H48: 28.874 | I48: 0 | J48: 0 | K48: 1633.774734 | L48: 0 | M48: 0 | N48: 1400.16179 | O48: 45271.89788 | P48: 0 | Q48: 0 | R48: 47570.63577 | S48: =OFFSET('InputData-DDM'!$B$10,CalculationsAndCharts!$A48+$A$11,0,1,1) -> 2012-04-27 | T48: =OFFSET('InputData-DDM'!$G$10,CalculationsAndCharts!$A48+$A$11,0,1,1) -> 538200 | U48: =OFFSET('InputData-DDM'!$J$10,CalculationsAndCharts!$A48+$A$11,0,1,1) -> 70.84 | V48: =OFFSET('InputData-DDM'!$K$10,CalculationsAndCharts!$A48+$A$11,0,1,1) -> 71.14 | W48: =OFFSET('InputData-DDM'!$L$10,CalculationsAndCharts!$A48+$A$11,0,1,1) -> 70.33 | X48: =OFFSET('InputData-DDM'!$M$10,CalculationsAndCharts!$A48+$A$11,0,1,1) -> 70.69 | Y48: 68.6634 | Z48: 0 | AA48: 0 | AB48: 753.1045058 | AC48: 0 | AD48: 0 | AE48: 1236.566543 | AF48: 39982.31821 | AG48: 0 | AH48: 0 | AI48: 54586.48973 | AJ48: 102157.1255
A49: 17 | B49: =OFFSET('InputData-DBC'!$B$10,CalculationsAndCharts!$A49+$A$11,0,1,1) -> 2012-04-26 | C49: =OFFSET('InputData-DBC'!$G$10,CalculationsAndCharts!$A49+$A$11,0,1,1) -> 851600 | D49: =OFFSET('InputData-DBC'!$J$10,CalculationsAndCharts!$A49+$A$11,0,1,1) -> 28.2 | E49: =OFFSET('InputData-DBC'!$K$10,CalculationsAndCharts!$A49+$A$11,0,1,1) -> 28.34 | F49: =OFFSET('InputData-DBC'!$L$10,CalculationsAndCharts!$A49+$A$11,0,1,1) -> 28.2 | G49: =OFFSET('InputData-DBC'!$M$10,CalculationsAndCharts!$A49+$A$11,0,1,1) -> 28.21 | H49: 28.8802 | I49: 0 | J49: 0 | K49: 1633.774734 | L49: 0 | M49: 0 | N49: 1400.16179 | O49: 45271.89788 | P49: 0 | Q49: 0 | R49: 47472.60929 | S49: =OFFSET('InputData-DDM'!$B$10,CalculationsAndCharts!$A49+$A$11,0,1,1) -> 2012-04-26 | T49: =OFFSET('InputData-DDM'!$G$10,CalculationsAndCharts!$A49+$A$11,0,1,1) -> 420700 | U49: =OFFSET('InputData-DDM'!$J$10,CalculationsAndCharts!$A49+$A$11,0,1,1) -> 69.15 | V49: =OFFSET('InputData-DDM'!$K$10,CalculationsAndCharts!$A49+$A$11,0,1,1) -> 70.73 | W49: =OFFSET('InputData-DDM'!$L$10,CalculationsAndCharts!$A49+$A$11,0,1,1) -> 69.1 | X49: =OFFSET('InputData-DDM'!$M$10,CalculationsAndCharts!$A49+$A$11,0,1,1) -> 70.52 | Y49: 68.5682 | Z49: 0 | AA49: 0 | AB49: 753.1045058 | AC49: 0 | AD49: 0 | AE49: 1236.566543 | AF49: 39982.31821 | AG49: 0 | AH49: 0 | AI49: 53313.74312 | AJ49: 100786.3524
A50: 18 | B50: =OFFSET('InputData-DBC'!$B$10,CalculationsAndCharts!$A50+$A$11,0,1,1) -> 2012-04-25 | C50: =OFFSET('InputData-DBC'!$G$10,CalculationsAndCharts!$A50+$A$11,0,1,1) -> 886200 | D50: =OFFSET('InputData-DBC'!$J$10,CalculationsAndCharts!$A50+$A$11,0,1,1) -> 28.13 | E50: =OFFSET('InputData-DBC'!$K$10,CalculationsAndCharts!$A50+$A$11,0,1,1) -> 28.17 | F50: =OFFSET('InputData-DBC'!$L$10,CalculationsAndCharts!$A50+$A$11,0,1,1) -> 27.92 | G50: =OFFSET('InputData-DBC'!$M$10,CalculationsAndCharts!$A50+$A$11,0,1,1) -> 28.15 | H50: 28.8862 | I50: 0 | J50: 0 | K50: 1633.774734 | L50: 0 | M50: 0 | N50: 1400.16179 | O50: 45271.89788 | P50: 0 | Q50: 0 | R50: 47358.24506 | S50: =OFFSET('InputData-DDM'!$B$10,CalculationsAndCharts!$A50+$A$11,0,1,1) -> 2012-04-25 | T50: =OFFSET('InputData-DDM'!$G$10,CalculationsAndCharts!$A50+$A$11,0,1,1) -> 825500 | U50: =OFFSET('InputData-DDM'!$J$10,CalculationsAndCharts!$A50+$A$11,0,1,1) -> 69.07 | V50: =OFFSET('InputData-DDM'!$K$10,CalculationsAndCharts!$A50+$A$11,0,1,1) -> 69.45 | W50: =OFFSET('InputData-DDM'!$L$10,CalculationsAndCharts!$A50+$A$11,0,1,1) -> 68.7 | X50: =OFFSET('InputData-DDM'!$M$10,CalculationsAndCharts!$A50+$A$11,0,1,1) -> 69.26 | Y50: 68.492 | Z50: 0 | AA50: 0 | AB50: 753.1045058 | AC50: 0 | AD50: 0 | AE50: 1236.566543 | AF50: 39982.31821 | AG50: 0 | AH50: 0 | AI50: 53253.49476 | AJ50: 100611.7398
A51: 19 | B51: =OFFSET('InputData-DBC'!$B$10,CalculationsAndCharts!$A51+$A$11,0,1,1) -> 2012-04-24 | C51: =OFFSET('InputData-DBC'!$G$10,CalculationsAndCharts!$A51+$A$11,0,1,1) -> 736800 | D51: =OFFSET('InputData-DBC'!$J$10,CalculationsAndCharts!$A51+$A$11,0,1,1) -> 28.09 | E51: =OFFSET('InputData-DBC'!$K$10,CalculationsAndCharts!$A51+$A$11,0,1,1) -> 28.12 | F51: =OFFSET('InputData-DBC'!$L$10,CalculationsAndCharts!$A51+$A$11,0,1,1) -> 27.94 | G51: =OFFSET('InputData-DBC'!$M$10,CalculationsAndCharts!$A51+$A$11,0,1,1) -> 27.99 | H51: 28.8936 | I51: 0 | J51: 0 | K51: 1633.774734 | L51: 0 | M51: 0 | N51: 1400.16179 | O51: 45271.89788 | P51: 0 | Q51: 0 | R51: 47292.89407 | S51: =OFFSET('InputData-DDM'!$B$10,CalculationsAndCharts!$A51+$A$11,0,1,1) -> 2012-04-24 | T51: =OFFSET('InputData-DDM'!$G$10,CalculationsAndCharts!$A51+$A$11,0,1,1) -> 664300 | U51: =OFFSET('InputData-DDM'!$J$10,CalculationsAndCharts!$A51+$A$11,0,1,1) -> 67.82 | V51: =OFFSET('InputData-DDM'!$K$10,CalculationsAndCharts!$A51+$A$11,0,1,1) -> 68.83 | W51: =OFFSET('InputData-DDM'!$L$10,CalculationsAndCharts!$A51+$A$11,0,1,1) -> 67.81 | X51: =OFFSET('InputData-DDM'!$M$10,CalculationsAndCharts!$A51+$A$11,0,1,1) -> 68.33 | Y51: 68.4402 | Z51: 0 | AA51: 0 | AB51: 753.1045058 | AC51: 0 | AD51: 0 | AE51: 1236.566543 | AF51: 39982.31821 | AG51: 0 | AH51: 0 | AI51: 52312.11412 | AJ51: 99605.00819
A52: 20 | B52: =OFFSET('InputData-DBC'!$B$10,CalculationsAndCharts!$A52+$A$11,0,1,1) -> 2012-04-23 | C52: =OFFSET('InputData-DBC'!$G$10,CalculationsAndCharts!$A52+$A$11,0,1,1) -> 1026900 | D52: =OFFSET('InputData-DBC'!$J$10,CalculationsAndCharts!$A52+$A$11,0,1,1) -> 27.78 | E52: =OFFSET('InputData-DBC'!$K$10,CalculationsAndCharts!$A52+$A$11,0,1,1) -> 28.01 | F52: =OFFSET('InputData-DBC'!$L$10,CalculationsAndCharts!$A52+$A$11,0,1,1) -> 27.73 | G52: =OFFSET('InputData-DBC'!$M$10,CalculationsAndCharts!$A52+$A$11,0,1,1) -> 27.99 | H52: 28.9028 | I52: 0 | J52: 0 | K52: 1633.774734 | L52: 0 | M52: 0 | N52: 1400.16179 | O52: 45271.89788 | P52: 0 | Q52: 0 | R52: 46786.4239 | S52: =OFFSET('InputData-DDM'!$B$10,CalculationsAndCharts!$A52+$A$11,0,1,1) -> 2012-04-23 | T52: =OFFSET('InputData-DDM'!$G$10,CalculationsAndCharts!$A52+$A$11,0,1,1) -> 736100 | U52: =OFFSET('InputData-DDM'!$J$10,CalculationsAndCharts!$A52+$A$11,0,1,1) -> 67.23 | V52: =OFFSET('InputData-DDM'!$K$10,CalculationsAndCharts!$A52+$A$11,0,1,1) -> 67.62 | W52: =OFFSET('InputData-DDM'!$L$10,CalculationsAndCharts!$A52+$A$11,0,1,1) -> 66.66 | X52: =OFFSET('InputData-DDM'!$M$10,CalculationsAndCharts!$A52+$A$11,0,1,1) -> 67.56 | Y52: 68.3936 | Z52: 0 | AA52: 0 | AB52: 753.1045058 | AC52: 0 | AD52: 0 | AE52: 1236.566543 | AF52: 39982.31821 | AG52: 0 | AH52: 0 | AI52: 51867.78247 | AJ52: 98654.20636
A53: 21 | B53: =OFFSET('InputData-DBC'!$B$10,CalculationsAndCharts!$A53+$A$11,0,1,1) -> 2012-04-20 | C53: =OFFSET('InputData-DBC'!$G$10,CalculationsAndCharts!$A53+$A$11,0,1,1) -> 1648000 | D53: =OFFSET('InputData-DBC'!$J$10,CalculationsAndCharts!$A53+$A$11,0,1,1) -> 28.12 | E53: =OFFSET('InputData-DBC'!$K$10,CalculationsAndCharts!$A53+$A$11,0,1,1) -> 28.2 | F53: =OFFSET('InputData-DBC'!$L$10,CalculationsAndCharts!$A53+$A$11,0,1,1) -> 27.99 | G53: =OFFSET('InputData-DBC'!$M$10,CalculationsAndCharts!$A53+$A$11,0,1,1) -> 28.04 | H53: 28.9174 | I53: 0 | J53: 0 | K53: 1633.774734 | L53: 0 | M53: 0 | N53: 1400.16179 | O53: 45271.89788 | P53: 0 | Q53: 0 | R53: 47341.90731 | S53: =OFFSET('InputData-DDM'!$B$10,CalculationsAndCharts!$A53+$A$11,0,1,1) -> 2012-04-20 | T53: =OFFSET('InputData-DDM'!$G$10,CalculationsAndCharts!$A53+$A$11,0,1,1) -> 449700 | U53: =OFFSET('InputData-DDM'!$J$10,CalculationsAndCharts!$A53+$A$11,0,1,1) -> 68.6 | V53: =OFFSET('InputData-DDM'!$K$10,CalculationsAndCharts!$A53+$A$11,0,1,1) -> 69.15 | W53: =OFFSET('InputData-DDM'!$L$10,CalculationsAndCharts!$A53+$A$11,0,1,1) -> 68.5 | X53: =OFFSET('InputData-DDM'!$M$10,CalculationsAndCharts!$A53+$A$11,0,1,1) -> 68.58 | Y53: 68.3796 | Z53: 0 | AA53: 0 | AB53: 753.1045058 | AC53: 0 | AD53: 0 | AE53: 1236.566543 | AF53: 39982.31821 | AG53: 0 | AH53: 0 | AI53: 52899.53564 | AJ53: 100241.4429
A54: 22 | B54: =OFFSET('InputData-DBC'!$B$10,CalculationsAndCharts!$A54+$A$11,0,1,1) -> 2012-04-19 | C54: =OFFSET('InputData-DBC'!$G$10,CalculationsAndCharts!$A54+$A$11,0,1,1) -> 1837800 | D54: =OFFSET('InputData-DBC'!$J$10,CalculationsAndCharts!$A54+$A$11,0,1,1) -> 28.04 | E54: =OFFSET('InputData-DBC'!$K$10,CalculationsAndCharts!$A54+$A$11,0,1,1) -> 28.11 | F54: =OFFSET('InputData-DBC'!$L$10,CalculationsAndCharts!$A54+$A$11,0,1,1) -> 27.87 | G54: =OFFSET('InputData-DBC'!$M$10,CalculationsAndCharts!$A54+$A$11,0,1,1) -> 27.93 | H54: 28.928 | I54: 0 | J54: 0 | K54: 1633.774734 | L54: 0 | M54: 0 | N54: 1400.16179 | O54: 45271.89788 | P54: 0 | Q54: 0 | R54: 47211.20533 | S54: =OFFSET('InputData-DDM'!$B$10,CalculationsAndCharts!$A54+$A$11,0,1,1) -> 2012-04-19 | T54: =OFFSET('InputData-DDM'!$G$10,CalculationsAndCharts!$A54+$A$11,0,1,1) -> 1320600 | U54: =OFFSET('InputData-DDM'!$J$10,CalculationsAndCharts!$A54+$A$11,0,1,1) -> 68.73 | V54: =OFFSET('InputData-DDM'!$K$10,CalculationsAndCharts!$A54+$A$11,0,1,1) -> 69.16 | W54: =OFFSET('InputData-DDM'!$L$10,CalculationsAndCharts!$A54+$A$11,0,1,1) -> 67.21 | X54: =OFFSET('InputData-DDM'!$M$10,CalculationsAndCharts!$A54+$A$11,0,1,1) -> 67.92 | Y54: 68.345 | Z54: 0 | AA54: 0 | AB54: 753.1045058 | AC54: 0 | AD54: 0 | AE54: 1236.566543 | AF54: 39982.31821 | AG54: 0 | AH54: 0 | AI54: 52997.43922 | AJ54: 100208.6446
A55: 23 | B55: =OFFSET('InputData-DBC'!$B$10,CalculationsAndCharts!$A55+$A$11,0,1,1) -> 2012-04-18 | C55: =OFFSET('InputData-DBC'!$G$10,CalculationsAndCharts!$A55+$A$11,0,1,1) -> 1801500 | D55: =OFFSET('InputData-DBC'!$J$10,CalculationsAndCharts!$A55+$A$11,0,1,1) -> 28.03 | E55: =OFFSET('InputData-DBC'!$K$10,CalculationsAndCharts!$A55+$A$11,0,1,1) -> 28.05 | F55: =OFFSET('InputData-DBC'!$L$10,CalculationsAndCharts!$A55+$A$11,0,1,1) -> 27.84 | G55: =OFFSET('InputData-DBC'!$M$10,CalculationsAndCharts!$A55+$A$11,0,1,1) -> 27.92 | H55: 28.9382 | I55: 0 | J55: 0 | K55: 1633.774734 | L55: 0 | M55: 0 | N55: 1400.16179 | O55: 45271.89788 | P55: 0 | Q55: 0 | R55: 47194.86758 | S55: =OFFSET('InputData-DDM'!$B$10,CalculationsAndCharts!$A55+$A$11,0,1,1) -> 2012-04-18 | T55: =OFFSET('InputData-DDM'!$G$10,CalculationsAndCharts!$A55+$A$11,0,1,1) -> 629700 | U55: =OFFSET('InputData-DDM'!$J$10,CalculationsAndCharts!$A55+$A$11,0,1,1) -> 68.77 | V55: =OFFSET('InputData-DDM'!$K$10,CalculationsAndCharts!$A55+$A$11,0,1,1) -> 69.31 | W55: =OFFSET('InputData-DDM'!$L$10,CalculationsAndCharts!$A55+$A$11,0,1,1) -> 68.53 | X55: =OFFSET('InputData-DDM'!$M$10,CalculationsAndCharts!$A55+$A$11,0,1,1) -> 68.61 | Y55: 68.3188 | Z55: 0 | AA55: 0 | AB55: 753.1045058 | AC55: 0 | AD55: 0 | AE55: 1236.566543 | AF55: 39982.31821 | AG55: 0 | AH55: 0 | AI55: 53027.5634 | AJ55: 100222.431
A56: 24 | B56: =OFFSET('InputData-DBC'!$B$10,CalculationsAndCharts!$A56+$A$11,0,1,1) -> 2012-04-17 | C56: =OFFSET('InputData-DBC'!$G$10,CalculationsAndCharts!$A56+$A$11,0,1,1) -> 1754300 | D56: =OFFSET('InputData-DBC'!$J$10,CalculationsAndCharts!$A56+$A$11,0,1,1) -> 28.18 | E56: =OFFSET('InputData-DBC'!$K$10,CalculationsAndCharts!$A56+$A$11,0,1,1) -> 28.22 | F56: =OFFSET('InputData-DBC'!$L$10,CalculationsAndCharts!$A56+$A$11,0,1,1) -> 28.1 | G56: =OFFSET('InputData-DBC'!$M$10,CalculationsAndCharts!$A56+$A$11,0,1,1) -> 28.19 | H56: 28.949 | I56: 0 | J56: 0 | K56: 1633.774734 | L56: 0 | M56: 0 | N56: 1400.16179 | O56: 45271.89788 | P56: 0 | Q56: 0 | R56: 47439.93379 | S56: =OFFSET('InputData-DDM'!$B$10,CalculationsAndCharts!$A56+$A$11,0,1,1) -> 2012-04-17 | T56: =OFFSET('InputData-DDM'!$G$10,CalculationsAndCharts!$A56+$A$11,0,1,1) -> 474100 | U56: =OFFSET('InputData-DDM'!$J$10,CalculationsAndCharts!$A56+$A$11,0,1,1) -> 68.28 | V56: =OFFSET('InputData-DDM'!$K$10,CalculationsAndCharts!$A56+$A$11,0,1,1) -> 69.66 | W56: =OFFSET('InputData-DDM'!$L$10,CalculationsAndCharts!$A56+$A$11,0,1,1) -> 68.28 | X56: =OFFSET('InputData-DDM'!$M$10,CalculationsAndCharts!$A56+$A$11,0,1,1) -> 69.48 | Y56: 68.271 | Z56: 0 | AA56: 0 | AB56: 753.1045058 | AC56: 0 | AD56: 0 | AE56: 1236.566543 | AF56: 39982.31821 | AG56: 0 | AH56: 0 | AI56: 52658.5422 | AJ56: 100098.476
A57: 25 | B57: =OFFSET('InputData-DBC'!$B$10,CalculationsAndCharts!$A57+$A$11,0,1,1) -> 2012-04-16 | C57: =OFFSET('InputData-DBC'!$G$10,CalculationsAndCharts!$A57+$A$11,0,1,1) -> 1860900 | D57: =OFFSET('InputData-DBC'!$J$10,CalculationsAndCharts!$A57+$A$11,0,1,1) -> 28.23 | E57: =OFFSET('InputData-DBC'!$K$10,CalculationsAndCharts!$A57+$A$11,0,1,1) -> 28.24 | F57: =OFFSET('InputData-DBC'!$L$10,CalculationsAndCharts!$A57+$A$11,0,1,1) -> 27.98 | G57: =OFFSET('InputData-DBC'!$M$10,CalculationsAndCharts!$A57+$A$11,0,1,1) -> 28.06 | H57: 28.9516 | I57: 0 | J57: 0 | K57: 1633.774734 | L57: 0 | M57: 0 | N57: 1400.16179 | O57: 45271.89788 | P57: 0 | Q57: 0 | R57: 47521.62253 | S57: =OFFSET('InputData-DDM'!$B$10,CalculationsAndCharts!$A57+$A$11,0,1,1) -> 2012-04-16 | T57: =OFFSET('InputData-DDM'!$G$10,CalculationsAndCharts!$A57+$A$11,0,1,1) -> 845300 | U57: =OFFSET('InputData-DDM'!$J$10,CalculationsAndCharts!$A57+$A$11,0,1,1) -> 67.69 | V57: =OFFSET('InputData-DDM'!$K$10,CalculationsAndCharts!$A57+$A$11,0,1,1) -> 68.15 | W57: =OFFSET('InputData-DDM'!$L$10,CalculationsAndCharts!$A57+$A$11,0,1,1) -> 67.11 | X57: =OFFSET('InputData-DDM'!$M$10,CalculationsAndCharts!$A57+$A$11,0,1,1) -> 67.51 | Y57: 68.2104 | Z57: 0 | AA57: 0 | AB57: 753.1045058 | AC57: 0 | AD57: 0 | AE57: 1236.566543 | AF57: 39982.31821 | AG57: 0 | AH57: 0 | AI57: 52214.21054 | AJ57: 99735.83307
A58: 26 | B58: =OFFSET('InputData-DBC'!$B$10,CalculationsAndCharts!$A58+$A$11,0,1,1) -> 2012-04-13 | C58: =OFFSET('InputData-DBC'!$G$10,CalculationsAndCharts!$A58+$A$11,0,1,1) -> 2228100 | D58: =OFFSET('InputData-DBC'!$J$10,CalculationsAndCharts!$A58+$A$11,0,1,1) -> 28.5 | E58: =OFFSET('InputData-DBC'!$K$10,CalculationsAndCharts!$A58+$A$11,0,1,1) -> 28.52 | F58: =OFFSET('InputData-DBC'!$L$10,CalculationsAndCharts!$A58+$A$11,0,1,1) -> 28.3 | G58: =OFFSET('InputData-DBC'!$M$10,CalculationsAndCharts!$A58+$A$11,0,1,1) -> 28.34 | H58: 28.9502 | I58: 0 | J58: 0 | K58: 1633.774734 | L58: 0 | M58: 0 | N58: 1400.16179 | O58: 45271.89788 | P58: 0 | Q58: 0 | R58: 47962.74171 | S58: =OFFSET('InputData-DDM'!$B$10,CalculationsAndCharts!$A58+$A$11,0,1,1) -> 2012-04-13 | T58: =OFFSET('InputData-DDM'!$G$10,CalculationsAndCharts!$A58+$A$11,0,1,1) -> 606200 | U58: =OFFSET('InputData-DDM'!$J$10,CalculationsAndCharts!$A58+$A$11,0,1,1) -> 67.8 | V58: =OFFSET('InputData-DDM'!$K$10,CalculationsAndCharts!$A58+$A$11,0,1,1) -> 67.81 | W58: =OFFSET('InputData-DDM'!$L$10,CalculationsAndCharts!$A58+$A$11,0,1,1) -> 66.71 | X58: =OFFSET('InputData-DDM'!$M$10,CalculationsAndCharts!$A58+$A$11,0,1,1) -> 66.82 | Y58: 68.158 | Z58: 0 | AA58: 0 | AB58: 753.1045058 | AC58: 0 | AD58: 0 | AE58: 1236.566543 | AF58: 39982.31821 | AG58: 0 | AH58: 0 | AI58: 52297.05203 | AJ58: 100259.7937
A59: 27 | B59: =OFFSET('InputData-DBC'!$B$10,CalculationsAndCharts!$A59+$A$11,0,1,1) -> 2012-04-12 | C59: =OFFSET('InputData-DBC'!$G$10,CalculationsAndCharts!$A59+$A$11,0,1,1) -> 908600 | D59: =OFFSET('InputData-DBC'!$J$10,CalculationsAndCharts!$A59+$A$11,0,1,1) -> 28.33 | E59: =OFFSET('InputData-DBC'!$K$10,CalculationsAndCharts!$A59+$A$11,0,1,1) -> 28.64 | F59: =OFFSET('InputData-DBC'!$L$10,CalculationsAndCharts!$A59+$A$11,0,1,1) -> 28.31 | G59: =OFFSET('InputData-DBC'!$M$10,CalculationsAndCharts!$A59+$A$11,0,1,1) -> 28.63 | H59: 28.9418 | I59: 0 | J59: 0 | K59: 1633.774734 | L59: 0 | M59: 0 | N59: 1400.16179 | O59: 45271.89788 | P59: 0 | Q59: 0 | R59: 47685 | S59: =OFFSET('InputData-DDM'!$B$10,CalculationsAndCharts!$A59+$A$11,0,1,1) -> 2012-04-12 | T59: =OFFSET('InputData-DDM'!$G$10,CalculationsAndCharts!$A59+$A$11,0,1,1) -> 762900 | U59: =OFFSET('InputData-DDM'!$J$10,CalculationsAndCharts!$A59+$A$11,0,1,1) -> 66.54 | V59: =OFFSET('InputData-DDM'!$K$10,CalculationsAndCharts!$A59+$A$11,0,1,1) -> 68.22 | W59: =OFFSET('InputData-DDM'!$L$10,CalculationsAndCharts!$A59+$A$11,0,1,1) -> 66.46 | X59: =OFFSET('InputData-DDM'!$M$10,CalculationsAndCharts!$A59+$A$11,0,1,1) -> 68.22 | Y59: 68.1206 | Z59: 0 | AA59: 0 | AB59: 753.1045058 | AC59: 0 | AD59: 0 | AE59: 1236.566543 | AF59: 39982.31821 | AG59: 0 | AH59: 0 | AI59: 51348.14036 | AJ59: 99033.14036
A60: 28 | B60: =OFFSET('InputData-DBC'!$B$10,CalculationsAndCharts!$A60+$A$11,0,1,1) -> 2012-04-11 | C60: =OFFSET('InputData-DBC'!$G$10,CalculationsAndCharts!$A60+$A$11,0,1,1) -> 2472600 | D60: =OFFSET('InputData-DBC'!$J$10,CalculationsAndCharts!$A60+$A$11,0,1,1) -> 28.23 | E60: =OFFSET('InputData-DBC'!$K$10,CalculationsAndCharts!$A60+$A$11,0,1,1) -> 28.38 | F60: =OFFSET('InputData-DBC'!$L$10,CalculationsAndCharts!$A60+$A$11,0,1,1) -> 28.16 | G60: =OFFSET('InputData-DBC'!$M$10,CalculationsAndCharts!$A60+$A$11,0,1,1) -> 28.26 | H60: 28.9258 | I60: 0 | J60: 0 | K60: 1633.774734 | L60: 0 | M60: 0 | N60: 1400.16179 | O60: 45271.89788 | P60: 0 | Q60: 0 | R60: 47521.62253 | S60: =OFFSET('InputData-DDM'!$B$10,CalculationsAndCharts!$A60+$A$11,0,1,1) -> 2012-04-11 | T60: =OFFSET('InputData-DDM'!$G$10,CalculationsAndCharts!$A60+$A$11,0,1,1) -> 703500 | U60: =OFFSET('InputData-DDM'!$J$10,CalculationsAndCharts!$A60+$A$11,0,1,1) -> 66.6 | V60: =OFFSET('InputData-DDM'!$K$10,CalculationsAndCharts!$A60+$A$11,0,1,1) -> 66.73 | W60: =OFFSET('InputData-DDM'!$L$10,CalculationsAndCharts!$A60+$A$11,0,1,1) -> 66.16 | X60: =OFFSET('InputData-DDM'!$M$10,CalculationsAndCharts!$A60+$A$11,0,1,1) -> 66.31 | Y60: 68.0388 | Z60: 0 | AA60: 0 | AB60: 753.1045058 | AC60: 0 | AD60: 0 | AE60: 1236.566543 | AF60: 39982.31821 | AG60: 0 | AH60: 0 | AI60: 51393.32663 | AJ60: 98914.94916
A61: 29 | B61: =OFFSET('InputData-DBC'!$B$10,CalculationsAndCharts!$A61+$A$11,0,1,1) -> 2012-04-10 | C61: =OFFSET('InputData-DBC'!$G$10,CalculationsAndCharts!$A61+$A$11,0,1,1) -> 1543900 | D61: =OFFSET('InputData-DBC'!$J$10,CalculationsAndCharts!$A61+$A$11,0,1,1) -> 28.53 | E61: =OFFSET('InputData-DBC'!$K$10,CalculationsAndCharts!$A61+$A$11,0,1,1) -> 28.56 | F61: =OFFSET('InputData-DBC'!$L$10,CalculationsAndCharts!$A61+$A$11,0,1,1) -> 28.15 | G61: =OFFSET('InputData-DBC'!$M$10,CalculationsAndCharts!$A61+$A$11,0,1,1) -> 28.19 | H61: 28.9186 | I61: 0 | J61: 0 | K61: 1633.774734 | L61: 0 | M61: 0 | N61: 1400.16179 | O61: 45271.89788 | P61: 0 | Q61: 0 | R61: 48011.75495 | S61: =OFFSET('InputData-DDM'!$B$10,CalculationsAndCharts!$A61+$A$11,0,1,1) -> 2012-04-10 | T61: =OFFSET('InputData-DDM'!$G$10,CalculationsAndCharts!$A61+$A$11,0,1,1) -> 1282000 | U61: =OFFSET('InputData-DDM'!$J$10,CalculationsAndCharts!$A61+$A$11,0,1,1) -> 67.35 | V61: =OFFSET('InputData-DDM'!$K$10,CalculationsAndCharts!$A61+$A$11,0,1,1) -> 67.56 | W61: =OFFSET('InputData-DDM'!$L$10,CalculationsAndCharts!$A61+$A$11,0,1,1) -> 65.33 | X61: =OFFSET('InputData-DDM'!$M$10,CalculationsAndCharts!$A61+$A$11,0,1,1) -> 65.33 | Y61: 67.9992 | Z61: 0 | AA61: 0 | AB61: 753.1045058 | AC61: 0 | AD61: 0 | AE61: 1236.566543 | AF61: 39982.31821 | AG61: 0 | AH61: 0 | AI61: 51958.15501 | AJ61: 99969.90996
A62: 30 | B62: =OFFSET('InputData-DBC'!$B$10,CalculationsAndCharts!$A62+$A$11,0,1,1) -> 2012-04-09 | C62: =OFFSET('InputData-DBC'!$G$10,CalculationsAndCharts!$A62+$A$11,0,1,1) -> 1578100 | D62: =OFFSET('InputData-DBC'!$J$10,CalculationsAndCharts!$A62+$A$11,0,1,1) -> 28.46 | E62: =OFFSET('InputData-DBC'!$K$10,CalculationsAndCharts!$A62+$A$11,0,1,1) -> 28.62 | F62: =OFFSET('InputData-DBC'!$L$10,CalculationsAndCharts!$A62+$A$11,0,1,1) -> 28.35 | G62: =OFFSET('InputData-DBC'!$M$10,CalculationsAndCharts!$A62+$A$11,0,1,1) -> 28.57 | H62: 28.9186 | I62: 0 | J62: 0 | K62: 1633.774734 | L62: 0 | M62: 0 | N62: 1400.16179 | O62: 45271.89788 | P62: 0 | Q62: 0 | R62: 47897.39072 | S62: =OFFSET('InputData-DDM'!$B$10,CalculationsAndCharts!$A62+$A$11,0,1,1) -> 2012-04-09 | T62: =OFFSET('InputData-DDM'!$G$10,CalculationsAndCharts!$A62+$A$11,0,1,1) -> 669900 | U62: =OFFSET('InputData-DDM'!$J$10,CalculationsAndCharts!$A62+$A$11,0,1,1) -> 67.4 | V62: =OFFSET('InputData-DDM'!$K$10,CalculationsAndCharts!$A62+$A$11,0,1,1) -> 68.11 | W62: =OFFSET('InputData-DDM'!$L$10,CalculationsAndCharts!$A62+$A$11,0,1,1) -> 67.33 | X62: =OFFSET('InputData-DDM'!$M$10,CalculationsAndCharts!$A62+$A$11,0,1,1) -> 67.65 | Y62: 67.9824 | Z62: 0 | AA62: 0 | AB62: 753.1045058 | AC62: 0 | AD62: 0 | AE62: 1236.566543 | AF62: 39982.31821 | AG62: 0 | AH62: 0 | AI62: 51995.81023 | AJ62: 99893.20095
A63: 31 | B63: =OFFSET('InputData-DBC'!$B$10,CalculationsAndCharts!$A63+$A$11,0,1,1) -> 2012-04-05 | C63: =OFFSET('InputData-DBC'!$G$10,CalculationsAndCharts!$A63+$A$11,0,1,1) -> 897000 | D63: =OFFSET('InputData-DBC'!$J$10,CalculationsAndCharts!$A63+$A$11,0,1,1) -> 28.51 | E63: =OFFSET('InputData-DBC'!$K$10,CalculationsAndCharts!$A63+$A$11,0,1,1) -> 28.72 | F63: =OFFSET('InputData-DBC'!$L$10,CalculationsAndCharts!$A63+$A$11,0,1,1) -> 28.48 | G63: =OFFSET('InputData-DBC'!$M$10,CalculationsAndCharts!$A63+$A$11,0,1,1) -> 28.7 | H63: 28.909 | I63: 0 | J63: 0 | K63: 1633.774734 | L63: 0 | M63: 0 | N63: 1400.16179 | O63: 45271.89788 | P63: 0 | Q63: 0 | R63: 47979.07945 | S63: =OFFSET('InputData-DDM'!$B$10,CalculationsAndCharts!$A63+$A$11,0,1,1) -> 2012-04-05 | T63: =OFFSET('InputData-DDM'!$G$10,CalculationsAndCharts!$A63+$A$11,0,1,1) -> 673400 | U63: =OFFSET('InputData-DDM'!$J$10,CalculationsAndCharts!$A63+$A$11,0,1,1) -> 68.65 | V63: =OFFSET('InputData-DDM'!$K$10,CalculationsAndCharts!$A63+$A$11,0,1,1) -> 69.3 | W63: =OFFSET('InputData-DDM'!$L$10,CalculationsAndCharts!$A63+$A$11,0,1,1) -> 68.48 | X63: =OFFSET('InputData-DDM'!$M$10,CalculationsAndCharts!$A63+$A$11,0,1,1) -> 68.98 | Y63: 67.9324 | Z63: 0 | AA63: 0 | AB63: 753.1045058 | AC63: 0 | AD63: 0 | AE63: 1236.566543 | AF63: 39982.31821 | AG63: 0 | AH63: 0 | AI63: 52937.19086 | AJ63: 100916.2703
A64: 32 | B64: =OFFSET('InputData-DBC'!$B$10,CalculationsAndCharts!$A64+$A$11,0,1,1) -> 2012-04-04 | C64: =OFFSET('InputData-DBC'!$G$10,CalculationsAndCharts!$A64+$A$11,0,1,1) -> 2054900 | D64: =OFFSET('InputData-DBC'!$J$10,CalculationsAndCharts!$A64+$A$11,0,1,1) -> 28.79 | E64: =OFFSET('InputData-DBC'!$K$10,CalculationsAndCharts!$A64+$A$11,0,1,1) -> 28.85 | F64: =OFFSET('InputData-DBC'!$L$10,CalculationsAndCharts!$A64+$A$11,0,1,1) -> 28.52 | G64: =OFFSET('InputData-DBC'!$M$10,CalculationsAndCharts!$A64+$A$11,0,1,1) -> 28.59 | H64: 28.8952 | I64: 0 | J64: 0 | K64: 1633.774734 | L64: 0 | M64: 0 | N64: 1400.16179 | O64: 45271.89788 | P64: 0 | Q64: 0 | R64: 48436.53638 | S64: =OFFSET('InputData-DDM'!$B$10,CalculationsAndCharts!$A64+$A$11,0,1,1) -> 2012-04-04 | T64: =OFFSET('InputData-DDM'!$G$10,CalculationsAndCharts!$A64+$A$11,0,1,1) -> 927800 | U64: =OFFSET('InputData-DDM'!$J$10,CalculationsAndCharts!$A64+$A$11,0,1,1) -> 69.2 | V64: =OFFSET('InputData-DDM'!$K$10,CalculationsAndCharts!$A64+$A$11,0,1,1) -> 69.36 | W64: =OFFSET('InputData-DDM'!$L$10,CalculationsAndCharts!$A64+$A$11,0,1,1) -> 68.49 | X64: =OFFSET('InputData-DDM'!$M$10,CalculationsAndCharts!$A64+$A$11,0,1,1) -> 69.08 | Y64: 67.859 | Z64: 0 | AA64: 0 | AB64: 753.1045058 | AC64: 0 | AD64: 0 | AE64: 1236.566543 | AF64: 39982.31821 | AG64: 0 | AH64: 0 | AI64: 53351.39834 | AJ64: 101787.9347
A65: 33 | B65: =OFFSET('InputData-DBC'!$B$10,CalculationsAndCharts!$A65+$A$11,0,1,1) -> 2012-04-03 | C65: =OFFSET('InputData-DBC'!$G$10,CalculationsAndCharts!$A65+$A$11,0,1,1) -> 1325100 | D65: =OFFSET('InputData-DBC'!$J$10,CalculationsAndCharts!$A65+$A$11,0,1,1) -> 29.2 | E65: =OFFSET('InputData-DBC'!$K$10,CalculationsAndCharts!$A65+$A$11,0,1,1) -> 29.21 | F65: =OFFSET('InputData-DBC'!$L$10,CalculationsAndCharts!$A65+$A$11,0,1,1) -> 28.95 | G65: =OFFSET('InputData-DBC'!$M$10,CalculationsAndCharts!$A65+$A$11,0,1,1) -> 29.04 | H65: 28.879 | I65: 0 | J65: 0 | K65: 1633.774734 | L65: 0 | M65: 0 | N65: 1400.16179 | O65: 45271.89788 | P65: 0 | Q65: 0 | R65: 49106.38402 | S65: =OFFSET('InputData-DDM'!$B$10,CalculationsAndCharts!$A65+$A$11,0,1,1) -> 2012-04-03 | T65: =OFFSET('InputData-DDM'!$G$10,CalculationsAndCharts!$A65+$A$11,0,1,1) -> 763000 | U65: =OFFSET('InputData-DDM'!$J$10,CalculationsAndCharts!$A65+$A$11,0,1,1) -> 70.82 | V65: =OFFSET('InputData-DDM'!$K$10,CalculationsAndCharts!$A65+$A$11,0,1,1) -> 71.12 | W65: =OFFSET('InputData-DDM'!$L$10,CalculationsAndCharts!$A65+$A$11,0,1,1) -> 69.69 | X65: =OFFSET('InputData-DDM'!$M$10,CalculationsAndCharts!$A65+$A$11,0,1,1) -> 70.37 | Y65: 67.768 | Z65: 0 | AA65: 0 | AB65: 753.1045058 | AC65: 0 | AD65: 0 | AE65: 1236.566543 | AF65: 39982.31821 | AG65: 0 | AH65: 0 | AI65: 54571.42764 | AJ65: 103677.8117
A66: 34 | B66: =OFFSET('InputData-DBC'!$B$10,CalculationsAndCharts!$A66+$A$11,0,1,1) -> 2012-04-02 | C66: =OFFSET('InputData-DBC'!$G$10,CalculationsAndCharts!$A66+$A$11,0,1,1) -> 1752700 | D66: =OFFSET('InputData-DBC'!$J$10,CalculationsAndCharts!$A66+$A$11,0,1,1) -> 28.6 | E66: =OFFSET('InputData-DBC'!$K$10,CalculationsAndCharts!$A66+$A$11,0,1,1) -> 29.21 | F66: =OFFSET('InputData-DBC'!$L$10,CalculationsAndCharts!$A66+$A$11,0,1,1) -> 28.59 | G66: =OFFSET('InputData-DBC'!$M$10,CalculationsAndCharts!$A66+$A$11,0,1,1) -> 29.17 | H66: 28.8528 | I66: 0 | J66: 0 | K66: 1633.774734 | L66: 0 | M66: 0 | N66: 1400.16179 | O66: 45271.89788 | P66: 0 | Q66: 0 | R66: 48126.11918 | S66: =OFFSET('InputData-DDM'!$B$10,CalculationsAndCharts!$A66+$A$11,0,1,1) -> 2012-04-02 | T66: =OFFSET('InputData-DDM'!$G$10,CalculationsAndCharts!$A66+$A$11,0,1,1) -> 832500 | U66: =OFFSET('InputData-DDM'!$J$10,CalculationsAndCharts!$A66+$A$11,0,1,1) -> 70.23 | V66: =OFFSET('InputData-DDM'!$K$10,CalculationsAndCharts!$A66+$A$11,0,1,1) -> 71.42 | W66: =OFFSET('InputData-DDM'!$L$10,CalculationsAndCharts!$A66+$A$11,0,1,1) -> 69.9 | X66: =OFFSET('InputData-DDM'!$M$10,CalculationsAndCharts!$A66+$A$11,0,1,1) -> 71.02 | Y66: 67.6582 | Z66: 0 | AA66: 0 | AB66: 753.1045058 | AC66: 0 | AD66: 0 | AE66: 1236.566543 | AF66: 39982.31821 | AG66: 0 | AH66: 0 | AI66: 54127.09598 | AJ66: 102253.2152
A67: 35 | B67: =OFFSET('InputData-DBC'!$B$10,CalculationsAndCharts!$A67+$A$11,0,1,1) -> 2012-03-30 | C67: =OFFSET('InputData-DBC'!$G$10,CalculationsAndCharts!$A67+$A$11,0,1,1) -> 2630400 | D67: =OFFSET('InputData-DBC'!$J$10,CalculationsAndCharts!$A67+$A$11,0,1,1) -> 28.69 | E67: =OFFSET('InputData-DBC'!$K$10,CalculationsAndCharts!$A67+$A$11,0,1,1) -> 28.89 | F67: =OFFSET('InputData-DBC'!$L$10,CalculationsAndCharts!$A67+$A$11,0,1,1) -> 28.61 | G67: =OFFSET('InputData-DBC'!$M$10,CalculationsAndCharts!$A67+$A$11,0,1,1) -> 28.8 | H67: 28.8176 | I67: 0 | J67: 0 | K67: 1633.774734 | L67: 0 | M67: 0 | N67: 1400.16179 | O67: 45271.89788 | P67: 0 | Q67: 0 | R67: 48273.15891 | S67: =OFFSET('InputData-DDM'!$B$10,CalculationsAndCharts!$A67+$A$11,0,1,1) -> 2012-03-30 | T67: =OFFSET('InputData-DDM'!$G$10,CalculationsAndCharts!$A67+$A$11,0,1,1) -> 582900 | U67: =OFFSET('InputData-DDM'!$J$10,CalculationsAndCharts!$A67+$A$11,0,1,1) -> 70.36 | V67: =OFFSET('InputData-DDM'!$K$10,CalculationsAndCharts!$A67+$A$11,0,1,1) -> 70.66 | W67: =OFFSET('InputData-DDM'!$L$10,CalculationsAndCharts!$A67+$A$11,0,1,1) -> 69.84 | X67: =OFFSET('InputData-DDM'!$M$10,CalculationsAndCharts!$A67+$A$11,0,1,1) -> 70.53 | Y67: 67.5384 | Z67: 0 | AA67: 0 | AB67: 753.1045058 | AC67: 0 | AD67: 0 | AE67: 1236.566543 | AF67: 39982.31821 | AG67: 0 | AH67: 0 | AI67: 54224.99957 | AJ67: 102498.1585
A68: 36 | B68: =OFFSET('InputData-DBC'!$B$10,CalculationsAndCharts!$A68+$A$11,0,1,1) -> 2012-03-29 | C68: =OFFSET('InputData-DBC'!$G$10,CalculationsAndCharts!$A68+$A$11,0,1,1) -> 4891200 | D68: =OFFSET('InputData-DBC'!$J$10,CalculationsAndCharts!$A68+$A$11,0,1,1) -> 28.82 | E68: =OFFSET('InputData-DBC'!$K$10,CalculationsAndCharts!$A68+$A$11,0,1,1) -> 28.88 | F68: =OFFSET('InputData-DBC'!$L$10,CalculationsAndCharts!$A68+$A$11,0,1,1) -> 28.35 | G68: =OFFSET('InputData-DBC'!$M$10,CalculationsAndCharts!$A68+$A$11,0,1,1) -> 28.48 | H68: 28.7938 | I68: 0 | J68: 0 | K68: 1633.774734 | L68: 0 | M68: 0 | N68: 1400.16179 | O68: 45271.89788 | P68: 0 | Q68: 0 | R68: 48485.54962 | S68: =OFFSET('InputData-DDM'!$B$10,CalculationsAndCharts!$A68+$A$11,0,1,1) -> 2012-03-29 | T68: =OFFSET('InputData-DDM'!$G$10,CalculationsAndCharts!$A68+$A$11,0,1,1) -> 868400 | U68: =OFFSET('InputData-DDM'!$J$10,CalculationsAndCharts!$A68+$A$11,0,1,1) -> 68.88 | V68: =OFFSET('InputData-DDM'!$K$10,CalculationsAndCharts!$A68+$A$11,0,1,1) -> 69.89 | W68: =OFFSET('InputData-DDM'!$L$10,CalculationsAndCharts!$A68+$A$11,0,1,1) -> 68.64 | X68: =OFFSET('InputData-DDM'!$M$10,CalculationsAndCharts!$A68+$A$11,0,1,1) -> 69.77 | Y68: 67.4094 | Z68: 0 | AA68: 0 | AB68: 753.1045058 | AC68: 0 | AD68: 0 | AE68: 1236.566543 | AF68: 39982.31821 | AG68: 0 | AH68: 0 | AI68: 53110.4049 | AJ68: 101595.9545
A69: 37 | B69: =OFFSET('InputData-DBC'!$B$10,CalculationsAndCharts!$A69+$A$11,0,1,1) -> 2012-03-28 | C69: =OFFSET('InputData-DBC'!$G$10,CalculationsAndCharts!$A69+$A$11,0,1,1) -> 6060500 | D69: =OFFSET('InputData-DBC'!$J$10,CalculationsAndCharts!$A69+$A$11,0,1,1) -> 28.93 | E69: =OFFSET('InputData-DBC'!$K$10,CalculationsAndCharts!$A69+$A$11,0,1,1) -> 28.97 | F69: =OFFSET('InputData-DBC'!$L$10,CalculationsAndCharts!$A69+$A$11,0,1,1) -> 28.78 | G69: =OFFSET('InputData-DBC'!$M$10,CalculationsAndCharts!$A69+$A$11,0,1,1) -> 28.88 | H69: 28.774 | I69: 0 | J69: 0 | K69: 1633.774734 | L69: 0 | M69: 0 | N69: 1400.16179 | O69: 45271.89788 | P69: 0 | Q69: 0 | R69: 48665.26484 | S69: =OFFSET('InputData-DDM'!$B$10,CalculationsAndCharts!$A69+$A$11,0,1,1) -> 2012-03-28 | T69: =OFFSET('InputData-DDM'!$G$10,CalculationsAndCharts!$A69+$A$11,0,1,1) -> 965900 | U69: =OFFSET('InputData-DDM'!$J$10,CalculationsAndCharts!$A69+$A$11,0,1,1) -> 70.44 | V69: =OFFSET('InputData-DDM'!$K$10,CalculationsAndCharts!$A69+$A$11,0,1,1) -> 70.55 | W69: =OFFSET('InputData-DDM'!$L$10,CalculationsAndCharts!$A69+$A$11,0,1,1) -> 69.01 | X69: =OFFSET('InputData-DDM'!$M$10,CalculationsAndCharts!$A69+$A$11,0,1,1) -> 69.6 | Y69: 67.2844 | Z69: 0 | AA69: 0 | AB69: 753.1045058 | AC69: 0 | AD69: 0 | AE69: 1236.566543 | AF69: 39982.31821 | AG69: 0 | AH69: 0 | AI69: 54285.24793 | AJ69: 102950.5128
A70: 38 | B70: =OFFSET('InputData-DBC'!$B$10,CalculationsAndCharts!$A70+$A$11,0,1,1) -> 2012-03-27 | C70: =OFFSET('InputData-DBC'!$G$10,CalculationsAndCharts!$A70+$A$11,0,1,1) -> 1251400 | D70: =OFFSET('InputData-DBC'!$J$10,CalculationsAndCharts!$A70+$A$11,0,1,1) -> 29.29 | E70: =OFFSET('InputData-DBC'!$K$10,CalculationsAndCharts!$A70+$A$11,0,1,1) -> 29.35 | F70: =OFFSET('InputData-DBC'!$L$10,CalculationsAndCharts!$A70+$A$11,0,1,1) -> 29.13 | G70: =OFFSET('InputData-DBC'!$M$10,CalculationsAndCharts!$A70+$A$11,0,1,1) -> 29.16 | H70: 28.746 | I70: 0 | J70: 0 | K70: 1633.774734 | L70: 0 | M70: 0 | N70: 1400.16179 | O70: 45271.89788 | P70: 0 | Q70: 0 | R70: 49253.42375 | S70: =OFFSET('InputData-DDM'!$B$10,CalculationsAndCharts!$A70+$A$11,0,1,1) -> 2012-03-27 | T70: =OFFSET('InputData-DDM'!$G$10,CalculationsAndCharts!$A70+$A$11,0,1,1) -> 580100 | U70: =OFFSET('InputData-DDM'!$J$10,CalculationsAndCharts!$A70+$A$11,0,1,1) -> 70.92 | V70: =OFFSET('InputData-DDM'!$K$10,CalculationsAndCharts!$A70+$A$11,0,1,1) -> 71.09 | W70: =OFFSET('InputData-DDM'!$L$10,CalculationsAndCharts!$A70+$A$11,0,1,1) -> 70.34 | X70: =OFFSET('InputData-DDM'!$M$10,CalculationsAndCharts!$A70+$A$11,0,1,1) -> 70.39 | Y70: 67.1424 | Z70: 0 | AA70: 0 | AB70: 753.1045058 | AC70: 0 | AD70: 0 | AE70: 1236.566543 | AF70: 39982.31821 | AG70: 0 | AH70: 0 | AI70: 54646.73809 | AJ70: 103900.1618
A71: 39 | B71: =OFFSET('InputData-DBC'!$B$10,CalculationsAndCharts!$A71+$A$11,0,1,1) -> 2012-03-26 | C71: =OFFSET('InputData-DBC'!$G$10,CalculationsAndCharts!$A71+$A$11,0,1,1) -> 1555600 | D71: =OFFSET('InputData-DBC'!$J$10,CalculationsAndCharts!$A71+$A$11,0,1,1) -> 29.31 | E71: =OFFSET('InputData-DBC'!$K$10,CalculationsAndCharts!$A71+$A$11,0,1,1) -> 29.37 | F71: =OFFSET('InputData-DBC'!$L$10,CalculationsAndCharts!$A71+$A$11,0,1,1) -> 29.21 | G71: =OFFSET('InputData-DBC'!$M$10,CalculationsAndCharts!$A71+$A$11,0,1,1) -> 29.28 | H71: 28.7086 | I71: 0 | J71: 0 | K71: 1633.774734 | L71: 0 | M71: 0 | N71: 1400.16179 | O71: 45271.89788 | P71: 0 | Q71: 0 | R71: 49286.09924 | S71: =OFFSET('InputData-DDM'!$B$10,CalculationsAndCharts!$A71+$A$11,0,1,1) -> 2012-03-26 | T71: =OFFSET('InputData-DDM'!$G$10,CalculationsAndCharts!$A71+$A$11,0,1,1) -> 781000 | U71: =OFFSET('InputData-DDM'!$J$10,CalculationsAndCharts!$A71+$A$11,0,1,1) -> 70.08 | V71: =OFFSET('InputData-DDM'!$K$10,CalculationsAndCharts!$A71+$A$11,0,1,1) -> 70.86 | W71: =OFFSET('InputData-DDM'!$L$10,CalculationsAndCharts!$A71+$A$11,0,1,1) -> 70.03 | X71: =OFFSET('InputData-DDM'!$M$10,CalculationsAndCharts!$A71+$A$11,0,1,1) -> 70.84 | Y71: 66.9746 | Z71: 0 | AA71: 0 | AB71: 753.1045058 | AC71: 0 | AD71: 0 | AE71: 1236.566543 | AF71: 39982.31821 | AG71: 0 | AH71: 0 | AI71: 54014.13031 | AJ71: 103300.2295
A72: 40 | B72: =OFFSET('InputData-DBC'!$B$10,CalculationsAndCharts!$A72+$A$11,0,1,1) -> 2012-03-23 | C72: =OFFSET('InputData-DBC'!$G$10,CalculationsAndCharts!$A72+$A$11,0,1,1) -> 1664200 | D72: =OFFSET('InputData-DBC'!$J$10,CalculationsAndCharts!$A72+$A$11,0,1,1) -> 28.97 | E72: =OFFSET('InputData-DBC'!$K$10,CalculationsAndCharts!$A72+$A$11,0,1,1) -> 29.39 | F72: =OFFSET('InputData-DBC'!$L$10,CalculationsAndCharts!$A72+$A$11,0,1,1) -> 28.97 | G72: =OFFSET('InputData-DBC'!$M$10,CalculationsAndCharts!$A72+$A$11,0,1,1) -> 29.15 | H72: 28.67 | I72: 0 | J72: 0 | K72: 1633.774734 | L72: 0 | M72: 0 | N72: 1400.16179 | O72: 45271.89788 | P72: 0 | Q72: 0 | R72: 48730.61583 | S72: =OFFSET('InputData-DDM'!$B$10,CalculationsAndCharts!$A72+$A$11,0,1,1) -> 2012-03-23 | T72: =OFFSET('InputData-DDM'!$G$10,CalculationsAndCharts!$A72+$A$11,0,1,1) -> 662200 | U72: =OFFSET('InputData-DDM'!$J$10,CalculationsAndCharts!$A72+$A$11,0,1,1) -> 68.86 | V72: =OFFSET('InputData-DDM'!$K$10,CalculationsAndCharts!$A72+$A$11,0,1,1) -> 69.34 | W72: =OFFSET('InputData-DDM'!$L$10,CalculationsAndCharts!$A72+$A$11,0,1,1) -> 68.31 | X72: =OFFSET('InputData-DDM'!$M$10,CalculationsAndCharts!$A72+$A$11,0,1,1) -> 69.22 | Y72: 66.8064 | Z72: 0 | AA72: 0 | AB72: 753.1045058 | AC72: 0 | AD72: 0 | AE72: 1236.566543 | AF72: 39982.31821 | AG72: 0 | AH72: 0 | AI72: 53095.34281 | AJ72: 101825.9586
A73: 41 | B73: =OFFSET('InputData-DBC'!$B$10,CalculationsAndCharts!$A73+$A$11,0,1,1) -> 2012-03-22 | C73: =OFFSET('InputData-DBC'!$G$10,CalculationsAndCharts!$A73+$A$11,0,1,1) -> 1641500 | D73: =OFFSET('InputData-DBC'!$J$10,CalculationsAndCharts!$A73+$A$11,0,1,1) -> 28.8 | E73: =OFFSET('InputData-DBC'!$K$10,CalculationsAndCharts!$A73+$A$11,0,1,1) -> 28.89 | F73: =OFFSET('InputData-DBC'!$L$10,CalculationsAndCharts!$A73+$A$11,0,1,1) -> 28.73 | G73: =OFFSET('InputData-DBC'!$M$10,CalculationsAndCharts!$A73+$A$11,0,1,1) -> 28.87 | H73: 28.6418 | I73: 0 | J73: 0 | K73: 1633.774734 | L73: 0 | M73: 0 | N73: 1400.16179 | O73: 45271.89788 | P73: 0 | Q73: 0 | R73: 48452.87413 | S73: =OFFSET('InputData-DDM'!$B$10,CalculationsAndCharts!$A73+$A$11,0,1,1) -> 2012-03-22 | T73: =OFFSET('InputData-DDM'!$G$10,CalculationsAndCharts!$A73+$A$11,0,1,1) -> 1368500 | U73: =OFFSET('InputData-DDM'!$J$10,CalculationsAndCharts!$A73+$A$11,0,1,1) -> 68.87 | V73: =OFFSET('InputData-DDM'!$K$10,CalculationsAndCharts!$A73+$A$11,0,1,1) -> 69.18 | W73: =OFFSET('InputData-DDM'!$L$10,CalculationsAndCharts!$A73+$A$11,0,1,1) -> 68.47 | X73: =OFFSET('InputData-DDM'!$M$10,CalculationsAndCharts!$A73+$A$11,0,1,1) -> 68.78 | Y73: 66.6666 | Z73: 0 | AA73: 0 | AB73: 753.1045058 | AC73: 0 | AD73: 0 | AE73: 1236.566543 | AF73: 39982.31821 | AG73: 0 | AH73: 0 | AI73: 53102.87386 | AJ73: 101555.748
A74: 42 | B74: =OFFSET('InputData-DBC'!$B$10,CalculationsAndCharts!$A74+$A$11,0,1,1) -> 2012-03-21 | C74: =OFFSET('InputData-DBC'!$G$10,CalculationsAndCharts!$A74+$A$11,0,1,1) -> 951700 | D74: =OFFSET('InputData-DBC'!$J$10,CalculationsAndCharts!$A74+$A$11,0,1,1) -> 29.17 | E74: =OFFSET('InputData-DBC'!$K$10,CalculationsAndCharts!$A74+$A$11,0,1,1) -> 29.26 | F74: =OFFSET('InputData-DBC'!$L$10,CalculationsAndCharts!$A74+$A$11,0,1,1) -> 29.08 | G74: =OFFSET('InputData-DBC'!$M$10,CalculationsAndCharts!$A74+$A$11,0,1,1) -> 29.1 | H74: 28.6208 | I74: 0 | J74: 0 | K74: 1633.774734 | L74: 0 | M74: 0 | N74: 1400.16179 | O74: 45271.89788 | P74: 0 | Q74: 0 | R74: 49057.37078 | S74: =OFFSET('InputData-DDM'!$B$10,CalculationsAndCharts!$A74+$A$11,0,1,1) -> 2012-03-21 | T74: =OFFSET('InputData-DDM'!$G$10,CalculationsAndCharts!$A74+$A$11,0,1,1) -> 626200 | U74: =OFFSET('InputData-DDM'!$J$10,CalculationsAndCharts!$A74+$A$11,0,1,1) -> 70.25 | V74: =OFFSET('InputData-DDM'!$K$10,CalculationsAndCharts!$A74+$A$11,0,1,1) -> 70.31 | W74: =OFFSET('InputData-DDM'!$L$10,CalculationsAndCharts!$A74+$A$11,0,1,1) -> 69.47 | X74: =OFFSET('InputData-DDM'!$M$10,CalculationsAndCharts!$A74+$A$11,0,1,1) -> 69.65 | Y74: 66.5368 | Z74: 0 | AA74: 0 | AB74: 753.1045058 | AC74: 0 | AD74: 0 | AE74: 1236.566543 | AF74: 39982.31821 | AG74: 0 | AH74: 0 | AI74: 54142.15807 | AJ74: 103199.5289
A75: 43 | B75: =OFFSET('InputData-DBC'!$B$10,CalculationsAndCharts!$A75+$A$11,0,1,1) -> 2012-03-20 | C75: =OFFSET('InputData-DBC'!$G$10,CalculationsAndCharts!$A75+$A$11,0,1,1) -> 1577200 | D75: =OFFSET('InputData-DBC'!$J$10,CalculationsAndCharts!$A75+$A$11,0,1,1) -> 29.26 | E75: =OFFSET('InputData-DBC'!$K$10,CalculationsAndCharts!$A75+$A$11,0,1,1) -> 29.26 | F75: =OFFSET('InputData-DBC'!$L$10,CalculationsAndCharts!$A75+$A$11,0,1,1) -> 29.07 | G75: =OFFSET('InputData-DBC'!$M$10,CalculationsAndCharts!$A75+$A$11,0,1,1) -> 29.17 | H75: 28.5912 | I75: 0 | J75: 0 | K75: 1633.774734 | L75: 0 | M75: 0 | N75: 1400.16179 | O75: 45271.89788 | P75: 0 | Q75: 0 | R75: 49204.4105 | S75: =OFFSET('InputData-DDM'!$B$10,CalculationsAndCharts!$A75+$A$11,0,1,1) -> 2012-03-20 | T75: =OFFSET('InputData-DDM'!$G$10,CalculationsAndCharts!$A75+$A$11,0,1,1) -> 703500 | U75: =OFFSET('InputData-DDM'!$J$10,CalculationsAndCharts!$A75+$A$11,0,1,1) -> 70.08 | V75: =OFFSET('InputData-DDM'!$K$10,CalculationsAndCharts!$A75+$A$11,0,1,1) -> 70.43 | W75: =OFFSET('InputData-DDM'!$L$10,CalculationsAndCharts!$A75+$A$11,0,1,1) -> 69.6 | X75: =OFFSET('InputData-DDM'!$M$10,CalculationsAndCharts!$A75+$A$11,0,1,1) -> 70.1 | Y75: 66.3756 | Z75: 0 | AA75: 0 | AB75: 753.1045058 | AC75: 0 | AD75: 0 | AE75: 1236.566543 | AF75: 39982.31821 | AG75: 0 | AH75: 0 | AI75: 54014.13031 | AJ75: 103218.5408
A76: 44 | B76: =OFFSET('InputData-DBC'!$B$10,CalculationsAndCharts!$A76+$A$11,0,1,1) -> 2012-03-19 | C76: =OFFSET('InputData-DBC'!$G$10,CalculationsAndCharts!$A76+$A$11,0,1,1) -> 1386400 | D76: =OFFSET('InputData-DBC'!$J$10,CalculationsAndCharts!$A76+$A$11,0,1,1) -> 29.56 | E76: =OFFSET('InputData-DBC'!$K$10,CalculationsAndCharts!$A76+$A$11,0,1,1) -> 29.6 | F76: =OFFSET('InputData-DBC'!$L$10,CalculationsAndCharts!$A76+$A$11,0,1,1) -> 29.45 | G76: =OFFSET('InputData-DBC'!$M$10,CalculationsAndCharts!$A76+$A$11,0,1,1) -> 29.53 | H76: 28.5596 | I76: 0 | J76: 0 | K76: 1633.774734 | L76: 0 | M76: 0 | N76: 1400.16179 | O76: 45271.89788 | P76: 0 | Q76: 0 | R76: 49694.54293 | S76: =OFFSET('InputData-DDM'!$B$10,CalculationsAndCharts!$A76+$A$11,0,1,1) -> 2012-03-19 | T76: =OFFSET('InputData-DDM'!$G$10,CalculationsAndCharts!$A76+$A$11,0,1,1) -> 661000 | U76: =OFFSET('InputData-DDM'!$J$10,CalculationsAndCharts!$A76+$A$11,0,1,1) -> 70.65 | V76: =OFFSET('InputData-DDM'!$K$10,CalculationsAndCharts!$A76+$A$11,0,1,1) -> 71.18 | W76: =OFFSET('InputData-DDM'!$L$10,CalculationsAndCharts!$A76+$A$11,0,1,1) -> 70.52 | X76: =OFFSET('InputData-DDM'!$M$10,CalculationsAndCharts!$A76+$A$11,0,1,1) -> 70.82 | Y76: 66.202 | Z76: 0 | AA76: 0 | AB76: 753.1045058 | AC76: 0 | AD76: 0 | AE76: 1236.566543 | AF76: 39982.31821 | AG76: 0 | AH76: 0 | AI76: 54443.39988 | AJ76: 104137.9428
A77: 45 | B77: =OFFSET('InputData-DBC'!$B$10,CalculationsAndCharts!$A77+$A$11,0,1,1) -> 2012-03-16 | C77: =OFFSET('InputData-DBC'!$G$10,CalculationsAndCharts!$A77+$A$11,0,1,1) -> 1433400 | D77: =OFFSET('InputData-DBC'!$J$10,CalculationsAndCharts!$A77+$A$11,0,1,1) -> 29.34 | E77: =OFFSET('InputData-DBC'!$K$10,CalculationsAndCharts!$A77+$A$11,0,1,1) -> 29.58 | F77: =OFFSET('InputData-DBC'!$L$10,CalculationsAndCharts!$A77+$A$11,0,1,1) -> 29.31 | G77: =OFFSET('InputData-DBC'!$M$10,CalculationsAndCharts!$A77+$A$11,0,1,1) -> 29.58 | H77: 28.5184 | I77: 0 | J77: 0 | K77: 1633.774734 | L77: 0 | M77: 0 | N77: 1400.16179 | O77: 45271.89788 | P77: 0 | Q77: 0 | R77: 49335.11248 | S77: =OFFSET('InputData-DDM'!$B$10,CalculationsAndCharts!$A77+$A$11,0,1,1) -> 2012-03-16 | T77: =OFFSET('InputData-DDM'!$G$10,CalculationsAndCharts!$A77+$A$11,0,1,1) -> 633000 | U77: =OFFSET('InputData-DDM'!$J$10,CalculationsAndCharts!$A77+$A$11,0,1,1) -> 71.33 | V77: =OFFSET('InputData-DDM'!$K$10,CalculationsAndCharts!$A77+$A$11,0,1,1) -> 71.43 | W77: =OFFSET('InputData-DDM'!$L$10,CalculationsAndCharts!$A77+$A$11,0,1,1) -> 70.79 | X77: =OFFSET('InputData-DDM'!$M$10,CalculationsAndCharts!$A77+$A$11,0,1,1) -> 70.81 | Y77: 66.0236 | Z77: 0 | AA77: 0 | AB77: 753.1045058 | AC77: 0 | AD77: 0 | AE77: 1236.566543 | AF77: 39982.31821 | AG77: 0 | AH77: 0 | AI77: 54955.51094 | AJ77: 104290.6234
A78: 46 | B78: =OFFSET('InputData-DBC'!$B$10,CalculationsAndCharts!$A78+$A$11,0,1,1) -> 2012-03-15 | C78: =OFFSET('InputData-DBC'!$G$10,CalculationsAndCharts!$A78+$A$11,0,1,1) -> 1339600 | D78: =OFFSET('InputData-DBC'!$J$10,CalculationsAndCharts!$A78+$A$11,0,1,1) -> 29.2 | E78: =OFFSET('InputData-DBC'!$K$10,CalculationsAndCharts!$A78+$A$11,0,1,1) -> 29.33 | F78: =OFFSET('InputData-DBC'!$L$10,CalculationsAndCharts!$A78+$A$11,0,1,1) -> 29 | G78: =OFFSET('InputData-DBC'!$M$10,CalculationsAndCharts!$A78+$A$11,0,1,1) -> 29.22 | H78: 28.4838 | I78: 0 | J78: 0 | K78: 1633.774734 | L78: 0 | M78: 0 | N78: 1400.16179 | O78: 45271.89788 | P78: 0 | Q78: 0 | R78: 49106.38402 | S78: =OFFSET('InputData-DDM'!$B$10,CalculationsAndCharts!$A78+$A$11,0,1,1) -> 2012-03-15 | T78: =OFFSET('InputData-DDM'!$G$10,CalculationsAndCharts!$A78+$A$11,0,1,1) -> 1100800 | U78: =OFFSET('InputData-DDM'!$J$10,CalculationsAndCharts!$A78+$A$11,0,1,1) -> 70.53 | V78: =OFFSET('InputData-DDM'!$K$10,CalculationsAndCharts!$A78+$A$11,0,1,1) -> 71.01 | W78: =OFFSET('InputData-DDM'!$L$10,CalculationsAndCharts!$A78+$A$11,0,1,1) -> 70.13 | X78: =OFFSET('InputData-DDM'!$M$10,CalculationsAndCharts!$A78+$A$11,0,1,1) -> 70.92 | Y78: 65.8454 | Z78: 0 | AA78: 0 | AB78: 753.1045058 | AC78: 0 | AD78: 0 | AE78: 1236.566543 | AF78: 39982.31821 | AG78: 0 | AH78: 0 | AI78: 54353.02733 | AJ78: 103459.4114
A79: 47 | B79: =OFFSET('InputData-DBC'!$B$10,CalculationsAndCharts!$A79+$A$11,0,1,1) -> 2012-03-14 | C79: =OFFSET('InputData-DBC'!$G$10,CalculationsAndCharts!$A79+$A$11,0,1,1) -> 1200800 | D79: =OFFSET('InputData-DBC'!$J$10,CalculationsAndCharts!$A79+$A$11,0,1,1) -> 29.31 | E79: =OFFSET('InputData-DBC'!$K$10,CalculationsAndCharts!$A79+$A$11,0,1,1) -> 29.44 | F79: =OFFSET('InputData-DBC'!$L$10,CalculationsAndCharts!$A79+$A$11,0,1,1) -> 29.14 | G79: =OFFSET('InputData-DBC'!$M$10,CalculationsAndCharts!$A79+$A$11,0,1,1) -> 29.2 | H79: 28.4522 | I79: 0 | J79: 0 | K79: 1633.774734 | L79: 0 | M79: 0 | N79: 1400.16179 | O79: 45271.89788 | P79: 0 | Q79: 0 | R79: 49286.09924 | S79: =OFFSET('InputData-DDM'!$B$10,CalculationsAndCharts!$A79+$A$11,0,1,1) -> 2012-03-14 | T79: =OFFSET('InputData-DDM'!$G$10,CalculationsAndCharts!$A79+$A$11,0,1,1) -> 1026800 | U79: =OFFSET('InputData-DDM'!$J$10,CalculationsAndCharts!$A79+$A$11,0,1,1) -> 70.26 | V79: =OFFSET('InputData-DDM'!$K$10,CalculationsAndCharts!$A79+$A$11,0,1,1) -> 70.66 | W79: =OFFSET('InputData-DDM'!$L$10,CalculationsAndCharts!$A79+$A$11,0,1,1) -> 70.08 | X79: =OFFSET('InputData-DDM'!$M$10,CalculationsAndCharts!$A79+$A$11,0,1,1) -> 70.39 | Y79: 65.658 | Z79: 0 | AA79: 0 | AB79: 753.1045058 | AC79: 0 | AD79: 0 | AE79: 1236.566543 | AF79: 39982.31821 | AG79: 0 | AH79: 0 | AI79: 54149.68912 | AJ79: 103435.7884
A80: 48 | B80: =OFFSET('InputData-DBC'!$B$10,CalculationsAndCharts!$A80+$A$11,0,1,1) -> 2012-03-13 | C80: =OFFSET('InputData-DBC'!$G$10,CalculationsAndCharts!$A80+$A$11,0,1,1) -> 1347900 | D80: =OFFSET('InputData-DBC'!$J$10,CalculationsAndCharts!$A80+$A$11,0,1,1) -> 29.22 | E80: =OFFSET('InputData-DBC'!$K$10,CalculationsAndCharts!$A80+$A$11,0,1,1) -> 29.48 | F80: =OFFSET('InputData-DBC'!$L$10,CalculationsAndCharts!$A80+$A$11,0,1,1) -> 29.19 | G80: =OFFSET('InputData-DBC'!$M$10,CalculationsAndCharts!$A80+$A$11,0,1,1) -> 29.4 | H80: 28.405 | I80: 0 | J80: 0 | K80: 1633.774734 | L80: 0 | M80: 0 | N80: 1400.16179 | O80: 45271.89788 | P80: 0 | Q80: 0 | R80: 49139.05952 | S80: =OFFSET('InputData-DDM'!$B$10,CalculationsAndCharts!$A80+$A$11,0,1,1) -> 2012-03-13 | T80: =OFFSET('InputData-DDM'!$G$10,CalculationsAndCharts!$A80+$A$11,0,1,1) -> 1071500 | U80: =OFFSET('InputData-DDM'!$J$10,CalculationsAndCharts!$A80+$A$11,0,1,1) -> 68.47 | V80: =OFFSET('InputData-DDM'!$K$10,CalculationsAndCharts!$A80+$A$11,0,1,1) -> 70.24 | W80: =OFFSET('InputData-DDM'!$L$10,CalculationsAndCharts!$A80+$A$11,0,1,1) -> 68.23 | X80: =OFFSET('InputData-DDM'!$M$10,CalculationsAndCharts!$A80+$A$11,0,1,1) -> 70.21 | Y80: 65.4464 | Z80: 0 | AA80: 0 | AB80: 753.1045058 | AC80: 0 | AD80: 0 | AE80: 1236.566543 | AF80: 39982.31821 | AG80: 0 | AH80: 0 | AI80: 52801.63205 | AJ80: 101940.6916
A81: 49 | B81: =OFFSET('InputData-DBC'!$B$10,CalculationsAndCharts!$A81+$A$11,0,1,1) -> 2012-03-12 | C81: =OFFSET('InputData-DBC'!$G$10,CalculationsAndCharts!$A81+$A$11,0,1,1) -> 717100 | D81: =OFFSET('InputData-DBC'!$J$10,CalculationsAndCharts!$A81+$A$11,0,1,1) -> 29.07 | E81: =OFFSET('InputData-DBC'!$K$10,CalculationsAndCharts!$A81+$A$11,0,1,1) -> 29.29 | F81: =OFFSET('InputData-DBC'!$L$10,CalculationsAndCharts!$A81+$A$11,0,1,1) -> 29.03 | G81: =OFFSET('InputData-DBC'!$M$10,CalculationsAndCharts!$A81+$A$11,0,1,1) -> 29.27 | H81: 28.3546 | I81: 0 | J81: 0 | K81: 1633.774734 | L81: 0 | M81: 0 | N81: 1400.16179 | O81: 45271.89788 | P81: 0 | Q81: 0 | R81: 48893.99331 | S81: =OFFSET('InputData-DDM'!$B$10,CalculationsAndCharts!$A81+$A$11,0,1,1) -> 2012-03-12 | T81: =OFFSET('InputData-DDM'!$G$10,CalculationsAndCharts!$A81+$A$11,0,1,1) -> 746300 | U81: =OFFSET('InputData-DDM'!$J$10,CalculationsAndCharts!$A81+$A$11,0,1,1) -> 67.55 | V81: =OFFSET('InputData-DDM'!$K$10,CalculationsAndCharts!$A81+$A$11,0,1,1) -> 68.03 | W81: =OFFSET('InputData-DDM'!$L$10,CalculationsAndCharts!$A81+$A$11,0,1,1) -> 67.45 | X81: =OFFSET('InputData-DDM'!$M$10,CalculationsAndCharts!$A81+$A$11,0,1,1) -> 67.82 | Y81: 65.2516 | Z81: 0 | AA81: 0 | AB81: 753.1045058 | AC81: 0 | AD81: 0 | AE81: 1236.566543 | AF81: 39982.31821 | AG81: 0 | AH81: 0 | AI81: 52108.77591 | AJ81: 101002.7692
A82: 50 | B82: =OFFSET('InputData-DBC'!$B$10,CalculationsAndCharts!$A82+$A$11,0,1,1) -> 2012-03-09 | C82: =OFFSET('InputData-DBC'!$G$10,CalculationsAndCharts!$A82+$A$11,0,1,1) -> 1409900 | D82: =OFFSET('InputData-DBC'!$J$10,CalculationsAndCharts!$A82+$A$11,0,1,1) -> 29.14 | E82: =OFFSET('InputData-DBC'!$K$10,CalculationsAndCharts!$A82+$A$11,0,1,1) -> 29.43 | F82: =OFFSET('InputData-DBC'!$L$10,CalculationsAndCharts!$A82+$A$11,0,1,1) -> 29.09 | G82: =OFFSET('InputData-DBC'!$M$10,CalculationsAndCharts!$A82+$A$11,0,1,1) -> 29.31 | H82: 28.3052 | I82: 0 | J82: 0 | K82: 1633.774734 | L82: 0 | M82: 0 | N82: 1400.16179 | O82: 45271.89788 | P82: 0 | Q82: 0 | R82: 49008.35754 | S82: =OFFSET('InputData-DDM'!$B$10,CalculationsAndCharts!$A82+$A$11,0,1,1) -> 2012-03-09 | T82: =OFFSET('InputData-DDM'!$G$10,CalculationsAndCharts!$A82+$A$11,0,1,1) -> 808300 | U82: =OFFSET('InputData-DDM'!$J$10,CalculationsAndCharts!$A82+$A$11,0,1,1) -> 67.61 | V82: =OFFSET('InputData-DDM'!$K$10,CalculationsAndCharts!$A82+$A$11,0,1,1) -> 67.95 | W82: =OFFSET('InputData-DDM'!$L$10,CalculationsAndCharts!$A82+$A$11,0,1,1) -> 67.29 | X82: =OFFSET('InputData-DDM'!$M$10,CalculationsAndCharts!$A82+$A$11,0,1,1) -> 67.52 | Y82: 65.0806 | Z82: 0 | AA82: 0 | AB82: 753.1045058 | AC82: 0 | AD82: 0 | AE82: 1236.566543 | AF82: 39982.31821 | AG82: 0 | AH82: 0 | AI82: 52153.96218 | AJ82: 101162.3197
A83: 51 | B83: =OFFSET('InputData-DBC'!$B$10,CalculationsAndCharts!$A83+$A$11,0,1,1) -> 2012-03-08 | C83: =OFFSET('InputData-DBC'!$G$10,CalculationsAndCharts!$A83+$A$11,0,1,1) -> 2202300 | D83: =OFFSET('InputData-DBC'!$J$10,CalculationsAndCharts!$A83+$A$11,0,1,1) -> 29.13 | E83: =OFFSET('InputData-DBC'!$K$10,CalculationsAndCharts!$A83+$A$11,0,1,1) -> 29.28 | F83: =OFFSET('InputData-DBC'!$L$10,CalculationsAndCharts!$A83+$A$11,0,1,1) -> 29.1 | G83: =OFFSET('InputData-DBC'!$M$10,CalculationsAndCharts!$A83+$A$11,0,1,1) -> 29.23 | H83: 28.2614 | I83: 0 | J83: 0 | K83: 1633.774734 | L83: 0 | M83: 0 | N83: 1400.16179 | O83: 45271.89788 | P83: 0 | Q83: 0 | R83: 48992.01979 | S83: =OFFSET('InputData-DDM'!$B$10,CalculationsAndCharts!$A83+$A$11,0,1,1) -> 2012-03-08 | T83: =OFFSET('InputData-DDM'!$G$10,CalculationsAndCharts!$A83+$A$11,0,1,1) -> 523700 | U83: =OFFSET('InputData-DDM'!$J$10,CalculationsAndCharts!$A83+$A$11,0,1,1) -> 67.18 | V83: =OFFSET('InputData-DDM'!$K$10,CalculationsAndCharts!$A83+$A$11,0,1,1) -> 67.62 | W83: =OFFSET('InputData-DDM'!$L$10,CalculationsAndCharts!$A83+$A$11,0,1,1) -> 66.88 | X83: =OFFSET('InputData-DDM'!$M$10,CalculationsAndCharts!$A83+$A$11,0,1,1) -> 67.3 | Y83: 64.9436 | Z83: 0 | AA83: 0 | AB83: 753.1045058 | AC83: 0 | AD83: 0 | AE83: 1236.566543 | AF83: 39982.31821 | AG83: 0 | AH83: 0 | AI83: 51830.12724 | AJ83: 100822.147
A84: 52 | B84: =OFFSET('InputData-DBC'!$B$10,CalculationsAndCharts!$A84+$A$11,0,1,1) -> 2012-03-07 | C84: =OFFSET('InputData-DBC'!$G$10,CalculationsAndCharts!$A84+$A$11,0,1,1) -> 1476900 | D84: =OFFSET('InputData-DBC'!$J$10,CalculationsAndCharts!$A84+$A$11,0,1,1) -> 28.85 | E84: =OFFSET('InputData-DBC'!$K$10,CalculationsAndCharts!$A84+$A$11,0,1,1) -> 29.05 | F84: =OFFSET('InputData-DBC'!$L$10,CalculationsAndCharts!$A84+$A$11,0,1,1) -> 28.75 | G84: =OFFSET('InputData-DBC'!$M$10,CalculationsAndCharts!$A84+$A$11,0,1,1) -> 28.99 | H84: 28.2168 | I84: 0 | J84: 0 | K84: 1633.774734 | L84: 0 | M84: 0 | N84: 1400.16179 | O84: 45271.89788 | P84: 0 | Q84: 0 | R84: 48534.56286 | S84: =OFFSET('InputData-DDM'!$B$10,CalculationsAndCharts!$A84+$A$11,0,1,1) -> 2012-03-07 | T84: =OFFSET('InputData-DDM'!$G$10,CalculationsAndCharts!$A84+$A$11,0,1,1) -> 671700 | U84: =OFFSET('InputData-DDM'!$J$10,CalculationsAndCharts!$A84+$A$11,0,1,1) -> 65.94 | V84: =OFFSET('InputData-DDM'!$K$10,CalculationsAndCharts!$A84+$A$11,0,1,1) -> 66.77 | W84: =OFFSET('InputData-DDM'!$L$10,CalculationsAndCharts!$A84+$A$11,0,1,1) -> 65.76 | X84: =OFFSET('InputData-DDM'!$M$10,CalculationsAndCharts!$A84+$A$11,0,1,1) -> 66.57 | Y84: 64.8098 | Z84: 0 | AA84: 0 | AB84: 753.1045058 | AC84: 0 | AD84: 0 | AE84: 1236.566543 | AF84: 39982.31821 | AG84: 0 | AH84: 0 | AI84: 50896.27765 | AJ84: 99430.84052
A85: 53 | B85: =OFFSET('InputData-DBC'!$B$10,CalculationsAndCharts!$A85+$A$11,0,1,1) -> 2012-03-06 | C85: =OFFSET('InputData-DBC'!$G$10,CalculationsAndCharts!$A85+$A$11,0,1,1) -> 2082500 | D85: =OFFSET('InputData-DBC'!$J$10,CalculationsAndCharts!$A85+$A$11,0,1,1) -> 28.94 | E85: =OFFSET('InputData-DBC'!$K$10,CalculationsAndCharts!$A85+$A$11,0,1,1) -> 28.98 | F85: =OFFSET('InputData-DBC'!$L$10,CalculationsAndCharts!$A85+$A$11,0,1,1) -> 28.8 | G85: =OFFSET('InputData-DBC'!$M$10,CalculationsAndCharts!$A85+$A$11,0,1,1) -> 28.86 | H85: 28.1744 | I85: 0 | J85: 0 | K85: 1633.774734 | L85: 0 | M85: 0 | N85: 1400.16179 | O85: 45271.89788 | P85: 0 | Q85: 0 | R85: 48681.60259 | S85: =OFFSET('InputData-DDM'!$B$10,CalculationsAndCharts!$A85+$A$11,0,1,1) -> 2012-03-06 | T85: =OFFSET('InputData-DDM'!$G$10,CalculationsAndCharts!$A85+$A$11,0,1,1) -> 962200 | U85: =OFFSET('InputData-DDM'!$J$10,CalculationsAndCharts!$A85+$A$11,0,1,1) -> 66.3 | V85: =OFFSET('InputData-DDM'!$K$10,CalculationsAndCharts!$A85+$A$11,0,1,1) -> 66.45 | W85: =OFFSET('InputData-DDM'!$L$10,CalculationsAndCharts!$A85+$A$11,0,1,1) -> 65.48 | X85: =OFFSET('InputData-DDM'!$M$10,CalculationsAndCharts!$A85+$A$11,0,1,1) -> 65.7 | Y85: 64.6684 | Z85: 0 | AA85: 0 | AB85: 753.1045058 | AC85: 0 | AD85: 0 | AE85: 1236.566543 | AF85: 39982.31821 | AG85: 0 | AH85: 0 | AI85: 51167.39528 | AJ85: 99848.99787
A86: 54 | B86: =OFFSET('InputData-DBC'!$B$10,CalculationsAndCharts!$A86+$A$11,0,1,1) -> 2012-03-05 | C86: =OFFSET('InputData-DBC'!$G$10,CalculationsAndCharts!$A86+$A$11,0,1,1) -> 1368900 | D86: =OFFSET('InputData-DBC'!$J$10,CalculationsAndCharts!$A86+$A$11,0,1,1) -> 29.36 | E86: =OFFSET('InputData-DBC'!$K$10,CalculationsAndCharts!$A86+$A$11,0,1,1) -> 29.43 | F86: =OFFSET('InputData-DBC'!$L$10,CalculationsAndCharts!$A86+$A$11,0,1,1) -> 29.2 | G86: =OFFSET('InputData-DBC'!$M$10,CalculationsAndCharts!$A86+$A$11,0,1,1) -> 29.34 | H86: 28.134 | I86: 0 | J86: 0 | K86: 1633.774734 | L86: 0 | M86: 0 | N86: 1400.16179 | O86: 45271.89788 | P86: 0 | Q86: 0 | R86: 49367.78798 | S86: =OFFSET('InputData-DDM'!$B$10,CalculationsAndCharts!$A86+$A$11,0,1,1) -> 2012-03-05 | T86: =OFFSET('InputData-DDM'!$G$10,CalculationsAndCharts!$A86+$A$11,0,1,1) -> 790100 | U86: =OFFSET('InputData-DDM'!$J$10,CalculationsAndCharts!$A86+$A$11,0,1,1) -> 67.79 | V86: =OFFSET('InputData-DDM'!$K$10,CalculationsAndCharts!$A86+$A$11,0,1,1) -> 67.99 | W86: =OFFSET('InputData-DDM'!$L$10,CalculationsAndCharts!$A86+$A$11,0,1,1) -> 67 | X86: =OFFSET('InputData-DDM'!$M$10,CalculationsAndCharts!$A86+$A$11,0,1,1) -> 67.81 | Y86: 64.5296 | Z86: 0 | AA86: 0 | AB86: 753.1045058 | AC86: 0 | AD86: 0 | AE86: 1236.566543 | AF86: 39982.31821 | AG86: 0 | AH86: 0 | AI86: 52289.52099 | AJ86: 101657.309
A87: 55 | B87: =OFFSET('InputData-DBC'!$B$10,CalculationsAndCharts!$A87+$A$11,0,1,1) -> 2012-03-02 | C87: =OFFSET('InputData-DBC'!$G$10,CalculationsAndCharts!$A87+$A$11,0,1,1) -> 2213700 | D87: =OFFSET('InputData-DBC'!$J$10,CalculationsAndCharts!$A87+$A$11,0,1,1) -> 29.57 | E87: =OFFSET('InputData-DBC'!$K$10,CalculationsAndCharts!$A87+$A$11,0,1,1) -> 29.57 | F87: =OFFSET('InputData-DBC'!$L$10,CalculationsAndCharts!$A87+$A$11,0,1,1) -> 29.31 | G87: =OFFSET('InputData-DBC'!$M$10,CalculationsAndCharts!$A87+$A$11,0,1,1) -> 29.48 | H87: 28.0802 | I87: 0 | J87: 0 | K87: 1633.774734 | L87: 0 | M87: 0 | N87: 1400.16179 | O87: 45271.89788 | P87: 0 | Q87: 0 | R87: 49710.88067 | S87: =OFFSET('InputData-DDM'!$B$10,CalculationsAndCharts!$A87+$A$11,0,1,1) -> 2012-03-02 | T87: =OFFSET('InputData-DDM'!$G$10,CalculationsAndCharts!$A87+$A$11,0,1,1) -> 719300 | U87: =OFFSET('InputData-DDM'!$J$10,CalculationsAndCharts!$A87+$A$11,0,1,1) -> 67.95 | V87: =OFFSET('InputData-DDM'!$K$10,CalculationsAndCharts!$A87+$A$11,0,1,1) -> 68.2 | W87: =OFFSET('InputData-DDM'!$L$10,CalculationsAndCharts!$A87+$A$11,0,1,1) -> 67.47 | X87: =OFFSET('InputData-DDM'!$M$10,CalculationsAndCharts!$A87+$A$11,0,1,1) -> 67.95 | Y87: 64.3478 | Z87: 0 | AA87: 0 | AB87: 753.1045058 | AC87: 0 | AD87: 0 | AE87: 1236.566543 | AF87: 39982.31821 | AG87: 0 | AH87: 0 | AI87: 52410.01771 | AJ87: 102120.8984
A88: 56 | B88: =OFFSET('InputData-DBC'!$B$10,CalculationsAndCharts!$A88+$A$11,0,1,1) -> 2012-03-01 | C88: =OFFSET('InputData-DBC'!$G$10,CalculationsAndCharts!$A88+$A$11,0,1,1) -> 5275000 | D88: =OFFSET('InputData-DBC'!$J$10,CalculationsAndCharts!$A88+$A$11,0,1,1) -> 29.4 | E88: =OFFSET('InputData-DBC'!$K$10,CalculationsAndCharts!$A88+$A$11,0,1,1) -> 29.93 | F88: =OFFSET('InputData-DBC'!$L$10,CalculationsAndCharts!$A88+$A$11,0,1,1) -> 29.28 | G88: =OFFSET('InputData-DBC'!$M$10,CalculationsAndCharts!$A88+$A$11,0,1,1) -> 29.78 | H88: 28.0116 | I88: 0 | J88: 0 | K88: 1633.774734 | L88: 0 | M88: 0 | N88: 1400.16179 | O88: 45271.89788 | P88: 0 | Q88: 0 | R88: 49433.13897 | S88: =OFFSET('InputData-DDM'!$B$10,CalculationsAndCharts!$A88+$A$11,0,1,1) -> 2012-03-01 | T88: =OFFSET('InputData-DDM'!$G$10,CalculationsAndCharts!$A88+$A$11,0,1,1) -> 1167900 | U88: =OFFSET('InputData-DDM'!$J$10,CalculationsAndCharts!$A88+$A$11,0,1,1) -> 68 | V88: =OFFSET('InputData-DDM'!$K$10,CalculationsAndCharts!$A88+$A$11,0,1,1) -> 68.58 | W88: =OFFSET('InputData-DDM'!$L$10,CalculationsAndCharts!$A88+$A$11,0,1,1) -> 67.63 | X88: =OFFSET('InputData-DDM'!$M$10,CalculationsAndCharts!$A88+$A$11,0,1,1) -> 67.99 | Y88: 64.1006 | Z88: 0 | AA88: 0 | AB88: 753.1045058 | AC88: 0 | AD88: 0 | AE88: 1236.566543 | AF88: 39982.31821 | AG88: 0 | AH88: 0 | AI88: 52447.67294 | AJ88: 101880.8119
A89: 57 | B89: =OFFSET('InputData-DBC'!$B$10,CalculationsAndCharts!$A89+$A$11,0,1,1) -> 2012-02-29 | C89: =OFFSET('InputData-DBC'!$G$10,CalculationsAndCharts!$A89+$A$11,0,1,1) -> 4067900 | D89: =OFFSET('InputData-DBC'!$J$10,CalculationsAndCharts!$A89+$A$11,0,1,1) -> 29.5 | E89: =OFFSET('InputData-DBC'!$K$10,CalculationsAndCharts!$A89+$A$11,0,1,1) -> 29.58 | F89: =OFFSET('InputData-DBC'!$L$10,CalculationsAndCharts!$A89+$A$11,0,1,1) -> 28.97 | G89: =OFFSET('InputData-DBC'!$M$10,CalculationsAndCharts!$A89+$A$11,0,1,1) -> 29.32 | H89: 27.9394 | I89: 0 | J89: 0 | K89: 1633.774734 | L89: 0 | M89: 0 | N89: 1400.16179 | O89: 45271.89788 | P89: 0 | Q89: 0 | R89: 49596.51644 | S89: =OFFSET('InputData-DDM'!$B$10,CalculationsAndCharts!$A89+$A$11,0,1,1) -> 2012-02-29 | T89: =OFFSET('InputData-DDM'!$G$10,CalculationsAndCharts!$A89+$A$11,0,1,1) -> 927400 | U89: =OFFSET('InputData-DDM'!$J$10,CalculationsAndCharts!$A89+$A$11,0,1,1) -> 68.45 | V89: =OFFSET('InputData-DDM'!$K$10,CalculationsAndCharts!$A89+$A$11,0,1,1) -> 68.82 | W89: =OFFSET('InputData-DDM'!$L$10,CalculationsAndCharts!$A89+$A$11,0,1,1) -> 67.49 | X89: =OFFSET('InputData-DDM'!$M$10,CalculationsAndCharts!$A89+$A$11,0,1,1) -> 67.74 | Y89: 63.8692 | Z89: 0 | AA89: 0 | AB89: 753.1045058 | AC89: 0 | AD89: 0 | AE89: 1236.566543 | AF89: 39982.31821 | AG89: 0 | AH89: 0 | AI89: 52786.56996 | AJ89: 102383.0864
A90: 58 | B90: =OFFSET('InputData-DBC'!$B$10,CalculationsAndCharts!$A90+$A$11,0,1,1) -> 2012-02-28 | C90: =OFFSET('InputData-DBC'!$G$10,CalculationsAndCharts!$A90+$A$11,0,1,1) -> 2902200 | D90: =OFFSET('InputData-DBC'!$J$10,CalculationsAndCharts!$A90+$A$11,0,1,1) -> 29.56 | E90: =OFFSET('InputData-DBC'!$K$10,CalculationsAndCharts!$A90+$A$11,0,1,1) -> 29.63 | F90: =OFFSET('InputData-DBC'!$L$10,CalculationsAndCharts!$A90+$A$11,0,1,1) -> 29.35 | G90: =OFFSET('InputData-DBC'!$M$10,CalculationsAndCharts!$A90+$A$11,0,1,1) -> 29.43 | H90: 27.8722 | I90: 0 | J90: 0 | K90: 1633.774734 | L90: 0 | M90: 0 | N90: 1400.16179 | O90: 45271.89788 | P90: 0 | Q90: 0 | R90: 49694.54293 | S90: =OFFSET('InputData-DDM'!$B$10,CalculationsAndCharts!$A90+$A$11,0,1,1) -> 2012-02-28 | T90: =OFFSET('InputData-DDM'!$G$10,CalculationsAndCharts!$A90+$A$11,0,1,1) -> 803200 | U90: =OFFSET('InputData-DDM'!$J$10,CalculationsAndCharts!$A90+$A$11,0,1,1) -> 68.04 | V90: =OFFSET('InputData-DDM'!$K$10,CalculationsAndCharts!$A90+$A$11,0,1,1) -> 68.48 | W90: =OFFSET('InputData-DDM'!$L$10,CalculationsAndCharts!$A90+$A$11,0,1,1) -> 67.75 | X90: =OFFSET('InputData-DDM'!$M$10,CalculationsAndCharts!$A90+$A$11,0,1,1) -> 68.32 | Y90: 63.646 | Z90: 0 | AA90: 0 | AB90: 753.1045058 | AC90: 0 | AD90: 0 | AE90: 1236.566543 | AF90: 39982.31821 | AG90: 0 | AH90: 0 | AI90: 52477.79712 | AJ90: 102172.34
A91: 59 | B91: =OFFSET('InputData-DBC'!$B$10,CalculationsAndCharts!$A91+$A$11,0,1,1) -> 2012-02-27 | C91: =OFFSET('InputData-DBC'!$G$10,CalculationsAndCharts!$A91+$A$11,0,1,1) -> 4821900 | D91: =OFFSET('InputData-DBC'!$J$10,CalculationsAndCharts!$A91+$A$11,0,1,1) -> 29.59 | E91: =OFFSET('InputData-DBC'!$K$10,CalculationsAndCharts!$A91+$A$11,0,1,1) -> 29.71 | F91: =OFFSET('InputData-DBC'!$L$10,CalculationsAndCharts!$A91+$A$11,0,1,1) -> 29.44 | G91: =OFFSET('InputData-DBC'!$M$10,CalculationsAndCharts!$A91+$A$11,0,1,1) -> 29.44 | H91: 27.8054 | I91: 0 | J91: 0 | K91: 1633.774734 | L91: 0 | M91: 0 | N91: 1400.16179 | O91: 45271.89788 | P91: 0 | Q91: 0 | R91: 49743.55617 | S91: =OFFSET('InputData-DDM'!$B$10,CalculationsAndCharts!$A91+$A$11,0,1,1) -> 2012-02-27 | T91: =OFFSET('InputData-DDM'!$G$10,CalculationsAndCharts!$A91+$A$11,0,1,1) -> 932600 | U91: =OFFSET('InputData-DDM'!$J$10,CalculationsAndCharts!$A91+$A$11,0,1,1) -> 67.34 | V91: =OFFSET('InputData-DDM'!$K$10,CalculationsAndCharts!$A91+$A$11,0,1,1) -> 68.48 | W91: =OFFSET('InputData-DDM'!$L$10,CalculationsAndCharts!$A91+$A$11,0,1,1) -> 66.94 | X91: =OFFSET('InputData-DDM'!$M$10,CalculationsAndCharts!$A91+$A$11,0,1,1) -> 68.04 | Y91: 63.403 | Z91: 0 | AA91: 0 | AB91: 753.1045058 | AC91: 0 | AD91: 0 | AE91: 1236.566543 | AF91: 39982.31821 | AG91: 0 | AH91: 0 | AI91: 51950.62396 | AJ91: 101694.1801
A92: 60 | B92: =OFFSET('InputData-DBC'!$B$10,CalculationsAndCharts!$A92+$A$11,0,1,1) -> 2012-02-24 | C92: =OFFSET('InputData-DBC'!$G$10,CalculationsAndCharts!$A92+$A$11,0,1,1) -> 4989900 | D92: =OFFSET('InputData-DBC'!$J$10,CalculationsAndCharts!$A92+$A$11,0,1,1) -> 29.48 | E92: =OFFSET('InputData-DBC'!$K$10,CalculationsAndCharts!$A92+$A$11,0,1,1) -> 29.74 | F92: =OFFSET('InputData-DBC'!$L$10,CalculationsAndCharts!$A92+$A$11,0,1,1) -> 29.47 | G92: =OFFSET('InputData-DBC'!$M$10,CalculationsAndCharts!$A92+$A$11,0,1,1) -> 29.68 | H92: 27.7576 | I92: 0 | J92: 0 | K92: 1633.774734 | L92: 0 | M92: 0 | N92: 1400.16179 | O92: 45271.89788 | P92: 0 | Q92: 0 | R92: 49563.84095 | S92: =OFFSET('InputData-DDM'!$B$10,CalculationsAndCharts!$A92+$A$11,0,1,1) -> 2012-02-24 | T92: =OFFSET('InputData-DDM'!$G$10,CalculationsAndCharts!$A92+$A$11,0,1,1) -> 584400 | U92: =OFFSET('InputData-DDM'!$J$10,CalculationsAndCharts!$A92+$A$11,0,1,1) -> 68.2 | V92: =OFFSET('InputData-DDM'!$K$10,CalculationsAndCharts!$A92+$A$11,0,1,1) -> 68.34 | W92: =OFFSET('InputData-DDM'!$L$10,CalculationsAndCharts!$A92+$A$11,0,1,1) -> 67.66 | X92: =OFFSET('InputData-DDM'!$M$10,CalculationsAndCharts!$A92+$A$11,0,1,1) -> 68.04 | Y92: 63.1896 | Z92: 0 | AA92: 0 | AB92: 753.1045058 | AC92: 0 | AD92: 0 | AE92: 1236.566543 | AF92: 39982.31821 | AG92: 0 | AH92: 0 | AI92: 52598.29384 | AJ92: 102162.1348
A93: 61 | B93: =OFFSET('InputData-DBC'!$B$10,CalculationsAndCharts!$A93+$A$11,0,1,1) -> 2012-02-23 | C93: =OFFSET('InputData-DBC'!$G$10,CalculationsAndCharts!$A93+$A$11,0,1,1) -> 1544000 | D93: =OFFSET('InputData-DBC'!$J$10,CalculationsAndCharts!$A93+$A$11,0,1,1) -> 29.4 | E93: =OFFSET('InputData-DBC'!$K$10,CalculationsAndCharts!$A93+$A$11,0,1,1) -> 29.53 | F93: =OFFSET('InputData-DBC'!$L$10,CalculationsAndCharts!$A93+$A$11,0,1,1) -> 29.26 | G93: =OFFSET('InputData-DBC'!$M$10,CalculationsAndCharts!$A93+$A$11,0,1,1) -> 29.5 | H93: 27.7028 | I93: 0 | J93: 0 | K93: 1633.774734 | L93: 0 | M93: 0 | N93: 1400.16179 | O93: 45271.89788 | P93: 0 | Q93: 0 | R93: 49433.13897 | S93: =OFFSET('InputData-DDM'!$B$10,CalculationsAndCharts!$A93+$A$11,0,1,1) -> 2012-02-23 | T93: =OFFSET('InputData-DDM'!$G$10,CalculationsAndCharts!$A93+$A$11,0,1,1) -> 975500 | U93: =OFFSET('InputData-DDM'!$J$10,CalculationsAndCharts!$A93+$A$11,0,1,1) -> 67.36 | V93: =OFFSET('InputData-DDM'!$K$10,CalculationsAndCharts!$A93+$A$11,0,1,1) -> 68.12 | W93: =OFFSET('InputData-DDM'!$L$10,CalculationsAndCharts!$A93+$A$11,0,1,1) -> 66.92 | X93: =OFFSET('InputData-DDM'!$M$10,CalculationsAndCharts!$A93+$A$11,0,1,1) -> 68.01 | Y93: 62.9894 | Z93: 0 | AA93: 0 | AB93: 753.1045058 | AC93: 0 | AD93: 0 | AE93: 1236.566543 | AF93: 39982.31821 | AG93: 0 | AH93: 0 | AI93: 51965.68605 | AJ93: 101398.825
A94: 62 | B94: =OFFSET('InputData-DBC'!$B$10,CalculationsAndCharts!$A94+$A$11,0,1,1) -> 2012-02-22 | C94: =OFFSET('InputData-DBC'!$G$10,CalculationsAndCharts!$A94+$A$11,0,1,1) -> 3163600 | D94: =OFFSET('InputData-DBC'!$J$10,CalculationsAndCharts!$A94+$A$11,0,1,1) -> 29.16 | E94: =OFFSET('InputData-DBC'!$K$10,CalculationsAndCharts!$A94+$A$11,0,1,1) -> 29.44 | F94: =OFFSET('InputData-DBC'!$L$10,CalculationsAndCharts!$A94+$A$11,0,1,1) -> 29.12 | G94: =OFFSET('InputData-DBC'!$M$10,CalculationsAndCharts!$A94+$A$11,0,1,1) -> 29.41 | H94: 27.6586 | I94: 0 | J94: 0 | K94: 1633.774734 | L94: 0 | M94: 0 | N94: 1400.16179 | O94: 45271.89788 | P94: 0 | Q94: 0 | R94: 49041.03303 | S94: =OFFSET('InputData-DDM'!$B$10,CalculationsAndCharts!$A94+$A$11,0,1,1) -> 2012-02-22 | T94: =OFFSET('InputData-DDM'!$G$10,CalculationsAndCharts!$A94+$A$11,0,1,1) -> 888900 | U94: =OFFSET('InputData-DDM'!$J$10,CalculationsAndCharts!$A94+$A$11,0,1,1) -> 67.66 | V94: =OFFSET('InputData-DDM'!$K$10,CalculationsAndCharts!$A94+$A$11,0,1,1) -> 67.91 | W94: =OFFSET('InputData-DDM'!$L$10,CalculationsAndCharts!$A94+$A$11,0,1,1) -> 67.24 | X94: =OFFSET('InputData-DDM'!$M$10,CalculationsAndCharts!$A94+$A$11,0,1,1) -> 67.51 | Y94: 62.8196 | Z94: 0 | AA94: 0 | AB94: 753.1045058 | AC94: 0 | AD94: 0 | AE94: 1236.566543 | AF94: 39982.31821 | AG94: 0 | AH94: 0 | AI94: 52191.6174 | AJ94: 101232.6504
A95: 63 | B95: =OFFSET('InputData-DBC'!$B$10,CalculationsAndCharts!$A95+$A$11,0,1,1) -> 2012-02-21 | C95: =OFFSET('InputData-DBC'!$G$10,CalculationsAndCharts!$A95+$A$11,0,1,1) -> 2446900 | D95: =OFFSET('InputData-DBC'!$J$10,CalculationsAndCharts!$A95+$A$11,0,1,1) -> 28.96 | E95: =OFFSET('InputData-DBC'!$K$10,CalculationsAndCharts!$A95+$A$11,0,1,1) -> 29.24 | F95: =OFFSET('InputData-DBC'!$L$10,CalculationsAndCharts!$A95+$A$11,0,1,1) -> 28.95 | G95: =OFFSET('InputData-DBC'!$M$10,CalculationsAndCharts!$A95+$A$11,0,1,1) -> 29.14 | H95: 27.6142 | I95: 0 | J95: 0 | K95: 1633.774734 | L95: 0 | M95: 0 | N95: 1400.16179 | O95: 45271.89788 | P95: 0 | Q95: 0 | R95: 48714.27808 | S95: =OFFSET('InputData-DDM'!$B$10,CalculationsAndCharts!$A95+$A$11,0,1,1) -> 2012-02-21 | T95: =OFFSET('InputData-DDM'!$G$10,CalculationsAndCharts!$A95+$A$11,0,1,1) -> 832800 | U95: =OFFSET('InputData-DDM'!$J$10,CalculationsAndCharts!$A95+$A$11,0,1,1) -> 68.02 | V95: =OFFSET('InputData-DDM'!$K$10,CalculationsAndCharts!$A95+$A$11,0,1,1) -> 68.2 | W95: =OFFSET('InputData-DDM'!$L$10,CalculationsAndCharts!$A95+$A$11,0,1,1) -> 67.36 | X95: =OFFSET('InputData-DDM'!$M$10,CalculationsAndCharts!$A95+$A$11,0,1,1) -> 67.78 | Y95: 62.6246 | Z95: 0 | AA95: 0 | AB95: 753.1045058 | AC95: 0 | AD95: 0 | AE95: 1236.566543 | AF95: 39982.31821 | AG95: 0 | AH95: 0 | AI95: 52462.73503 | AJ95: 101177.0131
A96: 64 | B96: =OFFSET('InputData-DBC'!$B$10,CalculationsAndCharts!$A96+$A$11,0,1,1) -> 2012-02-17 | C96: =OFFSET('InputData-DBC'!$G$10,CalculationsAndCharts!$A96+$A$11,0,1,1) -> 1572500 | D96: =OFFSET('InputData-DBC'!$J$10,CalculationsAndCharts!$A96+$A$11,0,1,1) -> 28.76 | E96: =OFFSET('InputData-DBC'!$K$10,CalculationsAndCharts!$A96+$A$11,0,1,1) -> 28.77 | F96: =OFFSET('InputData-DBC'!$L$10,CalculationsAndCharts!$A96+$A$11,0,1,1) -> 28.6 | G96: =OFFSET('InputData-DBC'!$M$10,CalculationsAndCharts!$A96+$A$11,0,1,1) -> 28.69 | H96: 27.5822 | I96: 0 | J96: 0 | K96: 1633.774734 | L96: 0 | M96: 0 | N96: 1400.16179 | O96: 45271.89788 | P96: 0 | Q96: 0 | R96: 48387.52314 | S96: =OFFSET('InputData-DDM'!$B$10,CalculationsAndCharts!$A96+$A$11,0,1,1) -> 2012-02-17 | T96: =OFFSET('InputData-DDM'!$G$10,CalculationsAndCharts!$A96+$A$11,0,1,1) -> 946400 | U96: =OFFSET('InputData-DDM'!$J$10,CalculationsAndCharts!$A96+$A$11,0,1,1) -> 67.74 | V96: =OFFSET('InputData-DDM'!$K$10,CalculationsAndCharts!$A96+$A$11,0,1,1) -> 67.82 | W96: =OFFSET('InputData-DDM'!$L$10,CalculationsAndCharts!$A96+$A$11,0,1,1) -> 67.26 | X96: =OFFSET('InputData-DDM'!$M$10,CalculationsAndCharts!$A96+$A$11,0,1,1) -> 67.64 | Y96: 62.4646 | Z96: 0 | AA96: 0 | AB96: 753.1045058 | AC96: 0 | AD96: 0 | AE96: 1236.566543 | AF96: 39982.31821 | AG96: 0 | AH96: 0 | AI96: 52251.86576 | AJ96: 100639.3889
A97: 65 | B97: =OFFSET('InputData-DBC'!$B$10,CalculationsAndCharts!$A97+$A$11,0,1,1) -> 2012-02-16 | C97: =OFFSET('InputData-DBC'!$G$10,CalculationsAndCharts!$A97+$A$11,0,1,1) -> 1657600 | D97: =OFFSET('InputData-DBC'!$J$10,CalculationsAndCharts!$A97+$A$11,0,1,1) -> 28.52 | E97: =OFFSET('InputData-DBC'!$K$10,CalculationsAndCharts!$A97+$A$11,0,1,1) -> 28.76 | F97: =OFFSET('InputData-DBC'!$L$10,CalculationsAndCharts!$A97+$A$11,0,1,1) -> 28.48 | G97: =OFFSET('InputData-DBC'!$M$10,CalculationsAndCharts!$A97+$A$11,0,1,1) -> 28.74 | H97: =AVERAGE(OFFSET($G$32,$A97,0,$A$18,1)) -> 27.564 | I97: =IF(MONTH(B97)=10,IF(G98>H98,IF(K98=0,1,0),0),0) -> 0 | J97: =IF(AND(MONTH(B97)=5,K98>0),-1,0) -> 0 | K97: =IF(AND(K98=0,I98=1),N98*$A$19/L97,IF(AND(K98>0,J98=-1),0,K98)) -> 1633.774734 | L97: =IF(AND(K98=0,I98=1),D97,0) -> 0 | M97: =IF(AND(K98>0,J98=-1),D97,0) -> 0 | N97: =IF(K97<>K98,N98-O97,N98)+P97 -> 1400.16179 | O97: =IF(K97<>K98,K97*L97,O98) -> 45271.89788 | P97: =K98*M97 -> 0 | Q97: =IF(P97<>P98,P97-O98,0) -> 0 | R97: =N97+K97*D97 -> 47995.4172 | S97: =OFFSET('InputData-DDM'!$B$10,CalculationsAndCharts!$A97+$A$11,0,1,1) -> 2012-02-16 | T97: =OFFSET('InputData-DDM'!$G$10,CalculationsAndCharts!$A97+$A$11,0,1,1) -> 990600 | U97: =OFFSET('InputData-DDM'!$J$10,CalculationsAndCharts!$A97+$A$11,0,1,1) -> 66.01 | V97: =OFFSET('InputData-DDM'!$K$10,CalculationsAndCharts!$A97+$A$11,0,1,1) -> 67.26 | W97: =OFFSET('InputData-DDM'!$L$10,CalculationsAndCharts!$A97+$A$11,0,1,1) -> 65.98 | X97: =OFFSET('InputData-DDM'!$M$10,CalculationsAndCharts!$A97+$A$11,0,1,1) -> 67.16 | Y97: 62.2952 | Z97: =IF(MONTH(S97)=10,IF(X98>Y98,IF(AB98=0,1,0),0),0) -> 0 | AA97: =IF(AND(MONTH(S97)=5,AB98>0),-1,0) -> 0 | AB97: =IF(AND(AB98=0,Z98=1),AE98*$A$19/AC97,IF(AND(AB98>0,AA98=-1),0,AB98)) -> 753.1045058 | AC97: =IF(AND(AB98=0,Z98=1),U97,0) -> 0 | AD97: =IF(AND(AB98>0,AA98=-1),U97,0) -> 0 | AE97: =IF(AB97<>AB98,AE98-AF97,AE98)+AG97 -> 1236.566543 | AF97: =IF(AB97<>AB98,AB97*AC97,AF98) -> 39982.31821 | AG97: =AB98*AD97 -> 0 | AH97: =IF(AG97<>AG98,AG97-AF98,0) -> 0 | AI97: =AE97+AB97*U97 -> 50948.99497 | AJ97: 98944.41217
A98: 66 | B98: =OFFSET('InputData-DBC'!$B$10,CalculationsAndCharts!$A98+$A$11,0,1,1) -> 2012-02-15 | C98: =OFFSET('InputData-DBC'!$G$10,CalculationsAndCharts!$A98+$A$11,0,1,1) -> 1929400 | D98: =OFFSET('InputData-DBC'!$J$10,CalculationsAndCharts!$A98+$A$11,0,1,1) -> 28.61 | E98: =OFFSET('InputData-DBC'!$K$10,CalculationsAndCharts!$A98+$A$11,0,1,1) -> 28.66 | F98: =OFFSET('InputData-DBC'!$L$10,CalculationsAndCharts!$A98+$A$11,0,1,1) -> 28.49 | G98: =OFFSET('InputData-DBC'!$M$10,CalculationsAndCharts!$A98+$A$11,0,1,1) -> 28.61 | H98: 27.5418 | I98: 0 | J98: 0 | K98: 1633.774734 | L98: 0 | M98: 0 | N98: 1400.16179 | O98: 45271.89788 | P98: 0 | Q98: 0 | R98: 48142.45693 | S98: =OFFSET('InputData-DDM'!$B$10,CalculationsAndCharts!$A98+$A$11,0,1,1) -> 2012-02-15 | T98: =OFFSET('InputData-DDM'!$G$10,CalculationsAndCharts!$A98+$A$11,0,1,1) -> 1377800 | U98: =OFFSET('InputData-DDM'!$J$10,CalculationsAndCharts!$A98+$A$11,0,1,1) -> 67.11 | V98: =OFFSET('InputData-DDM'!$K$10,CalculationsAndCharts!$A98+$A$11,0,1,1) -> 67.12 | W98: =OFFSET('InputData-DDM'!$L$10,CalculationsAndCharts!$A98+$A$11,0,1,1) -> 65.59 | X98: =OFFSET('InputData-DDM'!$M$10,CalculationsAndCharts!$A98+$A$11,0,1,1) -> 65.93 | Y98: =AVERAGE(OFFSET($X$32,$A98,0,$A$18,1)) -> 62.1272 | Z98: 0 | AA98: 0 | AB98: 753.1045058 | AC98: 0 | AD98: 0 | AE98: 1236.566543 | AF98: 39982.31821 | AG98: 0 | AH98: 0 | AI98: 51777.40993 | AJ98: =R98+AI98 -> 99919.86685
A99: 67 | B99: =OFFSET('InputData-DBC'!$B$10,CalculationsAndCharts!$A99+$A$11,0,1,1) -> 2012-02-14 | C99: =OFFSET('InputData-DBC'!$G$10,CalculationsAndCharts!$A99+$A$11,0,1,1) -> 1376300 | D99: =OFFSET('InputData-DBC'!$J$10,CalculationsAndCharts!$A99+$A$11,0,1,1) -> 28.51 | E99: =OFFSET('InputData-DBC'!$K$10,CalculationsAndCharts!$A99+$A$11,0,1,1) -> 28.58 | F99: =OFFSET('InputData-DBC'!$L$10,CalculationsAndCharts!$A99+$A$11,0,1,1) -> 28.42 | G99: =OFFSET('InputData-DBC'!$M$10,CalculationsAndCharts!$A99+$A$11,0,1,1) -> 28.51 | H99: 27.5252 | I99: 0 | J99: 0 | K99: 1633.774734 | L99: 0 | M99: 0 | N99: 1400.16179 | O99: 45271.89788 | P99: 0 | Q99: 0 | R99: 47979.07945 | S99: =OFFSET('InputData-DDM'!$B$10,CalculationsAndCharts!$A99+$A$11,0,1,1) -> 2012-02-14 | T99: =OFFSET('InputData-DDM'!$G$10,CalculationsAndCharts!$A99+$A$11,0,1,1) -> 783900 | U99: =OFFSET('InputData-DDM'!$J$10,CalculationsAndCharts!$A99+$A$11,0,1,1) -> 66.43 | V99: =OFFSET('InputData-DDM'!$K$10,CalculationsAndCharts!$A99+$A$11,0,1,1) -> 66.76 | W99: =OFFSET('InputData-DDM'!$L$10,CalculationsAndCharts!$A99+$A$11,0,1,1) -> 65.82 | X99: =OFFSET('InputData-DDM'!$M$10,CalculationsAndCharts!$A99+$A$11,0,1,1) -> 66.71 | Y99: 61.9674 | Z99: 0 | AA99: 0 | AB99: 753.1045058 | AC99: 0 | AD99: 0 | AE99: 1236.566543 | AF99: 39982.31821 | AG99: 0 | AH99: 0 | AI99: 51265.29886 | AJ99: 99244.37832
A100: 68 | B100: =OFFSET('InputData-DBC'!$B$10,CalculationsAndCharts!$A100+$A$11,0,1,1) -> 2012-02-13 | C100: =OFFSET('InputData-DBC'!$G$10,CalculationsAndCharts!$A100+$A$11,0,1,1) -> 2124700 | D100: =OFFSET('InputData-DBC'!$J$10,CalculationsAndCharts!$A100+$A$11,0,1,1) -> 28.58 | E100: =OFFSET('InputData-DBC'!$K$10,CalculationsAndCharts!$A100+$A$11,0,1,1) -> 28.67 | F100: =OFFSET('InputData-DBC'!$L$10,CalculationsAndCharts!$A100+$A$11,0,1,1) -> 28.4 | G100: =OFFSET('InputData-DBC'!$M$10,CalculationsAndCharts!$A100+$A$11,0,1,1) -> 28.52 | H100: 27.5058 | I100: 0 | J100: 0 | K100: 1633.774734 | L100: 0 | M100: 0 | N100: 1400.16179 | O100: 45271.89788 | P100: 0 | Q100: 0 | R100: 48093.44369 | S100: =OFFSET('InputData-DDM'!$B$10,CalculationsAndCharts!$A100+$A$11,0,1,1) -> 2012-02-13 | T100: =OFFSET('InputData-DDM'!$G$10,CalculationsAndCharts!$A100+$A$11,0,1,1) -> 521200 | U100: =OFFSET('InputData-DDM'!$J$10,CalculationsAndCharts!$A100+$A$11,0,1,1) -> 66.76 | V100: =OFFSET('InputData-DDM'!$K$10,CalculationsAndCharts!$A100+$A$11,0,1,1) -> 66.85 | W100: =OFFSET('InputData-DDM'!$L$10,CalculationsAndCharts!$A100+$A$11,0,1,1) -> 66.15 | X100: =OFFSET('InputData-DDM'!$M$10,CalculationsAndCharts!$A100+$A$11,0,1,1) -> 66.67 | Y100: 61.7932 | Z100: 0 | AA100: 0 | AB100: 753.1045058 | AC100: 0 | AD100: 0 | AE100: 1236.566543 | AF100: 39982.31821 | AG100: 0 | AH100: 0 | AI100: 51513.82335 | AJ100: 99607.26703
A101: 69 | B101: =OFFSET('InputData-DBC'!$B$10,CalculationsAndCharts!$A101+$A$11,0,1,1) -> 2012-02-10 | C101: =OFFSET('InputData-DBC'!$G$10,CalculationsAndCharts!$A101+$A$11,0,1,1) -> 1870100 | D101: =OFFSET('InputData-DBC'!$J$10,CalculationsAndCharts!$A101+$A$11,0,1,1) -> 28.42 | E101: =OFFSET('InputData-DBC'!$K$10,CalculationsAndCharts!$A101+$A$11,0,1,1) -> 28.5 | F101: =OFFSET('InputData-DBC'!$L$10,CalculationsAndCharts!$A101+$A$11,0,1,1) -> 28.3 | G101: =OFFSET('InputData-DBC'!$M$10,CalculationsAndCharts!$A101+$A$11,0,1,1) -> 28.45 | H101: 27.4882 | I101: 0 | J101: 0 | K101: 1633.774734 | L101: 0 | M101: 0 | N101: 1400.16179 | O101: 45271.89788 | P101: 0 | Q101: 0 | R101: 47832.03973 | S101: =OFFSET('InputData-DDM'!$B$10,CalculationsAndCharts!$A101+$A$11,0,1,1) -> 2012-02-10 | T101: =OFFSET('InputData-DDM'!$G$10,CalculationsAndCharts!$A101+$A$11,0,1,1) -> 911400 | U101: =OFFSET('InputData-DDM'!$J$10,CalculationsAndCharts!$A101+$A$11,0,1,1) -> 65.83 | V101: =OFFSET('InputData-DDM'!$K$10,CalculationsAndCharts!$A101+$A$11,0,1,1) -> 66 | W101: =OFFSET('InputData-DDM'!$L$10,CalculationsAndCharts!$A101+$A$11,0,1,1) -> 65.34 | X101: =OFFSET('InputData-DDM'!$M$10,CalculationsAndCharts!$A101+$A$11,0,1,1) -> 66 | Y101: 61.6206 | Z101: 0 | AA101: 0 | AB101: 753.1045058 | AC101: 0 | AD101: 0 | AE101: 1236.566543 | AF101: 39982.31821 | AG101: 0 | AH101: 0 | AI101: 50813.43616 | AJ101: 98645.47589
A102: 70 | B102: =OFFSET('InputData-DBC'!$B$10,CalculationsAndCharts!$A102+$A$11,0,1,1) -> 2012-02-09 | C102: =OFFSET('InputData-DBC'!$G$10,CalculationsAndCharts!$A102+$A$11,0,1,1) -> 1484900 | D102: =OFFSET('InputData-DBC'!$J$10,CalculationsAndCharts!$A102+$A$11,0,1,1) -> 28.73 | E102: =OFFSET('InputData-DBC'!$K$10,CalculationsAndCharts!$A102+$A$11,0,1,1) -> 28.81 | F102: =OFFSET('InputData-DBC'!$L$10,CalculationsAndCharts!$A102+$A$11,0,1,1) -> 28.63 | G102: =OFFSET('InputData-DBC'!$M$10,CalculationsAndCharts!$A102+$A$11,0,1,1) -> 28.72 | H102: 27.4656 | I102: 0 | J102: 0 | K102: 1633.774734 | L102: 0 | M102: 0 | N102: 1400.16179 | O102: 45271.89788 | P102: 0 | Q102: 0 | R102: 48338.5099 | S102: =OFFSET('InputData-DDM'!$B$10,CalculationsAndCharts!$A102+$A$11,0,1,1) -> 2012-02-09 | T102: =OFFSET('InputData-DDM'!$G$10,CalculationsAndCharts!$A102+$A$11,0,1,1) -> 888200 | U102: =OFFSET('InputData-DDM'!$J$10,CalculationsAndCharts!$A102+$A$11,0,1,1) -> 67.07 | V102: =OFFSET('InputData-DDM'!$K$10,CalculationsAndCharts!$A102+$A$11,0,1,1) -> 67.23 | W102: =OFFSET('InputData-DDM'!$L$10,CalculationsAndCharts!$A102+$A$11,0,1,1) -> 66.39 | X102: =OFFSET('InputData-DDM'!$M$10,CalculationsAndCharts!$A102+$A$11,0,1,1) -> 66.86 | Y102: 61.375 | Z102: 0 | AA102: 0 | AB102: 753.1045058 | AC102: 0 | AD102: 0 | AE102: 1236.566543 | AF102: 39982.31821 | AG102: 0 | AH102: 0 | AI102: 51747.28574 | AJ102: 100085.7956
A103: 71 | B103: =OFFSET('InputData-DBC'!$B$10,CalculationsAndCharts!$A103+$A$11,0,1,1) -> 2012-02-08 | C103: =OFFSET('InputData-DBC'!$G$10,CalculationsAndCharts!$A103+$A$11,0,1,1) -> 1152800 | D103: =OFFSET('InputData-DBC'!$J$10,CalculationsAndCharts!$A103+$A$11,0,1,1) -> 28.58 | E103: =OFFSET('InputData-DBC'!$K$10,CalculationsAndCharts!$A103+$A$11,0,1,1) -> 28.65 | F103: =OFFSET('InputData-DBC'!$L$10,CalculationsAndCharts!$A103+$A$11,0,1,1) -> 28.36 | G103: =OFFSET('InputData-DBC'!$M$10,CalculationsAndCharts!$A103+$A$11,0,1,1) -> 28.57 | H103: 27.4306 | I103: 0 | J103: 0 | K103: 1633.774734 | L103: 0 | M103: 0 | N103: 1400.16179 | O103: 45271.89788 | P103: 0 | Q103: 0 | R103: 48093.44369 | S103: =OFFSET('InputData-DDM'!$B$10,CalculationsAndCharts!$A103+$A$11,0,1,1) -> 2012-02-08 | T103: =OFFSET('InputData-DDM'!$G$10,CalculationsAndCharts!$A103+$A$11,0,1,1) -> 681600 | U103: =OFFSET('InputData-DDM'!$J$10,CalculationsAndCharts!$A103+$A$11,0,1,1) -> 66.7 | V103: =OFFSET('InputData-DDM'!$K$10,CalculationsAndCharts!$A103+$A$11,0,1,1) -> 66.89 | W103: =OFFSET('InputData-DDM'!$L$10,CalculationsAndCharts!$A103+$A$11,0,1,1) -> 66.09 | X103: =OFFSET('InputData-DDM'!$M$10,CalculationsAndCharts!$A103+$A$11,0,1,1) -> 66.85 | Y103: 61.1036 | Z103: 0 | AA103: 0 | AB103: 753.1045058 | AC103: 0 | AD103: 0 | AE103: 1236.566543 | AF103: 39982.31821 | AG103: 0 | AH103: 0 | AI103: 51468.63708 | AJ103: 99562.08076
A104: 72 | B104: =OFFSET('InputData-DBC'!$B$10,CalculationsAndCharts!$A104+$A$11,0,1,1) -> 2012-02-07 | C104: =OFFSET('InputData-DBC'!$G$10,CalculationsAndCharts!$A104+$A$11,0,1,1) -> 2370400 | D104: =OFFSET('InputData-DBC'!$J$10,CalculationsAndCharts!$A104+$A$11,0,1,1) -> 28.42 | E104: =OFFSET('InputData-DBC'!$K$10,CalculationsAndCharts!$A104+$A$11,0,1,1) -> 28.61 | F104: =OFFSET('InputData-DBC'!$L$10,CalculationsAndCharts!$A104+$A$11,0,1,1) -> 28.34 | G104: =OFFSET('InputData-DBC'!$M$10,CalculationsAndCharts!$A104+$A$11,0,1,1) -> 28.44 | H104: 27.392 | I104: 0 | J104: 0 | K104: 1633.774734 | L104: 0 | M104: 0 | N104: 1400.16179 | O104: 45271.89788 | P104: 0 | Q104: 0 | R104: 47832.03973 | S104: =OFFSET('InputData-DDM'!$B$10,CalculationsAndCharts!$A104+$A$11,0,1,1) -> 2012-02-07 | T104: =OFFSET('InputData-DDM'!$G$10,CalculationsAndCharts!$A104+$A$11,0,1,1) -> 993700 | U104: =OFFSET('InputData-DDM'!$J$10,CalculationsAndCharts!$A104+$A$11,0,1,1) -> 66.05 | V104: =OFFSET('InputData-DDM'!$K$10,CalculationsAndCharts!$A104+$A$11,0,1,1) -> 66.87 | W104: =OFFSET('InputData-DDM'!$L$10,CalculationsAndCharts!$A104+$A$11,0,1,1) -> 65.62 | X104: =OFFSET('InputData-DDM'!$M$10,CalculationsAndCharts!$A104+$A$11,0,1,1) -> 66.61 | Y104: 60.7814 | Z104: 0 | AA104: 0 | AB104: 753.1045058 | AC104: 0 | AD104: 0 | AE104: 1236.566543 | AF104: 39982.31821 | AG104: 0 | AH104: 0 | AI104: 50979.11915 | AJ104: 98811.15888
A105: 73 | B105: =OFFSET('InputData-DBC'!$B$10,CalculationsAndCharts!$A105+$A$11,0,1,1) -> 2012-02-06 | C105: =OFFSET('InputData-DBC'!$G$10,CalculationsAndCharts!$A105+$A$11,0,1,1) -> 1680100 | D105: =OFFSET('InputData-DBC'!$J$10,CalculationsAndCharts!$A105+$A$11,0,1,1) -> 28.31 | E105: =OFFSET('InputData-DBC'!$K$10,CalculationsAndCharts!$A105+$A$11,0,1,1) -> 28.5 | F105: =OFFSET('InputData-DBC'!$L$10,CalculationsAndCharts!$A105+$A$11,0,1,1) -> 28.24 | G105: =OFFSET('InputData-DBC'!$M$10,CalculationsAndCharts!$A105+$A$11,0,1,1) -> 28.46 | H105: 27.3604 | I105: 0 | J105: 0 | K105: 1633.774734 | L105: 0 | M105: 0 | N105: 1400.16179 | O105: 45271.89788 | P105: 0 | Q105: 0 | R105: 47652.32451 | S105: =OFFSET('InputData-DDM'!$B$10,CalculationsAndCharts!$A105+$A$11,0,1,1) -> 2012-02-06 | T105: =OFFSET('InputData-DDM'!$G$10,CalculationsAndCharts!$A105+$A$11,0,1,1) -> 454900 | U105: =OFFSET('InputData-DDM'!$J$10,CalculationsAndCharts!$A105+$A$11,0,1,1) -> 65.93 | V105: =OFFSET('InputData-DDM'!$K$10,CalculationsAndCharts!$A105+$A$11,0,1,1) -> 66.26 | W105: =OFFSET('InputData-DDM'!$L$10,CalculationsAndCharts!$A105+$A$11,0,1,1) -> 65.74 | X105: =OFFSET('InputData-DDM'!$M$10,CalculationsAndCharts!$A105+$A$11,0,1,1) -> 66.22 | Y105: 60.4672 | Z105: 0 | AA105: 0 | AB105: 753.1045058 | AC105: 0 | AD105: 0 | AE105: 1236.566543 | AF105: 39982.31821 | AG105: 0 | AH105: 0 | AI105: 50888.74661 | AJ105: 98541.07112
A106: 74 | B106: =OFFSET('InputData-DBC'!$B$10,CalculationsAndCharts!$A106+$A$11,0,1,1) -> 2012-02-03 | C106: =OFFSET('InputData-DBC'!$G$10,CalculationsAndCharts!$A106+$A$11,0,1,1) -> 1774800 | D106: =OFFSET('InputData-DBC'!$J$10,CalculationsAndCharts!$A106+$A$11,0,1,1) -> 28.18 | E106: =OFFSET('InputData-DBC'!$K$10,CalculationsAndCharts!$A106+$A$11,0,1,1) -> 28.33 | F106: =OFFSET('InputData-DBC'!$L$10,CalculationsAndCharts!$A106+$A$11,0,1,1) -> 28.04 | G106: =OFFSET('InputData-DBC'!$M$10,CalculationsAndCharts!$A106+$A$11,0,1,1) -> 28.32 | H106: 27.3366 | I106: 0 | J106: 0 | K106: 1633.774734 | L106: 0 | M106: 0 | N106: 1400.16179 | O106: 45271.89788 | P106: 0 | Q106: 0 | R106: 47439.93379 | S106: =OFFSET('InputData-DDM'!$B$10,CalculationsAndCharts!$A106+$A$11,0,1,1) -> 2012-02-03 | T106: =OFFSET('InputData-DDM'!$G$10,CalculationsAndCharts!$A106+$A$11,0,1,1) -> 887600 | U106: =OFFSET('InputData-DDM'!$J$10,CalculationsAndCharts!$A106+$A$11,0,1,1) -> 66.15 | V106: =OFFSET('InputData-DDM'!$K$10,CalculationsAndCharts!$A106+$A$11,0,1,1) -> 66.53 | W106: =OFFSET('InputData-DDM'!$L$10,CalculationsAndCharts!$A106+$A$11,0,1,1) -> 65.91 | X106: =OFFSET('InputData-DDM'!$M$10,CalculationsAndCharts!$A106+$A$11,0,1,1) -> 66.45 | Y106: 60.2042 | Z106: 0 | AA106: 0 | AB106: 753.1045058 | AC106: 0 | AD106: 0 | AE106: 1236.566543 | AF106: 39982.31821 | AG106: 0 | AH106: 0 | AI106: 51054.4296 | AJ106: 98494.36339
A107: 75 | B107: =OFFSET('InputData-DBC'!$B$10,CalculationsAndCharts!$A107+$A$11,0,1,1) -> 2012-02-02 | C107: =OFFSET('InputData-DBC'!$G$10,CalculationsAndCharts!$A107+$A$11,0,1,1) -> 2079200 | D107: =OFFSET('InputData-DBC'!$J$10,CalculationsAndCharts!$A107+$A$11,0,1,1) -> 27.89 | E107: =OFFSET('InputData-DBC'!$K$10,CalculationsAndCharts!$A107+$A$11,0,1,1) -> 28.02 | F107: =OFFSET('InputData-DBC'!$L$10,CalculationsAndCharts!$A107+$A$11,0,1,1) -> 27.74 | G107: =OFFSET('InputData-DBC'!$M$10,CalculationsAndCharts!$A107+$A$11,0,1,1) -> 27.99 | H107: 27.312 | I107: 0 | J107: 0 | K107: 1633.774734 | L107: 0 | M107: 0 | N107: 1400.16179 | O107: 45271.89788 | P107: 0 | Q107: 0 | R107: 46966.13912 | S107: =OFFSET('InputData-DDM'!$B$10,CalculationsAndCharts!$A107+$A$11,0,1,1) -> 2012-02-02 | T107: =OFFSET('InputData-DDM'!$G$10,CalculationsAndCharts!$A107+$A$11,0,1,1) -> 639000 | U107: =OFFSET('InputData-DDM'!$J$10,CalculationsAndCharts!$A107+$A$11,0,1,1) -> 65.1 | V107: =OFFSET('InputData-DDM'!$K$10,CalculationsAndCharts!$A107+$A$11,0,1,1) -> 65.23 | W107: =OFFSET('InputData-DDM'!$L$10,CalculationsAndCharts!$A107+$A$11,0,1,1) -> 64.51 | X107: =OFFSET('InputData-DDM'!$M$10,CalculationsAndCharts!$A107+$A$11,0,1,1) -> 64.89 | Y107: 59.945 | Z107: 0 | AA107: 0 | AB107: 753.1045058 | AC107: 0 | AD107: 0 | AE107: 1236.566543 | AF107: 39982.31821 | AG107: 0 | AH107: 0 | AI107: 50263.66987 | AJ107: 97229.80899
A108: 76 | B108: =OFFSET('InputData-DBC'!$B$10,CalculationsAndCharts!$A108+$A$11,0,1,1) -> 2012-02-01 | C108: =OFFSET('InputData-DBC'!$G$10,CalculationsAndCharts!$A108+$A$11,0,1,1) -> 1570400 | D108: =OFFSET('InputData-DBC'!$J$10,CalculationsAndCharts!$A108+$A$11,0,1,1) -> 27.94 | E108: =OFFSET('InputData-DBC'!$K$10,CalculationsAndCharts!$A108+$A$11,0,1,1) -> 28.06 | F108: =OFFSET('InputData-DBC'!$L$10,CalculationsAndCharts!$A108+$A$11,0,1,1) -> 27.87 | G108: =OFFSET('InputData-DBC'!$M$10,CalculationsAndCharts!$A108+$A$11,0,1,1) -> 27.92 | H108: 27.298 | I108: 0 | J108: 0 | K108: 1633.774734 | L108: 0 | M108: 0 | N108: 1400.16179 | O108: 45271.89788 | P108: 0 | Q108: 0 | R108: 47047.82786 | S108: =OFFSET('InputData-DDM'!$B$10,CalculationsAndCharts!$A108+$A$11,0,1,1) -> 2012-02-01 | T108: =OFFSET('InputData-DDM'!$G$10,CalculationsAndCharts!$A108+$A$11,0,1,1) -> 1231100 | U108: =OFFSET('InputData-DDM'!$J$10,CalculationsAndCharts!$A108+$A$11,0,1,1) -> 65.13 | V108: =OFFSET('InputData-DDM'!$K$10,CalculationsAndCharts!$A108+$A$11,0,1,1) -> 65.65 | W108: =OFFSET('InputData-DDM'!$L$10,CalculationsAndCharts!$A108+$A$11,0,1,1) -> 64.83 | X108: =OFFSET('InputData-DDM'!$M$10,CalculationsAndCharts!$A108+$A$11,0,1,1) -> 64.95 | Y108: 59.7648 | Z108: 0 | AA108: 0 | AB108: 753.1045058 | AC108: 0 | AD108: 0 | AE108: 1236.566543 | AF108: 39982.31821 | AG108: 0 | AH108: 0 | AI108: 50286.263 | AJ108: 97334.09086
A109: 77 | B109: =OFFSET('InputData-DBC'!$B$10,CalculationsAndCharts!$A109+$A$11,0,1,1) -> 2012-01-31 | C109: =OFFSET('InputData-DBC'!$G$10,CalculationsAndCharts!$A109+$A$11,0,1,1) -> 1912600 | D109: =OFFSET('InputData-DBC'!$J$10,CalculationsAndCharts!$A109+$A$11,0,1,1) -> 28.05 | E109: =OFFSET('InputData-DBC'!$K$10,CalculationsAndCharts!$A109+$A$11,0,1,1) -> 28.19 | F109: =OFFSET('InputData-DBC'!$L$10,CalculationsAndCharts!$A109+$A$11,0,1,1) -> 27.74 | G109: =OFFSET('InputData-DBC'!$M$10,CalculationsAndCharts!$A109+$A$11,0,1,1) -> 27.83 | H109: 27.2862 | I109: 0 | J109: 0 | K109: 1633.774734 | L109: 0 | M109: 0 | N109: 1400.16179 | O109: 45271.89788 | P109: 0 | Q109: 0 | R109: 47227.54308 | S109: =OFFSET('InputData-DDM'!$B$10,CalculationsAndCharts!$A109+$A$11,0,1,1) -> 2012-01-31 | T109: =OFFSET('InputData-DDM'!$G$10,CalculationsAndCharts!$A109+$A$11,0,1,1) -> 1245900 | U109: =OFFSET('InputData-DDM'!$J$10,CalculationsAndCharts!$A109+$A$11,0,1,1) -> 64.93 | V109: =OFFSET('InputData-DDM'!$K$10,CalculationsAndCharts!$A109+$A$11,0,1,1) -> 64.99 | W109: =OFFSET('InputData-DDM'!$L$10,CalculationsAndCharts!$A109+$A$11,0,1,1) -> 63.42 | X109: =OFFSET('InputData-DDM'!$M$10,CalculationsAndCharts!$A109+$A$11,0,1,1) -> 64.13 | Y109: 59.5802 | Z109: 0 | AA109: 0 | AB109: 753.1045058 | AC109: 0 | AD109: 0 | AE109: 1236.566543 | AF109: 39982.31821 | AG109: 0 | AH109: 0 | AI109: 50135.6421 | AJ109: 97363.18518
A110: 78 | B110: =OFFSET('InputData-DBC'!$B$10,CalculationsAndCharts!$A110+$A$11,0,1,1) -> 2012-01-30 | C110: =OFFSET('InputData-DBC'!$G$10,CalculationsAndCharts!$A110+$A$11,0,1,1) -> 3085600 | D110: =OFFSET('InputData-DBC'!$J$10,CalculationsAndCharts!$A110+$A$11,0,1,1) -> 28 | E110: =OFFSET('InputData-DBC'!$K$10,CalculationsAndCharts!$A110+$A$11,0,1,1) -> 28.06 | F110: =OFFSET('InputData-DBC'!$L$10,CalculationsAndCharts!$A110+$A$11,0,1,1) -> 27.82 | G110: =OFFSET('InputData-DBC'!$M$10,CalculationsAndCharts!$A110+$A$11,0,1,1) -> 27.9 | H110: 27.2892 | I110: 0 | J110: 0 | K110: 1633.774734 | L110: 0 | M110: 0 | N110: 1400.16179 | O110: 45271.89788 | P110: 0 | Q110: 0 | R110: 47145.85434 | S110: =OFFSET('InputData-DDM'!$B$10,CalculationsAndCharts!$A110+$A$11,0,1,1) -> 2012-01-30 | T110: =OFFSET('InputData-DDM'!$G$10,CalculationsAndCharts!$A110+$A$11,0,1,1) -> 1299600 | U110: =OFFSET('InputData-DDM'!$J$10,CalculationsAndCharts!$A110+$A$11,0,1,1) -> 63.44 | V110: =OFFSET('InputData-DDM'!$K$10,CalculationsAndCharts!$A110+$A$11,0,1,1) -> 64.36 | W110: =OFFSET('InputData-DDM'!$L$10,CalculationsAndCharts!$A110+$A$11,0,1,1) -> 63.04 | X110: =OFFSET('InputData-DDM'!$M$10,CalculationsAndCharts!$A110+$A$11,0,1,1) -> 64.33 | Y110: 59.4358 | Z110: 0 | AA110: 0 | AB110: 753.1045058 | AC110: 0 | AD110: 0 | AE110: 1236.566543 | AF110: 39982.31821 | AG110: 0 | AH110: 0 | AI110: 49013.51639 | AJ110: 96159.37073
A111: 79 | B111: =OFFSET('InputData-DBC'!$B$10,CalculationsAndCharts!$A111+$A$11,0,1,1) -> 2012-01-27 | C111: =OFFSET('InputData-DBC'!$G$10,CalculationsAndCharts!$A111+$A$11,0,1,1) -> 1828700 | D111: =OFFSET('InputData-DBC'!$J$10,CalculationsAndCharts!$A111+$A$11,0,1,1) -> 27.96 | E111: =OFFSET('InputData-DBC'!$K$10,CalculationsAndCharts!$A111+$A$11,0,1,1) -> 28.19 | F111: =OFFSET('InputData-DBC'!$L$10,CalculationsAndCharts!$A111+$A$11,0,1,1) -> 27.96 | G111: =OFFSET('InputData-DBC'!$M$10,CalculationsAndCharts!$A111+$A$11,0,1,1) -> 28.19 | H111: 27.2922 | I111: 0 | J111: 0 | K111: 1633.774734 | L111: 0 | M111: 0 | N111: 1400.16179 | O111: 45271.89788 | P111: 0 | Q111: 0 | R111: 47080.50335 | S111: =OFFSET('InputData-DDM'!$B$10,CalculationsAndCharts!$A111+$A$11,0,1,1) -> 2012-01-27 | T111: =OFFSET('InputData-DDM'!$G$10,CalculationsAndCharts!$A111+$A$11,0,1,1) -> 1129500 | U111: =OFFSET('InputData-DDM'!$J$10,CalculationsAndCharts!$A111+$A$11,0,1,1) -> 64.53 | V111: =OFFSET('InputData-DDM'!$K$10,CalculationsAndCharts!$A111+$A$11,0,1,1) -> 64.84 | W111: =OFFSET('InputData-DDM'!$L$10,CalculationsAndCharts!$A111+$A$11,0,1,1) -> 64.09 | X111: =OFFSET('InputData-DDM'!$M$10,CalculationsAndCharts!$A111+$A$11,0,1,1) -> 64.49 | Y111: 59.322 | Z111: 0 | AA111: 0 | AB111: 753.1045058 | AC111: 0 | AD111: 0 | AE111: 1236.566543 | AF111: 39982.31821 | AG111: 0 | AH111: 0 | AI111: 49834.4003 | AJ111: 96914.90365
A112: 80 | B112: =OFFSET('InputData-DBC'!$B$10,CalculationsAndCharts!$A112+$A$11,0,1,1) -> 2012-01-26 | C112: =OFFSET('InputData-DBC'!$G$10,CalculationsAndCharts!$A112+$A$11,0,1,1) -> 2136400 | D112: =OFFSET('InputData-DBC'!$J$10,CalculationsAndCharts!$A112+$A$11,0,1,1) -> 28.21 | E112: =OFFSET('InputData-DBC'!$K$10,CalculationsAndCharts!$A112+$A$11,0,1,1) -> 28.26 | F112: =OFFSET('InputData-DBC'!$L$10,CalculationsAndCharts!$A112+$A$11,0,1,1) -> 28.03 | G112: =OFFSET('InputData-DBC'!$M$10,CalculationsAndCharts!$A112+$A$11,0,1,1) -> 28.09 | H112: 27.2854 | I112: 0 | J112: 0 | K112: 1633.774734 | L112: 0 | M112: 0 | N112: 1400.16179 | O112: 45271.89788 | P112: 0 | Q112: 0 | R112: 47488.94703 | S112: =OFFSET('InputData-DDM'!$B$10,CalculationsAndCharts!$A112+$A$11,0,1,1) -> 2012-01-26 | T112: =OFFSET('InputData-DDM'!$G$10,CalculationsAndCharts!$A112+$A$11,0,1,1) -> 909600 | U112: =OFFSET('InputData-DDM'!$J$10,CalculationsAndCharts!$A112+$A$11,0,1,1) -> 65.99 | V112: =OFFSET('InputData-DDM'!$K$10,CalculationsAndCharts!$A112+$A$11,0,1,1) -> 66.26 | W112: =OFFSET('InputData-DDM'!$L$10,CalculationsAndCharts!$A112+$A$11,0,1,1) -> 64.74 | X112: =OFFSET('InputData-DDM'!$M$10,CalculationsAndCharts!$A112+$A$11,0,1,1) -> 65.15 | Y112: 59.2028 | Z112: 0 | AA112: 0 | AB112: 753.1045058 | AC112: 0 | AD112: 0 | AE112: 1236.566543 | AF112: 39982.31821 | AG112: 0 | AH112: 0 | AI112: 50933.93288 | AJ112: 98422.87991
A113: 81 | B113: =OFFSET('InputData-DBC'!$B$10,CalculationsAndCharts!$A113+$A$11,0,1,1) -> 2012-01-25 | C113: =OFFSET('InputData-DBC'!$G$10,CalculationsAndCharts!$A113+$A$11,0,1,1) -> 1913200 | D113: =OFFSET('InputData-DBC'!$J$10,CalculationsAndCharts!$A113+$A$11,0,1,1) -> 27.67 | E113: =OFFSET('InputData-DBC'!$K$10,CalculationsAndCharts!$A113+$A$11,0,1,1) -> 28.03 | F113: =OFFSET('InputData-DBC'!$L$10,CalculationsAndCharts!$A113+$A$11,0,1,1) -> 27.59 | G113: =OFFSET('InputData-DBC'!$M$10,CalculationsAndCharts!$A113+$A$11,0,1,1) -> 28.01 | H113: 27.2866 | I113: 0 | J113: 0 | K113: 1633.774734 | L113: 0 | M113: 0 | N113: 1400.16179 | O113: 45271.89788 | P113: 0 | Q113: 0 | R113: 46606.70868 | S113: =OFFSET('InputData-DDM'!$B$10,CalculationsAndCharts!$A113+$A$11,0,1,1) -> 2012-01-25 | T113: =OFFSET('InputData-DDM'!$G$10,CalculationsAndCharts!$A113+$A$11,0,1,1) -> 1380300 | U113: =OFFSET('InputData-DDM'!$J$10,CalculationsAndCharts!$A113+$A$11,0,1,1) -> 64.11 | V113: =OFFSET('InputData-DDM'!$K$10,CalculationsAndCharts!$A113+$A$11,0,1,1) -> 65.61 | W113: =OFFSET('InputData-DDM'!$L$10,CalculationsAndCharts!$A113+$A$11,0,1,1) -> 63.56 | X113: =OFFSET('InputData-DDM'!$M$10,CalculationsAndCharts!$A113+$A$11,0,1,1) -> 65.31 | Y113: 59.085 | Z113: 0 | AA113: 0 | AB113: 753.1045058 | AC113: 0 | AD113: 0 | AE113: 1236.566543 | AF113: 39982.31821 | AG113: 0 | AH113: 0 | AI113: 49518.09641 | AJ113: 96124.80509
A114: 82 | B114: =OFFSET('InputData-DBC'!$B$10,CalculationsAndCharts!$A114+$A$11,0,1,1) -> 2012-01-24 | C114: =OFFSET('InputData-DBC'!$G$10,CalculationsAndCharts!$A114+$A$11,0,1,1) -> 2428100 | D114: =OFFSET('InputData-DBC'!$J$10,CalculationsAndCharts!$A114+$A$11,0,1,1) -> 27.53 | E114: =OFFSET('InputData-DBC'!$K$10,CalculationsAndCharts!$A114+$A$11,0,1,1) -> 27.78 | F114: =OFFSET('InputData-DBC'!$L$10,CalculationsAndCharts!$A114+$A$11,0,1,1) -> 27.53 | G114: =OFFSET('InputData-DBC'!$M$10,CalculationsAndCharts!$A114+$A$11,0,1,1) -> 27.78 | H114: 27.284 | I114: 0 | J114: 0 | K114: 1633.774734 | L114: 0 | M114: 0 | N114: 1400.16179 | O114: 45271.89788 | P114: 0 | Q114: 0 | R114: 46377.98022 | S114: =OFFSET('InputData-DDM'!$B$10,CalculationsAndCharts!$A114+$A$11,0,1,1) -> 2012-01-24 | T114: =OFFSET('InputData-DDM'!$G$10,CalculationsAndCharts!$A114+$A$11,0,1,1) -> 486500 | U114: =OFFSET('InputData-DDM'!$J$10,CalculationsAndCharts!$A114+$A$11,0,1,1) -> 64.21 | V114: =OFFSET('InputData-DDM'!$K$10,CalculationsAndCharts!$A114+$A$11,0,1,1) -> 64.61 | W114: =OFFSET('InputData-DDM'!$L$10,CalculationsAndCharts!$A114+$A$11,0,1,1) -> 63.91 | X114: =OFFSET('InputData-DDM'!$M$10,CalculationsAndCharts!$A114+$A$11,0,1,1) -> 64.53 | Y114: 58.9148 | Z114: 0 | AA114: 0 | AB114: 753.1045058 | AC114: 0 | AD114: 0 | AE114: 1236.566543 | AF114: 39982.31821 | AG114: 0 | AH114: 0 | AI114: 49593.40686 | AJ114: 95971.38707
A115: 83 | B115: =OFFSET('InputData-DBC'!$B$10,CalculationsAndCharts!$A115+$A$11,0,1,1) -> 2012-01-23 | C115: =OFFSET('InputData-DBC'!$G$10,CalculationsAndCharts!$A115+$A$11,0,1,1) -> 1767900 | D115: =OFFSET('InputData-DBC'!$J$10,CalculationsAndCharts!$A115+$A$11,0,1,1) -> 27.48 | E115: =OFFSET('InputData-DBC'!$K$10,CalculationsAndCharts!$A115+$A$11,0,1,1) -> 27.75 | F115: =OFFSET('InputData-DBC'!$L$10,CalculationsAndCharts!$A115+$A$11,0,1,1) -> 27.48 | G115: =OFFSET('InputData-DBC'!$M$10,CalculationsAndCharts!$A115+$A$11,0,1,1) -> 27.73 | H115: 27.2866 | I115: 0 | J115: 0 | K115: 1633.774734 | L115: 0 | M115: 0 | N115: 1400.16179 | O115: 45271.89788 | P115: 0 | Q115: 0 | R115: 46296.29148 | S115: =OFFSET('InputData-DDM'!$B$10,CalculationsAndCharts!$A115+$A$11,0,1,1) -> 2012-01-23 | T115: =OFFSET('InputData-DDM'!$G$10,CalculationsAndCharts!$A115+$A$11,0,1,1) -> 779800 | U115: =OFFSET('InputData-DDM'!$J$10,CalculationsAndCharts!$A115+$A$11,0,1,1) -> 64.98 | V115: =OFFSET('InputData-DDM'!$K$10,CalculationsAndCharts!$A115+$A$11,0,1,1) -> 65.45 | W115: =OFFSET('InputData-DDM'!$L$10,CalculationsAndCharts!$A115+$A$11,0,1,1) -> 64.44 | X115: =OFFSET('InputData-DDM'!$M$10,CalculationsAndCharts!$A115+$A$11,0,1,1) -> 64.88 | Y115: 58.7376 | Z115: 0 | AA115: 0 | AB115: 753.1045058 | AC115: 0 | AD115: 0 | AE115: 1236.566543 | AF115: 39982.31821 | AG115: 0 | AH115: 0 | AI115: 50173.29733 | AJ115: 96469.58881
A116: 84 | B116: =OFFSET('InputData-DBC'!$B$10,CalculationsAndCharts!$A116+$A$11,0,1,1) -> 2012-01-20 | C116: =OFFSET('InputData-DBC'!$G$10,CalculationsAndCharts!$A116+$A$11,0,1,1) -> 1907200 | D116: =OFFSET('InputData-DBC'!$J$10,CalculationsAndCharts!$A116+$A$11,0,1,1) -> 27.43 | E116: =OFFSET('InputData-DBC'!$K$10,CalculationsAndCharts!$A116+$A$11,0,1,1) -> 27.46 | F116: =OFFSET('InputData-DBC'!$L$10,CalculationsAndCharts!$A116+$A$11,0,1,1) -> 27.24 | G116: =OFFSET('InputData-DBC'!$M$10,CalculationsAndCharts!$A116+$A$11,0,1,1) -> 27.41 | H116: 27.3028 | I116: 0 | J116: 0 | K116: 1633.774734 | L116: 0 | M116: 0 | N116: 1400.16179 | O116: 45271.89788 | P116: 0 | Q116: 0 | R116: 46214.60274 | S116: =OFFSET('InputData-DDM'!$B$10,CalculationsAndCharts!$A116+$A$11,0,1,1) -> 2012-01-20 | T116: =OFFSET('InputData-DDM'!$G$10,CalculationsAndCharts!$A116+$A$11,0,1,1) -> 669400 | U116: =OFFSET('InputData-DDM'!$J$10,CalculationsAndCharts!$A116+$A$11,0,1,1) -> 64.1 | V116: =OFFSET('InputData-DDM'!$K$10,CalculationsAndCharts!$A116+$A$11,0,1,1) -> 65.03 | W116: =OFFSET('InputData-DDM'!$L$10,CalculationsAndCharts!$A116+$A$11,0,1,1) -> 63.99 | X116: =OFFSET('InputData-DDM'!$M$10,CalculationsAndCharts!$A116+$A$11,0,1,1) -> 65.03 | Y116: 58.6288 | Z116: 0 | AA116: 0 | AB116: 753.1045058 | AC116: 0 | AD116: 0 | AE116: 1236.566543 | AF116: 39982.31821 | AG116: 0 | AH116: 0 | AI116: 49510.56536 | AJ116: 95725.1681
A117: 85 | B117: =OFFSET('InputData-DBC'!$B$10,CalculationsAndCharts!$A117+$A$11,0,1,1) -> 2012-01-19 | C117: =OFFSET('InputData-DBC'!$G$10,CalculationsAndCharts!$A117+$A$11,0,1,1) -> 2834400 | D117: =OFFSET('InputData-DBC'!$J$10,CalculationsAndCharts!$A117+$A$11,0,1,1) -> 27.58 | E117: =OFFSET('InputData-DBC'!$K$10,CalculationsAndCharts!$A117+$A$11,0,1,1) -> 27.61 | F117: =OFFSET('InputData-DBC'!$L$10,CalculationsAndCharts!$A117+$A$11,0,1,1) -> 27.41 | G117: =OFFSET('InputData-DBC'!$M$10,CalculationsAndCharts!$A117+$A$11,0,1,1) -> 27.61 | H117: 27.3226 | I117: 0 | J117: 0 | K117: 1633.774734 | L117: 0 | M117: 0 | N117: 1400.16179 | O117: 45271.89788 | P117: 0 | Q117: 0 | R117: 46459.66895 | S117: =OFFSET('InputData-DDM'!$B$10,CalculationsAndCharts!$A117+$A$11,0,1,1) -> 2012-01-19 | T117: =OFFSET('InputData-DDM'!$G$10,CalculationsAndCharts!$A117+$A$11,0,1,1) -> 710300 | U117: =OFFSET('InputData-DDM'!$J$10,CalculationsAndCharts!$A117+$A$11,0,1,1) -> 63.84 | V117: =OFFSET('InputData-DDM'!$K$10,CalculationsAndCharts!$A117+$A$11,0,1,1) -> 64.09 | W117: =OFFSET('InputData-DDM'!$L$10,CalculationsAndCharts!$A117+$A$11,0,1,1) -> 63.44 | X117: =OFFSET('InputData-DDM'!$M$10,CalculationsAndCharts!$A117+$A$11,0,1,1) -> 64.08 | Y117: 58.495 | Z117: 0 | AA117: 0 | AB117: 753.1045058 | AC117: 0 | AD117: 0 | AE117: 1236.566543 | AF117: 39982.31821 | AG117: 0 | AH117: 0 | AI117: 49314.75819 | AJ117: 95774.42714
A118: 86 | B118: =OFFSET('InputData-DBC'!$B$10,CalculationsAndCharts!$A118+$A$11,0,1,1) -> 2012-01-18 | C118: =OFFSET('InputData-DBC'!$G$10,CalculationsAndCharts!$A118+$A$11,0,1,1) -> 1544100 | D118: =OFFSET('InputData-DBC'!$J$10,CalculationsAndCharts!$A118+$A$11,0,1,1) -> 27.49 | E118: =OFFSET('InputData-DBC'!$K$10,CalculationsAndCharts!$A118+$A$11,0,1,1) -> 27.55 | F118: =OFFSET('InputData-DBC'!$L$10,CalculationsAndCharts!$A118+$A$11,0,1,1) -> 27.35 | G118: =OFFSET('InputData-DBC'!$M$10,CalculationsAndCharts!$A118+$A$11,0,1,1) -> 27.49 | H118: 27.3302 | I118: 0 | J118: 0 | K118: 1633.774734 | L118: 0 | M118: 0 | N118: 1400.16179 | O118: 45271.89788 | P118: 0 | Q118: 0 | R118: 46312.62923 | S118: =OFFSET('InputData-DDM'!$B$10,CalculationsAndCharts!$A118+$A$11,0,1,1) -> 2012-01-18 | T118: =OFFSET('InputData-DDM'!$G$10,CalculationsAndCharts!$A118+$A$11,0,1,1) -> 702600 | U118: =OFFSET('InputData-DDM'!$J$10,CalculationsAndCharts!$A118+$A$11,0,1,1) -> 62.46 | V118: =OFFSET('InputData-DDM'!$K$10,CalculationsAndCharts!$A118+$A$11,0,1,1) -> 63.62 | W118: =OFFSET('InputData-DDM'!$L$10,CalculationsAndCharts!$A118+$A$11,0,1,1) -> 62.31 | X118: =OFFSET('InputData-DDM'!$M$10,CalculationsAndCharts!$A118+$A$11,0,1,1) -> 63.52 | Y118: 58.3648 | Z118: 0 | AA118: 0 | AB118: 753.1045058 | AC118: 0 | AD118: 0 | AE118: 1236.566543 | AF118: 39982.31821 | AG118: 0 | AH118: 0 | AI118: 48275.47397 | AJ118: 94588.1032
A119: 87 | B119: =OFFSET('InputData-DBC'!$B$10,CalculationsAndCharts!$A119+$A$11,0,1,1) -> 2012-01-17 | C119: =OFFSET('InputData-DBC'!$G$10,CalculationsAndCharts!$A119+$A$11,0,1,1) -> 1910500 | D119: =OFFSET('InputData-DBC'!$J$10,CalculationsAndCharts!$A119+$A$11,0,1,1) -> 27.46 | E119: =OFFSET('InputData-DBC'!$K$10,CalculationsAndCharts!$A119+$A$11,0,1,1) -> 27.58 | F119: =OFFSET('InputData-DBC'!$L$10,CalculationsAndCharts!$A119+$A$11,0,1,1) -> 27.39 | G119: =OFFSET('InputData-DBC'!$M$10,CalculationsAndCharts!$A119+$A$11,0,1,1) -> 27.48 | H119: 27.3384 | I119: 0 | J119: 0 | K119: 1633.774734 | L119: 0 | M119: 0 | N119: 1400.16179 | O119: 45271.89788 | P119: 0 | Q119: 0 | R119: 46263.61598 | S119: =OFFSET('InputData-DDM'!$B$10,CalculationsAndCharts!$A119+$A$11,0,1,1) -> 2012-01-17 | T119: =OFFSET('InputData-DDM'!$G$10,CalculationsAndCharts!$A119+$A$11,0,1,1) -> 762000 | U119: =OFFSET('InputData-DDM'!$J$10,CalculationsAndCharts!$A119+$A$11,0,1,1) -> 62.96 | V119: =OFFSET('InputData-DDM'!$K$10,CalculationsAndCharts!$A119+$A$11,0,1,1) -> 63.46 | W119: =OFFSET('InputData-DDM'!$L$10,CalculationsAndCharts!$A119+$A$11,0,1,1) -> 62.35 | X119: =OFFSET('InputData-DDM'!$M$10,CalculationsAndCharts!$A119+$A$11,0,1,1) -> 62.5 | Y119: 58.257 | Z119: 0 | AA119: 0 | AB119: 753.1045058 | AC119: 0 | AD119: 0 | AE119: 1236.566543 | AF119: 39982.31821 | AG119: 0 | AH119: 0 | AI119: 48652.02623 | AJ119: 94915.64221
A120: 88 | B120: =OFFSET('InputData-DBC'!$B$10,CalculationsAndCharts!$A120+$A$11,0,1,1) -> 2012-01-13 | C120: =OFFSET('InputData-DBC'!$G$10,CalculationsAndCharts!$A120+$A$11,0,1,1) -> 3156800 | D120: =OFFSET('InputData-DBC'!$J$10,CalculationsAndCharts!$A120+$A$11,0,1,1) -> 27.25 | E120: =OFFSET('InputData-DBC'!$K$10,CalculationsAndCharts!$A120+$A$11,0,1,1) -> 27.35 | F120: =OFFSET('InputData-DBC'!$L$10,CalculationsAndCharts!$A120+$A$11,0,1,1) -> 27.12 | G120: =OFFSET('InputData-DBC'!$M$10,CalculationsAndCharts!$A120+$A$11,0,1,1) -> 27.29 | H120: 27.34 | I120: 0 | J120: 0 | K120: 1633.774734 | L120: 0 | M120: 0 | N120: 1400.16179 | O120: 45271.89788 | P120: 0 | Q120: 0 | R120: 45920.52329 | S120: =OFFSET('InputData-DDM'!$B$10,CalculationsAndCharts!$A120+$A$11,0,1,1) -> 2012-01-13 | T120: =OFFSET('InputData-DDM'!$G$10,CalculationsAndCharts!$A120+$A$11,0,1,1) -> 1336800 | U120: =OFFSET('InputData-DDM'!$J$10,CalculationsAndCharts!$A120+$A$11,0,1,1) -> 61.56 | V120: =OFFSET('InputData-DDM'!$K$10,CalculationsAndCharts!$A120+$A$11,0,1,1) -> 62 | W120: =OFFSET('InputData-DDM'!$L$10,CalculationsAndCharts!$A120+$A$11,0,1,1) -> 60.82 | X120: =OFFSET('InputData-DDM'!$M$10,CalculationsAndCharts!$A120+$A$11,0,1,1) -> 62 | Y120: 58.1304 | Z120: 0 | AA120: 0 | AB120: 753.1045058 | AC120: 0 | AD120: 0 | AE120: 1236.566543 | AF120: 39982.31821 | AG120: 0 | AH120: 0 | AI120: 47597.67992 | AJ120: 93518.20321
A121: 89 | B121: =OFFSET('InputData-DBC'!$B$10,CalculationsAndCharts!$A121+$A$11,0,1,1) -> 2012-01-12 | C121: =OFFSET('InputData-DBC'!$G$10,CalculationsAndCharts!$A121+$A$11,0,1,1) -> 1740600 | D121: =OFFSET('InputData-DBC'!$J$10,CalculationsAndCharts!$A121+$A$11,0,1,1) -> 27.66 | E121: =OFFSET('InputData-DBC'!$K$10,CalculationsAndCharts!$A121+$A$11,0,1,1) -> 27.92 | F121: =OFFSET('InputData-DBC'!$L$10,CalculationsAndCharts!$A121+$A$11,0,1,1) -> 26.69 | G121: =OFFSET('InputData-DBC'!$M$10,CalculationsAndCharts!$A121+$A$11,0,1,1) -> 27.35 | H121: 27.342 | I121: 0 | J121: 0 | K121: 1633.774734 | L121: 0 | M121: 0 | N121: 1400.16179 | O121: 45271.89788 | P121: 0 | Q121: 0 | R121: 46590.37093 | S121: =OFFSET('InputData-DDM'!$B$10,CalculationsAndCharts!$A121+$A$11,0,1,1) -> 2012-01-12 | T121: =OFFSET('InputData-DDM'!$G$10,CalculationsAndCharts!$A121+$A$11,0,1,1) -> 717200 | U121: =OFFSET('InputData-DDM'!$J$10,CalculationsAndCharts!$A121+$A$11,0,1,1) -> 62.4 | V121: =OFFSET('InputData-DDM'!$K$10,CalculationsAndCharts!$A121+$A$11,0,1,1) -> 62.57 | W121: =OFFSET('InputData-DDM'!$L$10,CalculationsAndCharts!$A121+$A$11,0,1,1) -> 61.57 | X121: =OFFSET('InputData-DDM'!$M$10,CalculationsAndCharts!$A121+$A$11,0,1,1) -> 62.43 | Y121: 57.9812 | Z121: 0 | AA121: 0 | AB121: 753.1045058 | AC121: 0 | AD121: 0 | AE121: 1236.566543 | AF121: 39982.31821 | AG121: 0 | AH121: 0 | AI121: 48230.2877 | AJ121: 94820.65863
A122: 90 | B122: =OFFSET('InputData-DBC'!$B$10,CalculationsAndCharts!$A122+$A$11,0,1,1) -> 2012-01-11 | C122: =OFFSET('InputData-DBC'!$G$10,CalculationsAndCharts!$A122+$A$11,0,1,1) -> 2079500 | D122: =OFFSET('InputData-DBC'!$J$10,CalculationsAndCharts!$A122+$A$11,0,1,1) -> 27.77 | E122: =OFFSET('InputData-DBC'!$K$10,CalculationsAndCharts!$A122+$A$11,0,1,1) -> 27.8 | F122: =OFFSET('InputData-DBC'!$L$10,CalculationsAndCharts!$A122+$A$11,0,1,1) -> 27.56 | G122: =OFFSET('InputData-DBC'!$M$10,CalculationsAndCharts!$A122+$A$11,0,1,1) -> 27.74 | H122: 27.3494 | I122: 0 | J122: 0 | K122: 1633.774734 | L122: 0 | M122: 0 | N122: 1400.16179 | O122: 45271.89788 | P122: 0 | Q122: 0 | R122: 46770.08615 | S122: =OFFSET('InputData-DDM'!$B$10,CalculationsAndCharts!$A122+$A$11,0,1,1) -> 2012-01-11 | T122: =OFFSET('InputData-DDM'!$G$10,CalculationsAndCharts!$A122+$A$11,0,1,1) -> 765900 | U122: =OFFSET('InputData-DDM'!$J$10,CalculationsAndCharts!$A122+$A$11,0,1,1) -> 61.95 | V122: =OFFSET('InputData-DDM'!$K$10,CalculationsAndCharts!$A122+$A$11,0,1,1) -> 62.35 | W122: =OFFSET('InputData-DDM'!$L$10,CalculationsAndCharts!$A122+$A$11,0,1,1) -> 61.71 | X122: =OFFSET('InputData-DDM'!$M$10,CalculationsAndCharts!$A122+$A$11,0,1,1) -> 62.23 | Y122: 57.88 | Z122: 0 | AA122: 0 | AB122: 753.1045058 | AC122: 0 | AD122: 0 | AE122: 1236.566543 | AF122: 39982.31821 | AG122: 0 | AH122: 0 | AI122: 47891.39068 | AJ122: 94661.47683
A123: 91 | B123: =OFFSET('InputData-DBC'!$B$10,CalculationsAndCharts!$A123+$A$11,0,1,1) -> 2012-01-10 | C123: =OFFSET('InputData-DBC'!$G$10,CalculationsAndCharts!$A123+$A$11,0,1,1) -> 2120000 | D123: =OFFSET('InputData-DBC'!$J$10,CalculationsAndCharts!$A123+$A$11,0,1,1) -> 27.88 | E123: =OFFSET('InputData-DBC'!$K$10,CalculationsAndCharts!$A123+$A$11,0,1,1) -> 27.92 | F123: =OFFSET('InputData-DBC'!$L$10,CalculationsAndCharts!$A123+$A$11,0,1,1) -> 27.78 | G123: =OFFSET('InputData-DBC'!$M$10,CalculationsAndCharts!$A123+$A$11,0,1,1) -> 27.82 | H123: 27.3576 | I123: 0 | J123: 0 | K123: 1633.774734 | L123: 0 | M123: 0 | N123: 1400.16179 | O123: 45271.89788 | P123: 0 | Q123: 0 | R123: 46949.80137 | S123: =OFFSET('InputData-DDM'!$B$10,CalculationsAndCharts!$A123+$A$11,0,1,1) -> 2012-01-10 | T123: =OFFSET('InputData-DDM'!$G$10,CalculationsAndCharts!$A123+$A$11,0,1,1) -> 725500 | U123: =OFFSET('InputData-DDM'!$J$10,CalculationsAndCharts!$A123+$A$11,0,1,1) -> 62.81 | V123: =OFFSET('InputData-DDM'!$K$10,CalculationsAndCharts!$A123+$A$11,0,1,1) -> 62.91 | W123: =OFFSET('InputData-DDM'!$L$10,CalculationsAndCharts!$A123+$A$11,0,1,1) -> 62.18 | X123: =OFFSET('InputData-DDM'!$M$10,CalculationsAndCharts!$A123+$A$11,0,1,1) -> 62.29 | Y123: 57.8378 | Z123: 0 | AA123: 0 | AB123: 753.1045058 | AC123: 0 | AD123: 0 | AE123: 1236.566543 | AF123: 39982.31821 | AG123: 0 | AH123: 0 | AI123: 48539.06055 | AJ123: 95488.86192
A124: 92 | B124: =OFFSET('InputData-DBC'!$B$10,CalculationsAndCharts!$A124+$A$11,0,1,1) -> 2012-01-09 | C124: =OFFSET('InputData-DBC'!$G$10,CalculationsAndCharts!$A124+$A$11,0,1,1) -> 2432600 | D124: =OFFSET('InputData-DBC'!$J$10,CalculationsAndCharts!$A124+$A$11,0,1,1) -> 27.62 | E124: =OFFSET('InputData-DBC'!$K$10,CalculationsAndCharts!$A124+$A$11,0,1,1) -> 27.71 | F124: =OFFSET('InputData-DBC'!$L$10,CalculationsAndCharts!$A124+$A$11,0,1,1) -> 27.47 | G124: =OFFSET('InputData-DBC'!$M$10,CalculationsAndCharts!$A124+$A$11,0,1,1) -> 27.62 | H124: 27.3666 | I124: 0 | J124: 0 | K124: 1633.774734 | L124: 0 | M124: 0 | N124: 1400.16179 | O124: 45271.89788 | P124: 0 | Q124: 0 | R124: 46525.01994 | S124: =OFFSET('InputData-DDM'!$B$10,CalculationsAndCharts!$A124+$A$11,0,1,1) -> 2012-01-09 | T124: =OFFSET('InputData-DDM'!$G$10,CalculationsAndCharts!$A124+$A$11,0,1,1) -> 737200 | U124: =OFFSET('InputData-DDM'!$J$10,CalculationsAndCharts!$A124+$A$11,0,1,1) -> 61.65 | V124: =OFFSET('InputData-DDM'!$K$10,CalculationsAndCharts!$A124+$A$11,0,1,1) -> 61.82 | W124: =OFFSET('InputData-DDM'!$L$10,CalculationsAndCharts!$A124+$A$11,0,1,1) -> 61.07 | X124: =OFFSET('InputData-DDM'!$M$10,CalculationsAndCharts!$A124+$A$11,0,1,1) -> 61.59 | Y124: 57.7898 | Z124: 0 | AA124: 0 | AB124: 753.1045058 | AC124: 0 | AD124: 0 | AE124: 1236.566543 | AF124: 39982.31821 | AG124: 0 | AH124: 0 | AI124: 47665.45932 | AJ124: 94190.47926
A125: 93 | B125: =OFFSET('InputData-DBC'!$B$10,CalculationsAndCharts!$A125+$A$11,0,1,1) -> 2012-01-06 | C125: =OFFSET('InputData-DBC'!$G$10,CalculationsAndCharts!$A125+$A$11,0,1,1) -> 17707200 | D125: =OFFSET('InputData-DBC'!$J$10,CalculationsAndCharts!$A125+$A$11,0,1,1) -> 27.59 | E125: =OFFSET('InputData-DBC'!$K$10,CalculationsAndCharts!$A125+$A$11,0,1,1) -> 27.69 | F125: =OFFSET('InputData-DBC'!$L$10,CalculationsAndCharts!$A125+$A$11,0,1,1) -> 27.38 | G125: =OFFSET('InputData-DBC'!$M$10,CalculationsAndCharts!$A125+$A$11,0,1,1) -> 27.59 | H125: 27.365 | I125: 0 | J125: 0 | K125: 1633.774734 | L125: 0 | M125: 0 | N125: 1400.16179 | O125: 45271.89788 | P125: 0 | Q125: 0 | R125: 46476.0067 | S125: =OFFSET('InputData-DDM'!$B$10,CalculationsAndCharts!$A125+$A$11,0,1,1) -> 2012-01-06 | T125: =OFFSET('InputData-DDM'!$G$10,CalculationsAndCharts!$A125+$A$11,0,1,1) -> 1007200 | U125: =OFFSET('InputData-DDM'!$J$10,CalculationsAndCharts!$A125+$A$11,0,1,1) -> 62 | V125: =OFFSET('InputData-DDM'!$K$10,CalculationsAndCharts!$A125+$A$11,0,1,1) -> 62 | W125: =OFFSET('InputData-DDM'!$L$10,CalculationsAndCharts!$A125+$A$11,0,1,1) -> 61.1 | X125: =OFFSET('InputData-DDM'!$M$10,CalculationsAndCharts!$A125+$A$11,0,1,1) -> 61.42 | Y125: 57.6902 | Z125: 0 | AA125: 0 | AB125: 753.1045058 | AC125: 0 | AD125: 0 | AE125: 1236.566543 | AF125: 39982.31821 | AG125: 0 | AH125: 0 | AI125: 47929.0459 | AJ125: 94405.0526
A126: 94 | B126: =OFFSET('InputData-DBC'!$B$10,CalculationsAndCharts!$A126+$A$11,0,1,1) -> 2012-01-05 | C126: =OFFSET('InputData-DBC'!$G$10,CalculationsAndCharts!$A126+$A$11,0,1,1) -> 1212500 | D126: =OFFSET('InputData-DBC'!$J$10,CalculationsAndCharts!$A126+$A$11,0,1,1) -> 27.71 | E126: =OFFSET('InputData-DBC'!$K$10,CalculationsAndCharts!$A126+$A$11,0,1,1) -> 27.72 | F126: =OFFSET('InputData-DBC'!$L$10,CalculationsAndCharts!$A126+$A$11,0,1,1) -> 27.43 | G126: =OFFSET('InputData-DBC'!$M$10,CalculationsAndCharts!$A126+$A$11,0,1,1) -> 27.47 | H126: 27.3672 | I126: 0 | J126: 0 | K126: 1633.774734 | L126: 0 | M126: 0 | N126: 1400.16179 | O126: 45271.89788 | P126: 0 | Q126: 0 | R126: 46672.05967 | S126: =OFFSET('InputData-DDM'!$B$10,CalculationsAndCharts!$A126+$A$11,0,1,1) -> 2012-01-05 | T126: =OFFSET('InputData-DDM'!$G$10,CalculationsAndCharts!$A126+$A$11,0,1,1) -> 1330700 | U126: =OFFSET('InputData-DDM'!$J$10,CalculationsAndCharts!$A126+$A$11,0,1,1) -> 61.37 | V126: =OFFSET('InputData-DDM'!$K$10,CalculationsAndCharts!$A126+$A$11,0,1,1) -> 62.04 | W126: =OFFSET('InputData-DDM'!$L$10,CalculationsAndCharts!$A126+$A$11,0,1,1) -> 60.53 | X126: =OFFSET('InputData-DDM'!$M$10,CalculationsAndCharts!$A126+$A$11,0,1,1) -> 61.9 | Y126: 57.5636 | Z126: 0 | AA126: 0 | AB126: 753.1045058 | AC126: 0 | AD126: 0 | AE126: 1236.566543 | AF126: 39982.31821 | AG126: 0 | AH126: 0 | AI126: 47454.59006 | AJ126: 94126.64973
A127: 95 | B127: =OFFSET('InputData-DBC'!$B$10,CalculationsAndCharts!$A127+$A$11,0,1,1) -> 2012-01-04 | C127: =OFFSET('InputData-DBC'!$G$10,CalculationsAndCharts!$A127+$A$11,0,1,1) -> 2439000 | D127: =OFFSET('InputData-DBC'!$J$10,CalculationsAndCharts!$A127+$A$11,0,1,1) -> 27.61 | E127: =OFFSET('InputData-DBC'!$K$10,CalculationsAndCharts!$A127+$A$11,0,1,1) -> 27.9 | F127: =OFFSET('InputData-DBC'!$L$10,CalculationsAndCharts!$A127+$A$11,0,1,1) -> 27.61 | G127: =OFFSET('InputData-DBC'!$M$10,CalculationsAndCharts!$A127+$A$11,0,1,1) -> 27.85 | H127: 27.37 | I127: 0 | J127: 0 | K127: 1633.774734 | L127: 0 | M127: 0 | N127: 1400.16179 | O127: 45271.89788 | P127: 0 | Q127: 0 | R127: 46508.68219 | S127: =OFFSET('InputData-DDM'!$B$10,CalculationsAndCharts!$A127+$A$11,0,1,1) -> 2012-01-04 | T127: =OFFSET('InputData-DDM'!$G$10,CalculationsAndCharts!$A127+$A$11,0,1,1) -> 866200 | U127: =OFFSET('InputData-DDM'!$J$10,CalculationsAndCharts!$A127+$A$11,0,1,1) -> 61.31 | V127: =OFFSET('InputData-DDM'!$K$10,CalculationsAndCharts!$A127+$A$11,0,1,1) -> 61.99 | W127: =OFFSET('InputData-DDM'!$L$10,CalculationsAndCharts!$A127+$A$11,0,1,1) -> 61.06 | X127: =OFFSET('InputData-DDM'!$M$10,CalculationsAndCharts!$A127+$A$11,0,1,1) -> 61.9 | Y127: 57.4664 | Z127: 0 | AA127: 0 | AB127: 753.1045058 | AC127: 0 | AD127: 0 | AE127: 1236.566543 | AF127: 39982.31821 | AG127: 0 | AH127: 0 | AI127: 47409.40379 | AJ127: 93918.08599
A128: 96 | B128: =OFFSET('InputData-DBC'!$B$10,CalculationsAndCharts!$A128+$A$11,0,1,1) -> 2012-01-03 | C128: =OFFSET('InputData-DBC'!$G$10,CalculationsAndCharts!$A128+$A$11,0,1,1) -> 5940500 | D128: =OFFSET('InputData-DBC'!$J$10,CalculationsAndCharts!$A128+$A$11,0,1,1) -> 27.35 | E128: =OFFSET('InputData-DBC'!$K$10,CalculationsAndCharts!$A128+$A$11,0,1,1) -> 27.68 | F128: =OFFSET('InputData-DBC'!$L$10,CalculationsAndCharts!$A128+$A$11,0,1,1) -> 27.35 | G128: =OFFSET('InputData-DBC'!$M$10,CalculationsAndCharts!$A128+$A$11,0,1,1) -> 27.64 | H128: 27.3566 | I128: 0 | J128: 0 | K128: 1633.774734 | L128: 0 | M128: 0 | N128: 1400.16179 | O128: 45271.89788 | P128: 0 | Q128: 0 | R128: 46083.90076 | S128: =OFFSET('InputData-DDM'!$B$10,CalculationsAndCharts!$A128+$A$11,0,1,1) -> 2012-01-03 | T128: =OFFSET('InputData-DDM'!$G$10,CalculationsAndCharts!$A128+$A$11,0,1,1) -> 858900 | U128: =OFFSET('InputData-DDM'!$J$10,CalculationsAndCharts!$A128+$A$11,0,1,1) -> 61.88 | V128: =OFFSET('InputData-DDM'!$K$10,CalculationsAndCharts!$A128+$A$11,0,1,1) -> 62.44 | W128: =OFFSET('InputData-DDM'!$L$10,CalculationsAndCharts!$A128+$A$11,0,1,1) -> 61.55 | X128: =OFFSET('InputData-DDM'!$M$10,CalculationsAndCharts!$A128+$A$11,0,1,1) -> 61.55 | Y128: 57.3488 | Z128: 0 | AA128: 0 | AB128: 753.1045058 | AC128: 0 | AD128: 0 | AE128: 1236.566543 | AF128: 39982.31821 | AG128: 0 | AH128: 0 | AI128: 47838.67336 | AJ128: 93922.57412
A129: 97 | B129: =OFFSET('InputData-DBC'!$B$10,CalculationsAndCharts!$A129+$A$11,0,1,1) -> 2011-12-30 | C129: =OFFSET('InputData-DBC'!$G$10,CalculationsAndCharts!$A129+$A$11,0,1,1) -> 2047500 | D129: =OFFSET('InputData-DBC'!$J$10,CalculationsAndCharts!$A129+$A$11,0,1,1) -> 26.77 | E129: =OFFSET('InputData-DBC'!$K$10,CalculationsAndCharts!$A129+$A$11,0,1,1) -> 26.96 | F129: =OFFSET('InputData-DBC'!$L$10,CalculationsAndCharts!$A129+$A$11,0,1,1) -> 26.74 | G129: =OFFSET('InputData-DBC'!$M$10,CalculationsAndCharts!$A129+$A$11,0,1,1) -> 26.84 | H129: 27.3446 | I129: 0 | J129: 0 | K129: 1633.774734 | L129: 0 | M129: 0 | N129: 1400.16179 | O129: 45271.89788 | P129: 0 | Q129: 0 | R129: 45136.31142 | S129: =OFFSET('InputData-DDM'!$B$10,CalculationsAndCharts!$A129+$A$11,0,1,1) -> 2011-12-30 | T129: =OFFSET('InputData-DDM'!$G$10,CalculationsAndCharts!$A129+$A$11,0,1,1) -> 483500 | U129: =OFFSET('InputData-DDM'!$J$10,CalculationsAndCharts!$A129+$A$11,0,1,1) -> 60.3 | V129: =OFFSET('InputData-DDM'!$K$10,CalculationsAndCharts!$A129+$A$11,0,1,1) -> 60.6 | W129: =OFFSET('InputData-DDM'!$L$10,CalculationsAndCharts!$A129+$A$11,0,1,1) -> 59.81 | X129: =OFFSET('InputData-DDM'!$M$10,CalculationsAndCharts!$A129+$A$11,0,1,1) -> 59.81 | Y129: 57.1888 | Z129: 0 | AA129: 0 | AB129: 753.1045058 | AC129: 0 | AD129: 0 | AE129: 1236.566543 | AF129: 39982.31821 | AG129: 0 | AH129: 0 | AI129: 46648.76824 | AJ129: 91785.07966
A130: 98 | B130: =OFFSET('InputData-DBC'!$B$10,CalculationsAndCharts!$A130+$A$11,0,1,1) -> 2011-12-29 | C130: =OFFSET('InputData-DBC'!$G$10,CalculationsAndCharts!$A130+$A$11,0,1,1) -> 1941300 | D130: =OFFSET('InputData-DBC'!$J$10,CalculationsAndCharts!$A130+$A$11,0,1,1) -> 26.81 | E130: =OFFSET('InputData-DBC'!$K$10,CalculationsAndCharts!$A130+$A$11,0,1,1) -> 26.9 | F130: =OFFSET('InputData-DBC'!$L$10,CalculationsAndCharts!$A130+$A$11,0,1,1) -> 26.64 | G130: =OFFSET('InputData-DBC'!$M$10,CalculationsAndCharts!$A130+$A$11,0,1,1) -> 26.88 | H130: 27.3494 | I130: 0 | J130: 0 | K130: 1633.774734 | L130: 0 | M130: 0 | N130: 1400.16179 | O130: 45271.89788 | P130: 0 | Q130: 0 | R130: 45201.66241 | S130: =OFFSET('InputData-DDM'!$B$10,CalculationsAndCharts!$A130+$A$11,0,1,1) -> 2011-12-29 | T130: =OFFSET('InputData-DDM'!$G$10,CalculationsAndCharts!$A130+$A$11,0,1,1) -> 861900 | U130: =OFFSET('InputData-DDM'!$J$10,CalculationsAndCharts!$A130+$A$11,0,1,1) -> 59.54 | V130: =OFFSET('InputData-DDM'!$K$10,CalculationsAndCharts!$A130+$A$11,0,1,1) -> 60.63 | W130: =OFFSET('InputData-DDM'!$L$10,CalculationsAndCharts!$A130+$A$11,0,1,1) -> 59.45 | X130: =OFFSET('InputData-DDM'!$M$10,CalculationsAndCharts!$A130+$A$11,0,1,1) -> 60.47 | Y130: 57.0576 | Z130: 0 | AA130: 0 | AB130: 753.1045058 | AC130: 0 | AD130: 0 | AE130: 1236.566543 | AF130: 39982.31821 | AG130: 0 | AH130: 0 | AI130: 46076.40882 | AJ130: 91278.07122
A131: 99 | B131: =OFFSET('InputData-DBC'!$B$10,CalculationsAndCharts!$A131+$A$11,0,1,1) -> 2011-12-28 | C131: =OFFSET('InputData-DBC'!$G$10,CalculationsAndCharts!$A131+$A$11,0,1,1) -> 1930200 | D131: =OFFSET('InputData-DBC'!$J$10,CalculationsAndCharts!$A131+$A$11,0,1,1) -> 27.07 | E131: =OFFSET('InputData-DBC'!$K$10,CalculationsAndCharts!$A131+$A$11,0,1,1) -> 27.07 | F131: =OFFSET('InputData-DBC'!$L$10,CalculationsAndCharts!$A131+$A$11,0,1,1) -> 26.71 | G131: =OFFSET('InputData-DBC'!$M$10,CalculationsAndCharts!$A131+$A$11,0,1,1) -> 26.8 | H131: 27.3642 | I131: 0 | J131: 0 | K131: 1633.774734 | L131: 0 | M131: 0 | N131: 1400.16179 | O131: 45271.89788 | P131: 0 | Q131: 0 | R131: 45626.44384 | S131: =OFFSET('InputData-DDM'!$B$10,CalculationsAndCharts!$A131+$A$11,0,1,1) -> 2011-12-28 | T131: =OFFSET('InputData-DDM'!$G$10,CalculationsAndCharts!$A131+$A$11,0,1,1) -> 629300 | U131: =OFFSET('InputData-DDM'!$J$10,CalculationsAndCharts!$A131+$A$11,0,1,1) -> 60.72 | V131: =OFFSET('InputData-DDM'!$K$10,CalculationsAndCharts!$A131+$A$11,0,1,1) -> 60.72 | W131: =OFFSET('InputData-DDM'!$L$10,CalculationsAndCharts!$A131+$A$11,0,1,1) -> 59.13 | X131: =OFFSET('InputData-DDM'!$M$10,CalculationsAndCharts!$A131+$A$11,0,1,1) -> 59.27 | Y131: 56.9242 | Z131: 0 | AA131: 0 | AB131: 753.1045058 | AC131: 0 | AD131: 0 | AE131: 1236.566543 | AF131: 39982.31821 | AG131: 0 | AH131: 0 | AI131: 46965.07213 | AJ131: 92591.51597
A132: 100 | B132: =OFFSET('InputData-DBC'!$B$10,CalculationsAndCharts!$A132+$A$11,0,1,1) -> 2011-12-27 | C132: =OFFSET('InputData-DBC'!$G$10,CalculationsAndCharts!$A132+$A$11,0,1,1) -> 2493600 | D132: =OFFSET('InputData-DBC'!$J$10,CalculationsAndCharts!$A132+$A$11,0,1,1) -> 26.94 | E132: =OFFSET('InputData-DBC'!$K$10,CalculationsAndCharts!$A132+$A$11,0,1,1) -> 27.19 | F132: =OFFSET('InputData-DBC'!$L$10,CalculationsAndCharts!$A132+$A$11,0,1,1) -> 26.9 | G132: =OFFSET('InputData-DBC'!$M$10,CalculationsAndCharts!$A132+$A$11,0,1,1) -> 27.12 | H132: 27.3776 | I132: 0 | J132: 0 | K132: 1633.774734 | L132: 0 | M132: 0 | N132: 1400.16179 | O132: 45271.89788 | P132: 0 | Q132: 0 | R132: 45414.05312 | S132: =OFFSET('InputData-DDM'!$B$10,CalculationsAndCharts!$A132+$A$11,0,1,1) -> 2011-12-27 | T132: =OFFSET('InputData-DDM'!$G$10,CalculationsAndCharts!$A132+$A$11,0,1,1) -> 488200 | U132: =OFFSET('InputData-DDM'!$J$10,CalculationsAndCharts!$A132+$A$11,0,1,1) -> 60.52 | V132: =OFFSET('InputData-DDM'!$K$10,CalculationsAndCharts!$A132+$A$11,0,1,1) -> 60.99 | W132: =OFFSET('InputData-DDM'!$L$10,CalculationsAndCharts!$A132+$A$11,0,1,1) -> 60.38 | X132: =OFFSET('InputData-DDM'!$M$10,CalculationsAndCharts!$A132+$A$11,0,1,1) -> 60.67 | Y132: 56.7838 | Z132: 0 | AA132: 0 | AB132: 753.1045058 | AC132: 0 | AD132: 0 | AE132: 1236.566543 | AF132: 39982.31821 | AG132: 0 | AH132: 0 | AI132: 46814.45123 | AJ132: 92228.50435
A133: 101 | B133: =OFFSET('InputData-DBC'!$B$10,CalculationsAndCharts!$A133+$A$11,0,1,1) -> 2011-12-23 | C133: =OFFSET('InputData-DBC'!$G$10,CalculationsAndCharts!$A133+$A$11,0,1,1) -> 2872700 | D133: =OFFSET('InputData-DBC'!$J$10,CalculationsAndCharts!$A133+$A$11,0,1,1) -> 26.92 | E133: =OFFSET('InputData-DBC'!$K$10,CalculationsAndCharts!$A133+$A$11,0,1,1) -> 27.02 | F133: =OFFSET('InputData-DBC'!$L$10,CalculationsAndCharts!$A133+$A$11,0,1,1) -> 26.89 | G133: =OFFSET('InputData-DBC'!$M$10,CalculationsAndCharts!$A133+$A$11,0,1,1) -> 27 | H133: 27.3926 | I133: 0 | J133: 0 | K133: 1633.774734 | L133: 0 | M133: 0 | N133: 1400.16179 | O133: 45271.89788 | P133: 0 | Q133: 0 | R133: 45381.37763 | S133: =OFFSET('InputData-DDM'!$B$10,CalculationsAndCharts!$A133+$A$11,0,1,1) -> 2011-12-23 | T133: =OFFSET('InputData-DDM'!$G$10,CalculationsAndCharts!$A133+$A$11,0,1,1) -> 553600 | U133: =OFFSET('InputData-DDM'!$J$10,CalculationsAndCharts!$A133+$A$11,0,1,1) -> 59.74 | V133: =OFFSET('InputData-DDM'!$K$10,CalculationsAndCharts!$A133+$A$11,0,1,1) -> 60.66 | W133: =OFFSET('InputData-DDM'!$L$10,CalculationsAndCharts!$A133+$A$11,0,1,1) -> 59.52 | X133: =OFFSET('InputData-DDM'!$M$10,CalculationsAndCharts!$A133+$A$11,0,1,1) -> 60.61 | Y133: 56.6616 | Z133: 0 | AA133: 0 | AB133: 753.1045058 | AC133: 0 | AD133: 0 | AE133: 1236.566543 | AF133: 39982.31821 | AG133: 0 | AH133: 0 | AI133: 46227.02972 | AJ133: 91608.40734
A134: 102 | B134: =OFFSET('InputData-DBC'!$B$10,CalculationsAndCharts!$A134+$A$11,0,1,1) -> 2011-12-22 | C134: =OFFSET('InputData-DBC'!$G$10,CalculationsAndCharts!$A134+$A$11,0,1,1) -> 4658300 | D134: =OFFSET('InputData-DBC'!$J$10,CalculationsAndCharts!$A134+$A$11,0,1,1) -> 26.89 | E134: =OFFSET('InputData-DBC'!$K$10,CalculationsAndCharts!$A134+$A$11,0,1,1) -> 27.01 | F134: =OFFSET('InputData-DBC'!$L$10,CalculationsAndCharts!$A134+$A$11,0,1,1) -> 26.83 | G134: =OFFSET('InputData-DBC'!$M$10,CalculationsAndCharts!$A134+$A$11,0,1,1) -> 26.87 | H134: 27.3976 | I134: 0 | J134: 0 | K134: 1633.774734 | L134: 0 | M134: 0 | N134: 1400.16179 | O134: 45271.89788 | P134: 0 | Q134: 0 | R134: 45332.36439 | S134: =OFFSET('InputData-DDM'!$B$10,CalculationsAndCharts!$A134+$A$11,0,1,1) -> 2011-12-22 | T134: =OFFSET('InputData-DDM'!$G$10,CalculationsAndCharts!$A134+$A$11,0,1,1) -> 762200 | U134: =OFFSET('InputData-DDM'!$J$10,CalculationsAndCharts!$A134+$A$11,0,1,1) -> 59.16 | V134: =OFFSET('InputData-DDM'!$K$10,CalculationsAndCharts!$A134+$A$11,0,1,1) -> 59.56 | W134: =OFFSET('InputData-DDM'!$L$10,CalculationsAndCharts!$A134+$A$11,0,1,1) -> 58.96 | X134: =OFFSET('InputData-DDM'!$M$10,CalculationsAndCharts!$A134+$A$11,0,1,1) -> 59.5 | Y134: 56.509 | Z134: 0 | AA134: 0 | AB134: 753.1045058 | AC134: 0 | AD134: 0 | AE134: 1236.566543 | AF134: 39982.31821 | AG134: 0 | AH134: 0 | AI134: 45790.2291 | AJ134: 91122.59349
A135: 103 | B135: =OFFSET('InputData-DBC'!$B$10,CalculationsAndCharts!$A135+$A$11,0,1,1) -> 2011-12-21 | C135: =OFFSET('InputData-DBC'!$G$10,CalculationsAndCharts!$A135+$A$11,0,1,1) -> 1802100 | D135: =OFFSET('InputData-DBC'!$J$10,CalculationsAndCharts!$A135+$A$11,0,1,1) -> 26.63 | E135: =OFFSET('InputData-DBC'!$K$10,CalculationsAndCharts!$A135+$A$11,0,1,1) -> 26.88 | F135: =OFFSET('InputData-DBC'!$L$10,CalculationsAndCharts!$A135+$A$11,0,1,1) -> 26.55 | G135: =OFFSET('InputData-DBC'!$M$10,CalculationsAndCharts!$A135+$A$11,0,1,1) -> 26.84 | H135: 27.404 | I135: 0 | J135: 0 | K135: 1633.774734 | L135: 0 | M135: 0 | N135: 1400.16179 | O135: 45271.89788 | P135: 0 | Q135: 0 | R135: 44907.58295 | S135: =OFFSET('InputData-DDM'!$B$10,CalculationsAndCharts!$A135+$A$11,0,1,1) -> 2011-12-21 | T135: =OFFSET('InputData-DDM'!$G$10,CalculationsAndCharts!$A135+$A$11,0,1,1) -> 577700 | U135: =OFFSET('InputData-DDM'!$J$10,CalculationsAndCharts!$A135+$A$11,0,1,1) -> 58.89 | V135: =OFFSET('InputData-DDM'!$K$10,CalculationsAndCharts!$A135+$A$11,0,1,1) -> 58.92 | W135: =OFFSET('InputData-DDM'!$L$10,CalculationsAndCharts!$A135+$A$11,0,1,1) -> 57.77 | X135: =OFFSET('InputData-DDM'!$M$10,CalculationsAndCharts!$A135+$A$11,0,1,1) -> 58.76 | Y135: 56.3862 | Z135: 0 | AA135: 0 | AB135: 753.1045058 | AC135: 0 | AD135: 0 | AE135: 1236.566543 | AF135: 39982.31821 | AG135: 0 | AH135: 0 | AI135: 45586.89089 | AJ135: 90494.47384
A136: 104 | B136: =OFFSET('InputData-DBC'!$B$10,CalculationsAndCharts!$A136+$A$11,0,1,1) -> 2011-12-20 | C136: =OFFSET('InputData-DBC'!$G$10,CalculationsAndCharts!$A136+$A$11,0,1,1) -> 1846600 | D136: =OFFSET('InputData-DBC'!$J$10,CalculationsAndCharts!$A136+$A$11,0,1,1) -> 26.51 | E136: =OFFSET('InputData-DBC'!$K$10,CalculationsAndCharts!$A136+$A$11,0,1,1) -> 26.71 | F136: =OFFSET('InputData-DBC'!$L$10,CalculationsAndCharts!$A136+$A$11,0,1,1) -> 26.49 | G136: =OFFSET('InputData-DBC'!$M$10,CalculationsAndCharts!$A136+$A$11,0,1,1) -> 26.65 | H136: 27.41 | I136: 0 | J136: 0 | K136: 1633.774734 | L136: 0 | M136: 0 | N136: 1400.16179 | O136: 45271.89788 | P136: 0 | Q136: 0 | R136: 44711.52999 | S136: =OFFSET('InputData-DDM'!$B$10,CalculationsAndCharts!$A136+$A$11,0,1,1) -> 2011-12-20 | T136: =OFFSET('InputData-DDM'!$G$10,CalculationsAndCharts!$A136+$A$11,0,1,1) -> 1155700 | U136: =OFFSET('InputData-DDM'!$J$10,CalculationsAndCharts!$A136+$A$11,0,1,1) -> 57.24 | V136: =OFFSET('InputData-DDM'!$K$10,CalculationsAndCharts!$A136+$A$11,0,1,1) -> 58.92 | W136: =OFFSET('InputData-DDM'!$L$10,CalculationsAndCharts!$A136+$A$11,0,1,1) -> 57.19 | X136: =OFFSET('InputData-DDM'!$M$10,CalculationsAndCharts!$A136+$A$11,0,1,1) -> 58.72 | Y136: 56.2594 | Z136: 0 | AA136: 0 | AB136: 753.1045058 | AC136: 0 | AD136: 0 | AE136: 1236.566543 | AF136: 39982.31821 | AG136: 0 | AH136: 0 | AI136: 44344.26845 | AJ136: 89055.79844
A137: 105 | B137: =OFFSET('InputData-DBC'!$B$10,CalculationsAndCharts!$A137+$A$11,0,1,1) -> 2011-12-19 | C137: =OFFSET('InputData-DBC'!$G$10,CalculationsAndCharts!$A137+$A$11,0,1,1) -> 1679800 | D137: =OFFSET('InputData-DBC'!$J$10,CalculationsAndCharts!$A137+$A$11,0,1,1) -> 26.17 | E137: =OFFSET('InputData-DBC'!$K$10,CalculationsAndCharts!$A137+$A$11,0,1,1) -> 26.2 | F137: =OFFSET('InputData-DBC'!$L$10,CalculationsAndCharts!$A137+$A$11,0,1,1) -> 25.96 | G137: =OFFSET('InputData-DBC'!$M$10,CalculationsAndCharts!$A137+$A$11,0,1,1) -> 26.05 | H137: 27.4158 | I137: 0 | J137: 0 | K137: 1633.774734 | L137: 0 | M137: 0 | N137: 1400.16179 | O137: 45271.89788 | P137: 0 | Q137: 0 | R137: 44156.04658 | S137: =OFFSET('InputData-DDM'!$B$10,CalculationsAndCharts!$A137+$A$11,0,1,1) -> 2011-12-19 | T137: =OFFSET('InputData-DDM'!$G$10,CalculationsAndCharts!$A137+$A$11,0,1,1) -> 1083900 | U137: =OFFSET('InputData-DDM'!$J$10,CalculationsAndCharts!$A137+$A$11,0,1,1) -> 56.83 | V137: =OFFSET('InputData-DDM'!$K$10,CalculationsAndCharts!$A137+$A$11,0,1,1) -> 57.13 | W137: =OFFSET('InputData-DDM'!$L$10,CalculationsAndCharts!$A137+$A$11,0,1,1) -> 55.28 | X137: =OFFSET('InputData-DDM'!$M$10,CalculationsAndCharts!$A137+$A$11,0,1,1) -> 55.59 | Y137: 56.1378 | Z137: 0 | AA137: 0 | AB137: 753.1045058 | AC137: 0 | AD137: 0 | AE137: 1236.566543 | AF137: 39982.31821 | AG137: 0 | AH137: 0 | AI137: 44035.49561 | AJ137: 88191.54218
A138: 106 | B138: =OFFSET('InputData-DBC'!$B$10,CalculationsAndCharts!$A138+$A$11,0,1,1) -> 2011-12-16 | C138: =OFFSET('InputData-DBC'!$G$10,CalculationsAndCharts!$A138+$A$11,0,1,1) -> 2818400 | D138: =OFFSET('InputData-DBC'!$J$10,CalculationsAndCharts!$A138+$A$11,0,1,1) -> 26.06 | E138: =OFFSET('InputData-DBC'!$K$10,CalculationsAndCharts!$A138+$A$11,0,1,1) -> 26.2 | F138: =OFFSET('InputData-DBC'!$L$10,CalculationsAndCharts!$A138+$A$11,0,1,1) -> 25.95 | G138: =OFFSET('InputData-DBC'!$M$10,CalculationsAndCharts!$A138+$A$11,0,1,1) -> 26.17 | H138: 27.4218 | I138: 0 | J138: 0 | K138: 1633.774734 | L138: 0 | M138: 0 | N138: 1400.16179 | O138: 45271.89788 | P138: 0 | Q138: 0 | R138: 43976.33136 | S138: =OFFSET('InputData-DDM'!$B$10,CalculationsAndCharts!$A138+$A$11,0,1,1) -> 2011-12-16 | T138: =OFFSET('InputData-DDM'!$G$10,CalculationsAndCharts!$A138+$A$11,0,1,1) -> 1056800 | U138: =OFFSET('InputData-DDM'!$J$10,CalculationsAndCharts!$A138+$A$11,0,1,1) -> 57.31 | V138: =OFFSET('InputData-DDM'!$K$10,CalculationsAndCharts!$A138+$A$11,0,1,1) -> 57.54 | W138: =OFFSET('InputData-DDM'!$L$10,CalculationsAndCharts!$A138+$A$11,0,1,1) -> 56.1 | X138: =OFFSET('InputData-DDM'!$M$10,CalculationsAndCharts!$A138+$A$11,0,1,1) -> 56.42 | Y138: 56.0202 | Z138: 0 | AA138: 0 | AB138: 753.1045058 | AC138: 0 | AD138: 0 | AE138: 1236.566543 | AF138: 39982.31821 | AG138: 0 | AH138: 0 | AI138: 44396.98577 | AJ138: 88373.31712
A139: 107 | B139: =OFFSET('InputData-DBC'!$B$10,CalculationsAndCharts!$A139+$A$11,0,1,1) -> 2011-12-15 | C139: =OFFSET('InputData-DBC'!$G$10,CalculationsAndCharts!$A139+$A$11,0,1,1) -> 1639500 | D139: =OFFSET('InputData-DBC'!$J$10,CalculationsAndCharts!$A139+$A$11,0,1,1) -> 26.29 | E139: =OFFSET('InputData-DBC'!$K$10,CalculationsAndCharts!$A139+$A$11,0,1,1) -> 26.33 | F139: =OFFSET('InputData-DBC'!$L$10,CalculationsAndCharts!$A139+$A$11,0,1,1) -> 25.92 | G139: =OFFSET('InputData-DBC'!$M$10,CalculationsAndCharts!$A139+$A$11,0,1,1) -> 25.96 | H139: 27.4278 | I139: 0 | J139: 0 | K139: 1633.774734 | L139: 0 | M139: 0 | N139: 1400.16179 | O139: 45271.89788 | P139: 0 | Q139: 0 | R139: 44352.09955 | S139: =OFFSET('InputData-DDM'!$B$10,CalculationsAndCharts!$A139+$A$11,0,1,1) -> 2011-12-15 | T139: =OFFSET('InputData-DDM'!$G$10,CalculationsAndCharts!$A139+$A$11,0,1,1) -> 1108400 | U139: =OFFSET('InputData-DDM'!$J$10,CalculationsAndCharts!$A139+$A$11,0,1,1) -> 57.46 | V139: =OFFSET('InputData-DDM'!$K$10,CalculationsAndCharts!$A139+$A$11,0,1,1) -> 57.52 | W139: =OFFSET('InputData-DDM'!$L$10,CalculationsAndCharts!$A139+$A$11,0,1,1) -> 56.42 | X139: =OFFSET('InputData-DDM'!$M$10,CalculationsAndCharts!$A139+$A$11,0,1,1) -> 56.58 | Y139: 55.8888 | Z139: 0 | AA139: 0 | AB139: 753.1045058 | AC139: 0 | AD139: 0 | AE139: 1236.566543 | AF139: 39982.31821 | AG139: 0 | AH139: 0 | AI139: 44509.95144 | AJ139: 88862.05099
A140: 108 | B140: =OFFSET('InputData-DBC'!$B$10,CalculationsAndCharts!$A140+$A$11,0,1,1) -> 2011-12-14 | C140: =OFFSET('InputData-DBC'!$G$10,CalculationsAndCharts!$A140+$A$11,0,1,1) -> 1851500 | D140: =OFFSET('InputData-DBC'!$J$10,CalculationsAndCharts!$A140+$A$11,0,1,1) -> 26.53 | E140: =OFFSET('InputData-DBC'!$K$10,CalculationsAndCharts!$A140+$A$11,0,1,1) -> 26.63 | F140: =OFFSET('InputData-DBC'!$L$10,CalculationsAndCharts!$A140+$A$11,0,1,1) -> 26.01 | G140: =OFFSET('InputData-DBC'!$M$10,CalculationsAndCharts!$A140+$A$11,0,1,1) -> 26.09 | H140: 27.4272 | I140: 0 | J140: 0 | K140: 1633.774734 | L140: 0 | M140: 0 | N140: 1400.16179 | O140: 45271.89788 | P140: 0 | Q140: 0 | R140: 44744.20548 | S140: =OFFSET('InputData-DDM'!$B$10,CalculationsAndCharts!$A140+$A$11,0,1,1) -> 2011-12-14 | T140: =OFFSET('InputData-DDM'!$G$10,CalculationsAndCharts!$A140+$A$11,0,1,1) -> 1206800 | U140: =OFFSET('InputData-DDM'!$J$10,CalculationsAndCharts!$A140+$A$11,0,1,1) -> 56.88 | V140: =OFFSET('InputData-DDM'!$K$10,CalculationsAndCharts!$A140+$A$11,0,1,1) -> 57.29 | W140: =OFFSET('InputData-DDM'!$L$10,CalculationsAndCharts!$A140+$A$11,0,1,1) -> 55.8 | X140: =OFFSET('InputData-DDM'!$M$10,CalculationsAndCharts!$A140+$A$11,0,1,1) -> 56.17 | Y140: 55.7214 | Z140: 0 | AA140: 0 | AB140: 753.1045058 | AC140: 0 | AD140: 0 | AE140: 1236.566543 | AF140: 39982.31821 | AG140: 0 | AH140: 0 | AI140: 44073.15083 | AJ140: 88817.35631
A141: 109 | B141: =OFFSET('InputData-DBC'!$B$10,CalculationsAndCharts!$A141+$A$11,0,1,1) -> 2011-12-13 | C141: =OFFSET('InputData-DBC'!$G$10,CalculationsAndCharts!$A141+$A$11,0,1,1) -> 1615100 | D141: =OFFSET('InputData-DBC'!$J$10,CalculationsAndCharts!$A141+$A$11,0,1,1) -> 26.95 | E141: =OFFSET('InputData-DBC'!$K$10,CalculationsAndCharts!$A141+$A$11,0,1,1) -> 27.37 | F141: =OFFSET('InputData-DBC'!$L$10,CalculationsAndCharts!$A141+$A$11,0,1,1) -> 26.91 | G141: =OFFSET('InputData-DBC'!$M$10,CalculationsAndCharts!$A141+$A$11,0,1,1) -> 27.05 | H141: 27.4168 | I141: 0 | J141: 0 | K141: 1633.774734 | L141: 0 | M141: 0 | N141: 1400.16179 | O141: 45271.89788 | P141: 0 | Q141: 0 | R141: 45430.39087 | S141: =OFFSET('InputData-DDM'!$B$10,CalculationsAndCharts!$A141+$A$11,0,1,1) -> 2011-12-13 | T141: =OFFSET('InputData-DDM'!$G$10,CalculationsAndCharts!$A141+$A$11,0,1,1) -> 1401300 | U141: =OFFSET('InputData-DDM'!$J$10,CalculationsAndCharts!$A141+$A$11,0,1,1) -> 58.69 | V141: =OFFSET('InputData-DDM'!$K$10,CalculationsAndCharts!$A141+$A$11,0,1,1) -> 59.24 | W141: =OFFSET('InputData-DDM'!$L$10,CalculationsAndCharts!$A141+$A$11,0,1,1) -> 56.87 | X141: =OFFSET('InputData-DDM'!$M$10,CalculationsAndCharts!$A141+$A$11,0,1,1) -> 57.37 | Y141: 55.5346 | Z141: 0 | AA141: 0 | AB141: 753.1045058 | AC141: 0 | AD141: 0 | AE141: 1236.566543 | AF141: 39982.31821 | AG141: 0 | AH141: 0 | AI141: 45436.26999 | AJ141: 90866.66086
A142: 110 | B142: =OFFSET('InputData-DBC'!$B$10,CalculationsAndCharts!$A142+$A$11,0,1,1) -> 2011-12-12 | C142: =OFFSET('InputData-DBC'!$G$10,CalculationsAndCharts!$A142+$A$11,0,1,1) -> 1277800 | D142: =OFFSET('InputData-DBC'!$J$10,CalculationsAndCharts!$A142+$A$11,0,1,1) -> 26.98 | E142: =OFFSET('InputData-DBC'!$K$10,CalculationsAndCharts!$A142+$A$11,0,1,1) -> 27 | F142: =OFFSET('InputData-DBC'!$L$10,CalculationsAndCharts!$A142+$A$11,0,1,1) -> 26.82 | G142: =OFFSET('InputData-DBC'!$M$10,CalculationsAndCharts!$A142+$A$11,0,1,1) -> 26.94 | H142: 27.3882 | I142: 0 | J142: 0 | K142: 1633.774734 | L142: 0 | M142: 0 | N142: 1400.16179 | O142: 45271.89788 | P142: 0 | Q142: 0 | R142: 45479.40411 | S142: =OFFSET('InputData-DDM'!$B$10,CalculationsAndCharts!$A142+$A$11,0,1,1) -> 2011-12-12 | T142: =OFFSET('InputData-DDM'!$G$10,CalculationsAndCharts!$A142+$A$11,0,1,1) -> 1383800 | U142: =OFFSET('InputData-DDM'!$J$10,CalculationsAndCharts!$A142+$A$11,0,1,1) -> 58.72 | V142: =OFFSET('InputData-DDM'!$K$10,CalculationsAndCharts!$A142+$A$11,0,1,1) -> 58.72 | W142: =OFFSET('InputData-DDM'!$L$10,CalculationsAndCharts!$A142+$A$11,0,1,1) -> 57.19 | X142: =OFFSET('InputData-DDM'!$M$10,CalculationsAndCharts!$A142+$A$11,0,1,1) -> 58.03 | Y142: 55.3018 | Z142: 0 | AA142: 0 | AB142: 753.1045058 | AC142: 0 | AD142: 0 | AE142: 1236.566543 | AF142: 39982.31821 | AG142: 0 | AH142: 0 | AI142: 45458.86312 | AJ142: 90938.26723
A143: 111 | B143: =OFFSET('InputData-DBC'!$B$10,CalculationsAndCharts!$A143+$A$11,0,1,1) -> 2011-12-09 | C143: =OFFSET('InputData-DBC'!$G$10,CalculationsAndCharts!$A143+$A$11,0,1,1) -> 1114300 | D143: =OFFSET('InputData-DBC'!$J$10,CalculationsAndCharts!$A143+$A$11,0,1,1) -> 27.15 | E143: =OFFSET('InputData-DBC'!$K$10,CalculationsAndCharts!$A143+$A$11,0,1,1) -> 27.35 | F143: =OFFSET('InputData-DBC'!$L$10,CalculationsAndCharts!$A143+$A$11,0,1,1) -> 27.14 | G143: =OFFSET('InputData-DBC'!$M$10,CalculationsAndCharts!$A143+$A$11,0,1,1) -> 27.29 | H143: 27.3644 | I143: 0 | J143: 0 | K143: 1633.774734 | L143: 0 | M143: 0 | N143: 1400.16179 | O143: 45271.89788 | P143: 0 | Q143: 0 | R143: 45757.14582 | S143: =OFFSET('InputData-DDM'!$B$10,CalculationsAndCharts!$A143+$A$11,0,1,1) -> 2011-12-09 | T143: =OFFSET('InputData-DDM'!$G$10,CalculationsAndCharts!$A143+$A$11,0,1,1) -> 1326100 | U143: =OFFSET('InputData-DDM'!$J$10,CalculationsAndCharts!$A143+$A$11,0,1,1) -> 58.23 | V143: =OFFSET('InputData-DDM'!$K$10,CalculationsAndCharts!$A143+$A$11,0,1,1) -> 59.85 | W143: =OFFSET('InputData-DDM'!$L$10,CalculationsAndCharts!$A143+$A$11,0,1,1) -> 58.21 | X143: =OFFSET('InputData-DDM'!$M$10,CalculationsAndCharts!$A143+$A$11,0,1,1) -> 59.52 | Y143: 55.1024 | Z143: 0 | AA143: 0 | AB143: 753.1045058 | AC143: 0 | AD143: 0 | AE143: 1236.566543 | AF143: 39982.31821 | AG143: 0 | AH143: 0 | AI143: 45089.84191 | AJ143: 90846.98773
A144: 112 | B144: =OFFSET('InputData-DBC'!$B$10,CalculationsAndCharts!$A144+$A$11,0,1,1) -> 2011-12-08 | C144: =OFFSET('InputData-DBC'!$G$10,CalculationsAndCharts!$A144+$A$11,0,1,1) -> 2211500 | D144: =OFFSET('InputData-DBC'!$J$10,CalculationsAndCharts!$A144+$A$11,0,1,1) -> 27.42 | E144: =OFFSET('InputData-DBC'!$K$10,CalculationsAndCharts!$A144+$A$11,0,1,1) -> 27.49 | F144: =OFFSET('InputData-DBC'!$L$10,CalculationsAndCharts!$A144+$A$11,0,1,1) -> 27.13 | G144: =OFFSET('InputData-DBC'!$M$10,CalculationsAndCharts!$A144+$A$11,0,1,1) -> 27.19 | H144: 27.352 | I144: 0 | J144: 0 | K144: 1633.774734 | L144: 0 | M144: 0 | N144: 1400.16179 | O144: 45271.89788 | P144: 0 | Q144: 0 | R144: 46198.26499 | S144: =OFFSET('InputData-DDM'!$B$10,CalculationsAndCharts!$A144+$A$11,0,1,1) -> 2011-12-08 | T144: =OFFSET('InputData-DDM'!$G$10,CalculationsAndCharts!$A144+$A$11,0,1,1) -> 1272700 | U144: =OFFSET('InputData-DDM'!$J$10,CalculationsAndCharts!$A144+$A$11,0,1,1) -> 59.33 | V144: =OFFSET('InputData-DDM'!$K$10,CalculationsAndCharts!$A144+$A$11,0,1,1) -> 59.61 | W144: =OFFSET('InputData-DDM'!$L$10,CalculationsAndCharts!$A144+$A$11,0,1,1) -> 57.47 | X144: =OFFSET('InputData-DDM'!$M$10,CalculationsAndCharts!$A144+$A$11,0,1,1) -> 57.76 | Y144: 54.9156 | Z144: 0 | AA144: 0 | AB144: 753.1045058 | AC144: 0 | AD144: 0 | AE144: 1236.566543 | AF144: 39982.31821 | AG144: 0 | AH144: 0 | AI144: 45918.25687 | AJ144: 92116.52186
A145: 113 | B145: =OFFSET('InputData-DBC'!$B$10,CalculationsAndCharts!$A145+$A$11,0,1,1) -> 2011-12-07 | C145: =OFFSET('InputData-DBC'!$G$10,CalculationsAndCharts!$A145+$A$11,0,1,1) -> 1494200 | D145: =OFFSET('InputData-DBC'!$J$10,CalculationsAndCharts!$A145+$A$11,0,1,1) -> 27.74 | E145: =OFFSET('InputData-DBC'!$K$10,CalculationsAndCharts!$A145+$A$11,0,1,1) -> 27.75 | F145: =OFFSET('InputData-DBC'!$L$10,CalculationsAndCharts!$A145+$A$11,0,1,1) -> 27.41 | G145: =OFFSET('InputData-DBC'!$M$10,CalculationsAndCharts!$A145+$A$11,0,1,1) -> 27.54 | H145: 27.3354 | I145: 0 | J145: 0 | K145: 1633.774734 | L145: 0 | M145: 0 | N145: 1400.16179 | O145: 45271.89788 | P145: 0 | Q145: 0 | R145: 46721.07291 | S145: =OFFSET('InputData-DDM'!$B$10,CalculationsAndCharts!$A145+$A$11,0,1,1) -> 2011-12-07 | T145: =OFFSET('InputData-DDM'!$G$10,CalculationsAndCharts!$A145+$A$11,0,1,1) -> 703400 | U145: =OFFSET('InputData-DDM'!$J$10,CalculationsAndCharts!$A145+$A$11,0,1,1) -> 58.89 | V145: =OFFSET('InputData-DDM'!$K$10,CalculationsAndCharts!$A145+$A$11,0,1,1) -> 60.35 | W145: =OFFSET('InputData-DDM'!$L$10,CalculationsAndCharts!$A145+$A$11,0,1,1) -> 58.4 | X145: =OFFSET('InputData-DDM'!$M$10,CalculationsAndCharts!$A145+$A$11,0,1,1) -> 59.78 | Y145: 54.7378 | Z145: 0 | AA145: 0 | AB145: 753.1045058 | AC145: 0 | AD145: 0 | AE145: 1236.566543 | AF145: 39982.31821 | AG145: 0 | AH145: 0 | AI145: 45586.89089 | AJ145: 92307.9638
A146: 114 | B146: =OFFSET('InputData-DBC'!$B$10,CalculationsAndCharts!$A146+$A$11,0,1,1) -> 2011-12-06 | C146: =OFFSET('InputData-DBC'!$G$10,CalculationsAndCharts!$A146+$A$11,0,1,1) -> 1075600 | D146: =OFFSET('InputData-DBC'!$J$10,CalculationsAndCharts!$A146+$A$11,0,1,1) -> 27.59 | E146: =OFFSET('InputData-DBC'!$K$10,CalculationsAndCharts!$A146+$A$11,0,1,1) -> 27.86 | F146: =OFFSET('InputData-DBC'!$L$10,CalculationsAndCharts!$A146+$A$11,0,1,1) -> 27.5 | G146: =OFFSET('InputData-DBC'!$M$10,CalculationsAndCharts!$A146+$A$11,0,1,1) -> 27.78 | H146: 27.3264 | I146: 0 | J146: 0 | K146: 1633.774734 | L146: 0 | M146: 0 | N146: 1400.16179 | O146: 45271.89788 | P146: 0 | Q146: 0 | R146: 46476.0067 | S146: =OFFSET('InputData-DDM'!$B$10,CalculationsAndCharts!$A146+$A$11,0,1,1) -> 2011-12-06 | T146: =OFFSET('InputData-DDM'!$G$10,CalculationsAndCharts!$A146+$A$11,0,1,1) -> 802100 | U146: =OFFSET('InputData-DDM'!$J$10,CalculationsAndCharts!$A146+$A$11,0,1,1) -> 58.8 | V146: =OFFSET('InputData-DDM'!$K$10,CalculationsAndCharts!$A146+$A$11,0,1,1) -> 59.89 | W146: =OFFSET('InputData-DDM'!$L$10,CalculationsAndCharts!$A146+$A$11,0,1,1) -> 58.53 | X146: =OFFSET('InputData-DDM'!$M$10,CalculationsAndCharts!$A146+$A$11,0,1,1) -> 59.17 | Y146: 54.5514 | Z146: 0 | AA146: 0 | AB146: 753.1045058 | AC146: 0 | AD146: 0 | AE146: 1236.566543 | AF146: 39982.31821 | AG146: 0 | AH146: 0 | AI146: 45519.11148 | AJ146: 91995.11818
A147: 115 | B147: =OFFSET('InputData-DBC'!$B$10,CalculationsAndCharts!$A147+$A$11,0,1,1) -> 2011-12-05 | C147: =OFFSET('InputData-DBC'!$G$10,CalculationsAndCharts!$A147+$A$11,0,1,1) -> 1503800 | D147: =OFFSET('InputData-DBC'!$J$10,CalculationsAndCharts!$A147+$A$11,0,1,1) -> 27.92 | E147: =OFFSET('InputData-DBC'!$K$10,CalculationsAndCharts!$A147+$A$11,0,1,1) -> 27.96 | F147: =OFFSET('InputData-DBC'!$L$10,CalculationsAndCharts!$A147+$A$11,0,1,1) -> 27.54 | G147: =OFFSET('InputData-DBC'!$M$10,CalculationsAndCharts!$A147+$A$11,0,1,1) -> 27.63 | H147: 27.3036 | I147: 0 | J147: 0 | K147: 1633.774734 | L147: 0 | M147: 0 | N147: 1400.16179 | O147: 45271.89788 | P147: 0 | Q147: 0 | R147: 47015.15236 | S147: =OFFSET('InputData-DDM'!$B$10,CalculationsAndCharts!$A147+$A$11,0,1,1) -> 2011-12-05 | T147: =OFFSET('InputData-DDM'!$G$10,CalculationsAndCharts!$A147+$A$11,0,1,1) -> 1374200 | U147: =OFFSET('InputData-DDM'!$J$10,CalculationsAndCharts!$A147+$A$11,0,1,1) -> 59.62 | V147: =OFFSET('InputData-DDM'!$K$10,CalculationsAndCharts!$A147+$A$11,0,1,1) -> 59.62 | W147: =OFFSET('InputData-DDM'!$L$10,CalculationsAndCharts!$A147+$A$11,0,1,1) -> 58.07 | X147: =OFFSET('InputData-DDM'!$M$10,CalculationsAndCharts!$A147+$A$11,0,1,1) -> 58.76 | Y147: 54.3514 | Z147: 0 | AA147: 0 | AB147: 753.1045058 | AC147: 0 | AD147: 0 | AE147: 1236.566543 | AF147: 39982.31821 | AG147: 0 | AH147: 0 | AI147: 46136.65718 | AJ147: 93151.80954
A148: 116 | B148: =OFFSET('InputData-DBC'!$B$10,CalculationsAndCharts!$A148+$A$11,0,1,1) -> 2011-12-02 | C148: =OFFSET('InputData-DBC'!$G$10,CalculationsAndCharts!$A148+$A$11,0,1,1) -> 1308600 | D148: =OFFSET('InputData-DBC'!$J$10,CalculationsAndCharts!$A148+$A$11,0,1,1) -> 27.73 | E148: =OFFSET('InputData-DBC'!$K$10,CalculationsAndCharts!$A148+$A$11,0,1,1) -> 27.82 | F148: =OFFSET('InputData-DBC'!$L$10,CalculationsAndCharts!$A148+$A$11,0,1,1) -> 27.6 | G148: =OFFSET('InputData-DBC'!$M$10,CalculationsAndCharts!$A148+$A$11,0,1,1) -> 27.78 | H148: 27.282 | I148: 0 | J148: 0 | K148: 1633.774734 | L148: 0 | M148: 0 | N148: 1400.16179 | O148: 45271.89788 | P148: 0 | Q148: 0 | R148: 46704.73516 | S148: =OFFSET('InputData-DDM'!$B$10,CalculationsAndCharts!$A148+$A$11,0,1,1) -> 2011-12-02 | T148: =OFFSET('InputData-DDM'!$G$10,CalculationsAndCharts!$A148+$A$11,0,1,1) -> 1132600 | U148: =OFFSET('InputData-DDM'!$J$10,CalculationsAndCharts!$A148+$A$11,0,1,1) -> 59.07 | V148: =OFFSET('InputData-DDM'!$K$10,CalculationsAndCharts!$A148+$A$11,0,1,1) -> 59.22 | W148: =OFFSET('InputData-DDM'!$L$10,CalculationsAndCharts!$A148+$A$11,0,1,1) -> 57.88 | X148: =OFFSET('InputData-DDM'!$M$10,CalculationsAndCharts!$A148+$A$11,0,1,1) -> 57.94 | Y148: 54.1108 | Z148: 0 | AA148: 0 | AB148: 753.1045058 | AC148: 0 | AD148: 0 | AE148: 1236.566543 | AF148: 39982.31821 | AG148: 0 | AH148: 0 | AI148: 45722.4497 | AJ148: 92427.18486
A149: 117 | B149: =OFFSET('InputData-DBC'!$B$10,CalculationsAndCharts!$A149+$A$11,0,1,1) -> 2011-12-01 | C149: =OFFSET('InputData-DBC'!$G$10,CalculationsAndCharts!$A149+$A$11,0,1,1) -> 1844100 | D149: =OFFSET('InputData-DBC'!$J$10,CalculationsAndCharts!$A149+$A$11,0,1,1) -> 27.56 | E149: =OFFSET('InputData-DBC'!$K$10,CalculationsAndCharts!$A149+$A$11,0,1,1) -> 27.78 | F149: =OFFSET('InputData-DBC'!$L$10,CalculationsAndCharts!$A149+$A$11,0,1,1) -> 27.38 | G149: =OFFSET('InputData-DBC'!$M$10,CalculationsAndCharts!$A149+$A$11,0,1,1) -> 27.54 | H149: 27.267 | I149: 0 | J149: 0 | K149: 1633.774734 | L149: 0 | M149: 0 | N149: 1400.16179 | O149: 45271.89788 | P149: 0 | Q149: 0 | R149: 46426.99346 | S149: =OFFSET('InputData-DDM'!$B$10,CalculationsAndCharts!$A149+$A$11,0,1,1) -> 2011-12-01 | T149: =OFFSET('InputData-DDM'!$G$10,CalculationsAndCharts!$A149+$A$11,0,1,1) -> 848800 | U149: =OFFSET('InputData-DDM'!$J$10,CalculationsAndCharts!$A149+$A$11,0,1,1) -> 57.87 | V149: =OFFSET('InputData-DDM'!$K$10,CalculationsAndCharts!$A149+$A$11,0,1,1) -> 58.38 | W149: =OFFSET('InputData-DDM'!$L$10,CalculationsAndCharts!$A149+$A$11,0,1,1) -> 57.54 | X149: =OFFSET('InputData-DDM'!$M$10,CalculationsAndCharts!$A149+$A$11,0,1,1) -> 58 | Y149: 53.88 | Z149: 0 | AA149: 0 | AB149: 753.1045058 | AC149: 0 | AD149: 0 | AE149: 1236.566543 | AF149: 39982.31821 | AG149: 0 | AH149: 0 | AI149: 44818.72429 | AJ149: 91245.71775
A150: 118 | B150: =OFFSET('InputData-DBC'!$B$10,CalculationsAndCharts!$A150+$A$11,0,1,1) -> 2011-11-30 | C150: =OFFSET('InputData-DBC'!$G$10,CalculationsAndCharts!$A150+$A$11,0,1,1) -> 1913600 | D150: =OFFSET('InputData-DBC'!$J$10,CalculationsAndCharts!$A150+$A$11,0,1,1) -> 27.65 | E150: =OFFSET('InputData-DBC'!$K$10,CalculationsAndCharts!$A150+$A$11,0,1,1) -> 27.84 | F150: =OFFSET('InputData-DBC'!$L$10,CalculationsAndCharts!$A150+$A$11,0,1,1) -> 27.6 | G150: =OFFSET('InputData-DBC'!$M$10,CalculationsAndCharts!$A150+$A$11,0,1,1) -> 27.64 | H150: 27.2766 | I150: 0 | J150: 0 | K150: 1633.774734 | L150: 0 | M150: 0 | N150: 1400.16179 | O150: 45271.89788 | P150: 0 | Q150: 0 | R150: 46574.03318 | S150: =OFFSET('InputData-DDM'!$B$10,CalculationsAndCharts!$A150+$A$11,0,1,1) -> 2011-11-30 | T150: =OFFSET('InputData-DDM'!$G$10,CalculationsAndCharts!$A150+$A$11,0,1,1) -> 1039800 | U150: =OFFSET('InputData-DDM'!$J$10,CalculationsAndCharts!$A150+$A$11,0,1,1) -> 56.48 | V150: =OFFSET('InputData-DDM'!$K$10,CalculationsAndCharts!$A150+$A$11,0,1,1) -> 58.23 | W150: =OFFSET('InputData-DDM'!$L$10,CalculationsAndCharts!$A150+$A$11,0,1,1) -> 56.44 | X150: =OFFSET('InputData-DDM'!$M$10,CalculationsAndCharts!$A150+$A$11,0,1,1) -> 58.04 | Y150: 53.7174 | Z150: 0 | AA150: 0 | AB150: 753.1045058 | AC150: 0 | AD150: 0 | AE150: 1236.566543 | AF150: 39982.31821 | AG150: 0 | AH150: 0 | AI150: 43771.90903 | AJ150: 90345.94221
A151: 119 | B151: =OFFSET('InputData-DBC'!$B$10,CalculationsAndCharts!$A151+$A$11,0,1,1) -> 2011-11-29 | C151: =OFFSET('InputData-DBC'!$G$10,CalculationsAndCharts!$A151+$A$11,0,1,1) -> 1410300 | D151: =OFFSET('InputData-DBC'!$J$10,CalculationsAndCharts!$A151+$A$11,0,1,1) -> 27.13 | E151: =OFFSET('InputData-DBC'!$K$10,CalculationsAndCharts!$A151+$A$11,0,1,1) -> 27.38 | F151: =OFFSET('InputData-DBC'!$L$10,CalculationsAndCharts!$A151+$A$11,0,1,1) -> 27.1 | G151: =OFFSET('InputData-DBC'!$M$10,CalculationsAndCharts!$A151+$A$11,0,1,1) -> 27.32 | H151: 27.2926 | I151: 0 | J151: 0 | K151: 1633.774734 | L151: 0 | M151: 0 | N151: 1400.16179 | O151: 45271.89788 | P151: 0 | Q151: 0 | R151: 45724.47032 | S151: =OFFSET('InputData-DDM'!$B$10,CalculationsAndCharts!$A151+$A$11,0,1,1) -> 2011-11-29 | T151: =OFFSET('InputData-DDM'!$G$10,CalculationsAndCharts!$A151+$A$11,0,1,1) -> 862600 | U151: =OFFSET('InputData-DDM'!$J$10,CalculationsAndCharts!$A151+$A$11,0,1,1) -> 53.53 | V151: =OFFSET('InputData-DDM'!$K$10,CalculationsAndCharts!$A151+$A$11,0,1,1) -> 54.34 | W151: =OFFSET('InputData-DDM'!$L$10,CalculationsAndCharts!$A151+$A$11,0,1,1) -> 53.33 | X151: =OFFSET('InputData-DDM'!$M$10,CalculationsAndCharts!$A151+$A$11,0,1,1) -> 53.72 | Y151: 53.6094 | Z151: 0 | AA151: 0 | AB151: 753.1045058 | AC151: 0 | AD151: 0 | AE151: 1236.566543 | AF151: 39982.31821 | AG151: 0 | AH151: 0 | AI151: 41550.25074 | AJ151: 87274.72106
A152: 120 | B152: =OFFSET('InputData-DBC'!$B$10,CalculationsAndCharts!$A152+$A$11,0,1,1) -> 2011-11-28 | C152: =OFFSET('InputData-DBC'!$G$10,CalculationsAndCharts!$A152+$A$11,0,1,1) -> 1063800 | D152: =OFFSET('InputData-DBC'!$J$10,CalculationsAndCharts!$A152+$A$11,0,1,1) -> 27.12 | E152: =OFFSET('InputData-DBC'!$K$10,CalculationsAndCharts!$A152+$A$11,0,1,1) -> 27.17 | F152: =OFFSET('InputData-DBC'!$L$10,CalculationsAndCharts!$A152+$A$11,0,1,1) -> 26.86 | G152: =OFFSET('InputData-DBC'!$M$10,CalculationsAndCharts!$A152+$A$11,0,1,1) -> 26.97 | H152: 27.316 | I152: 0 | J152: 0 | K152: 1633.774734 | L152: 0 | M152: 0 | N152: 1400.16179 | O152: 45271.89788 | P152: 0 | Q152: 0 | R152: 45708.13257 | S152: =OFFSET('InputData-DDM'!$B$10,CalculationsAndCharts!$A152+$A$11,0,1,1) -> 2011-11-28 | T152: =OFFSET('InputData-DDM'!$G$10,CalculationsAndCharts!$A152+$A$11,0,1,1) -> 1140100 | U152: =OFFSET('InputData-DDM'!$J$10,CalculationsAndCharts!$A152+$A$11,0,1,1) -> 53.05 | V152: =OFFSET('InputData-DDM'!$K$10,CalculationsAndCharts!$A152+$A$11,0,1,1) -> 53.64 | W152: =OFFSET('InputData-DDM'!$L$10,CalculationsAndCharts!$A152+$A$11,0,1,1) -> 52.6 | X152: =OFFSET('InputData-DDM'!$M$10,CalculationsAndCharts!$A152+$A$11,0,1,1) -> 53.29 | Y152: 53.5848 | Z152: 0 | AA152: 0 | AB152: 753.1045058 | AC152: 0 | AD152: 0 | AE152: 1236.566543 | AF152: 39982.31821 | AG152: 0 | AH152: 0 | AI152: 41188.76057 | AJ152: 86896.89315
A153: 121 | B153: =OFFSET('InputData-DBC'!$B$10,CalculationsAndCharts!$A153+$A$11,0,1,1) -> 2011-11-25 | C153: =OFFSET('InputData-DBC'!$G$10,CalculationsAndCharts!$A153+$A$11,0,1,1) -> 514700 | D153: =OFFSET('InputData-DBC'!$J$10,CalculationsAndCharts!$A153+$A$11,0,1,1) -> 26.73 | E153: =OFFSET('InputData-DBC'!$K$10,CalculationsAndCharts!$A153+$A$11,0,1,1) -> 26.95 | F153: =OFFSET('InputData-DBC'!$L$10,CalculationsAndCharts!$A153+$A$11,0,1,1) -> 26.6 | G153: =OFFSET('InputData-DBC'!$M$10,CalculationsAndCharts!$A153+$A$11,0,1,1) -> 26.64 | H153: 27.3562 | I153: 0 | J153: 0 | K153: 1633.774734 | L153: 0 | M153: 0 | N153: 1400.16179 | O153: 45271.89788 | P153: 0 | Q153: 0 | R153: 45070.96043 | S153: =OFFSET('InputData-DDM'!$B$10,CalculationsAndCharts!$A153+$A$11,0,1,1) -> 2011-11-25 | T153: =OFFSET('InputData-DDM'!$G$10,CalculationsAndCharts!$A153+$A$11,0,1,1) -> 452000 | U153: =OFFSET('InputData-DDM'!$J$10,CalculationsAndCharts!$A153+$A$11,0,1,1) -> 50.78 | V153: =OFFSET('InputData-DDM'!$K$10,CalculationsAndCharts!$A153+$A$11,0,1,1) -> 51.87 | W153: =OFFSET('InputData-DDM'!$L$10,CalculationsAndCharts!$A153+$A$11,0,1,1) -> 50.74 | X153: =OFFSET('InputData-DDM'!$M$10,CalculationsAndCharts!$A153+$A$11,0,1,1) -> 50.74 | Y153: 53.5892 | Z153: 0 | AA153: 0 | AB153: 753.1045058 | AC153: 0 | AD153: 0 | AE153: 1236.566543 | AF153: 39982.31821 | AG153: 0 | AH153: 0 | AI153: 39479.21335 | AJ153: 84550.17377
A154: 122 | B154: =OFFSET('InputData-DBC'!$B$10,CalculationsAndCharts!$A154+$A$11,0,1,1) -> 2011-11-23 | C154: =OFFSET('InputData-DBC'!$G$10,CalculationsAndCharts!$A154+$A$11,0,1,1) -> 1752300 | D154: =OFFSET('InputData-DBC'!$J$10,CalculationsAndCharts!$A154+$A$11,0,1,1) -> 27.01 | E154: =OFFSET('InputData-DBC'!$K$10,CalculationsAndCharts!$A154+$A$11,0,1,1) -> 27.01 | F154: =OFFSET('InputData-DBC'!$L$10,CalculationsAndCharts!$A154+$A$11,0,1,1) -> 26.78 | G154: =OFFSET('InputData-DBC'!$M$10,CalculationsAndCharts!$A154+$A$11,0,1,1) -> 26.86 | H154: 27.4056 | I154: 0 | J154: 0 | K154: 1633.774734 | L154: 0 | M154: 0 | N154: 1400.16179 | O154: 45271.89788 | P154: 0 | Q154: 0 | R154: 45528.41735 | S154: =OFFSET('InputData-DDM'!$B$10,CalculationsAndCharts!$A154+$A$11,0,1,1) -> 2011-11-23 | T154: =OFFSET('InputData-DDM'!$G$10,CalculationsAndCharts!$A154+$A$11,0,1,1) -> 1233900 | U154: =OFFSET('InputData-DDM'!$J$10,CalculationsAndCharts!$A154+$A$11,0,1,1) -> 52.15 | V154: =OFFSET('InputData-DDM'!$K$10,CalculationsAndCharts!$A154+$A$11,0,1,1) -> 52.27 | W154: =OFFSET('InputData-DDM'!$L$10,CalculationsAndCharts!$A154+$A$11,0,1,1) -> 50.88 | X154: =OFFSET('InputData-DDM'!$M$10,CalculationsAndCharts!$A154+$A$11,0,1,1) -> 50.9 | Y154: 53.6312 | Z154: 0 | AA154: 0 | AB154: 753.1045058 | AC154: 0 | AD154: 0 | AE154: 1236.566543 | AF154: 39982.31821 | AG154: 0 | AH154: 0 | AI154: 40510.96652 | AJ154: 86039.38387
A155: 123 | B155: =OFFSET('InputData-DBC'!$B$10,CalculationsAndCharts!$A155+$A$11,0,1,1) -> 2011-11-22 | C155: =OFFSET('InputData-DBC'!$G$10,CalculationsAndCharts!$A155+$A$11,0,1,1) -> 2228300 | D155: =OFFSET('InputData-DBC'!$J$10,CalculationsAndCharts!$A155+$A$11,0,1,1) -> 27.15 | E155: =OFFSET('InputData-DBC'!$K$10,CalculationsAndCharts!$A155+$A$11,0,1,1) -> 27.36 | F155: =OFFSET('InputData-DBC'!$L$10,CalculationsAndCharts!$A155+$A$11,0,1,1) -> 27.06 | G155: =OFFSET('InputData-DBC'!$M$10,CalculationsAndCharts!$A155+$A$11,0,1,1) -> 27.27 | H155: 27.4482 | I155: 0 | J155: 0 | K155: 1633.774734 | L155: 0 | M155: 0 | N155: 1400.16179 | O155: 45271.89788 | P155: 0 | Q155: 0 | R155: 45757.14582 | S155: =OFFSET('InputData-DDM'!$B$10,CalculationsAndCharts!$A155+$A$11,0,1,1) -> 2011-11-22 | T155: =OFFSET('InputData-DDM'!$G$10,CalculationsAndCharts!$A155+$A$11,0,1,1) -> 1141800 | U155: =OFFSET('InputData-DDM'!$J$10,CalculationsAndCharts!$A155+$A$11,0,1,1) -> 53.25 | V155: =OFFSET('InputData-DDM'!$K$10,CalculationsAndCharts!$A155+$A$11,0,1,1) -> 53.78 | W155: =OFFSET('InputData-DDM'!$L$10,CalculationsAndCharts!$A155+$A$11,0,1,1) -> 52.49 | X155: =OFFSET('InputData-DDM'!$M$10,CalculationsAndCharts!$A155+$A$11,0,1,1) -> 53.07 | Y155: 53.6356 | Z155: 0 | AA155: 0 | AB155: 753.1045058 | AC155: 0 | AD155: 0 | AE155: 1236.566543 | AF155: 39982.31821 | AG155: 0 | AH155: 0 | AI155: 41339.38148 | AJ155: 87096.52729
A156: 124 | B156: =OFFSET('InputData-DBC'!$B$10,CalculationsAndCharts!$A156+$A$11,0,1,1) -> 2011-11-21 | C156: =OFFSET('InputData-DBC'!$G$10,CalculationsAndCharts!$A156+$A$11,0,1,1) -> 1181500 | D156: =OFFSET('InputData-DBC'!$J$10,CalculationsAndCharts!$A156+$A$11,0,1,1) -> 27.12 | E156: =OFFSET('InputData-DBC'!$K$10,CalculationsAndCharts!$A156+$A$11,0,1,1) -> 27.14 | F156: =OFFSET('InputData-DBC'!$L$10,CalculationsAndCharts!$A156+$A$11,0,1,1) -> 26.78 | G156: =OFFSET('InputData-DBC'!$M$10,CalculationsAndCharts!$A156+$A$11,0,1,1) -> 27.09 | H156: 27.4854 | I156: 0 | J156: 0 | K156: 1633.774734 | L156: 0 | M156: 0 | N156: 1400.16179 | O156: 45271.89788 | P156: 0 | Q156: 0 | R156: 45708.13257 | S156: =OFFSET('InputData-DDM'!$B$10,CalculationsAndCharts!$A156+$A$11,0,1,1) -> 2011-11-21 | T156: =OFFSET('InputData-DDM'!$G$10,CalculationsAndCharts!$A156+$A$11,0,1,1) -> 1660200 | U156: =OFFSET('InputData-DDM'!$J$10,CalculationsAndCharts!$A156+$A$11,0,1,1) -> 54.36 | V156: =OFFSET('InputData-DDM'!$K$10,CalculationsAndCharts!$A156+$A$11,0,1,1) -> 54.55 | W156: =OFFSET('InputData-DDM'!$L$10,CalculationsAndCharts!$A156+$A$11,0,1,1) -> 52.62 | X156: =OFFSET('InputData-DDM'!$M$10,CalculationsAndCharts!$A156+$A$11,0,1,1) -> 53.49 | Y156: 53.57 | Z156: 0 | AA156: 0 | AB156: 753.1045058 | AC156: 0 | AD156: 0 | AE156: 1236.566543 | AF156: 39982.31821 | AG156: 0 | AH156: 0 | AI156: 42175.32748 | AJ156: 87883.46005
A157: 125 | B157: =OFFSET('InputData-DBC'!$B$10,CalculationsAndCharts!$A157+$A$11,0,1,1) -> 2011-11-18 | C157: =OFFSET('InputData-DBC'!$G$10,CalculationsAndCharts!$A157+$A$11,0,1,1) -> 6225400 | D157: =OFFSET('InputData-DBC'!$J$10,CalculationsAndCharts!$A157+$A$11,0,1,1) -> 27.4 | E157: =OFFSET('InputData-DBC'!$K$10,CalculationsAndCharts!$A157+$A$11,0,1,1) -> 27.5 | F157: =OFFSET('InputData-DBC'!$L$10,CalculationsAndCharts!$A157+$A$11,0,1,1) -> 27.13 | G157: =OFFSET('InputData-DBC'!$M$10,CalculationsAndCharts!$A157+$A$11,0,1,1) -> 27.29 | H157: 27.528 | I157: 0 | J157: 0 | K157: 1633.774734 | L157: 0 | M157: 0 | N157: 1400.16179 | O157: 45271.89788 | P157: 0 | Q157: 0 | R157: 46165.5895 | S157: =OFFSET('InputData-DDM'!$B$10,CalculationsAndCharts!$A157+$A$11,0,1,1) -> 2011-11-18 | T157: =OFFSET('InputData-DDM'!$G$10,CalculationsAndCharts!$A157+$A$11,0,1,1) -> 739600 | U157: =OFFSET('InputData-DDM'!$J$10,CalculationsAndCharts!$A157+$A$11,0,1,1) -> 56.06 | V157: =OFFSET('InputData-DDM'!$K$10,CalculationsAndCharts!$A157+$A$11,0,1,1) -> 56.45 | W157: =OFFSET('InputData-DDM'!$L$10,CalculationsAndCharts!$A157+$A$11,0,1,1) -> 55.5 | X157: =OFFSET('InputData-DDM'!$M$10,CalculationsAndCharts!$A157+$A$11,0,1,1) -> 55.88 | Y157: 53.4884 | Z157: 0 | AA157: 0 | AB157: 753.1045058 | AC157: 0 | AD157: 0 | AE157: 1236.566543 | AF157: 39982.31821 | AG157: 0 | AH157: 0 | AI157: 43455.60514 | AJ157: 89621.19464
A158: 126 | B158: =OFFSET('InputData-DBC'!$B$10,CalculationsAndCharts!$A158+$A$11,0,1,1) -> 2011-11-17 | C158: =OFFSET('InputData-DBC'!$G$10,CalculationsAndCharts!$A158+$A$11,0,1,1) -> 2092500 | D158: =OFFSET('InputData-DBC'!$J$10,CalculationsAndCharts!$A158+$A$11,0,1,1) -> 27.8 | E158: =OFFSET('InputData-DBC'!$K$10,CalculationsAndCharts!$A158+$A$11,0,1,1) -> 27.84 | F158: =OFFSET('InputData-DBC'!$L$10,CalculationsAndCharts!$A158+$A$11,0,1,1) -> 27.29 | G158: =OFFSET('InputData-DBC'!$M$10,CalculationsAndCharts!$A158+$A$11,0,1,1) -> 27.33 | H158: 27.568 | I158: 0 | J158: 0 | K158: 1633.774734 | L158: 0 | M158: 0 | N158: 1400.16179 | O158: 45271.89788 | P158: 0 | Q158: 0 | R158: 46819.09939 | S158: =OFFSET('InputData-DDM'!$B$10,CalculationsAndCharts!$A158+$A$11,0,1,1) -> 2011-11-17 | T158: =OFFSET('InputData-DDM'!$G$10,CalculationsAndCharts!$A158+$A$11,0,1,1) -> 1564800 | U158: =OFFSET('InputData-DDM'!$J$10,CalculationsAndCharts!$A158+$A$11,0,1,1) -> 56.95 | V158: =OFFSET('InputData-DDM'!$K$10,CalculationsAndCharts!$A158+$A$11,0,1,1) -> 57.34 | W158: =OFFSET('InputData-DDM'!$L$10,CalculationsAndCharts!$A158+$A$11,0,1,1) -> 54.73 | X158: =OFFSET('InputData-DDM'!$M$10,CalculationsAndCharts!$A158+$A$11,0,1,1) -> 55.72 | Y158: 53.347 | Z158: 0 | AA158: 0 | AB158: 753.1045058 | AC158: 0 | AD158: 0 | AE158: 1236.566543 | AF158: 39982.31821 | AG158: 0 | AH158: 0 | AI158: 44125.86815 | AJ158: 90944.96754
A159: 127 | B159: =OFFSET('InputData-DBC'!$B$10,CalculationsAndCharts!$A159+$A$11,0,1,1) -> 2011-11-16 | C159: =OFFSET('InputData-DBC'!$G$10,CalculationsAndCharts!$A159+$A$11,0,1,1) -> 1248300 | D159: =OFFSET('InputData-DBC'!$J$10,CalculationsAndCharts!$A159+$A$11,0,1,1) -> 27.94 | E159: =OFFSET('InputData-DBC'!$K$10,CalculationsAndCharts!$A159+$A$11,0,1,1) -> 28.2 | F159: =OFFSET('InputData-DBC'!$L$10,CalculationsAndCharts!$A159+$A$11,0,1,1) -> 27.92 | G159: =OFFSET('InputData-DBC'!$M$10,CalculationsAndCharts!$A159+$A$11,0,1,1) -> 27.98 | H159: 27.6166 | I159: 0 | J159: 0 | K159: 1633.774734 | L159: 0 | M159: 0 | N159: 1400.16179 | O159: 45271.89788 | P159: 0 | Q159: 0 | R159: 47047.82786 | S159: =OFFSET('InputData-DDM'!$B$10,CalculationsAndCharts!$A159+$A$11,0,1,1) -> 2011-11-16 | T159: =OFFSET('InputData-DDM'!$G$10,CalculationsAndCharts!$A159+$A$11,0,1,1) -> 1325300 | U159: =OFFSET('InputData-DDM'!$J$10,CalculationsAndCharts!$A159+$A$11,0,1,1) -> 57.74 | V159: =OFFSET('InputData-DDM'!$K$10,CalculationsAndCharts!$A159+$A$11,0,1,1) -> 58.91 | W159: =OFFSET('InputData-DDM'!$L$10,CalculationsAndCharts!$A159+$A$11,0,1,1) -> 56.77 | X159: =OFFSET('InputData-DDM'!$M$10,CalculationsAndCharts!$A159+$A$11,0,1,1) -> 56.91 | Y159: 53.264 | Z159: 0 | AA159: 0 | AB159: 753.1045058 | AC159: 0 | AD159: 0 | AE159: 1236.566543 | AF159: 39982.31821 | AG159: 0 | AH159: 0 | AI159: 44720.82071 | AJ159: 91768.64856
A160: 128 | B160: =OFFSET('InputData-DBC'!$B$10,CalculationsAndCharts!$A160+$A$11,0,1,1) -> 2011-11-15 | C160: =OFFSET('InputData-DBC'!$G$10,CalculationsAndCharts!$A160+$A$11,0,1,1) -> 759800 | D160: =OFFSET('InputData-DBC'!$J$10,CalculationsAndCharts!$A160+$A$11,0,1,1) -> 27.98 | E160: =OFFSET('InputData-DBC'!$K$10,CalculationsAndCharts!$A160+$A$11,0,1,1) -> 28.1 | F160: =OFFSET('InputData-DBC'!$L$10,CalculationsAndCharts!$A160+$A$11,0,1,1) -> 27.85 | G160: =OFFSET('InputData-DBC'!$M$10,CalculationsAndCharts!$A160+$A$11,0,1,1) -> 28.05 | H160: 27.6562 | I160: 0 | J160: 0 | K160: 1633.774734 | L160: 0 | M160: 0 | N160: 1400.16179 | O160: 45271.89788 | P160: 0 | Q160: 0 | R160: 47113.17885 | S160: =OFFSET('InputData-DDM'!$B$10,CalculationsAndCharts!$A160+$A$11,0,1,1) -> 2011-11-15 | T160: =OFFSET('InputData-DDM'!$G$10,CalculationsAndCharts!$A160+$A$11,0,1,1) -> 873300 | U160: =OFFSET('InputData-DDM'!$J$10,CalculationsAndCharts!$A160+$A$11,0,1,1) -> 58.19 | V160: =OFFSET('InputData-DDM'!$K$10,CalculationsAndCharts!$A160+$A$11,0,1,1) -> 59.36 | W160: =OFFSET('InputData-DDM'!$L$10,CalculationsAndCharts!$A160+$A$11,0,1,1) -> 57.76 | X160: =OFFSET('InputData-DDM'!$M$10,CalculationsAndCharts!$A160+$A$11,0,1,1) -> 58.64 | Y160: 53.1774 | Z160: 0 | AA160: 0 | AB160: 753.1045058 | AC160: 0 | AD160: 0 | AE160: 1236.566543 | AF160: 39982.31821 | AG160: 0 | AH160: 0 | AI160: 45059.71773 | AJ160: 92172.89658
A161: 129 | B161: =OFFSET('InputData-DBC'!$B$10,CalculationsAndCharts!$A161+$A$11,0,1,1) -> 2011-11-14 | C161: =OFFSET('InputData-DBC'!$G$10,CalculationsAndCharts!$A161+$A$11,0,1,1) -> 700400 | D161: =OFFSET('InputData-DBC'!$J$10,CalculationsAndCharts!$A161+$A$11,0,1,1) -> 28.01 | E161: =OFFSET('InputData-DBC'!$K$10,CalculationsAndCharts!$A161+$A$11,0,1,1) -> 28.03 | F161: =OFFSET('InputData-DBC'!$L$10,CalculationsAndCharts!$A161+$A$11,0,1,1) -> 27.8 | G161: =OFFSET('InputData-DBC'!$M$10,CalculationsAndCharts!$A161+$A$11,0,1,1) -> 27.85 | H161: =AVERAGE(OFFSET($G$32,$A161,0,$A$18,1)) -> 27.689 | I161: =IF(MONTH(B161)=10,IF(G162>H162,IF(K162=0,1,0),0),0) -> 0 | J161: =IF(AND(MONTH(B161)=5,K162>0),-1,0) -> 0 | K161: =IF(AND(K162=0,I162=1),N162*$A$19/L161,IF(AND(K162>0,J162=-1),0,K162)) -> 1633.774734 | L161: =IF(AND(K162=0,I162=1),D161,0) -> 0 | M161: =IF(AND(K162>0,J162=-1),D161,0) -> 0 | N161: =IF(K161<>K162,N162-O161,N162)+P161 -> 1400.16179 | O161: =IF(K161<>K162,K161*L161,O162) -> 45271.89788 | P161: =K162*M161 -> 0 | Q161: =IF(P161<>P162,P161-O162,0) -> 0 | R161: =N161+K161*D161 -> 47162.19209 | S161: =OFFSET('InputData-DDM'!$B$10,CalculationsAndCharts!$A161+$A$11,0,1,1) -> 2011-11-14 | T161: =OFFSET('InputData-DDM'!$G$10,CalculationsAndCharts!$A161+$A$11,0,1,1) -> 784500 | U161: =OFFSET('InputData-DDM'!$J$10,CalculationsAndCharts!$A161+$A$11,0,1,1) -> 59.13 | V161: =OFFSET('InputData-DDM'!$K$10,CalculationsAndCharts!$A161+$A$11,0,1,1) -> 59.35 | W161: =OFFSET('InputData-DDM'!$L$10,CalculationsAndCharts!$A161+$A$11,0,1,1) -> 58.01 | X161: =OFFSET('InputData-DDM'!$M$10,CalculationsAndCharts!$A161+$A$11,0,1,1) -> 58.53 | Y161: 53.0076 | Z161: =IF(MONTH(S161)=10,IF(X162>Y162,IF(AB162=0,1,0),0),0) -> 0 | AA161: =IF(AND(MONTH(S161)=5,AB162>0),-1,0) -> 0 | AB161: =IF(AND(AB162=0,Z162=1),AE162*$A$19/AC161,IF(AND(AB162>0,AA162=-1),0,AB162)) -> 753.1045058 | AC161: =IF(AND(AB162=0,Z162=1),U161,0) -> 0 | AD161: =IF(AND(AB162>0,AA162=-1),U161,0) -> 0 | AE161: =IF(AB161<>AB162,AE162-AF161,AE162)+AG161 -> 1236.566543 | AF161: =IF(AB161<>AB162,AB161*AC161,AF162) -> 39982.31821 | AG161: =AB162*AD161 -> 0 | AH161: =IF(AG161<>AG162,AG161-AF162,0) -> 0 | AI161: =AE161+AB161*U161 -> 45767.63597 | AJ161: 92929.82806
A162: 130 | B162: =OFFSET('InputData-DBC'!$B$10,CalculationsAndCharts!$A162+$A$11,0,1,1) -> 2011-11-11 | C162: =OFFSET('InputData-DBC'!$G$10,CalculationsAndCharts!$A162+$A$11,0,1,1) -> 826500 | D162: =OFFSET('InputData-DBC'!$J$10,CalculationsAndCharts!$A162+$A$11,0,1,1) -> 27.93 | E162: =OFFSET('InputData-DBC'!$K$10,CalculationsAndCharts!$A162+$A$11,0,1,1) -> 28.15 | F162: =OFFSET('InputData-DBC'!$L$10,CalculationsAndCharts!$A162+$A$11,0,1,1) -> 27.93 | G162: =OFFSET('InputData-DBC'!$M$10,CalculationsAndCharts!$A162+$A$11,0,1,1) -> 28.15 | H162: 27.7278 | I162: 0 | J162: 0 | K162: 1633.774734 | L162: 0 | M162: 0 | N162: 1400.16179 | O162: 45271.89788 | P162: 0 | Q162: 0 | R162: 47031.49011 | S162: =OFFSET('InputData-DDM'!$B$10,CalculationsAndCharts!$A162+$A$11,0,1,1) -> 2011-11-11 | T162: =OFFSET('InputData-DDM'!$G$10,CalculationsAndCharts!$A162+$A$11,0,1,1) -> 1079100 | U162: =OFFSET('InputData-DDM'!$J$10,CalculationsAndCharts!$A162+$A$11,0,1,1) -> 58.1 | V162: =OFFSET('InputData-DDM'!$K$10,CalculationsAndCharts!$A162+$A$11,0,1,1) -> 59.49 | W162: =OFFSET('InputData-DDM'!$L$10,CalculationsAndCharts!$A162+$A$11,0,1,1) -> 58.09 | X162: =OFFSET('InputData-DDM'!$M$10,CalculationsAndCharts!$A162+$A$11,0,1,1) -> 59.26 | Y162: =AVERAGE(OFFSET($X$32,$A162,0,$A$18,1)) -> 52.859 | Z162: 0 | AA162: 0 | AB162: 753.1045058 | AC162: 0 | AD162: 0 | AE162: 1236.566543 | AF162: 39982.31821 | AG162: 0 | AH162: 0 | AI162: 44991.93833 | AJ162: =R162+AI162 -> 92023.42844
A163: 131 | B163: =OFFSET('InputData-DBC'!$B$10,CalculationsAndCharts!$A163+$A$11,0,1,1) -> 2011-11-10 | C163: =OFFSET('InputData-DBC'!$G$10,CalculationsAndCharts!$A163+$A$11,0,1,1) -> 1880200 | D163: =OFFSET('InputData-DBC'!$J$10,CalculationsAndCharts!$A163+$A$11,0,1,1) -> 28.04 | E163: =OFFSET('InputData-DBC'!$K$10,CalculationsAndCharts!$A163+$A$11,0,1,1) -> 28.05 | F163: =OFFSET('InputData-DBC'!$L$10,CalculationsAndCharts!$A163+$A$11,0,1,1) -> 27.75 | G163: =OFFSET('InputData-DBC'!$M$10,CalculationsAndCharts!$A163+$A$11,0,1,1) -> 27.88 | H163: 27.7638 | I163: 0 | J163: 0 | K163: 1633.774734 | L163: 0 | M163: 0 | N163: 1400.16179 | O163: 45271.89788 | P163: 0 | Q163: 0 | R163: 47211.20533 | S163: =OFFSET('InputData-DDM'!$B$10,CalculationsAndCharts!$A163+$A$11,0,1,1) -> 2011-11-10 | T163: =OFFSET('InputData-DDM'!$G$10,CalculationsAndCharts!$A163+$A$11,0,1,1) -> 1737400 | U163: =OFFSET('InputData-DDM'!$J$10,CalculationsAndCharts!$A163+$A$11,0,1,1) -> 56.85 | V163: =OFFSET('InputData-DDM'!$K$10,CalculationsAndCharts!$A163+$A$11,0,1,1) -> 57.41 | W163: =OFFSET('InputData-DDM'!$L$10,CalculationsAndCharts!$A163+$A$11,0,1,1) -> 55.84 | X163: =OFFSET('InputData-DDM'!$M$10,CalculationsAndCharts!$A163+$A$11,0,1,1) -> 56.8 | Y163: 52.7436 | Z163: 0 | AA163: 0 | AB163: 753.1045058 | AC163: 0 | AD163: 0 | AE163: 1236.566543 | AF163: 39982.31821 | AG163: 0 | AH163: 0 | AI163: 44050.5577 | AJ163: 91261.76303
A164: 132 | B164: =OFFSET('InputData-DBC'!$B$10,CalculationsAndCharts!$A164+$A$11,0,1,1) -> 2011-11-09 | C164: =OFFSET('InputData-DBC'!$G$10,CalculationsAndCharts!$A164+$A$11,0,1,1) -> 1283400 | D164: =OFFSET('InputData-DBC'!$J$10,CalculationsAndCharts!$A164+$A$11,0,1,1) -> 28.14 | E164: =OFFSET('InputData-DBC'!$K$10,CalculationsAndCharts!$A164+$A$11,0,1,1) -> 28.34 | F164: =OFFSET('InputData-DBC'!$L$10,CalculationsAndCharts!$A164+$A$11,0,1,1) -> 27.86 | G164: =OFFSET('InputData-DBC'!$M$10,CalculationsAndCharts!$A164+$A$11,0,1,1) -> 27.91 | H164: 27.8094 | I164: 0 | J164: 0 | K164: 1633.774734 | L164: 0 | M164: 0 | N164: 1400.16179 | O164: 45271.89788 | P164: 0 | Q164: 0 | R164: 47374.5828 | S164: =OFFSET('InputData-DDM'!$B$10,CalculationsAndCharts!$A164+$A$11,0,1,1) -> 2011-11-09 | T164: =OFFSET('InputData-DDM'!$G$10,CalculationsAndCharts!$A164+$A$11,0,1,1) -> 2339400 | U164: =OFFSET('InputData-DDM'!$J$10,CalculationsAndCharts!$A164+$A$11,0,1,1) -> 57.26 | V164: =OFFSET('InputData-DDM'!$K$10,CalculationsAndCharts!$A164+$A$11,0,1,1) -> 57.6 | W164: =OFFSET('InputData-DDM'!$L$10,CalculationsAndCharts!$A164+$A$11,0,1,1) -> 55.21 | X164: =OFFSET('InputData-DDM'!$M$10,CalculationsAndCharts!$A164+$A$11,0,1,1) -> 55.67 | Y164: 52.6984 | Z164: 0 | AA164: 0 | AB164: 753.1045058 | AC164: 0 | AD164: 0 | AE164: 1236.566543 | AF164: 39982.31821 | AG164: 0 | AH164: 0 | AI164: 44359.33054 | AJ164: 91733.91335
A165: 133 | B165: =OFFSET('InputData-DBC'!$B$10,CalculationsAndCharts!$A165+$A$11,0,1,1) -> 2011-11-08 | C165: =OFFSET('InputData-DBC'!$G$10,CalculationsAndCharts!$A165+$A$11,0,1,1) -> 1335700 | D165: =OFFSET('InputData-DBC'!$J$10,CalculationsAndCharts!$A165+$A$11,0,1,1) -> 28.42 | E165: =OFFSET('InputData-DBC'!$K$10,CalculationsAndCharts!$A165+$A$11,0,1,1) -> 28.55 | F165: =OFFSET('InputData-DBC'!$L$10,CalculationsAndCharts!$A165+$A$11,0,1,1) -> 28.31 | G165: =OFFSET('InputData-DBC'!$M$10,CalculationsAndCharts!$A165+$A$11,0,1,1) -> 28.54 | H165: 27.8534 | I165: 0 | J165: 0 | K165: 1633.774734 | L165: 0 | M165: 0 | N165: 1400.16179 | O165: 45271.89788 | P165: 0 | Q165: 0 | R165: 47832.03973 | S165: =OFFSET('InputData-DDM'!$B$10,CalculationsAndCharts!$A165+$A$11,0,1,1) -> 2011-11-08 | T165: =OFFSET('InputData-DDM'!$G$10,CalculationsAndCharts!$A165+$A$11,0,1,1) -> 896000 | U165: =OFFSET('InputData-DDM'!$J$10,CalculationsAndCharts!$A165+$A$11,0,1,1) -> 58.93 | V165: =OFFSET('InputData-DDM'!$K$10,CalculationsAndCharts!$A165+$A$11,0,1,1) -> 59.63 | W165: =OFFSET('InputData-DDM'!$L$10,CalculationsAndCharts!$A165+$A$11,0,1,1) -> 57.86 | X165: =OFFSET('InputData-DDM'!$M$10,CalculationsAndCharts!$A165+$A$11,0,1,1) -> 59.44 | Y165: 52.6656 | Z165: 0 | AA165: 0 | AB165: 753.1045058 | AC165: 0 | AD165: 0 | AE165: 1236.566543 | AF165: 39982.31821 | AG165: 0 | AH165: 0 | AI165: 45617.01507 | AJ165: 93449.0548
A166: 134 | B166: =OFFSET('InputData-DBC'!$B$10,CalculationsAndCharts!$A166+$A$11,0,1,1) -> 2011-11-07 | C166: =OFFSET('InputData-DBC'!$G$10,CalculationsAndCharts!$A166+$A$11,0,1,1) -> 1066500 | D166: =OFFSET('InputData-DBC'!$J$10,CalculationsAndCharts!$A166+$A$11,0,1,1) -> 28.23 | E166: =OFFSET('InputData-DBC'!$K$10,CalculationsAndCharts!$A166+$A$11,0,1,1) -> 28.42 | F166: =OFFSET('InputData-DBC'!$L$10,CalculationsAndCharts!$A166+$A$11,0,1,1) -> 28.12 | G166: =OFFSET('InputData-DBC'!$M$10,CalculationsAndCharts!$A166+$A$11,0,1,1) -> 28.4 | H166: 27.8768 | I166: 0 | J166: 0 | K166: 1633.774734 | L166: 0 | M166: 0 | N166: 1400.16179 | O166: 45271.89788 | P166: 0 | Q166: 0 | R166: 47521.62253 | S166: =OFFSET('InputData-DDM'!$B$10,CalculationsAndCharts!$A166+$A$11,0,1,1) -> 2011-11-07 | T166: =OFFSET('InputData-DDM'!$G$10,CalculationsAndCharts!$A166+$A$11,0,1,1) -> 936900 | U166: =OFFSET('InputData-DDM'!$J$10,CalculationsAndCharts!$A166+$A$11,0,1,1) -> 57.53 | V166: =OFFSET('InputData-DDM'!$K$10,CalculationsAndCharts!$A166+$A$11,0,1,1) -> 58.41 | W166: =OFFSET('InputData-DDM'!$L$10,CalculationsAndCharts!$A166+$A$11,0,1,1) -> 56.57 | X166: =OFFSET('InputData-DDM'!$M$10,CalculationsAndCharts!$A166+$A$11,0,1,1) -> 58.34 | Y166: 52.5526 | Z166: 0 | AA166: 0 | AB166: 753.1045058 | AC166: 0 | AD166: 0 | AE166: 1236.566543 | AF166: 39982.31821 | AG166: 0 | AH166: 0 | AI166: 44562.66876 | AJ166: 92084.29129
A167: 135 | B167: =OFFSET('InputData-DBC'!$B$10,CalculationsAndCharts!$A167+$A$11,0,1,1) -> 2011-11-04 | C167: =OFFSET('InputData-DBC'!$G$10,CalculationsAndCharts!$A167+$A$11,0,1,1) -> 1267600 | D167: =OFFSET('InputData-DBC'!$J$10,CalculationsAndCharts!$A167+$A$11,0,1,1) -> 27.95 | E167: =OFFSET('InputData-DBC'!$K$10,CalculationsAndCharts!$A167+$A$11,0,1,1) -> 28.02 | F167: =OFFSET('InputData-DBC'!$L$10,CalculationsAndCharts!$A167+$A$11,0,1,1) -> 27.76 | G167: =OFFSET('InputData-DBC'!$M$10,CalculationsAndCharts!$A167+$A$11,0,1,1) -> 27.99 | H167: 27.901 | I167: 0 | J167: 0 | K167: 1633.774734 | L167: 0 | M167: 0 | N167: 1400.16179 | O167: 45271.89788 | P167: 0 | Q167: 0 | R167: 47064.1656 | S167: =OFFSET('InputData-DDM'!$B$10,CalculationsAndCharts!$A167+$A$11,0,1,1) -> 2011-11-04 | T167: =OFFSET('InputData-DDM'!$G$10,CalculationsAndCharts!$A167+$A$11,0,1,1) -> 646500 | U167: =OFFSET('InputData-DDM'!$J$10,CalculationsAndCharts!$A167+$A$11,0,1,1) -> 57.4 | V167: =OFFSET('InputData-DDM'!$K$10,CalculationsAndCharts!$A167+$A$11,0,1,1) -> 57.63 | W167: =OFFSET('InputData-DDM'!$L$10,CalculationsAndCharts!$A167+$A$11,0,1,1) -> 56.26 | X167: =OFFSET('InputData-DDM'!$M$10,CalculationsAndCharts!$A167+$A$11,0,1,1) -> 57.57 | Y167: 52.417 | Z167: 0 | AA167: 0 | AB167: 753.1045058 | AC167: 0 | AD167: 0 | AE167: 1236.566543 | AF167: 39982.31821 | AG167: 0 | AH167: 0 | AI167: 44464.76517 | AJ167: 91528.93078
A168: 136 | B168: =OFFSET('InputData-DBC'!$B$10,CalculationsAndCharts!$A168+$A$11,0,1,1) -> 2011-11-03 | C168: =OFFSET('InputData-DBC'!$G$10,CalculationsAndCharts!$A168+$A$11,0,1,1) -> 981800 | D168: =OFFSET('InputData-DBC'!$J$10,CalculationsAndCharts!$A168+$A$11,0,1,1) -> 27.82 | E168: =OFFSET('InputData-DBC'!$K$10,CalculationsAndCharts!$A168+$A$11,0,1,1) -> 27.96 | F168: =OFFSET('InputData-DBC'!$L$10,CalculationsAndCharts!$A168+$A$11,0,1,1) -> 27.56 | G168: =OFFSET('InputData-DBC'!$M$10,CalculationsAndCharts!$A168+$A$11,0,1,1) -> 27.9 | H168: 27.9268 | I168: 0 | J168: 0 | K168: 1633.774734 | L168: 0 | M168: 0 | N168: 1400.16179 | O168: 45271.89788 | P168: 0 | Q168: 0 | R168: 46851.77489 | S168: =OFFSET('InputData-DDM'!$B$10,CalculationsAndCharts!$A168+$A$11,0,1,1) -> 2011-11-03 | T168: =OFFSET('InputData-DDM'!$G$10,CalculationsAndCharts!$A168+$A$11,0,1,1) -> 1659100 | U168: =OFFSET('InputData-DDM'!$J$10,CalculationsAndCharts!$A168+$A$11,0,1,1) -> 57.27 | V168: =OFFSET('InputData-DDM'!$K$10,CalculationsAndCharts!$A168+$A$11,0,1,1) -> 58.35 | W168: =OFFSET('InputData-DDM'!$L$10,CalculationsAndCharts!$A168+$A$11,0,1,1) -> 56.21 | X168: =OFFSET('InputData-DDM'!$M$10,CalculationsAndCharts!$A168+$A$11,0,1,1) -> 58.13 | Y168: 52.2706 | Z168: 0 | AA168: 0 | AB168: 753.1045058 | AC168: 0 | AD168: 0 | AE168: 1236.566543 | AF168: 39982.31821 | AG168: 0 | AH168: 0 | AI168: 44366.86159 | AJ168: 91218.63648
A169: 137 | B169: =OFFSET('InputData-DBC'!$B$10,CalculationsAndCharts!$A169+$A$11,0,1,1) -> 2011-11-02 | C169: =OFFSET('InputData-DBC'!$G$10,CalculationsAndCharts!$A169+$A$11,0,1,1) -> 1600400 | D169: =OFFSET('InputData-DBC'!$J$10,CalculationsAndCharts!$A169+$A$11,0,1,1) -> 27.73 | E169: =OFFSET('InputData-DBC'!$K$10,CalculationsAndCharts!$A169+$A$11,0,1,1) -> 27.9 | F169: =OFFSET('InputData-DBC'!$L$10,CalculationsAndCharts!$A169+$A$11,0,1,1) -> 27.45 | G169: =OFFSET('InputData-DBC'!$M$10,CalculationsAndCharts!$A169+$A$11,0,1,1) -> 27.56 | H169: 27.9518 | I169: 0 | J169: 0 | K169: 1633.774734 | L169: 0 | M169: 0 | N169: 1400.16179 | O169: 45271.89788 | P169: 0 | Q169: 0 | R169: 46704.73516 | S169: =OFFSET('InputData-DDM'!$B$10,CalculationsAndCharts!$A169+$A$11,0,1,1) -> 2011-11-02 | T169: =OFFSET('InputData-DDM'!$G$10,CalculationsAndCharts!$A169+$A$11,0,1,1) -> 874000 | U169: =OFFSET('InputData-DDM'!$J$10,CalculationsAndCharts!$A169+$A$11,0,1,1) -> 55.9 | V169: =OFFSET('InputData-DDM'!$K$10,CalculationsAndCharts!$A169+$A$11,0,1,1) -> 56.53 | W169: =OFFSET('InputData-DDM'!$L$10,CalculationsAndCharts!$A169+$A$11,0,1,1) -> 55.27 | X169: =OFFSET('InputData-DDM'!$M$10,CalculationsAndCharts!$A169+$A$11,0,1,1) -> 56.17 | Y169: 52.144 | Z169: 0 | AA169: 0 | AB169: 753.1045058 | AC169: 0 | AD169: 0 | AE169: 1236.566543 | AF169: 39982.31821 | AG169: 0 | AH169: 0 | AI169: 43335.10842 | AJ169: 90039.84358
A170: 138 | B170: =OFFSET('InputData-DBC'!$B$10,CalculationsAndCharts!$A170+$A$11,0,1,1) -> 2011-11-01 | C170: =OFFSET('InputData-DBC'!$G$10,CalculationsAndCharts!$A170+$A$11,0,1,1) -> 4349800 | D170: =OFFSET('InputData-DBC'!$J$10,CalculationsAndCharts!$A170+$A$11,0,1,1) -> 27.04 | E170: =OFFSET('InputData-DBC'!$K$10,CalculationsAndCharts!$A170+$A$11,0,1,1) -> 27.62 | F170: =OFFSET('InputData-DBC'!$L$10,CalculationsAndCharts!$A170+$A$11,0,1,1) -> 26.92 | G170: =OFFSET('InputData-DBC'!$M$10,CalculationsAndCharts!$A170+$A$11,0,1,1) -> 27.39 | H170: 27.9896 | I170: 0 | J170: 0 | K170: 1633.774734 | L170: 0 | M170: 0 | N170: 1400.16179 | O170: 45271.89788 | P170: 0 | Q170: 0 | R170: 45577.4306 | S170: =OFFSET('InputData-DDM'!$B$10,CalculationsAndCharts!$A170+$A$11,0,1,1) -> 2011-11-01 | T170: =OFFSET('InputData-DDM'!$G$10,CalculationsAndCharts!$A170+$A$11,0,1,1) -> 1983900 | U170: =OFFSET('InputData-DDM'!$J$10,CalculationsAndCharts!$A170+$A$11,0,1,1) -> 55.08 | V170: =OFFSET('InputData-DDM'!$K$10,CalculationsAndCharts!$A170+$A$11,0,1,1) -> 55.77 | W170: =OFFSET('InputData-DDM'!$L$10,CalculationsAndCharts!$A170+$A$11,0,1,1) -> 54.22 | X170: =OFFSET('InputData-DDM'!$M$10,CalculationsAndCharts!$A170+$A$11,0,1,1) -> 54.54 | Y170: 52.0278 | Z170: 0 | AA170: 0 | AB170: 753.1045058 | AC170: 0 | AD170: 0 | AE170: 1236.566543 | AF170: 39982.31821 | AG170: 0 | AH170: 0 | AI170: 42717.56272 | AJ170: 88294.99332
A171: 139 | B171: =OFFSET('InputData-DBC'!$B$10,CalculationsAndCharts!$A171+$A$11,0,1,1) -> 2011-10-31 | C171: =OFFSET('InputData-DBC'!$G$10,CalculationsAndCharts!$A171+$A$11,0,1,1) -> 3209400 | D171: =OFFSET('InputData-DBC'!$J$10,CalculationsAndCharts!$A171+$A$11,0,1,1) -> 27.71 | E171: =OFFSET('InputData-DBC'!$K$10,CalculationsAndCharts!$A171+$A$11,0,1,1) -> 27.89 | F171: =OFFSET('InputData-DBC'!$L$10,CalculationsAndCharts!$A171+$A$11,0,1,1) -> 27.56 | G171: =OFFSET('InputData-DBC'!$M$10,CalculationsAndCharts!$A171+$A$11,0,1,1) -> 27.72 | H171: 28.0248 | I171: 1 | J171: 0 | K171: 1633.774734 | L171: 27.71 | M171: 0 | N171: 1400.16179 | O171: 45271.89788 | P171: 0 | Q171: 0 | R171: 46672.05967 | S171: =OFFSET('InputData-DDM'!$B$10,CalculationsAndCharts!$A171+$A$11,0,1,1) -> 2011-10-31 | T171: =OFFSET('InputData-DDM'!$G$10,CalculationsAndCharts!$A171+$A$11,0,1,1) -> 1025700 | U171: =OFFSET('InputData-DDM'!$J$10,CalculationsAndCharts!$A171+$A$11,0,1,1) -> 58.76 | V171: =OFFSET('InputData-DDM'!$K$10,CalculationsAndCharts!$A171+$A$11,0,1,1) -> 58.94 | W171: =OFFSET('InputData-DDM'!$L$10,CalculationsAndCharts!$A171+$A$11,0,1,1) -> 57.35 | X171: =OFFSET('InputData-DDM'!$M$10,CalculationsAndCharts!$A171+$A$11,0,1,1) -> 57.37 | Y171: 51.8904 | Z171: 0 | AA171: 0 | AB171: 753.1045058 | AC171: 0 | AD171: 0 | AE171: 1236.566543 | AF171: 39982.31821 | AG171: 0 | AH171: 0 | AI171: 45488.9873 | AJ171: 92161.04697
A172: 140 | B172: =OFFSET('InputData-DBC'!$B$10,CalculationsAndCharts!$A172+$A$11,0,1,1) -> 2011-10-28 | C172: =OFFSET('InputData-DBC'!$G$10,CalculationsAndCharts!$A172+$A$11,0,1,1) -> 3722700 | D172: =OFFSET('InputData-DBC'!$J$10,CalculationsAndCharts!$A172+$A$11,0,1,1) -> 28 | E172: =OFFSET('InputData-DBC'!$K$10,CalculationsAndCharts!$A172+$A$11,0,1,1) -> 28.26 | F172: =OFFSET('InputData-DBC'!$L$10,CalculationsAndCharts!$A172+$A$11,0,1,1) -> 27.99 | G172: =OFFSET('InputData-DBC'!$M$10,CalculationsAndCharts!$A172+$A$11,0,1,1) -> 28.15 | H172: 28.0524 | I172: 1 | J172: 0 | K172: 0 | L172: 0 | M172: 0 | N172: 46672.05967 | O172: 0 | P172: 0 | Q172: 0 | R172: 46672.05967 | S172: =OFFSET('InputData-DDM'!$B$10,CalculationsAndCharts!$A172+$A$11,0,1,1) -> 2011-10-28 | T172: =OFFSET('InputData-DDM'!$G$10,CalculationsAndCharts!$A172+$A$11,0,1,1) -> 1015500 | U172: =OFFSET('InputData-DDM'!$J$10,CalculationsAndCharts!$A172+$A$11,0,1,1) -> 59.61 | V172: =OFFSET('InputData-DDM'!$K$10,CalculationsAndCharts!$A172+$A$11,0,1,1) -> 60.25 | W172: =OFFSET('InputData-DDM'!$L$10,CalculationsAndCharts!$A172+$A$11,0,1,1) -> 59.39 | X172: =OFFSET('InputData-DDM'!$M$10,CalculationsAndCharts!$A172+$A$11,0,1,1) -> 60.12 | Y172: 51.6896 | Z172: 0 | AA172: 0 | AB172: 753.1045058 | AC172: 0 | AD172: 0 | AE172: 1236.566543 | AF172: 39982.31821 | AG172: 0 | AH172: 0 | AI172: 46129.12613 | AJ172: 92801.1858
A173: 141 | B173: =OFFSET('InputData-DBC'!$B$10,CalculationsAndCharts!$A173+$A$11,0,1,1) -> 2011-10-27 | C173: =OFFSET('InputData-DBC'!$G$10,CalculationsAndCharts!$A173+$A$11,0,1,1) -> 3792100 | D173: =OFFSET('InputData-DBC'!$J$10,CalculationsAndCharts!$A173+$A$11,0,1,1) -> 28.1 | E173: =OFFSET('InputData-DBC'!$K$10,CalculationsAndCharts!$A173+$A$11,0,1,1) -> 28.45 | F173: =OFFSET('InputData-DBC'!$L$10,CalculationsAndCharts!$A173+$A$11,0,1,1) -> 28.01 | G173: =OFFSET('InputData-DBC'!$M$10,CalculationsAndCharts!$A173+$A$11,0,1,1) -> 28.27 | H173: 28.0612 | I173: 0 | J173: 0 | K173: 0 | L173: 0 | M173: 0 | N173: 46672.05967 | O173: 0 | P173: 0 | Q173: 0 | R173: 46672.05967 | S173: =OFFSET('InputData-DDM'!$B$10,CalculationsAndCharts!$A173+$A$11,0,1,1) -> 2011-10-27 | T173: =OFFSET('InputData-DDM'!$G$10,CalculationsAndCharts!$A173+$A$11,0,1,1) -> 2003900 | U173: =OFFSET('InputData-DDM'!$J$10,CalculationsAndCharts!$A173+$A$11,0,1,1) -> 59.13 | V173: =OFFSET('InputData-DDM'!$K$10,CalculationsAndCharts!$A173+$A$11,0,1,1) -> 60.57 | W173: =OFFSET('InputData-DDM'!$L$10,CalculationsAndCharts!$A173+$A$11,0,1,1) -> 58.51 | X173: =OFFSET('InputData-DDM'!$M$10,CalculationsAndCharts!$A173+$A$11,0,1,1) -> 59.89 | Y173: 51.4692 | Z173: 0 | AA173: 0 | AB173: 753.1045058 | AC173: 0 | AD173: 0 | AE173: 1236.566543 | AF173: 39982.31821 | AG173: 0 | AH173: 0 | AI173: 45767.63597 | AJ173: 92439.69564
A174: 142 | B174: =OFFSET('InputData-DBC'!$B$10,CalculationsAndCharts!$A174+$A$11,0,1,1) -> 2011-10-26 | C174: =OFFSET('InputData-DBC'!$G$10,CalculationsAndCharts!$A174+$A$11,0,1,1) -> 1075300 | D174: =OFFSET('InputData-DBC'!$J$10,CalculationsAndCharts!$A174+$A$11,0,1,1) -> 27.83 | E174: =OFFSET('InputData-DBC'!$K$10,CalculationsAndCharts!$A174+$A$11,0,1,1) -> 27.87 | F174: =OFFSET('InputData-DBC'!$L$10,CalculationsAndCharts!$A174+$A$11,0,1,1) -> 27.43 | G174: =OFFSET('InputData-DBC'!$M$10,CalculationsAndCharts!$A174+$A$11,0,1,1) -> 27.54 | H174: 28.082 | I174: 0 | J174: 0 | K174: 0 | L174: 0 | M174: 0 | N174: 46672.05967 | O174: 0 | P174: 0 | Q174: 0 | R174: 46672.05967 | S174: =OFFSET('InputData-DDM'!$B$10,CalculationsAndCharts!$A174+$A$11,0,1,1) -> 2011-10-26 | T174: =OFFSET('InputData-DDM'!$G$10,CalculationsAndCharts!$A174+$A$11,0,1,1) -> 1367800 | U174: =OFFSET('InputData-DDM'!$J$10,CalculationsAndCharts!$A174+$A$11,0,1,1) -> 56.62 | V174: =OFFSET('InputData-DDM'!$K$10,CalculationsAndCharts!$A174+$A$11,0,1,1) -> 56.81 | W174: =OFFSET('InputData-DDM'!$L$10,CalculationsAndCharts!$A174+$A$11,0,1,1) -> 54.96 | X174: =OFFSET('InputData-DDM'!$M$10,CalculationsAndCharts!$A174+$A$11,0,1,1) -> 56.61 | Y174: 51.3276 | Z174: 0 | AA174: 0 | AB174: 753.1045058 | AC174: 0 | AD174: 0 | AE174: 1236.566543 | AF174: 39982.31821 | AG174: 0 | AH174: 0 | AI174: 43877.34366 | AJ174: 90549.40333
A175: 143 | B175: =OFFSET('InputData-DBC'!$B$10,CalculationsAndCharts!$A175+$A$11,0,1,1) -> 2011-10-25 | C175: =OFFSET('InputData-DBC'!$G$10,CalculationsAndCharts!$A175+$A$11,0,1,1) -> 2603100 | D175: =OFFSET('InputData-DBC'!$J$10,CalculationsAndCharts!$A175+$A$11,0,1,1) -> 27.61 | E175: =OFFSET('InputData-DBC'!$K$10,CalculationsAndCharts!$A175+$A$11,0,1,1) -> 27.82 | F175: =OFFSET('InputData-DBC'!$L$10,CalculationsAndCharts!$A175+$A$11,0,1,1) -> 27.38 | G175: =OFFSET('InputData-DBC'!$M$10,CalculationsAndCharts!$A175+$A$11,0,1,1) -> 27.7 | H175: 28.1124 | I175: 0 | J175: 0 | K175: 0 | L175: 0 | M175: 0 | N175: 46672.05967 | O175: 0 | P175: 0 | Q175: 0 | R175: 46672.05967 | S175: =OFFSET('InputData-DDM'!$B$10,CalculationsAndCharts!$A175+$A$11,0,1,1) -> 2011-10-25 | T175: =OFFSET('InputData-DDM'!$G$10,CalculationsAndCharts!$A175+$A$11,0,1,1) -> 894400 | U175: =OFFSET('InputData-DDM'!$J$10,CalculationsAndCharts!$A175+$A$11,0,1,1) -> 56.43 | V175: =OFFSET('InputData-DDM'!$K$10,CalculationsAndCharts!$A175+$A$11,0,1,1) -> 56.55 | W175: =OFFSET('InputData-DDM'!$L$10,CalculationsAndCharts!$A175+$A$11,0,1,1) -> 54.85 | X175: =OFFSET('InputData-DDM'!$M$10,CalculationsAndCharts!$A175+$A$11,0,1,1) -> 55.09 | Y175: 51.2478 | Z175: 0 | AA175: 0 | AB175: 753.1045058 | AC175: 0 | AD175: 0 | AE175: 1236.566543 | AF175: 39982.31821 | AG175: 0 | AH175: 0 | AI175: 43734.2538 | AJ175: 90406.31347
A176: 144 | B176: =OFFSET('InputData-DBC'!$B$10,CalculationsAndCharts!$A176+$A$11,0,1,1) -> 2011-10-24 | C176: =OFFSET('InputData-DBC'!$G$10,CalculationsAndCharts!$A176+$A$11,0,1,1) -> 1745600 | D176: =OFFSET('InputData-DBC'!$J$10,CalculationsAndCharts!$A176+$A$11,0,1,1) -> 27.39 | E176: =OFFSET('InputData-DBC'!$K$10,CalculationsAndCharts!$A176+$A$11,0,1,1) -> 27.67 | F176: =OFFSET('InputData-DBC'!$L$10,CalculationsAndCharts!$A176+$A$11,0,1,1) -> 27.39 | G176: =OFFSET('InputData-DBC'!$M$10,CalculationsAndCharts!$A176+$A$11,0,1,1) -> 27.61 | H176: 28.1396 | I176: 0 | J176: 0 | K176: 0 | L176: 0 | M176: 0 | N176: 46672.05967 | O176: 0 | P176: 0 | Q176: 0 | R176: 46672.05967 | S176: =OFFSET('InputData-DDM'!$B$10,CalculationsAndCharts!$A176+$A$11,0,1,1) -> 2011-10-24 | T176: =OFFSET('InputData-DDM'!$G$10,CalculationsAndCharts!$A176+$A$11,0,1,1) -> 1138000 | U176: =OFFSET('InputData-DDM'!$J$10,CalculationsAndCharts!$A176+$A$11,0,1,1) -> 56.36 | V176: =OFFSET('InputData-DDM'!$K$10,CalculationsAndCharts!$A176+$A$11,0,1,1) -> 57.33 | W176: =OFFSET('InputData-DDM'!$L$10,CalculationsAndCharts!$A176+$A$11,0,1,1) -> 56.24 | X176: =OFFSET('InputData-DDM'!$M$10,CalculationsAndCharts!$A176+$A$11,0,1,1) -> 57.04 | Y176: 51.2124 | Z176: 0 | AA176: 0 | AB176: 753.1045058 | AC176: 0 | AD176: 0 | AE176: 1236.566543 | AF176: 39982.31821 | AG176: 0 | AH176: 0 | AI176: 43681.53649 | AJ176: 90353.59616
A177: 145 | B177: =OFFSET('InputData-DBC'!$B$10,CalculationsAndCharts!$A177+$A$11,0,1,1) -> 2011-10-21 | C177: =OFFSET('InputData-DBC'!$G$10,CalculationsAndCharts!$A177+$A$11,0,1,1) -> 1327500 | D177: =OFFSET('InputData-DBC'!$J$10,CalculationsAndCharts!$A177+$A$11,0,1,1) -> 27.42 | E177: =OFFSET('InputData-DBC'!$K$10,CalculationsAndCharts!$A177+$A$11,0,1,1) -> 27.55 | F177: =OFFSET('InputData-DBC'!$L$10,CalculationsAndCharts!$A177+$A$11,0,1,1) -> 27.12 | G177: =OFFSET('InputData-DBC'!$M$10,CalculationsAndCharts!$A177+$A$11,0,1,1) -> 27.18 | H177: 28.1616 | I177: 0 | J177: 0 | K177: 0 | L177: 0 | M177: 0 | N177: 46672.05967 | O177: 0 | P177: 0 | Q177: 0 | R177: 46672.05967 | S177: =OFFSET('InputData-DDM'!$B$10,CalculationsAndCharts!$A177+$A$11,0,1,1) -> 2011-10-21 | T177: =OFFSET('InputData-DDM'!$G$10,CalculationsAndCharts!$A177+$A$11,0,1,1) -> 1427400 | U177: =OFFSET('InputData-DDM'!$J$10,CalculationsAndCharts!$A177+$A$11,0,1,1) -> 54.75 | V177: =OFFSET('InputData-DDM'!$K$10,CalculationsAndCharts!$A177+$A$11,0,1,1) -> 56.11 | W177: =OFFSET('InputData-DDM'!$L$10,CalculationsAndCharts!$A177+$A$11,0,1,1) -> 54.75 | X177: =OFFSET('InputData-DDM'!$M$10,CalculationsAndCharts!$A177+$A$11,0,1,1) -> 56.02 | Y177: 51.1002 | Z177: 0 | AA177: 0 | AB177: 753.1045058 | AC177: 0 | AD177: 0 | AE177: 1236.566543 | AF177: 39982.31821 | AG177: 0 | AH177: 0 | AI177: 42469.03823 | AJ177: 89141.0979
A178: 146 | B178: =OFFSET('InputData-DBC'!$B$10,CalculationsAndCharts!$A178+$A$11,0,1,1) -> 2011-10-20 | C178: =OFFSET('InputData-DBC'!$G$10,CalculationsAndCharts!$A178+$A$11,0,1,1) -> 1171100 | D178: =OFFSET('InputData-DBC'!$J$10,CalculationsAndCharts!$A178+$A$11,0,1,1) -> 26.95 | E178: =OFFSET('InputData-DBC'!$K$10,CalculationsAndCharts!$A178+$A$11,0,1,1) -> 27.21 | F178: =OFFSET('InputData-DBC'!$L$10,CalculationsAndCharts!$A178+$A$11,0,1,1) -> 26.58 | G178: =OFFSET('InputData-DBC'!$M$10,CalculationsAndCharts!$A178+$A$11,0,1,1) -> 27.04 | H178: 28.193 | I178: 0 | J178: 0 | K178: 0 | L178: 0 | M178: 0 | N178: 46672.05967 | O178: 0 | P178: 0 | Q178: 0 | R178: 46672.05967 | S178: =OFFSET('InputData-DDM'!$B$10,CalculationsAndCharts!$A178+$A$11,0,1,1) -> 2011-10-20 | T178: =OFFSET('InputData-DDM'!$G$10,CalculationsAndCharts!$A178+$A$11,0,1,1) -> 1882500 | U178: =OFFSET('InputData-DDM'!$J$10,CalculationsAndCharts!$A178+$A$11,0,1,1) -> 53.32 | V178: =OFFSET('InputData-DDM'!$K$10,CalculationsAndCharts!$A178+$A$11,0,1,1) -> 53.96 | W178: =OFFSET('InputData-DDM'!$L$10,CalculationsAndCharts!$A178+$A$11,0,1,1) -> 52.2 | X178: =OFFSET('InputData-DDM'!$M$10,CalculationsAndCharts!$A178+$A$11,0,1,1) -> 53.55 | Y178: 50.9808 | Z178: 0 | AA178: 0 | AB178: 753.1045058 | AC178: 0 | AD178: 0 | AE178: 1236.566543 | AF178: 39982.31821 | AG178: 0 | AH178: 0 | AI178: 41392.09879 | AJ178: 88064.15846
A179: 147 | B179: =OFFSET('InputData-DBC'!$B$10,CalculationsAndCharts!$A179+$A$11,0,1,1) -> 2011-10-19 | C179: =OFFSET('InputData-DBC'!$G$10,CalculationsAndCharts!$A179+$A$11,0,1,1) -> 1673100 | D179: =OFFSET('InputData-DBC'!$J$10,CalculationsAndCharts!$A179+$A$11,0,1,1) -> 27.55 | E179: =OFFSET('InputData-DBC'!$K$10,CalculationsAndCharts!$A179+$A$11,0,1,1) -> 27.74 | F179: =OFFSET('InputData-DBC'!$L$10,CalculationsAndCharts!$A179+$A$11,0,1,1) -> 27 | G179: =OFFSET('InputData-DBC'!$M$10,CalculationsAndCharts!$A179+$A$11,0,1,1) -> 27.08 | H179: 28.215 | I179: 0 | J179: 0 | K179: 0 | L179: 0 | M179: 0 | N179: 46672.05967 | O179: 0 | P179: 0 | Q179: 0 | R179: 46672.05967 | S179: =OFFSET('InputData-DDM'!$B$10,CalculationsAndCharts!$A179+$A$11,0,1,1) -> 2011-10-19 | T179: =OFFSET('InputData-DDM'!$G$10,CalculationsAndCharts!$A179+$A$11,0,1,1) -> 1512700 | U179: =OFFSET('InputData-DDM'!$J$10,CalculationsAndCharts!$A179+$A$11,0,1,1) -> 53.75 | V179: =OFFSET('InputData-DDM'!$K$10,CalculationsAndCharts!$A179+$A$11,0,1,1) -> 54.43 | W179: =OFFSET('InputData-DDM'!$L$10,CalculationsAndCharts!$A179+$A$11,0,1,1) -> 52.88 | X179: =OFFSET('InputData-DDM'!$M$10,CalculationsAndCharts!$A179+$A$11,0,1,1) -> 53.25 | Y179: 50.8398 | Z179: 0 | AA179: 0 | AB179: 753.1045058 | AC179: 0 | AD179: 0 | AE179: 1236.566543 | AF179: 39982.31821 | AG179: 0 | AH179: 0 | AI179: 41715.93373 | AJ179: 88387.9934
A180: 148 | B180: =OFFSET('InputData-DBC'!$B$10,CalculationsAndCharts!$A180+$A$11,0,1,1) -> 2011-10-18 | C180: =OFFSET('InputData-DBC'!$G$10,CalculationsAndCharts!$A180+$A$11,0,1,1) -> 1782200 | D180: =OFFSET('InputData-DBC'!$J$10,CalculationsAndCharts!$A180+$A$11,0,1,1) -> 27.24 | E180: =OFFSET('InputData-DBC'!$K$10,CalculationsAndCharts!$A180+$A$11,0,1,1) -> 27.76 | F180: =OFFSET('InputData-DBC'!$L$10,CalculationsAndCharts!$A180+$A$11,0,1,1) -> 27.08 | G180: =OFFSET('InputData-DBC'!$M$10,CalculationsAndCharts!$A180+$A$11,0,1,1) -> 27.62 | H180: 28.2338 | I180: 0 | J180: 0 | K180: 0 | L180: 0 | M180: 0 | N180: 46672.05967 | O180: 0 | P180: 0 | Q180: 0 | R180: 46672.05967 | S180: =OFFSET('InputData-DDM'!$B$10,CalculationsAndCharts!$A180+$A$11,0,1,1) -> 2011-10-18 | T180: =OFFSET('InputData-DDM'!$G$10,CalculationsAndCharts!$A180+$A$11,0,1,1) -> 1931500 | U180: =OFFSET('InputData-DDM'!$J$10,CalculationsAndCharts!$A180+$A$11,0,1,1) -> 51.93 | V180: =OFFSET('InputData-DDM'!$K$10,CalculationsAndCharts!$A180+$A$11,0,1,1) -> 54.57 | W180: =OFFSET('InputData-DDM'!$L$10,CalculationsAndCharts!$A180+$A$11,0,1,1) -> 51.29 | X180: =OFFSET('InputData-DDM'!$M$10,CalculationsAndCharts!$A180+$A$11,0,1,1) -> 53.8 | Y180: 50.8006 | Z180: 0 | AA180: 0 | AB180: 753.1045058 | AC180: 0 | AD180: 0 | AE180: 1236.566543 | AF180: 39982.31821 | AG180: 0 | AH180: 0 | AI180: 40345.28353 | AJ180: 87017.34319
A181: 149 | B181: =OFFSET('InputData-DBC'!$B$10,CalculationsAndCharts!$A181+$A$11,0,1,1) -> 2011-10-17 | C181: =OFFSET('InputData-DBC'!$G$10,CalculationsAndCharts!$A181+$A$11,0,1,1) -> 1249200 | D181: =OFFSET('InputData-DBC'!$J$10,CalculationsAndCharts!$A181+$A$11,0,1,1) -> 27.47 | E181: =OFFSET('InputData-DBC'!$K$10,CalculationsAndCharts!$A181+$A$11,0,1,1) -> 27.69 | F181: =OFFSET('InputData-DBC'!$L$10,CalculationsAndCharts!$A181+$A$11,0,1,1) -> 27.4 | G181: =OFFSET('InputData-DBC'!$M$10,CalculationsAndCharts!$A181+$A$11,0,1,1) -> 27.47 | H181: 28.2364 | I181: 0 | J181: 0 | K181: 0 | L181: 0 | M181: 0 | N181: 46672.05967 | O181: 0 | P181: 0 | Q181: 0 | R181: 46672.05967 | S181: =OFFSET('InputData-DDM'!$B$10,CalculationsAndCharts!$A181+$A$11,0,1,1) -> 2011-10-17 | T181: =OFFSET('InputData-DDM'!$G$10,CalculationsAndCharts!$A181+$A$11,0,1,1) -> 1452400 | U181: =OFFSET('InputData-DDM'!$J$10,CalculationsAndCharts!$A181+$A$11,0,1,1) -> 54.12 | V181: =OFFSET('InputData-DDM'!$K$10,CalculationsAndCharts!$A181+$A$11,0,1,1) -> 54.13 | W181: =OFFSET('InputData-DDM'!$L$10,CalculationsAndCharts!$A181+$A$11,0,1,1) -> 52.04 | X181: =OFFSET('InputData-DDM'!$M$10,CalculationsAndCharts!$A181+$A$11,0,1,1) -> 52.25 | Y181: 50.6754 | Z181: 0 | AA181: 0 | AB181: 753.1045058 | AC181: 0 | AD181: 0 | AE181: 1236.566543 | AF181: 39982.31821 | AG181: 0 | AH181: 0 | AI181: 41994.5824 | AJ181: 88666.64206
A182: 150 | B182: =OFFSET('InputData-DBC'!$B$10,CalculationsAndCharts!$A182+$A$11,0,1,1) -> 2011-10-14 | C182: =OFFSET('InputData-DBC'!$G$10,CalculationsAndCharts!$A182+$A$11,0,1,1) -> 1136000 | D182: =OFFSET('InputData-DBC'!$J$10,CalculationsAndCharts!$A182+$A$11,0,1,1) -> 27.73 | E182: =OFFSET('InputData-DBC'!$K$10,CalculationsAndCharts!$A182+$A$11,0,1,1) -> 27.89 | F182: =OFFSET('InputData-DBC'!$L$10,CalculationsAndCharts!$A182+$A$11,0,1,1) -> 27.62 | G182: =OFFSET('InputData-DBC'!$M$10,CalculationsAndCharts!$A182+$A$11,0,1,1) -> 27.87 | H182: 28.2634 | I182: 0 | J182: 0 | K182: 0 | L182: 0 | M182: 0 | N182: 46672.05967 | O182: 0 | P182: 0 | Q182: 0 | R182: 46672.05967 | S182: =OFFSET('InputData-DDM'!$B$10,CalculationsAndCharts!$A182+$A$11,0,1,1) -> 2011-10-14 | T182: =OFFSET('InputData-DDM'!$G$10,CalculationsAndCharts!$A182+$A$11,0,1,1) -> 827000 | U182: =OFFSET('InputData-DDM'!$J$10,CalculationsAndCharts!$A182+$A$11,0,1,1) -> 54.08 | V182: =OFFSET('InputData-DDM'!$K$10,CalculationsAndCharts!$A182+$A$11,0,1,1) -> 54.58 | W182: =OFFSET('InputData-DDM'!$L$10,CalculationsAndCharts!$A182+$A$11,0,1,1) -> 53.48 | X182: =OFFSET('InputData-DDM'!$M$10,CalculationsAndCharts!$A182+$A$11,0,1,1) -> 54.56 | Y182: 50.696 | Z182: 0 | AA182: 0 | AB182: 753.1045058 | AC182: 0 | AD182: 0 | AE182: 1236.566543 | AF182: 39982.31821 | AG182: 0 | AH182: 0 | AI182: 41964.45821 | AJ182: 88636.51788
A183: 151 | B183: =OFFSET('InputData-DBC'!$B$10,CalculationsAndCharts!$A183+$A$11,0,1,1) -> 2011-10-13 | C183: =OFFSET('InputData-DBC'!$G$10,CalculationsAndCharts!$A183+$A$11,0,1,1) -> 1679500 | D183: =OFFSET('InputData-DBC'!$J$10,CalculationsAndCharts!$A183+$A$11,0,1,1) -> 27.04 | E183: =OFFSET('InputData-DBC'!$K$10,CalculationsAndCharts!$A183+$A$11,0,1,1) -> 27.28 | F183: =OFFSET('InputData-DBC'!$L$10,CalculationsAndCharts!$A183+$A$11,0,1,1) -> 26.9 | G183: =OFFSET('InputData-DBC'!$M$10,CalculationsAndCharts!$A183+$A$11,0,1,1) -> 27.25 | H183: 28.28 | I183: 0 | J183: 0 | K183: 0 | L183: 0 | M183: 0 | N183: 46672.05967 | O183: 0 | P183: 0 | Q183: 0 | R183: 46672.05967 | S183: =OFFSET('InputData-DDM'!$B$10,CalculationsAndCharts!$A183+$A$11,0,1,1) -> 2011-10-13 | T183: =OFFSET('InputData-DDM'!$G$10,CalculationsAndCharts!$A183+$A$11,0,1,1) -> 1207100 | U183: =OFFSET('InputData-DDM'!$J$10,CalculationsAndCharts!$A183+$A$11,0,1,1) -> 52.88 | V183: =OFFSET('InputData-DDM'!$K$10,CalculationsAndCharts!$A183+$A$11,0,1,1) -> 53.31 | W183: =OFFSET('InputData-DDM'!$L$10,CalculationsAndCharts!$A183+$A$11,0,1,1) -> 52.06 | X183: =OFFSET('InputData-DDM'!$M$10,CalculationsAndCharts!$A183+$A$11,0,1,1) -> 52.98 | Y183: 50.6598 | Z183: 0 | AA183: 0 | AB183: 753.1045058 | AC183: 0 | AD183: 0 | AE183: 1236.566543 | AF183: 39982.31821 | AG183: 0 | AH183: 0 | AI183: 41060.73281 | AJ183: 87732.79248
A184: 152 | B184: =OFFSET('InputData-DBC'!$B$10,CalculationsAndCharts!$A184+$A$11,0,1,1) -> 2011-10-12 | C184: =OFFSET('InputData-DBC'!$G$10,CalculationsAndCharts!$A184+$A$11,0,1,1) -> 1367000 | D184: =OFFSET('InputData-DBC'!$J$10,CalculationsAndCharts!$A184+$A$11,0,1,1) -> 27.25 | E184: =OFFSET('InputData-DBC'!$K$10,CalculationsAndCharts!$A184+$A$11,0,1,1) -> 27.44 | F184: =OFFSET('InputData-DBC'!$L$10,CalculationsAndCharts!$A184+$A$11,0,1,1) -> 27.15 | G184: =OFFSET('InputData-DBC'!$M$10,CalculationsAndCharts!$A184+$A$11,0,1,1) -> 27.19 | H184: 28.3316 | I184: 0 | J184: 0 | K184: 0 | L184: 0 | M184: 0 | N184: 46672.05967 | O184: 0 | P184: 0 | Q184: 0 | R184: 46672.05967 | S184: =OFFSET('InputData-DDM'!$B$10,CalculationsAndCharts!$A184+$A$11,0,1,1) -> 2011-10-12 | T184: =OFFSET('InputData-DDM'!$G$10,CalculationsAndCharts!$A184+$A$11,0,1,1) -> 845100 | U184: =OFFSET('InputData-DDM'!$J$10,CalculationsAndCharts!$A184+$A$11,0,1,1) -> 53.09 | V184: =OFFSET('InputData-DDM'!$K$10,CalculationsAndCharts!$A184+$A$11,0,1,1) -> 54.36 | W184: =OFFSET('InputData-DDM'!$L$10,CalculationsAndCharts!$A184+$A$11,0,1,1) -> 52.8 | X184: =OFFSET('InputData-DDM'!$M$10,CalculationsAndCharts!$A184+$A$11,0,1,1) -> 53.36 | Y184: 50.755 | Z184: 1 | AA184: 0 | AB184: 753.1045058 | AC184: 53.09 | AD184: 0 | AE184: 1236.566543 | AF184: 39982.31821 | AG184: 0 | AH184: 0 | AI184: 41218.88475 | AJ184: 87890.94442
A185: 153 | B185: =OFFSET('InputData-DBC'!$B$10,CalculationsAndCharts!$A185+$A$11,0,1,1) -> 2011-10-11 | C185: =OFFSET('InputData-DBC'!$G$10,CalculationsAndCharts!$A185+$A$11,0,1,1) -> 1250700 | D185: =OFFSET('InputData-DBC'!$J$10,CalculationsAndCharts!$A185+$A$11,0,1,1) -> 26.65 | E185: =OFFSET('InputData-DBC'!$K$10,CalculationsAndCharts!$A185+$A$11,0,1,1) -> 27.27 | F185: =OFFSET('InputData-DBC'!$L$10,CalculationsAndCharts!$A185+$A$11,0,1,1) -> 26.6 | G185: =OFFSET('InputData-DBC'!$M$10,CalculationsAndCharts!$A185+$A$11,0,1,1) -> 27.14 | H185: 28.3934 | I185: 0 | J185: 0 | K185: 0 | L185: 0 | M185: 0 | N185: 46672.05967 | O185: 0 | P185: 0 | Q185: 0 | R185: 46672.05967 | S185: =OFFSET('InputData-DDM'!$B$10,CalculationsAndCharts!$A185+$A$11,0,1,1) -> 2011-10-11 | T185: =OFFSET('InputData-DDM'!$G$10,CalculationsAndCharts!$A185+$A$11,0,1,1) -> 1088800 | U185: =OFFSET('InputData-DDM'!$J$10,CalculationsAndCharts!$A185+$A$11,0,1,1) -> 52.02 | V185: =OFFSET('InputData-DDM'!$K$10,CalculationsAndCharts!$A185+$A$11,0,1,1) -> 52.72 | W185: =OFFSET('InputData-DDM'!$L$10,CalculationsAndCharts!$A185+$A$11,0,1,1) -> 51.96 | X185: =OFFSET('InputData-DDM'!$M$10,CalculationsAndCharts!$A185+$A$11,0,1,1) -> 52.42 | Y185: 50.8352 | Z185: 1 | AA185: 0 | AB185: 0 | AC185: 0 | AD185: 0 | AE185: 41218.88475 | AF185: 0 | AG185: 0 | AH185: 0 | AI185: 41218.88475 | AJ185: 87890.94442
A186: 154 | B186: =OFFSET('InputData-DBC'!$B$10,CalculationsAndCharts!$A186+$A$11,0,1,1) -> 2011-10-10 | C186: =OFFSET('InputData-DBC'!$G$10,CalculationsAndCharts!$A186+$A$11,0,1,1) -> 1416100 | D186: =OFFSET('InputData-DBC'!$J$10,CalculationsAndCharts!$A186+$A$11,0,1,1) -> 26.71 | E186: =OFFSET('InputData-DBC'!$K$10,CalculationsAndCharts!$A186+$A$11,0,1,1) -> 27.01 | F186: =OFFSET('InputData-DBC'!$L$10,CalculationsAndCharts!$A186+$A$11,0,1,1) -> 26.71 | G186: =OFFSET('InputData-DBC'!$M$10,CalculationsAndCharts!$A186+$A$11,0,1,1) -> 26.94 | H186: 28.4562 | I186: 0 | J186: 0 | K186: 0 | L186: 0 | M186: 0 | N186: 46672.05967 | O186: 0 | P186: 0 | Q186: 0 | R186: 46672.05967 | S186: =OFFSET('InputData-DDM'!$B$10,CalculationsAndCharts!$A186+$A$11,0,1,1) -> 2011-10-10 | T186: =OFFSET('InputData-DDM'!$G$10,CalculationsAndCharts!$A186+$A$11,0,1,1) -> 1134200 | U186: =OFFSET('InputData-DDM'!$J$10,CalculationsAndCharts!$A186+$A$11,0,1,1) -> 51.18 | V186: =OFFSET('InputData-DDM'!$K$10,CalculationsAndCharts!$A186+$A$11,0,1,1) -> 52.64 | W186: =OFFSET('InputData-DDM'!$L$10,CalculationsAndCharts!$A186+$A$11,0,1,1) -> 51.15 | X186: =OFFSET('InputData-DDM'!$M$10,CalculationsAndCharts!$A186+$A$11,0,1,1) -> 52.64 | Y186: 50.9866 | Z186: 0 | AA186: 0 | AB186: 0 | AC186: 0 | AD186: 0 | AE186: 41218.88475 | AF186: 0 | AG186: 0 | AH186: 0 | AI186: 41218.88475 | AJ186: 87890.94442
A187: 155 | B187: =OFFSET('InputData-DBC'!$B$10,CalculationsAndCharts!$A187+$A$11,0,1,1) -> 2011-10-07 | C187: =OFFSET('InputData-DBC'!$G$10,CalculationsAndCharts!$A187+$A$11,0,1,1) -> 2768100 | D187: =OFFSET('InputData-DBC'!$J$10,CalculationsAndCharts!$A187+$A$11,0,1,1) -> 26.48 | E187: =OFFSET('InputData-DBC'!$K$10,CalculationsAndCharts!$A187+$A$11,0,1,1) -> 26.56 | F187: =OFFSET('InputData-DBC'!$L$10,CalculationsAndCharts!$A187+$A$11,0,1,1) -> 26.13 | G187: =OFFSET('InputData-DBC'!$M$10,CalculationsAndCharts!$A187+$A$11,0,1,1) -> 26.35 | H187: 28.523 | I187: 0 | J187: 0 | K187: 0 | L187: 0 | M187: 0 | N187: 46672.05967 | O187: 0 | P187: 0 | Q187: 0 | R187: 46672.05967 | S187: =OFFSET('InputData-DDM'!$B$10,CalculationsAndCharts!$A187+$A$11,0,1,1) -> 2011-10-07 | T187: =OFFSET('InputData-DDM'!$G$10,CalculationsAndCharts!$A187+$A$11,0,1,1) -> 2574800 | U187: =OFFSET('InputData-DDM'!$J$10,CalculationsAndCharts!$A187+$A$11,0,1,1) -> 50.5 | V187: =OFFSET('InputData-DDM'!$K$10,CalculationsAndCharts!$A187+$A$11,0,1,1) -> 50.79 | W187: =OFFSET('InputData-DDM'!$L$10,CalculationsAndCharts!$A187+$A$11,0,1,1) -> 49.16 | X187: =OFFSET('InputData-DDM'!$M$10,CalculationsAndCharts!$A187+$A$11,0,1,1) -> 49.71 | Y187: 51.138 | Z187: 0 | AA187: 0 | AB187: 0 | AC187: 0 | AD187: 0 | AE187: 41218.88475 | AF187: 0 | AG187: 0 | AH187: 0 | AI187: 41218.88475 | AJ187: 87890.94442
A188: 156 | B188: =OFFSET('InputData-DBC'!$B$10,CalculationsAndCharts!$A188+$A$11,0,1,1) -> 2011-10-06 | C188: =OFFSET('InputData-DBC'!$G$10,CalculationsAndCharts!$A188+$A$11,0,1,1) -> 1003900 | D188: =OFFSET('InputData-DBC'!$J$10,CalculationsAndCharts!$A188+$A$11,0,1,1) -> 25.99 | E188: =OFFSET('InputData-DBC'!$K$10,CalculationsAndCharts!$A188+$A$11,0,1,1) -> 26.51 | F188: =OFFSET('InputData-DBC'!$L$10,CalculationsAndCharts!$A188+$A$11,0,1,1) -> 25.9 | G188: =OFFSET('InputData-DBC'!$M$10,CalculationsAndCharts!$A188+$A$11,0,1,1) -> 26.47 | H188: 28.6066 | I188: 0 | J188: 0 | K188: 0 | L188: 0 | M188: 0 | N188: 46672.05967 | O188: 0 | P188: 0 | Q188: 0 | R188: 46672.05967 | S188: =OFFSET('InputData-DDM'!$B$10,CalculationsAndCharts!$A188+$A$11,0,1,1) -> 2011-10-06 | T188: =OFFSET('InputData-DDM'!$G$10,CalculationsAndCharts!$A188+$A$11,0,1,1) -> 2070500 | U188: =OFFSET('InputData-DDM'!$J$10,CalculationsAndCharts!$A188+$A$11,0,1,1) -> 48.24 | V188: =OFFSET('InputData-DDM'!$K$10,CalculationsAndCharts!$A188+$A$11,0,1,1) -> 49.89 | W188: =OFFSET('InputData-DDM'!$L$10,CalculationsAndCharts!$A188+$A$11,0,1,1) -> 47.51 | X188: =OFFSET('InputData-DDM'!$M$10,CalculationsAndCharts!$A188+$A$11,0,1,1) -> 49.85 | Y188: 51.3674 | Z188: 0 | AA188: 0 | AB188: 0 | AC188: 0 | AD188: 0 | AE188: 41218.88475 | AF188: 0 | AG188: 0 | AH188: 0 | AI188: 41218.88475 | AJ188: 87890.94442
A189: 157 | B189: =OFFSET('InputData-DBC'!$B$10,CalculationsAndCharts!$A189+$A$11,0,1,1) -> 2011-10-05 | C189: =OFFSET('InputData-DBC'!$G$10,CalculationsAndCharts!$A189+$A$11,0,1,1) -> 3202300 | D189: =OFFSET('InputData-DBC'!$J$10,CalculationsAndCharts!$A189+$A$11,0,1,1) -> 25.65 | E189: =OFFSET('InputData-DBC'!$K$10,CalculationsAndCharts!$A189+$A$11,0,1,1) -> 26 | F189: =OFFSET('InputData-DBC'!$L$10,CalculationsAndCharts!$A189+$A$11,0,1,1) -> 25.52 | G189: =OFFSET('InputData-DBC'!$M$10,CalculationsAndCharts!$A189+$A$11,0,1,1) -> 25.93 | H189: 28.6898 | I189: 0 | J189: 0 | K189: 0 | L189: 0 | M189: 0 | N189: 46672.05967 | O189: 0 | P189: 0 | Q189: 0 | R189: 46672.05967 | S189: =OFFSET('InputData-DDM'!$B$10,CalculationsAndCharts!$A189+$A$11,0,1,1) -> 2011-10-05 | T189: =OFFSET('InputData-DDM'!$G$10,CalculationsAndCharts!$A189+$A$11,0,1,1) -> 2006400 | U189: =OFFSET('InputData-DDM'!$J$10,CalculationsAndCharts!$A189+$A$11,0,1,1) -> 46.96 | V189: =OFFSET('InputData-DDM'!$K$10,CalculationsAndCharts!$A189+$A$11,0,1,1) -> 48.31 | W189: =OFFSET('InputData-DDM'!$L$10,CalculationsAndCharts!$A189+$A$11,0,1,1) -> 46.46 | X189: =OFFSET('InputData-DDM'!$M$10,CalculationsAndCharts!$A189+$A$11,0,1,1) -> 48.21 | Y189: 51.6064 | Z189: 0 | AA189: 0 | AB189: 0 | AC189: 0 | AD189: 0 | AE189: 41218.88475 | AF189: 0 | AG189: 0 | AH189: 0 | AI189: 41218.88475 | AJ189: 87890.94442
A190: 158 | B190: =OFFSET('InputData-DBC'!$B$10,CalculationsAndCharts!$A190+$A$11,0,1,1) -> 2011-10-04 | C190: =OFFSET('InputData-DBC'!$G$10,CalculationsAndCharts!$A190+$A$11,0,1,1) -> 3500000 | D190: =OFFSET('InputData-DBC'!$J$10,CalculationsAndCharts!$A190+$A$11,0,1,1) -> 25.45 | E190: =OFFSET('InputData-DBC'!$K$10,CalculationsAndCharts!$A190+$A$11,0,1,1) -> 25.66 | F190: =OFFSET('InputData-DBC'!$L$10,CalculationsAndCharts!$A190+$A$11,0,1,1) -> 25.19 | G190: =OFFSET('InputData-DBC'!$M$10,CalculationsAndCharts!$A190+$A$11,0,1,1) -> 25.57 | H190: 28.788 | I190: 0 | J190: 0 | K190: 0 | L190: 0 | M190: 0 | N190: 46672.05967 | O190: 0 | P190: 0 | Q190: 0 | R190: 46672.05967 | S190: =OFFSET('InputData-DDM'!$B$10,CalculationsAndCharts!$A190+$A$11,0,1,1) -> 2011-10-04 | T190: =OFFSET('InputData-DDM'!$G$10,CalculationsAndCharts!$A190+$A$11,0,1,1) -> 3200000 | U190: =OFFSET('InputData-DDM'!$J$10,CalculationsAndCharts!$A190+$A$11,0,1,1) -> 44.62 | V190: =OFFSET('InputData-DDM'!$K$10,CalculationsAndCharts!$A190+$A$11,0,1,1) -> 47.14 | W190: =OFFSET('InputData-DDM'!$L$10,CalculationsAndCharts!$A190+$A$11,0,1,1) -> 43.55 | X190: =OFFSET('InputData-DDM'!$M$10,CalculationsAndCharts!$A190+$A$11,0,1,1) -> 46.83 | Y190: 51.9186 | Z190: 0 | AA190: 0 | AB190: 0 | AC190: 0 | AD190: 0 | AE190: 41218.88475 | AF190: 0 | AG190: 0 | AH190: 0 | AI190: 41218.88475 | AJ190: 87890.94442
A191: 159 | B191: =OFFSET('InputData-DBC'!$B$10,CalculationsAndCharts!$A191+$A$11,0,1,1) -> 2011-10-03 | C191: =OFFSET('InputData-DBC'!$G$10,CalculationsAndCharts!$A191+$A$11,0,1,1) -> 10602800 | D191: =OFFSET('InputData-DBC'!$J$10,CalculationsAndCharts!$A191+$A$11,0,1,1) -> 25.31 | E191: =OFFSET('InputData-DBC'!$K$10,CalculationsAndCharts!$A191+$A$11,0,1,1) -> 25.97 | F191: =OFFSET('InputData-DBC'!$L$10,CalculationsAndCharts!$A191+$A$11,0,1,1) -> 25.25 | G191: =OFFSET('InputData-DBC'!$M$10,CalculationsAndCharts!$A191+$A$11,0,1,1) -> 25.62 | H191: 28.8886 | I191: 0 | J191: 0 | K191: 0 | L191: 0 | M191: 0 | N191: 46672.05967 | O191: 0 | P191: 0 | Q191: 0 | R191: 46672.05967 | S191: =OFFSET('InputData-DDM'!$B$10,CalculationsAndCharts!$A191+$A$11,0,1,1) -> 2011-10-03 | T191: =OFFSET('InputData-DDM'!$G$10,CalculationsAndCharts!$A191+$A$11,0,1,1) -> 2510700 | U191: =OFFSET('InputData-DDM'!$J$10,CalculationsAndCharts!$A191+$A$11,0,1,1) -> 47.37 | V191: =OFFSET('InputData-DDM'!$K$10,CalculationsAndCharts!$A191+$A$11,0,1,1) -> 48.52 | W191: =OFFSET('InputData-DDM'!$L$10,CalculationsAndCharts!$A191+$A$11,0,1,1) -> 45.65 | X191: =OFFSET('InputData-DDM'!$M$10,CalculationsAndCharts!$A191+$A$11,0,1,1) -> 45.73 | Y191: 52.277 | Z191: 0 | AA191: 0 | AB191: 0 | AC191: 0 | AD191: 0 | AE191: 41218.88475 | AF191: 0 | AG191: 0 | AH191: 0 | AI191: 41218.88475 | AJ191: 87890.94442
A192: 160 | B192: =OFFSET('InputData-DBC'!$B$10,CalculationsAndCharts!$A192+$A$11,0,1,1) -> 2011-09-30 | C192: =OFFSET('InputData-DBC'!$G$10,CalculationsAndCharts!$A192+$A$11,0,1,1) -> 4846000 | D192: =OFFSET('InputData-DBC'!$J$10,CalculationsAndCharts!$A192+$A$11,0,1,1) -> 26.09 | E192: =OFFSET('InputData-DBC'!$K$10,CalculationsAndCharts!$A192+$A$11,0,1,1) -> 26.22 | F192: =OFFSET('InputData-DBC'!$L$10,CalculationsAndCharts!$A192+$A$11,0,1,1) -> 25.67 | G192: =OFFSET('InputData-DBC'!$M$10,CalculationsAndCharts!$A192+$A$11,0,1,1) -> 25.75 | H192: 28.9912 | I192: 0 | J192: 0 | K192: 0 | L192: 0 | M192: 0 | N192: 46672.05967 | O192: 0 | P192: 0 | Q192: 0 | R192: 46672.05967 | S192: =OFFSET('InputData-DDM'!$B$10,CalculationsAndCharts!$A192+$A$11,0,1,1) -> 2011-09-30 | T192: =OFFSET('InputData-DDM'!$G$10,CalculationsAndCharts!$A192+$A$11,0,1,1) -> 2086500 | U192: =OFFSET('InputData-DDM'!$J$10,CalculationsAndCharts!$A192+$A$11,0,1,1) -> 48.77 | V192: =OFFSET('InputData-DDM'!$K$10,CalculationsAndCharts!$A192+$A$11,0,1,1) -> 49.97 | W192: =OFFSET('InputData-DDM'!$L$10,CalculationsAndCharts!$A192+$A$11,0,1,1) -> 47.91 | X192: =OFFSET('InputData-DDM'!$M$10,CalculationsAndCharts!$A192+$A$11,0,1,1) -> 48.06 | Y192: 52.6756 | Z192: 0 | AA192: 0 | AB192: 0 | AC192: 0 | AD192: 0 | AE192: 41218.88475 | AF192: 0 | AG192: 0 | AH192: 0 | AI192: 41218.88475 | AJ192: 87890.94442
A193: 161 | B193: =OFFSET('InputData-DBC'!$B$10,CalculationsAndCharts!$A193+$A$11,0,1,1) -> 2011-09-29 | C193: =OFFSET('InputData-DBC'!$G$10,CalculationsAndCharts!$A193+$A$11,0,1,1) -> 2909400 | D193: =OFFSET('InputData-DBC'!$J$10,CalculationsAndCharts!$A193+$A$11,0,1,1) -> 26.76 | E193: =OFFSET('InputData-DBC'!$K$10,CalculationsAndCharts!$A193+$A$11,0,1,1) -> 26.87 | F193: =OFFSET('InputData-DBC'!$L$10,CalculationsAndCharts!$A193+$A$11,0,1,1) -> 26.5 | G193: =OFFSET('InputData-DBC'!$M$10,CalculationsAndCharts!$A193+$A$11,0,1,1) -> 26.67 | H193: 29.0862 | I193: 0 | J193: 0 | K193: 0 | L193: 0 | M193: 0 | N193: 46672.05967 | O193: 0 | P193: 0 | Q193: 0 | R193: 46672.05967 | S193: =OFFSET('InputData-DDM'!$B$10,CalculationsAndCharts!$A193+$A$11,0,1,1) -> 2011-09-29 | T193: =OFFSET('InputData-DDM'!$G$10,CalculationsAndCharts!$A193+$A$11,0,1,1) -> 2323000 | U193: =OFFSET('InputData-DDM'!$J$10,CalculationsAndCharts!$A193+$A$11,0,1,1) -> 50.59 | V193: =OFFSET('InputData-DDM'!$K$10,CalculationsAndCharts!$A193+$A$11,0,1,1) -> 51.15 | W193: =OFFSET('InputData-DDM'!$L$10,CalculationsAndCharts!$A193+$A$11,0,1,1) -> 48.43 | X193: =OFFSET('InputData-DDM'!$M$10,CalculationsAndCharts!$A193+$A$11,0,1,1) -> 50.18 | Y193: 53.0368 | Z193: 0 | AA193: 0 | AB193: 0 | AC193: 0 | AD193: 0 | AE193: 41218.88475 | AF193: 0 | AG193: 0 | AH193: 0 | AI193: 41218.88475 | AJ193: 87890.94442
A194: 162 | B194: =OFFSET('InputData-DBC'!$B$10,CalculationsAndCharts!$A194+$A$11,0,1,1) -> 2011-09-28 | C194: =OFFSET('InputData-DBC'!$G$10,CalculationsAndCharts!$A194+$A$11,0,1,1) -> 7995900 | D194: =OFFSET('InputData-DBC'!$J$10,CalculationsAndCharts!$A194+$A$11,0,1,1) -> 27.04 | E194: =OFFSET('InputData-DBC'!$K$10,CalculationsAndCharts!$A194+$A$11,0,1,1) -> 27.11 | F194: =OFFSET('InputData-DBC'!$L$10,CalculationsAndCharts!$A194+$A$11,0,1,1) -> 26.34 | G194: =OFFSET('InputData-DBC'!$M$10,CalculationsAndCharts!$A194+$A$11,0,1,1) -> 26.36 | H194: 29.1658 | I194: 0 | J194: 0 | K194: 0 | L194: 0 | M194: 0 | N194: 46672.05967 | O194: 0 | P194: 0 | Q194: 0 | R194: 46672.05967 | S194: =OFFSET('InputData-DDM'!$B$10,CalculationsAndCharts!$A194+$A$11,0,1,1) -> 2011-09-28 | T194: =OFFSET('InputData-DDM'!$G$10,CalculationsAndCharts!$A194+$A$11,0,1,1) -> 1191400 | U194: =OFFSET('InputData-DDM'!$J$10,CalculationsAndCharts!$A194+$A$11,0,1,1) -> 50.82 | V194: =OFFSET('InputData-DDM'!$K$10,CalculationsAndCharts!$A194+$A$11,0,1,1) -> 51.6 | W194: =OFFSET('InputData-DDM'!$L$10,CalculationsAndCharts!$A194+$A$11,0,1,1) -> 48.71 | X194: =OFFSET('InputData-DDM'!$M$10,CalculationsAndCharts!$A194+$A$11,0,1,1) -> 48.87 | Y194: 53.3244 | Z194: 0 | AA194: 0 | AB194: 0 | AC194: 0 | AD194: 0 | AE194: 41218.88475 | AF194: 0 | AG194: 0 | AH194: 0 | AI194: 41218.88475 | AJ194: 87890.94442
A195: 163 | B195: =OFFSET('InputData-DBC'!$B$10,CalculationsAndCharts!$A195+$A$11,0,1,1) -> 2011-09-27 | C195: =OFFSET('InputData-DBC'!$G$10,CalculationsAndCharts!$A195+$A$11,0,1,1) -> 3735600 | D195: =OFFSET('InputData-DBC'!$J$10,CalculationsAndCharts!$A195+$A$11,0,1,1) -> 27.14 | E195: =OFFSET('InputData-DBC'!$K$10,CalculationsAndCharts!$A195+$A$11,0,1,1) -> 27.37 | F195: =OFFSET('InputData-DBC'!$L$10,CalculationsAndCharts!$A195+$A$11,0,1,1) -> 27.06 | G195: =OFFSET('InputData-DBC'!$M$10,CalculationsAndCharts!$A195+$A$11,0,1,1) -> 27.09 | H195: 29.2496 | I195: 0 | J195: 0 | K195: 0 | L195: 0 | M195: 0 | N195: 46672.05967 | O195: 0 | P195: 0 | Q195: 0 | R195: 46672.05967 | S195: =OFFSET('InputData-DDM'!$B$10,CalculationsAndCharts!$A195+$A$11,0,1,1) -> 2011-09-27 | T195: =OFFSET('InputData-DDM'!$G$10,CalculationsAndCharts!$A195+$A$11,0,1,1) -> 2307600 | U195: =OFFSET('InputData-DDM'!$J$10,CalculationsAndCharts!$A195+$A$11,0,1,1) -> 51.12 | V195: =OFFSET('InputData-DDM'!$K$10,CalculationsAndCharts!$A195+$A$11,0,1,1) -> 52.05 | W195: =OFFSET('InputData-DDM'!$L$10,CalculationsAndCharts!$A195+$A$11,0,1,1) -> 49.95 | X195: =OFFSET('InputData-DDM'!$M$10,CalculationsAndCharts!$A195+$A$11,0,1,1) -> 50.46 | Y195: 53.6402 | Z195: 0 | AA195: 0 | AB195: 0 | AC195: 0 | AD195: 0 | AE195: 41218.88475 | AF195: 0 | AG195: 0 | AH195: 0 | AI195: 41218.88475 | AJ195: 87890.94442
A196: 164 | B196: =OFFSET('InputData-DBC'!$B$10,CalculationsAndCharts!$A196+$A$11,0,1,1) -> 2011-09-26 | C196: =OFFSET('InputData-DBC'!$G$10,CalculationsAndCharts!$A196+$A$11,0,1,1) -> 4538800 | D196: =OFFSET('InputData-DBC'!$J$10,CalculationsAndCharts!$A196+$A$11,0,1,1) -> 26.39 | E196: =OFFSET('InputData-DBC'!$K$10,CalculationsAndCharts!$A196+$A$11,0,1,1) -> 26.67 | F196: =OFFSET('InputData-DBC'!$L$10,CalculationsAndCharts!$A196+$A$11,0,1,1) -> 26.1 | G196: =OFFSET('InputData-DBC'!$M$10,CalculationsAndCharts!$A196+$A$11,0,1,1) -> 26.64 | H196: 29.3146 | I196: 0 | J196: 0 | K196: 0 | L196: 0 | M196: 0 | N196: 46672.05967 | O196: 0 | P196: 0 | Q196: 0 | R196: 46672.05967 | S196: =OFFSET('InputData-DDM'!$B$10,CalculationsAndCharts!$A196+$A$11,0,1,1) -> 2011-09-26 | T196: =OFFSET('InputData-DDM'!$G$10,CalculationsAndCharts!$A196+$A$11,0,1,1) -> 2630700 | U196: =OFFSET('InputData-DDM'!$J$10,CalculationsAndCharts!$A196+$A$11,0,1,1) -> 47.56 | V196: =OFFSET('InputData-DDM'!$K$10,CalculationsAndCharts!$A196+$A$11,0,1,1) -> 49.26 | W196: =OFFSET('InputData-DDM'!$L$10,CalculationsAndCharts!$A196+$A$11,0,1,1) -> 46.8 | X196: =OFFSET('InputData-DDM'!$M$10,CalculationsAndCharts!$A196+$A$11,0,1,1) -> 49.17 | Y196: 53.883 | Z196: 0 | AA196: 0 | AB196: 0 | AC196: 0 | AD196: 0 | AE196: 41218.88475 | AF196: 0 | AG196: 0 | AH196: 0 | AI196: 41218.88475 | AJ196: 87890.94442
A197: 165 | B197: =OFFSET('InputData-DBC'!$B$10,CalculationsAndCharts!$A197+$A$11,0,1,1) -> 2011-09-23 | C197: =OFFSET('InputData-DBC'!$G$10,CalculationsAndCharts!$A197+$A$11,0,1,1) -> 6197800 | D197: =OFFSET('InputData-DBC'!$J$10,CalculationsAndCharts!$A197+$A$11,0,1,1) -> 26.75 | E197: =OFFSET('InputData-DBC'!$K$10,CalculationsAndCharts!$A197+$A$11,0,1,1) -> 26.95 | F197: =OFFSET('InputData-DBC'!$L$10,CalculationsAndCharts!$A197+$A$11,0,1,1) -> 26.42 | G197: =OFFSET('InputData-DBC'!$M$10,CalculationsAndCharts!$A197+$A$11,0,1,1) -> 26.55 | H197: 29.392 | I197: 0 | J197: 0 | K197: 0 | L197: 0 | M197: 0 | N197: 46672.05967 | O197: 0 | P197: 0 | Q197: 0 | R197: 46672.05967 | S197: =OFFSET('InputData-DDM'!$B$10,CalculationsAndCharts!$A197+$A$11,0,1,1) -> 2011-09-23 | T197: =OFFSET('InputData-DDM'!$G$10,CalculationsAndCharts!$A197+$A$11,0,1,1) -> 1897700 | U197: =OFFSET('InputData-DDM'!$J$10,CalculationsAndCharts!$A197+$A$11,0,1,1) -> 45.92 | V197: =OFFSET('InputData-DDM'!$K$10,CalculationsAndCharts!$A197+$A$11,0,1,1) -> 47.13 | W197: =OFFSET('InputData-DDM'!$L$10,CalculationsAndCharts!$A197+$A$11,0,1,1) -> 45.61 | X197: =OFFSET('InputData-DDM'!$M$10,CalculationsAndCharts!$A197+$A$11,0,1,1) -> 46.73 | Y197: 54.1716 | Z197: 0 | AA197: 0 | AB197: 0 | AC197: 0 | AD197: 0 | AE197: 41218.88475 | AF197: 0 | AG197: 0 | AH197: 0 | AI197: 41218.88475 | AJ197: 87890.94442
A198: 166 | B198: =OFFSET('InputData-DBC'!$B$10,CalculationsAndCharts!$A198+$A$11,0,1,1) -> 2011-09-22 | C198: =OFFSET('InputData-DBC'!$G$10,CalculationsAndCharts!$A198+$A$11,0,1,1) -> 9573000 | D198: =OFFSET('InputData-DBC'!$J$10,CalculationsAndCharts!$A198+$A$11,0,1,1) -> 27.21 | E198: =OFFSET('InputData-DBC'!$K$10,CalculationsAndCharts!$A198+$A$11,0,1,1) -> 27.44 | F198: =OFFSET('InputData-DBC'!$L$10,CalculationsAndCharts!$A198+$A$11,0,1,1) -> 26.91 | G198: =OFFSET('InputData-DBC'!$M$10,CalculationsAndCharts!$A198+$A$11,0,1,1) -> 27.03 | H198: 29.4658 | I198: 0 | J198: 0 | K198: 0 | L198: 0 | M198: 0 | N198: 46672.05967 | O198: 0 | P198: 0 | Q198: 0 | R198: 46672.05967 | S198: =OFFSET('InputData-DDM'!$B$10,CalculationsAndCharts!$A198+$A$11,0,1,1) -> 2011-09-22 | T198: =OFFSET('InputData-DDM'!$G$10,CalculationsAndCharts!$A198+$A$11,0,1,1) -> 3588800 | U198: =OFFSET('InputData-DDM'!$J$10,CalculationsAndCharts!$A198+$A$11,0,1,1) -> 47.23 | V198: =OFFSET('InputData-DDM'!$K$10,CalculationsAndCharts!$A198+$A$11,0,1,1) -> 47.63 | W198: =OFFSET('InputData-DDM'!$L$10,CalculationsAndCharts!$A198+$A$11,0,1,1) -> 45.24 | X198: =OFFSET('InputData-DDM'!$M$10,CalculationsAndCharts!$A198+$A$11,0,1,1) -> 46.4 | Y198: 54.499 | Z198: 0 | AA198: 0 | AB198: 0 | AC198: 0 | AD198: 0 | AE198: 41218.88475 | AF198: 0 | AG198: 0 | AH198: 0 | AI198: 41218.88475 | AJ198: 87890.94442
A199: 167 | B199: =OFFSET('InputData-DBC'!$B$10,CalculationsAndCharts!$A199+$A$11,0,1,1) -> 2011-09-21 | C199: =OFFSET('InputData-DBC'!$G$10,CalculationsAndCharts!$A199+$A$11,0,1,1) -> 1769400 | D199: =OFFSET('InputData-DBC'!$J$10,CalculationsAndCharts!$A199+$A$11,0,1,1) -> 28.52 | E199: =OFFSET('InputData-DBC'!$K$10,CalculationsAndCharts!$A199+$A$11,0,1,1) -> 28.72 | F199: =OFFSET('InputData-DBC'!$L$10,CalculationsAndCharts!$A199+$A$11,0,1,1) -> 28.02 | G199: =OFFSET('InputData-DBC'!$M$10,CalculationsAndCharts!$A199+$A$11,0,1,1) -> 28.02 | H199: 29.5334 | I199: 0 | J199: 0 | K199: 0 | L199: 0 | M199: 0 | N199: 46672.05967 | O199: 0 | P199: 0 | Q199: 0 | R199: 46672.05967 | S199: =OFFSET('InputData-DDM'!$B$10,CalculationsAndCharts!$A199+$A$11,0,1,1) -> 2011-09-21 | T199: =OFFSET('InputData-DDM'!$G$10,CalculationsAndCharts!$A199+$A$11,0,1,1) -> 2670200 | U199: =OFFSET('InputData-DDM'!$J$10,CalculationsAndCharts!$A199+$A$11,0,1,1) -> 52.7 | V199: =OFFSET('InputData-DDM'!$K$10,CalculationsAndCharts!$A199+$A$11,0,1,1) -> 52.96 | W199: =OFFSET('InputData-DDM'!$L$10,CalculationsAndCharts!$A199+$A$11,0,1,1) -> 49.87 | X199: =OFFSET('InputData-DDM'!$M$10,CalculationsAndCharts!$A199+$A$11,0,1,1) -> 49.87 | Y199: 54.8458 | Z199: 0 | AA199: 0 | AB199: 0 | AC199: 0 | AD199: 0 | AE199: 41218.88475 | AF199: 0 | AG199: 0 | AH199: 0 | AI199: 41218.88475 | AJ199: 87890.94442
A200: 168 | B200: =OFFSET('InputData-DBC'!$B$10,CalculationsAndCharts!$A200+$A$11,0,1,1) -> 2011-09-20 | C200: =OFFSET('InputData-DBC'!$G$10,CalculationsAndCharts!$A200+$A$11,0,1,1) -> 1722100 | D200: =OFFSET('InputData-DBC'!$J$10,CalculationsAndCharts!$A200+$A$11,0,1,1) -> 28.55 | E200: =OFFSET('InputData-DBC'!$K$10,CalculationsAndCharts!$A200+$A$11,0,1,1) -> 28.78 | F200: =OFFSET('InputData-DBC'!$L$10,CalculationsAndCharts!$A200+$A$11,0,1,1) -> 28.44 | G200: =OFFSET('InputData-DBC'!$M$10,CalculationsAndCharts!$A200+$A$11,0,1,1) -> 28.44 | H200: 29.573 | I200: 0 | J200: 0 | K200: 0 | L200: 0 | M200: 0 | N200: 46672.05967 | O200: 0 | P200: 0 | Q200: 0 | R200: 46672.05967 | S200: =OFFSET('InputData-DDM'!$B$10,CalculationsAndCharts!$A200+$A$11,0,1,1) -> 2011-09-20 | T200: =OFFSET('InputData-DDM'!$G$10,CalculationsAndCharts!$A200+$A$11,0,1,1) -> 1999700 | U200: =OFFSET('InputData-DDM'!$J$10,CalculationsAndCharts!$A200+$A$11,0,1,1) -> 52.95 | V200: =OFFSET('InputData-DDM'!$K$10,CalculationsAndCharts!$A200+$A$11,0,1,1) -> 53.9 | W200: =OFFSET('InputData-DDM'!$L$10,CalculationsAndCharts!$A200+$A$11,0,1,1) -> 52.28 | X200: =OFFSET('InputData-DDM'!$M$10,CalculationsAndCharts!$A200+$A$11,0,1,1) -> 52.64 | Y200: 55.1134 | Z200: 0 | AA200: 0 | AB200: 0 | AC200: 0 | AD200: 0 | AE200: 41218.88475 | AF200: 0 | AG200: 0 | AH200: 0 | AI200: 41218.88475 | AJ200: 87890.94442
A201: 169 | B201: =OFFSET('InputData-DBC'!$B$10,CalculationsAndCharts!$A201+$A$11,0,1,1) -> 2011-09-19 | C201: =OFFSET('InputData-DBC'!$G$10,CalculationsAndCharts!$A201+$A$11,0,1,1) -> 3830200 | D201: =OFFSET('InputData-DBC'!$J$10,CalculationsAndCharts!$A201+$A$11,0,1,1) -> 28.67 | E201: =OFFSET('InputData-DBC'!$K$10,CalculationsAndCharts!$A201+$A$11,0,1,1) -> 28.67 | F201: =OFFSET('InputData-DBC'!$L$10,CalculationsAndCharts!$A201+$A$11,0,1,1) -> 28.2 | G201: =OFFSET('InputData-DBC'!$M$10,CalculationsAndCharts!$A201+$A$11,0,1,1) -> 28.49 | H201: 29.599 | I201: 0 | J201: 0 | K201: 0 | L201: 0 | M201: 0 | N201: 46672.05967 | O201: 0 | P201: 0 | Q201: 0 | R201: 46672.05967 | S201: =OFFSET('InputData-DDM'!$B$10,CalculationsAndCharts!$A201+$A$11,0,1,1) -> 2011-09-19 | T201: =OFFSET('InputData-DDM'!$G$10,CalculationsAndCharts!$A201+$A$11,0,1,1) -> 1746700 | U201: =OFFSET('InputData-DDM'!$J$10,CalculationsAndCharts!$A201+$A$11,0,1,1) -> 51.91 | V201: =OFFSET('InputData-DDM'!$K$10,CalculationsAndCharts!$A201+$A$11,0,1,1) -> 52.95 | W201: =OFFSET('InputData-DDM'!$L$10,CalculationsAndCharts!$A201+$A$11,0,1,1) -> 51.15 | X201: =OFFSET('InputData-DDM'!$M$10,CalculationsAndCharts!$A201+$A$11,0,1,1) -> 52.49 | Y201: 55.3372 | Z201: 0 | AA201: 0 | AB201: 0 | AC201: 0 | AD201: 0 | AE201: 41218.88475 | AF201: 0 | AG201: 0 | AH201: 0 | AI201: 41218.88475 | AJ201: 87890.94442
A202: 170 | B202: =OFFSET('InputData-DBC'!$B$10,CalculationsAndCharts!$A202+$A$11,0,1,1) -> 2011-09-16 | C202: =OFFSET('InputData-DBC'!$G$10,CalculationsAndCharts!$A202+$A$11,0,1,1) -> 1680600 | D202: =OFFSET('InputData-DBC'!$J$10,CalculationsAndCharts!$A202+$A$11,0,1,1) -> 29.23 | E202: =OFFSET('InputData-DBC'!$K$10,CalculationsAndCharts!$A202+$A$11,0,1,1) -> 29.32 | F202: =OFFSET('InputData-DBC'!$L$10,CalculationsAndCharts!$A202+$A$11,0,1,1) -> 28.93 | G202: =OFFSET('InputData-DBC'!$M$10,CalculationsAndCharts!$A202+$A$11,0,1,1) -> 28.98 | H202: 29.6286 | I202: 0 | J202: 0 | K202: 0 | L202: 0 | M202: 0 | N202: 46672.05967 | O202: 0 | P202: 0 | Q202: 0 | R202: 46672.05967 | S202: =OFFSET('InputData-DDM'!$B$10,CalculationsAndCharts!$A202+$A$11,0,1,1) -> 2011-09-16 | T202: =OFFSET('InputData-DDM'!$G$10,CalculationsAndCharts!$A202+$A$11,0,1,1) -> 1781000 | U202: =OFFSET('InputData-DDM'!$J$10,CalculationsAndCharts!$A202+$A$11,0,1,1) -> 53.31 | V202: =OFFSET('InputData-DDM'!$K$10,CalculationsAndCharts!$A202+$A$11,0,1,1) -> 53.75 | W202: =OFFSET('InputData-DDM'!$L$10,CalculationsAndCharts!$A202+$A$11,0,1,1) -> 52.57 | X202: =OFFSET('InputData-DDM'!$M$10,CalculationsAndCharts!$A202+$A$11,0,1,1) -> 53.51 | Y202: 55.5958 | Z202: 0 | AA202: 0 | AB202: 0 | AC202: 0 | AD202: 0 | AE202: 41218.88475 | AF202: 0 | AG202: 0 | AH202: 0 | AI202: 41218.88475 | AJ202: 87890.94442
A203: 171 | B203: =OFFSET('InputData-DBC'!$B$10,CalculationsAndCharts!$A203+$A$11,0,1,1) -> 2011-09-15 | C203: =OFFSET('InputData-DBC'!$G$10,CalculationsAndCharts!$A203+$A$11,0,1,1) -> 1135800 | D203: =OFFSET('InputData-DBC'!$J$10,CalculationsAndCharts!$A203+$A$11,0,1,1) -> 29.31 | E203: =OFFSET('InputData-DBC'!$K$10,CalculationsAndCharts!$A203+$A$11,0,1,1) -> 29.35 | F203: =OFFSET('InputData-DBC'!$L$10,CalculationsAndCharts!$A203+$A$11,0,1,1) -> 29.04 | G203: =OFFSET('InputData-DBC'!$M$10,CalculationsAndCharts!$A203+$A$11,0,1,1) -> 29.11 | H203: 29.649 | I203: 0 | J203: 0 | K203: 0 | L203: 0 | M203: 0 | N203: 46672.05967 | O203: 0 | P203: 0 | Q203: 0 | R203: 46672.05967 | S203: =OFFSET('InputData-DDM'!$B$10,CalculationsAndCharts!$A203+$A$11,0,1,1) -> 2011-09-15 | T203: =OFFSET('InputData-DDM'!$G$10,CalculationsAndCharts!$A203+$A$11,0,1,1) -> 1922200 | U203: =OFFSET('InputData-DDM'!$J$10,CalculationsAndCharts!$A203+$A$11,0,1,1) -> 52.07 | V203: =OFFSET('InputData-DDM'!$K$10,CalculationsAndCharts!$A203+$A$11,0,1,1) -> 52.86 | W203: =OFFSET('InputData-DDM'!$L$10,CalculationsAndCharts!$A203+$A$11,0,1,1) -> 51.5 | X203: =OFFSET('InputData-DDM'!$M$10,CalculationsAndCharts!$A203+$A$11,0,1,1) -> 52.84 | Y203: 55.847 | Z203: 0 | AA203: 0 | AB203: 0 | AC203: 0 | AD203: 0 | AE203: 41218.88475 | AF203: 0 | AG203: 0 | AH203: 0 | AI203: 41218.88475 | AJ203: 87890.94442
A204: 172 | B204: =OFFSET('InputData-DBC'!$B$10,CalculationsAndCharts!$A204+$A$11,0,1,1) -> 2011-09-14 | C204: =OFFSET('InputData-DBC'!$G$10,CalculationsAndCharts!$A204+$A$11,0,1,1) -> 1337300 | D204: =OFFSET('InputData-DBC'!$J$10,CalculationsAndCharts!$A204+$A$11,0,1,1) -> 29.03 | E204: =OFFSET('InputData-DBC'!$K$10,CalculationsAndCharts!$A204+$A$11,0,1,1) -> 29.07 | F204: =OFFSET('InputData-DBC'!$L$10,CalculationsAndCharts!$A204+$A$11,0,1,1) -> 28.83 | G204: =OFFSET('InputData-DBC'!$M$10,CalculationsAndCharts!$A204+$A$11,0,1,1) -> 28.99 | H204: 29.6544 | I204: 0 | J204: 0 | K204: 0 | L204: 0 | M204: 0 | N204: 46672.05967 | O204: 0 | P204: 0 | Q204: 0 | R204: 46672.05967 | S204: =OFFSET('InputData-DDM'!$B$10,CalculationsAndCharts!$A204+$A$11,0,1,1) -> 2011-09-14 | T204: =OFFSET('InputData-DDM'!$G$10,CalculationsAndCharts!$A204+$A$11,0,1,1) -> 2103200 | U204: =OFFSET('InputData-DDM'!$J$10,CalculationsAndCharts!$A204+$A$11,0,1,1) -> 50.32 | V204: =OFFSET('InputData-DDM'!$K$10,CalculationsAndCharts!$A204+$A$11,0,1,1) -> 52.39 | W204: =OFFSET('InputData-DDM'!$L$10,CalculationsAndCharts!$A204+$A$11,0,1,1) -> 48.86 | X204: =OFFSET('InputData-DDM'!$M$10,CalculationsAndCharts!$A204+$A$11,0,1,1) -> 51.12 | Y204: 56.092 | Z204: 0 | AA204: 0 | AB204: 0 | AC204: 0 | AD204: 0 | AE204: 41218.88475 | AF204: 0 | AG204: 0 | AH204: 0 | AI204: 41218.88475 | AJ204: 87890.94442
A205: 173 | B205: =OFFSET('InputData-DBC'!$B$10,CalculationsAndCharts!$A205+$A$11,0,1,1) -> 2011-09-13 | C205: =OFFSET('InputData-DBC'!$G$10,CalculationsAndCharts!$A205+$A$11,0,1,1) -> 1229000 | D205: =OFFSET('InputData-DBC'!$J$10,CalculationsAndCharts!$A205+$A$11,0,1,1) -> 29.17 | E205: =OFFSET('InputData-DBC'!$K$10,CalculationsAndCharts!$A205+$A$11,0,1,1) -> 29.26 | F205: =OFFSET('InputData-DBC'!$L$10,CalculationsAndCharts!$A205+$A$11,0,1,1) -> 29.02 | G205: =OFFSET('InputData-DBC'!$M$10,CalculationsAndCharts!$A205+$A$11,0,1,1) -> 29.13 | H205: 29.6624 | I205: 0 | J205: 0 | K205: 0 | L205: 0 | M205: 0 | N205: 46672.05967 | O205: 0 | P205: 0 | Q205: 0 | R205: 46672.05967 | S205: =OFFSET('InputData-DDM'!$B$10,CalculationsAndCharts!$A205+$A$11,0,1,1) -> 2011-09-13 | T205: =OFFSET('InputData-DDM'!$G$10,CalculationsAndCharts!$A205+$A$11,0,1,1) -> 2362400 | U205: =OFFSET('InputData-DDM'!$J$10,CalculationsAndCharts!$A205+$A$11,0,1,1) -> 49.57 | V205: =OFFSET('InputData-DDM'!$K$10,CalculationsAndCharts!$A205+$A$11,0,1,1) -> 50.19 | W205: =OFFSET('InputData-DDM'!$L$10,CalculationsAndCharts!$A205+$A$11,0,1,1) -> 48.79 | X205: =OFFSET('InputData-DDM'!$M$10,CalculationsAndCharts!$A205+$A$11,0,1,1) -> 49.79 | Y205: 56.3588 | Z205: 0 | AA205: 0 | AB205: 0 | AC205: 0 | AD205: 0 | AE205: 41218.88475 | AF205: 0 | AG205: 0 | AH205: 0 | AI205: 41218.88475 | AJ205: 87890.94442
A206: 174 | B206: =OFFSET('InputData-DBC'!$B$10,CalculationsAndCharts!$A206+$A$11,0,1,1) -> 2011-09-12 | C206: =OFFSET('InputData-DBC'!$G$10,CalculationsAndCharts!$A206+$A$11,0,1,1) -> 3914000 | D206: =OFFSET('InputData-DBC'!$J$10,CalculationsAndCharts!$A206+$A$11,0,1,1) -> 29.06 | E206: =OFFSET('InputData-DBC'!$K$10,CalculationsAndCharts!$A206+$A$11,0,1,1) -> 29.3 | F206: =OFFSET('InputData-DBC'!$L$10,CalculationsAndCharts!$A206+$A$11,0,1,1) -> 28.98 | G206: =OFFSET('InputData-DBC'!$M$10,CalculationsAndCharts!$A206+$A$11,0,1,1) -> 29.22 | H206: 29.6598 | I206: 0 | J206: 0 | K206: 0 | L206: 0 | M206: 0 | N206: 46672.05967 | O206: 0 | P206: 0 | Q206: 0 | R206: 46672.05967 | S206: =OFFSET('InputData-DDM'!$B$10,CalculationsAndCharts!$A206+$A$11,0,1,1) -> 2011-09-12 | T206: =OFFSET('InputData-DDM'!$G$10,CalculationsAndCharts!$A206+$A$11,0,1,1) -> 2541700 | U206: =OFFSET('InputData-DDM'!$J$10,CalculationsAndCharts!$A206+$A$11,0,1,1) -> 47.51 | V206: =OFFSET('InputData-DDM'!$K$10,CalculationsAndCharts!$A206+$A$11,0,1,1) -> 49.44 | W206: =OFFSET('InputData-DDM'!$L$10,CalculationsAndCharts!$A206+$A$11,0,1,1) -> 47.32 | X206: =OFFSET('InputData-DDM'!$M$10,CalculationsAndCharts!$A206+$A$11,0,1,1) -> 49.41 | Y206: 56.654 | Z206: 0 | AA206: 0 | AB206: 0 | AC206: 0 | AD206: 0 | AE206: 41218.88475 | AF206: 0 | AG206: 0 | AH206: 0 | AI206: 41218.88475 | AJ206: 87890.94442
A207: 175 | B207: =OFFSET('InputData-DBC'!$B$10,CalculationsAndCharts!$A207+$A$11,0,1,1) -> 2011-09-09 | C207: =OFFSET('InputData-DBC'!$G$10,CalculationsAndCharts!$A207+$A$11,0,1,1) -> 2150200 | D207: =OFFSET('InputData-DBC'!$J$10,CalculationsAndCharts!$A207+$A$11,0,1,1) -> 29.39 | E207: =OFFSET('InputData-DBC'!$K$10,CalculationsAndCharts!$A207+$A$11,0,1,1) -> 29.42 | F207: =OFFSET('InputData-DBC'!$L$10,CalculationsAndCharts!$A207+$A$11,0,1,1) -> 29.19 | G207: =OFFSET('InputData-DBC'!$M$10,CalculationsAndCharts!$A207+$A$11,0,1,1) -> 29.29 | H207: 29.6546 | I207: 0 | J207: 0 | K207: 0 | L207: 0 | M207: 0 | N207: 46672.05967 | O207: 0 | P207: 0 | Q207: 0 | R207: 46672.05967 | S207: =OFFSET('InputData-DDM'!$B$10,CalculationsAndCharts!$A207+$A$11,0,1,1) -> 2011-09-09 | T207: =OFFSET('InputData-DDM'!$G$10,CalculationsAndCharts!$A207+$A$11,0,1,1) -> 3266400 | U207: =OFFSET('InputData-DDM'!$J$10,CalculationsAndCharts!$A207+$A$11,0,1,1) -> 50.47 | V207: =OFFSET('InputData-DDM'!$K$10,CalculationsAndCharts!$A207+$A$11,0,1,1) -> 50.53 | W207: =OFFSET('InputData-DDM'!$L$10,CalculationsAndCharts!$A207+$A$11,0,1,1) -> 48.29 | X207: =OFFSET('InputData-DDM'!$M$10,CalculationsAndCharts!$A207+$A$11,0,1,1) -> 48.81 | Y207: 56.922 | Z207: 0 | AA207: 0 | AB207: 0 | AC207: 0 | AD207: 0 | AE207: 41218.88475 | AF207: 0 | AG207: 0 | AH207: 0 | AI207: 41218.88475 | AJ207: 87890.94442
A208: 176 | B208: =OFFSET('InputData-DBC'!$B$10,CalculationsAndCharts!$A208+$A$11,0,1,1) -> 2011-09-08 | C208: =OFFSET('InputData-DBC'!$G$10,CalculationsAndCharts!$A208+$A$11,0,1,1) -> 1059300 | D208: =OFFSET('InputData-DBC'!$J$10,CalculationsAndCharts!$A208+$A$11,0,1,1) -> 29.89 | E208: =OFFSET('InputData-DBC'!$K$10,CalculationsAndCharts!$A208+$A$11,0,1,1) -> 30.02 | F208: =OFFSET('InputData-DBC'!$L$10,CalculationsAndCharts!$A208+$A$11,0,1,1) -> 29.75 | G208: =OFFSET('InputData-DBC'!$M$10,CalculationsAndCharts!$A208+$A$11,0,1,1) -> 29.76 | H208: 29.6542 | I208: 0 | J208: 0 | K208: 0 | L208: 0 | M208: 0 | N208: 46672.05967 | O208: 0 | P208: 0 | Q208: 0 | R208: 46672.05967 | S208: =OFFSET('InputData-DDM'!$B$10,CalculationsAndCharts!$A208+$A$11,0,1,1) -> 2011-09-08 | T208: =OFFSET('InputData-DDM'!$G$10,CalculationsAndCharts!$A208+$A$11,0,1,1) -> 2086900 | U208: =OFFSET('InputData-DDM'!$J$10,CalculationsAndCharts!$A208+$A$11,0,1,1) -> 52.09 | V208: =OFFSET('InputData-DDM'!$K$10,CalculationsAndCharts!$A208+$A$11,0,1,1) -> 53.27 | W208: =OFFSET('InputData-DDM'!$L$10,CalculationsAndCharts!$A208+$A$11,0,1,1) -> 51.48 | X208: =OFFSET('InputData-DDM'!$M$10,CalculationsAndCharts!$A208+$A$11,0,1,1) -> 51.57 | Y208: 57.1738 | Z208: 0 | AA208: 0 | AB208: 0 | AC208: 0 | AD208: 0 | AE208: 41218.88475 | AF208: 0 | AG208: 0 | AH208: 0 | AI208: 41218.88475 | AJ208: 87890.94442
... 1058 more rows

Sheet InputData-DBC
A1: PowerShares DB Commodity Index Tracking (DBC)
B6: Available Input Data Rows | F6: Available Date Range:
B7: =COUNTA(B11:B65000) -> 1644 | F7: From | G7: =OFFSET(B10,B7,0,1,1) -> 2006-02-06
F8: To | G8: =OFFSET(B10,1,0,1,1) -> 2012-08-14
B9: Raw Data Values | H9: Adjusted | I9: Adjustment | J9: Adjusted Values
A10: RelRow | B10: Date | C10: Open | D10: High | E10: Low | F10: Close | G10: Volume | H10: Close | I10: Factor | J10: Open | K10: High | L10: Low | M10: Close
A11: 1 | B11: 2012-08-14 | C11: 27.91 | D11: 27.95 | E11: 27.79 | F11: 27.86 | G11: 1152200 | H11: 27.86 | I11: 1 | J11: 27.91 | K11: 27.95 | L11: 27.79 | M11: 27.86
A12: 2 | B12: 2012-08-13 | C12: 27.98 | D12: 28.03 | E12: 27.79 | F12: 27.83 | G12: 1402400 | H12: 27.83 | I12: 1 | J12: 27.98 | K12: 28.03 | L12: 27.79 | M12: 27.83
A13: 3 | B13: 2012-08-10 | C13: 27.97 | D13: 28.11 | E13: 27.92 | F13: 28.05 | G13: 2352200 | H13: 28.05 | I13: 1 | J13: 27.97 | K13: 28.11 | L13: 27.92 | M13: 28.05
A14: 4 | B14: 2012-08-09 | C14: 28.03 | D14: 28.27 | E14: 28.03 | F14: 28.2 | G14: 1634500 | H14: 28.2 | I14: 1 | J14: 28.03 | K14: 28.27 | L14: 28.03 | M14: 28.2
A15: 5 | B15: 2012-08-08 | C15: 27.92 | D15: 28.06 | E15: 27.87 | F15: 27.97 | G15: 2025200 | H15: 27.97 | I15: 1 | J15: 27.92 | K15: 28.06 | L15: 27.87 | M15: 27.97
A16: 6 | B16: 2012-08-07 | C16: 27.8 | D16: 27.99 | E16: 27.78 | F16: 27.89 | G16: 1255400 | H16: 27.89 | I16: 1 | J16: 27.8 | K16: 27.99 | L16: 27.78 | M16: 27.89
A17: 7 | B17: 2012-08-06 | C17: 27.45 | D17: 27.72 | E17: 27.42 | F17: 27.68 | G17: 2365900 | H17: 27.68 | I17: 1 | J17: 27.45 | K17: 27.72 | L17: 27.42 | M17: 27.68
A18: 8 | B18: 2012-08-03 | C18: 27.36 | D18: 27.66 | E18: 27.36 | F18: 27.52 | G18: 2597400 | H18: 27.52 | I18: 1 | J18: 27.36 | K18: 27.66 | L18: 27.36 | M18: 27.52
A19: 9 | B19: 2012-08-02 | C19: 27.02 | D19: 27.18 | E19: 26.98 | F19: 27.06 | G19: 1708200 | H19: 27.06 | I19: 1 | J19: 27.02 | K19: 27.18 | L19: 26.98 | M19: 27.06
A20: 10 | B20: 2012-08-01 | C20: 27.33 | D20: 27.38 | E20: 27.1 | F20: 27.29 | G20: 1254100 | H20: 27.29 | I20: 1 | J20: 27.33 | K20: 27.38 | L20: 27.1 | M20: 27.29
A21: 11 | B21: 2012-07-31 | C21: 27.6 | D21: 27.61 | E21: 27.25 | F21: 27.25 | G21: 2325400 | H21: 27.25 | I21: 1 | J21: 27.6 | K21: 27.61 | L21: 27.25 | M21: 27.25
A22: 12 | B22: 2012-07-30 | C22: 27.53 | D22: 27.65 | E22: 27.53 | F22: 27.58 | G22: 5830200 | H22: 27.58 | I22: 1 | J22: 27.53 | K22: 27.65 | L22: 27.53 | M22: 27.58
A23: 13 | B23: 2012-07-27 | C23: 27.29 | D23: 27.44 | E23: 27.23 | F23: 27.42 | G23: 925700 | H23: 27.42 | I23: 1 | J23: 27.29 | K23: 27.44 | L23: 27.23 | M23: 27.42
A24: 14 | B24: 2012-07-26 | C24: 27.32 | D24: 27.36 | E24: 27.05 | F24: 27.14 | G24: 2906700 | H24: 27.14 | I24: 1 | J24: 27.32 | K24: 27.36 | L24: 27.05 | M24: 27.14
A25: 15 | B25: 2012-07-25 | C25: 27.04 | D25: 27.2 | E25: 26.83 | F25: 27.09 | G25: 1176600 | H25: 27.09 | I25: 1 | J25: 27.04 | K25: 27.2 | L25: 26.83 | M25: 27.09
A26: 16 | B26: 2012-07-24 | C26: 26.95 | D26: 26.99 | E26: 26.66 | F26: 26.89 | G26: 3086000 | H26: 26.89 | I26: 1 | J26: 26.95 | K26: 26.99 | L26: 26.66 | M26: 26.89
A27: 17 | B27: 2012-07-23 | C27: 26.99 | D27: 27.21 | E27: 26.9 | F27: 27.05 | G27: 1534200 | H27: 27.05 | I27: 1 | J27: 26.99 | K27: 27.21 | L27: 26.9 | M27: 27.05
A28: 18 | B28: 2012-07-20 | C28: 27.56 | D28: 27.65 | E28: 27.46 | F28: 27.63 | G28: 2023500 | H28: 27.63 | I28: 1 | J28: 27.56 | K28: 27.65 | L28: 27.46 | M28: 27.63
A29: 19 | B29: 2012-07-19 | C29: 27.6 | D29: 27.77 | E29: 27.55 | F29: 27.63 | G29: 2532100 | H29: 27.63 | I29: 1 | J29: 27.6 | K29: 27.77 | L29: 27.55 | M29: 27.63
A30: 20 | B30: 2012-07-18 | C30: 27.05 | D30: 27.33 | E30: 27.02 | F30: 27.3 | G30: 1446800 | H30: 27.3 | I30: 1 | J30: 27.05 | K30: 27.33 | L30: 27.02 | M30: 27.3
A31: 21 | B31: 2012-07-17 | C31: 27.13 | D31: 27.17 | E31: 26.87 | F31: 27.06 | G31: 3381500 | H31: 27.06 | I31: 1 | J31: 27.13 | K31: 27.17 | L31: 26.87 | M31: 27.06
A32: 22 | B32: 2012-07-16 | C32: 26.9 | D32: 27.09 | E32: 26.8 | F32: 27.03 | G32: 1104100 | H32: 27.03 | I32: 1 | J32: 26.9 | K32: 27.09 | L32: 26.8 | M32: 27.03
A33: 23 | B33: 2012-07-13 | C33: 26.53 | D33: 26.74 | E33: 26.53 | F33: 26.7 | G33: 970500 | H33: 26.7 | I33: 1 | J33: 26.53 | K33: 26.74 | L33: 26.53 | M33: 26.7
A34: 24 | B34: 2012-07-12 | C34: 26.09 | D34: 26.44 | E34: 26 | F34: 26.38 | G34: 868400 | H34: 26.38 | I34: 1 | J34: 26.09 | K34: 26.44 | L34: 26 | M34: 26.38
A35: 25 | B35: 2012-07-11 | C35: 26.26 | D35: 26.37 | E35: 26.08 | F35: 26.32 | G35: 1200700 | H35: 26.32 | I35: 1 | J35: 26.26 | K35: 26.37 | L35: 26.08 | M35: 26.32
A36: 26 | B36: 2012-07-10 | C36: 26.29 | D36: 26.3 | E36: 25.99 | F36: 26.03 | G36: 1004700 | H36: 26.03 | I36: 1 | J36: 26.29 | K36: 26.3 | L36: 25.99 | M36: 26.03
A37: 27 | B37: 2012-07-09 | C37: 26.19 | D37: 26.52 | E37: 26.18 | F37: 26.37 | G37: 1016300 | H37: 26.37 | I37: 1 | J37: 26.19 | K37: 26.52 | L37: 26.18 | M37: 26.37
A38: 28 | B38: 2012-07-06 | C38: 26.13 | D38: 26.15 | E38: 25.9 | F38: 25.91 | G38: 1221900 | H38: 25.91 | I38: 1 | J38: 26.13 | K38: 26.15 | L38: 25.9 | M38: 25.91
A39: 29 | B39: 2012-07-05 | C39: 26.37 | D39: 26.56 | E39: 26.32 | F39: 26.52 | G39: 3286300 | H39: 26.52 | I39: 1 | J39: 26.37 | K39: 26.56 | L39: 26.32 | M39: 26.52
A40: 30 | B40: 2012-07-03 | C40: 26.25 | D40: 26.42 | E40: 26.22 | F40: 26.42 | G40: 1382200 | H40: 26.42 | I40: 1 | J40: 26.25 | K40: 26.42 | L40: 26.22 | M40: 26.42
A41: 31 | B41: 2012-07-02 | C41: 25.66 | D41: 25.71 | E41: 25.42 | F41: 25.7 | G41: 3837000 | H41: 25.7 | I41: 1 | J41: 25.66 | K41: 25.71 | L41: 25.42 | M41: 25.7
A42: 32 | B42: 2012-06-29 | C42: 25.31 | D42: 25.87 | E42: 25.23 | F42: 25.75 | G42: 12446600 | H42: 25.75 | I42: 1 | J42: 25.31 | K42: 25.87 | L42: 25.23 | M42: 25.75
A43: 33 | B43: 2012-06-28 | C43: 24.83 | D43: 24.89 | E43: 24.5 | F43: 24.68 | G43: 997600 | H43: 24.68 | I43: 1 | J43: 24.83 | K43: 24.89 | L43: 24.5 | M43: 24.68
A44: 34 | B44: 2012-06-27 | C44: 24.97 | D44: 25.08 | E44: 24.87 | F44: 24.95 | G44: 1140500 | H44: 24.95 | I44: 1 | J44: 24.97 | K44: 25.08 | L44: 24.87 | M44: 24.95
A45: 35 | B45: 2012-06-26 | C45: 24.7 | D45: 24.85 | E45: 24.57 | F45: 24.81 | G45: 1480400 | H45: 24.81 | I45: 1 | J45: 24.7 | K45: 24.85 | L45: 24.57 | M45: 24.81
A46: 36 | B46: 2012-06-25 | C46: 24.4 | D46: 24.64 | E46: 24.34 | F46: 24.64 | G46: 1377600 | H46: 24.64 | I46: 1 | J46: 24.4 | K46: 24.64 | L46: 24.34 | M46: 24.64
A47: 37 | B47: 2012-06-22 | C47: 24.29 | D47: 24.41 | E47: 24.26 | F47: 24.39 | G47: 2906300 | H47: 24.39 | I47: 1 | J47: 24.29 | K47: 24.41 | L47: 24.26 | M47: 24.39
A48: 38 | B48: 2012-06-21 | C48: 24.59 | D48: 24.61 | E48: 24.12 | F48: 24.15 | G48: 1815100 | H48: 24.15 | I48: 1 | J48: 24.59 | K48: 24.61 | L48: 24.12 | M48: 24.15
A49: 39 | B49: 2012-06-20 | C49: 24.99 | D49: 24.99 | E49: 24.66 | F49: 24.68 | G49: 6226300 | H49: 24.68 | I49: 1 | J49: 24.99 | K49: 24.99 | L49: 24.66 | M49: 24.68
A50: 40 | B50: 2012-06-19 | C50: 25.09 | D50: 25.16 | E50: 25.03 | F50: 25.09 | G50: 1738200 | H50: 25.09 | I50: 1 | J50: 25.09 | K50: 25.16 | L50: 25.03 | M50: 25.09
A51: 41 | B51: 2012-06-18 | C51: 24.68 | D51: 24.95 | E51: 24.63 | F51: 24.88 | G51: 1065800 | H51: 24.88 | I51: 1 | J51: 24.68 | K51: 24.95 | L51: 24.63 | M51: 24.88
A52: 42 | B52: 2012-06-15 | C52: 24.86 | D52: 24.98 | E52: 24.82 | F52: 24.86 | G52: 1627200 | H52: 24.86 | I52: 1 | J52: 24.86 | K52: 24.98 | L52: 24.82 | M52: 24.86
A53: 43 | B53: 2012-06-14 | C53: 24.66 | D53: 24.95 | E53: 24.59 | F53: 24.9 | G53: 2601200 | H53: 24.9 | I53: 1 | J53: 24.66 | K53: 24.95 | L53: 24.59 | M53: 24.9
A54: 44 | B54: 2012-06-13 | C54: 24.65 | D54: 24.85 | E54: 24.56 | F54: 24.61 | G54: 1771300 | H54: 24.61 | I54: 1 | J54: 24.65 | K54: 24.85 | L54: 24.56 | M54: 24.61
A55: 45 | B55: 2012-06-12 | C55: 24.89 | D55: 24.9 | E55: 24.73 | F55: 24.8 | G55: 2263800 | H55: 24.8 | I55: 1 | J55: 24.89 | K55: 24.9 | L55: 24.73 | M55: 24.8
A56: 46 | B56: 2012-06-11 | C56: 25.15 | D56: 25.17 | E56: 24.65 | F56: 24.68 | G56: 4247700 | H56: 24.68 | I56: 1 | J56: 25.15 | K56: 25.17 | L56: 24.65 | M56: 24.68
A57: 47 | B57: 2012-06-08 | C57: 24.86 | D57: 25.14 | E57: 24.78 | F57: 25.14 | G57: 1569600 | H57: 25.14 | I57: 1 | J57: 24.86 | K57: 25.14 | L57: 24.78 | M57: 25.14
A58: 48 | B58: 2012-06-07 | C58: 25.54 | D58: 25.55 | E58: 25.04 | F58: 25.06 | G58: 2158300 | H58: 25.06 | I58: 1 | J58: 25.54 | K58: 25.55 | L58: 25.04 | M58: 25.06
A59: 49 | B59: 2012-06-06 | C59: 25.08 | D59: 25.32 | E59: 25.05 | F59: 25.23 | G59: 4778400 | H59: 25.23 | I59: 1 | J59: 25.08 | K59: 25.32 | L59: 25.05 | M59: 25.23
A60: 50 | B60: 2012-06-05 | C60: 24.79 | D60: 24.89 | E60: 24.73 | F60: 24.77 | G60: 2129000 | H60: 24.77 | I60: 1 | J60: 24.79 | K60: 24.89 | L60: 24.73 | M60: 24.77
A61: 51 | B61: 2012-06-04 | C61: 24.7 | D61: 24.89 | E61: 24.63 | F61: 24.86 | G61: 4474300 | H61: 24.86 | I61: 1 | J61: 24.7 | K61: 24.89 | L61: 24.63 | M61: 24.86
A62: 52 | B62: 2012-06-01 | C62: 24.89 | D62: 24.96 | E62: 24.59 | F62: 24.72 | G62: 3989700 | H62: 24.72 | I62: 1 | J62: 24.89 | K62: 24.96 | L62: 24.59 | M62: 24.72
A63: 53 | B63: 2012-05-31 | C63: 25.47 | D63: 25.47 | E63: 25.18 | F63: 25.24 | G63: 2427200 | H63: 25.24 | I63: 1 | J63: 25.47 | K63: 25.47 | L63: 25.18 | M63: 25.24
A64: 54 | B64: 2012-05-30 | C64: 25.6 | D64: 25.6 | E64: 25.4 | F64: 25.46 | G64: 1629900 | H64: 25.46 | I64: 1 | J64: 25.6 | K64: 25.6 | L64: 25.4 | M64: 25.46
A65: 55 | B65: 2012-05-29 | C65: 26.18 | D65: 26.25 | E65: 25.87 | F65: 25.94 | G65: 1472900 | H65: 25.94 | I65: 1 | J65: 26.18 | K65: 26.25 | L65: 25.87 | M65: 25.94
A66: 56 | B66: 2012-05-25 | C66: 26 | D66: 26.08 | E66: 25.99 | F66: 26.05 | G66: 1125700 | H66: 26.05 | I66: 1 | J66: 26 | K66: 26.08 | L66: 25.99 | M66: 26.05
A67: 57 | B67: 2012-05-24 | C67: 26.1 | D67: 26.1 | E67: 25.83 | F67: 25.96 | G67: 6060000 | H67: 25.96 | I67: 1 | J67: 26.1 | K67: 26.1 | L67: 25.83 | M67: 25.96
A68: 58 | B68: 2012-05-23 | C68: 26.02 | D68: 26.02 | E68: 25.75 | F68: 25.95 | G68: 2900000 | H68: 25.95 | I68: 1 | J68: 26.02 | K68: 26.02 | L68: 25.75 | M68: 25.95
A69: 59 | B69: 2012-05-22 | C69: 26.45 | D69: 26.55 | E69: 26.17 | F69: 26.24 | G69: 1387300 | H69: 26.24 | I69: 1 | J69: 26.45 | K69: 26.55 | L69: 26.17 | M69: 26.24
A70: 60 | B70: 2012-05-21 | C70: 26.38 | D70: 26.62 | E70: 26.37 | F70: 26.62 | G70: 851900 | H70: 26.62 | I70: 1 | J70: 26.38 | K70: 26.62 | L70: 26.37 | M70: 26.62
A71: 61 | B71: 2012-05-18 | C71: 26.37 | D71: 26.5 | E71: 26.25 | F71: 26.27 | G71: 2698600 | H71: 26.27 | I71: 1 | J71: 26.37 | K71: 26.5 | L71: 26.25 | M71: 26.27
A72: 62 | B72: 2012-05-17 | C72: 26.43 | D72: 26.48 | E72: 26.27 | F72: 26.29 | G72: 1222100 | H72: 26.29 | I72: 1 | J72: 26.43 | K72: 26.48 | L72: 26.27 | M72: 26.29
A73: 63 | B73: 2012-05-16 | C73: 26.36 | D73: 26.56 | E73: 26.31 | F73: 26.35 | G73: 1589200 | H73: 26.35 | I73: 1 | J73: 26.36 | K73: 26.56 | L73: 26.31 | M73: 26.35
A74: 64 | B74: 2012-05-15 | C74: 26.48 | D74: 26.59 | E74: 26.37 | F74: 26.38 | G74: 8431800 | H74: 26.38 | I74: 1 | J74: 26.48 | K74: 26.59 | L74: 26.37 | M74: 26.38
A75: 65 | B75: 2012-05-14 | C75: 26.41 | D75: 26.48 | E75: 26.31 | F75: 26.33 | G75: 5751700 | H75: 26.33 | I75: 1 | J75: 26.41 | K75: 26.48 | L75: 26.31 | M75: 26.33
A76: 66 | B76: 2012-05-11 | C76: 26.72 | D76: 26.91 | E76: 26.67 | F76: 26.68 | G76: 1518900 | H76: 26.68 | I76: 1 | J76: 26.72 | K76: 26.91 | L76: 26.67 | M76: 26.68
A77: 67 | B77: 2012-05-10 | C77: 26.95 | D77: 26.99 | E77: 26.86 | F77: 26.88 | G77: 1631300 | H77: 26.88 | I77: 1 | J77: 26.95 | K77: 26.99 | L77: 26.86 | M77: 26.88
A78: 68 | B78: 2012-05-09 | C78: 26.76 | D78: 26.94 | E78: 26.7 | F78: 26.87 | G78: 3238300 | H78: 26.87 | I78: 1 | J78: 26.76 | K78: 26.94 | L78: 26.7 | M78: 26.87
A79: 69 | B79: 2012-05-08 | C79: 27.01 | D79: 27.08 | E79: 26.72 | F79: 27.08 | G79: 3472300 | H79: 27.08 | I79: 1 | J79: 27.01 | K79: 27.08 | L79: 26.72 | M79: 27.08
A80: 70 | B80: 2012-05-07 | C80: 26.99 | D80: 27.21 | E80: 26.93 | F80: 27.18 | G80: 5400000 | H80: 27.18 | I80: 1 | J80: 26.99 | K80: 27.21 | L80: 26.93 | M80: 27.18
A81: 71 | B81: 2012-05-04 | C81: 27.45 | D81: 27.46 | E81: 27.04 | F81: 27.24 | G81: 1968400 | H81: 27.24 | I81: 1 | J81: 27.45 | K81: 27.46 | L81: 27.04 | M81: 27.24
A82: 72 | B82: 2012-05-03 | C82: 27.92 | D82: 27.98 | E82: 27.68 | F82: 27.73 | G82: 1624000 | H82: 27.73 | I82: 1 | J82: 27.92 | K82: 27.98 | L82: 27.68 | M82: 27.73
A83: 73 | B83: 2012-05-02 | C83: 28.28 | D83: 28.32 | E83: 28.01 | F83: 28.04 | G83: 1311300 | H83: 28.04 | I83: 1 | J83: 28.28 | K83: 28.32 | L83: 28.01 | M83: 28.04
A84: 74 | B84: 2012-05-01 | C84: 28.32 | D84: 28.5 | E84: 28.29 | F84: 28.41 | G84: 1495500 | H84: 28.41 | I84: 1 | J84: 28.32 | K84: 28.5 | L84: 28.29 | M84: 28.41
A85: 75 | B85: 2012-04-30 | C85: 28.23 | D85: 28.44 | E85: 28.19 | F85: 28.41 | G85: 1377500 | H85: 28.41 | I85: 1 | J85: 28.23 | K85: 28.44 | L85: 28.19 | M85: 28.41
A86: 76 | B86: 2012-04-27 | C86: 28.26 | D86: 28.33 | E86: 28.2 | F86: 28.3 | G86: 750500 | H86: 28.3 | I86: 1 | J86: 28.26 | K86: 28.33 | L86: 28.2 | M86: 28.3
A87: 77 | B87: 2012-04-26 | C87: 28.2 | D87: 28.34 | E87: 28.2 | F87: 28.21 | G87: 851600 | H87: 28.21 | I87: 1 | J87: 28.2 | K87: 28.34 | L87: 28.2 | M87: 28.21
A88: 78 | B88: 2012-04-25 | C88: 28.13 | D88: 28.17 | E88: 27.92 | F88: 28.15 | G88: 886200 | H88: 28.15 | I88: 1 | J88: 28.13 | K88: 28.17 | L88: 27.92 | M88: 28.15
A89: 79 | B89: 2012-04-24 | C89: 28.09 | D89: 28.12 | E89: 27.94 | F89: 27.99 | G89: 736800 | H89: 27.99 | I89: 1 | J89: 28.09 | K89: 28.12 | L89: 27.94 | M89: 27.99
A90: 80 | B90: 2012-04-23 | C90: 27.78 | D90: 28.01 | E90: 27.73 | F90: 27.99 | G90: 1026900 | H90: 27.99 | I90: 1 | J90: 27.78 | K90: 28.01 | L90: 27.73 | M90: 27.99
A91: 81 | B91: 2012-04-20 | C91: 28.12 | D91: 28.2 | E91: 27.99 | F91: 28.04 | G91: 1648000 | H91: 28.04 | I91: 1 | J91: 28.12 | K91: 28.2 | L91: 27.99 | M91: 28.04
A92: 82 | B92: 2012-04-19 | C92: 28.04 | D92: 28.11 | E92: 27.87 | F92: 27.93 | G92: 1837800 | H92: 27.93 | I92: 1 | J92: 28.04 | K92: 28.11 | L92: 27.87 | M92: 27.93
A93: 83 | B93: 2012-04-18 | C93: 28.03 | D93: 28.05 | E93: 27.84 | F93: 27.92 | G93: 1801500 | H93: 27.92 | I93: 1 | J93: 28.03 | K93: 28.05 | L93: 27.84 | M93: 27.92
A94: 84 | B94: 2012-04-17 | C94: 28.18 | D94: 28.22 | E94: 28.1 | F94: 28.19 | G94: 1754300 | H94: 28.19 | I94: 1 | J94: 28.18 | K94: 28.22 | L94: 28.1 | M94: 28.19
A95: 85 | B95: 2012-04-16 | C95: 28.23 | D95: 28.24 | E95: 27.98 | F95: 28.06 | G95: 1860900 | H95: 28.06 | I95: 1 | J95: 28.23 | K95: 28.24 | L95: 27.98 | M95: 28.06
A96: 86 | B96: 2012-04-13 | C96: 28.5 | D96: 28.52 | E96: 28.3 | F96: 28.34 | G96: 2228100 | H96: 28.34 | I96: 1 | J96: 28.5 | K96: 28.52 | L96: 28.3 | M96: 28.34
A97: 87 | B97: 2012-04-12 | C97: 28.33 | D97: 28.64 | E97: 28.31 | F97: 28.63 | G97: 908600 | H97: 28.63 | I97: 1 | J97: 28.33 | K97: 28.64 | L97: 28.31 | M97: 28.63
A98: 88 | B98: 2012-04-11 | C98: 28.23 | D98: 28.38 | E98: 28.16 | F98: 28.26 | G98: 2472600 | H98: 28.26 | I98: 1 | J98: 28.23 | K98: 28.38 | L98: 28.16 | M98: 28.26
A99: 89 | B99: 2012-04-10 | C99: 28.53 | D99: 28.56 | E99: 28.15 | F99: 28.19 | G99: 1543900 | H99: 28.19 | I99: 1 | J99: 28.53 | K99: 28.56 | L99: 28.15 | M99: 28.19
A100: 90 | B100: 2012-04-09 | C100: 28.46 | D100: 28.62 | E100: 28.35 | F100: 28.57 | G100: 1578100 | H100: 28.57 | I100: 1 | J100: 28.46 | K100: 28.62 | L100: 28.35 | M100: 28.57
A101: 91 | B101: 2012-04-05 | C101: 28.51 | D101: 28.72 | E101: 28.48 | F101: 28.7 | G101: 897000 | H101: 28.7 | I101: 1 | J101: 28.51 | K101: 28.72 | L101: 28.48 | M101: 28.7
A102: 92 | B102: 2012-04-04 | C102: 28.79 | D102: 28.85 | E102: 28.52 | F102: 28.59 | G102: 2054900 | H102: 28.59 | I102: 1 | J102: 28.79 | K102: 28.85 | L102: 28.52 | M102: 28.59
A103: 93 | B103: 2012-04-03 | C103: 29.2 | D103: 29.21 | E103: 28.95 | F103: 29.04 | G103: 1325100 | H103: 29.04 | I103: 1 | J103: 29.2 | K103: 29.21 | L103: 28.95 | M103: 29.04
A104: 94 | B104: 2012-04-02 | C104: 28.6 | D104: 29.21 | E104: 28.59 | F104: 29.17 | G104: 1752700 | H104: 29.17 | I104: 1 | J104: 28.6 | K104: 29.21 | L104: 28.59 | M104: 29.17
A105: 95 | B105: 2012-03-30 | C105: 28.69 | D105: 28.89 | E105: 28.61 | F105: 28.8 | G105: 2630400 | H105: 28.8 | I105: 1 | J105: 28.69 | K105: 28.89 | L105: 28.61 | M105: 28.8
A106: 96 | B106: 2012-03-29 | C106: 28.82 | D106: 28.88 | E106: 28.35 | F106: 28.48 | G106: 4891200 | H106: 28.48 | I106: 1 | J106: 28.82 | K106: 28.88 | L106: 28.35 | M106: 28.48
A107: 97 | B107: 2012-03-28 | C107: 28.93 | D107: 28.97 | E107: 28.78 | F107: 28.88 | G107: 6060500 | H107: 28.88 | I107: 1 | J107: 28.93 | K107: 28.97 | L107: 28.78 | M107: 28.88
A108: 98 | B108: 2012-03-27 | C108: 29.29 | D108: 29.35 | E108: 29.13 | F108: 29.16 | G108: 1251400 | H108: 29.16 | I108: 1 | J108: 29.29 | K108: 29.35 | L108: 29.13 | M108: 29.16
A109: 99 | B109: 2012-03-26 | C109: 29.31 | D109: 29.37 | E109: 29.21 | F109: 29.28 | G109: 1555600 | H109: 29.28 | I109: 1 | J109: 29.31 | K109: 29.37 | L109: 29.21 | M109: 29.28
A110: 100 | B110: 2012-03-23 | C110: 28.97 | D110: 29.39 | E110: 28.97 | F110: 29.15 | G110: 1664200 | H110: 29.15 | I110: 1 | J110: 28.97 | K110: 29.39 | L110: 28.97 | M110: 29.15
A111: 101 | B111: 2012-03-22 | C111: 28.8 | D111: 28.89 | E111: 28.73 | F111: 28.87 | G111: 1641500 | H111: 28.87 | I111: 1 | J111: 28.8 | K111: 28.89 | L111: 28.73 | M111: 28.87
A112: 102 | B112: 2012-03-21 | C112: 29.17 | D112: 29.26 | E112: 29.08 | F112: 29.1 | G112: 951700 | H112: 29.1 | I112: 1 | J112: 29.17 | K112: 29.26 | L112: 29.08 | M112: 29.1
A113: 103 | B113: 2012-03-20 | C113: 29.26 | D113: 29.26 | E113: 29.07 | F113: 29.17 | G113: 1577200 | H113: 29.17 | I113: 1 | J113: 29.26 | K113: 29.26 | L113: 29.07 | M113: 29.17
A114: 104 | B114: 2012-03-19 | C114: 29.56 | D114: 29.6 | E114: 29.45 | F114: 29.53 | G114: 1386400 | H114: 29.53 | I114: 1 | J114: 29.56 | K114: 29.6 | L114: 29.45 | M114: 29.53
A115: 105 | B115: 2012-03-16 | C115: 29.34 | D115: 29.58 | E115: 29.31 | F115: 29.58 | G115: 1433400 | H115: 29.58 | I115: 1 | J115: 29.34 | K115: 29.58 | L115: 29.31 | M115: 29.58
A116: 106 | B116: 2012-03-15 | C116: 29.2 | D116: 29.33 | E116: 29 | F116: 29.22 | G116: 1339600 | H116: 29.22 | I116: 1 | J116: 29.2 | K116: 29.33 | L116: 29 | M116: 29.22
A117: 107 | B117: 2012-03-14 | C117: 29.31 | D117: 29.44 | E117: 29.14 | F117: 29.2 | G117: 1200800 | H117: 29.2 | I117: 1 | J117: 29.31 | K117: 29.44 | L117: 29.14 | M117: 29.2
A118: 108 | B118: 2012-03-13 | C118: 29.22 | D118: 29.48 | E118: 29.19 | F118: 29.4 | G118: 1347900 | H118: 29.4 | I118: 1 | J118: 29.22 | K118: 29.48 | L118: 29.19 | M118: 29.4
A119: 109 | B119: 2012-03-12 | C119: 29.07 | D119: 29.29 | E119: 29.03 | F119: 29.27 | G119: 717100 | H119: 29.27 | I119: 1 | J119: 29.07 | K119: 29.29 | L119: 29.03 | M119: 29.27
A120: 110 | B120: 2012-03-09 | C120: 29.14 | D120: 29.43 | E120: 29.09 | F120: 29.31 | G120: 1409900 | H120: 29.31 | I120: 1 | J120: 29.14 | K120: 29.43 | L120: 29.09 | M120: 29.31
A121: 111 | B121: 2012-03-08 | C121: 29.13 | D121: 29.28 | E121: 29.1 | F121: 29.23 | G121: 2202300 | H121: 29.23 | I121: 1 | J121: 29.13 | K121: 29.28 | L121: 29.1 | M121: 29.23
A122: 112 | B122: 2012-03-07 | C122: 28.85 | D122: 29.05 | E122: 28.75 | F122: 28.99 | G122: 1476900 | H122: 28.99 | I122: 1 | J122: 28.85 | K122: 29.05 | L122: 28.75 | M122: 28.99
A123: 113 | B123: 2012-03-06 | C123: 28.94 | D123: 28.98 | E123: 28.8 | F123: 28.86 | G123: 2082500 | H123: 28.86 | I123: 1 | J123: 28.94 | K123: 28.98 | L123: 28.8 | M123: 28.86
A124: 114 | B124: 2012-03-05 | C124: 29.36 | D124: 29.43 | E124: 29.2 | F124: 29.34 | G124: 1368900 | H124: 29.34 | I124: 1 | J124: 29.36 | K124: 29.43 | L124: 29.2 | M124: 29.34
A125: 115 | B125: 2012-03-02 | C125: 29.57 | D125: 29.57 | E125: 29.31 | F125: 29.48 | G125: 2213700 | H125: 29.48 | I125: 1 | J125: 29.57 | K125: 29.57 | L125: 29.31 | M125: 29.48
A126: 116 | B126: 2012-03-01 | C126: 29.4 | D126: 29.93 | E126: 29.28 | F126: 29.78 | G126: 5275000 | H126: 29.78 | I126: 1 | J126: 29.4 | K126: 29.93 | L126: 29.28 | M126: 29.78
A127: 117 | B127: 2012-02-29 | C127: 29.5 | D127: 29.58 | E127: 28.97 | F127: 29.32 | G127: 4067900 | H127: 29.32 | I127: 1 | J127: 29.5 | K127: 29.58 | L127: 28.97 | M127: 29.32
A128: 118 | B128: 2012-02-28 | C128: 29.56 | D128: 29.63 | E128: 29.35 | F128: 29.43 | G128: 2902200 | H128: 29.43 | I128: 1 | J128: 29.56 | K128: 29.63 | L128: 29.35 | M128: 29.43
A129: 119 | B129: 2012-02-27 | C129: 29.59 | D129: 29.71 | E129: 29.44 | F129: 29.44 | G129: 4821900 | H129: 29.44 | I129: 1 | J129: 29.59 | K129: 29.71 | L129: 29.44 | M129: 29.44
A130: 120 | B130: 2012-02-24 | C130: 29.48 | D130: 29.74 | E130: 29.47 | F130: 29.68 | G130: 4989900 | H130: 29.68 | I130: 1 | J130: 29.48 | K130: 29.74 | L130: 29.47 | M130: 29.68
A131: 121 | B131: 2012-02-23 | C131: 29.4 | D131: 29.53 | E131: 29.26 | F131: 29.5 | G131: 1544000 | H131: 29.5 | I131: 1 | J131: 29.4 | K131: 29.53 | L131: 29.26 | M131: 29.5
A132: 122 | B132: 2012-02-22 | C132: 29.16 | D132: 29.44 | E132: 29.12 | F132: 29.41 | G132: 3163600 | H132: 29.41 | I132: 1 | J132: 29.16 | K132: 29.44 | L132: 29.12 | M132: 29.41
A133: 123 | B133: 2012-02-21 | C133: 28.96 | D133: 29.24 | E133: 28.95 | F133: 29.14 | G133: 2446900 | H133: 29.14 | I133: 1 | J133: 28.96 | K133: 29.24 | L133: 28.95 | M133: 29.14
A134: 124 | B134: 2012-02-17 | C134: 28.76 | D134: 28.77 | E134: 28.6 | F134: 28.69 | G134: 1572500 | H134: 28.69 | I134: 1 | J134: 28.76 | K134: 28.77 | L134: 28.6 | M134: 28.69
A135: 125 | B135: 2012-02-16 | C135: 28.52 | D135: 28.76 | E135: 28.48 | F135: 28.74 | G135: 1657600 | H135: 28.74 | I135: 1 | J135: 28.52 | K135: 28.76 | L135: 28.48 | M135: 28.74
A136: 126 | B136: 2012-02-15 | C136: 28.61 | D136: 28.66 | E136: 28.49 | F136: 28.61 | G136: 1929400 | H136: 28.61 | I136: 1 | J136: 28.61 | K136: 28.66 | L136: 28.49 | M136: 28.61
A137: 127 | B137: 2012-02-14 | C137: 28.51 | D137: 28.58 | E137: 28.42 | F137: 28.51 | G137: 1376300 | H137: 28.51 | I137: 1 | J137: 28.51 | K137: 28.58 | L137: 28.42 | M137: 28.51
A138: 128 | B138: 2012-02-13 | C138: 28.58 | D138: 28.67 | E138: 28.4 | F138: 28.52 | G138: 2124700 | H138: 28.52 | I138: 1 | J138: 28.58 | K138: 28.67 | L138: 28.4 | M138: 28.52
A139: 129 | B139: 2012-02-10 | C139: 28.42 | D139: 28.5 | E139: 28.3 | F139: 28.45 | G139: 1870100 | H139: 28.45 | I139: 1 | J139: 28.42 | K139: 28.5 | L139: 28.3 | M139: 28.45
A140: 130 | B140: 2012-02-09 | C140: 28.73 | D140: 28.81 | E140: 28.63 | F140: 28.72 | G140: 1484900 | H140: 28.72 | I140: 1 | J140: 28.73 | K140: 28.81 | L140: 28.63 | M140: 28.72
A141: 131 | B141: 2012-02-08 | C141: 28.58 | D141: 28.65 | E141: 28.36 | F141: 28.57 | G141: 1152800 | H141: 28.57 | I141: 1 | J141: 28.58 | K141: 28.65 | L141: 28.36 | M141: 28.57
A142: 132 | B142: 2012-02-07 | C142: 28.42 | D142: 28.61 | E142: 28.34 | F142: 28.44 | G142: 2370400 | H142: 28.44 | I142: 1 | J142: 28.42 | K142: 28.61 | L142: 28.34 | M142: 28.44
A143: 133 | B143: 2012-02-06 | C143: 28.31 | D143: 28.5 | E143: 28.24 | F143: 28.46 | G143: 1680100 | H143: 28.46 | I143: 1 | J143: 28.31 | K143: 28.5 | L143: 28.24 | M143: 28.46
A144: 134 | B144: 2012-02-03 | C144: 28.18 | D144: 28.33 | E144: 28.04 | F144: 28.32 | G144: 1774800 | H144: 28.32 | I144: 1 | J144: 28.18 | K144: 28.33 | L144: 28.04 | M144: 28.32
A145: 135 | B145: 2012-02-02 | C145: 27.89 | D145: 28.02 | E145: 27.74 | F145: 27.99 | G145: 2079200 | H145: 27.99 | I145: 1 | J145: 27.89 | K145: 28.02 | L145: 27.74 | M145: 27.99
A146: 136 | B146: 2012-02-01 | C146: 27.94 | D146: 28.06 | E146: 27.87 | F146: 27.92 | G146: 1570400 | H146: 27.92 | I146: 1 | J146: 27.94 | K146: 28.06 | L146: 27.87 | M146: 27.92
A147: 137 | B147: 2012-01-31 | C147: 28.05 | D147: 28.19 | E147: 27.74 | F147: 27.83 | G147: 1912600 | H147: 27.83 | I147: 1 | J147: 28.05 | K147: 28.19 | L147: 27.74 | M147: 27.83
A148: 138 | B148: 2012-01-30 | C148: 28 | D148: 28.06 | E148: 27.82 | F148: 27.9 | G148: 3085600 | H148: 27.9 | I148: 1 | J148: 28 | K148: 28.06 | L148: 27.82 | M148: 27.9
A149: 139 | B149: 2012-01-27 | C149: 27.96 | D149: 28.19 | E149: 27.96 | F149: 28.19 | G149: 1828700 | H149: 28.19 | I149: 1 | J149: 27.96 | K149: 28.19 | L149: 27.96 | M149: 28.19
A150: 140 | B150: 2012-01-26 | C150: 28.21 | D150: 28.26 | E150: 28.03 | F150: 28.09 | G150: 2136400 | H150: 28.09 | I150: 1 | J150: 28.21 | K150: 28.26 | L150: 28.03 | M150: 28.09
A151: 141 | B151: 2012-01-25 | C151: 27.67 | D151: 28.03 | E151: 27.59 | F151: 28.01 | G151: 1913200 | H151: 28.01 | I151: 1 | J151: 27.67 | K151: 28.03 | L151: 27.59 | M151: 28.01
A152: 142 | B152: 2012-01-24 | C152: 27.53 | D152: 27.78 | E152: 27.53 | F152: 27.78 | G152: 2428100 | H152: 27.78 | I152: 1 | J152: 27.53 | K152: 27.78 | L152: 27.53 | M152: 27.78
A153: 143 | B153: 2012-01-23 | C153: 27.48 | D153: 27.75 | E153: 27.48 | F153: 27.73 | G153: 1767900 | H153: 27.73 | I153: 1 | J153: 27.48 | K153: 27.75 | L153: 27.48 | M153: 27.73
A154: 144 | B154: 2012-01-20 | C154: 27.43 | D154: 27.46 | E154: 27.24 | F154: 27.41 | G154: 1907200 | H154: 27.41 | I154: 1 | J154: 27.43 | K154: 27.46 | L154: 27.24 | M154: 27.41
A155: 145 | B155: 2012-01-19 | C155: 27.58 | D155: 27.61 | E155: 27.41 | F155: 27.61 | G155: 2834400 | H155: 27.61 | I155: 1 | J155: 27.58 | K155: 27.61 | L155: 27.41 | M155: 27.61
A156: 146 | B156: 2012-01-18 | C156: 27.49 | D156: 27.55 | E156: 27.35 | F156: 27.49 | G156: 1544100 | H156: 27.49 | I156: 1 | J156: 27.49 | K156: 27.55 | L156: 27.35 | M156: 27.49
A157: 147 | B157: 2012-01-17 | C157: 27.46 | D157: 27.58 | E157: 27.39 | F157: 27.48 | G157: 1910500 | H157: 27.48 | I157: 1 | J157: 27.46 | K157: 27.58 | L157: 27.39 | M157: 27.48
A158: 148 | B158: 2012-01-13 | C158: 27.25 | D158: 27.35 | E158: 27.12 | F158: 27.29 | G158: 3156800 | H158: 27.29 | I158: 1 | J158: 27.25 | K158: 27.35 | L158: 27.12 | M158: 27.29
A159: 149 | B159: 2012-01-12 | C159: 27.66 | D159: 27.92 | E159: 26.69 | F159: 27.35 | G159: 1740600 | H159: 27.35 | I159: 1 | J159: 27.66 | K159: 27.92 | L159: 26.69 | M159: 27.35
A160: 150 | B160: 2012-01-11 | C160: 27.77 | D160: 27.8 | E160: 27.56 | F160: 27.74 | G160: 2079500 | H160: 27.74 | I160: 1 | J160: 27.77 | K160: 27.8 | L160: 27.56 | M160: 27.74
A161: 151 | B161: 2012-01-10 | C161: 27.88 | D161: 27.92 | E161: 27.78 | F161: 27.82 | G161: 2120000 | H161: 27.82 | I161: 1 | J161: 27.88 | K161: 27.92 | L161: 27.78 | M161: 27.82
A162: 152 | B162: 2012-01-09 | C162: 27.62 | D162: 27.71 | E162: 27.47 | F162: 27.62 | G162: 2432600 | H162: 27.62 | I162: 1 | J162: 27.62 | K162: 27.71 | L162: 27.47 | M162: 27.62
A163: 153 | B163: 2012-01-06 | C163: 27.59 | D163: 27.69 | E163: 27.38 | F163: 27.59 | G163: 17707200 | H163: 27.59 | I163: 1 | J163: 27.59 | K163: 27.69 | L163: 27.38 | M163: 27.59
A164: 154 | B164: 2012-01-05 | C164: 27.71 | D164: 27.72 | E164: 27.43 | F164: 27.47 | G164: 1212500 | H164: 27.47 | I164: 1 | J164: 27.71 | K164: 27.72 | L164: 27.43 | M164: 27.47
A165: 155 | B165: 2012-01-04 | C165: 27.61 | D165: 27.9 | E165: 27.61 | F165: 27.85 | G165: 2439000 | H165: 27.85 | I165: 1 | J165: 27.61 | K165: 27.9 | L165: 27.61 | M165: 27.85
A166: 156 | B166: 2012-01-03 | C166: 27.35 | D166: 27.68 | E166: 27.35 | F166: 27.64 | G166: 5940500 | H166: 27.64 | I166: 1 | J166: 27.35 | K166: 27.68 | L166: 27.35 | M166: 27.64
A167: 157 | B167: 2011-12-30 | C167: 26.77 | D167: 26.96 | E167: 26.74 | F167: 26.84 | G167: 2047500 | H167: 26.84 | I167: 1 | J167: 26.77 | K167: 26.96 | L167: 26.74 | M167: 26.84
A168: 158 | B168: 2011-12-29 | C168: 26.81 | D168: 26.9 | E168: 26.64 | F168: 26.88 | G168: 1941300 | H168: 26.88 | I168: 1 | J168: 26.81 | K168: 26.9 | L168: 26.64 | M168: 26.88
A169: 159 | B169: 2011-12-28 | C169: 27.07 | D169: 27.07 | E169: 26.71 | F169: 26.8 | G169: 1930200 | H169: 26.8 | I169: 1 | J169: 27.07 | K169: 27.07 | L169: 26.71 | M169: 26.8
A170: 160 | B170: 2011-12-27 | C170: 26.94 | D170: 27.19 | E170: 26.9 | F170: 27.12 | G170: 2493600 | H170: 27.12 | I170: 1 | J170: 26.94 | K170: 27.19 | L170: 26.9 | M170: 27.12
A171: 161 | B171: 2011-12-23 | C171: 26.92 | D171: 27.02 | E171: 26.89 | F171: 27 | G171: 2872700 | H171: 27 | I171: 1 | J171: 26.92 | K171: 27.02 | L171: 26.89 | M171: 27
A172: 162 | B172: 2011-12-22 | C172: 26.89 | D172: 27.01 | E172: 26.83 | F172: 26.87 | G172: 4658300 | H172: 26.87 | I172: 1 | J172: 26.89 | K172: 27.01 | L172: 26.83 | M172: 26.87
A173: 163 | B173: 2011-12-21 | C173: 26.63 | D173: 26.88 | E173: 26.55 | F173: 26.84 | G173: 1802100 | H173: 26.84 | I173: 1 | J173: 26.63 | K173: 26.88 | L173: 26.55 | M173: 26.84
A174: 164 | B174: 2011-12-20 | C174: 26.51 | D174: 26.71 | E174: 26.49 | F174: 26.65 | G174: 1846600 | H174: 26.65 | I174: 1 | J174: 26.51 | K174: 26.71 | L174: 26.49 | M174: 26.65
A175: 165 | B175: 2011-12-19 | C175: 26.17 | D175: 26.2 | E175: 25.96 | F175: 26.05 | G175: 1679800 | H175: 26.05 | I175: 1 | J175: 26.17 | K175: 26.2 | L175: 25.96 | M175: 26.05
A176: 166 | B176: 2011-12-16 | C176: 26.06 | D176: 26.2 | E176: 25.95 | F176: 26.17 | G176: 2818400 | H176: 26.17 | I176: 1 | J176: 26.06 | K176: 26.2 | L176: 25.95 | M176: 26.17
A177: 167 | B177: 2011-12-15 | C177: 26.29 | D177: 26.33 | E177: 25.92 | F177: 25.96 | G177: 1639500 | H177: 25.96 | I177: 1 | J177: 26.29 | K177: 26.33 | L177: 25.92 | M177: 25.96
A178: 168 | B178: 2011-12-14 | C178: 26.53 | D178: 26.63 | E178: 26.01 | F178: 26.09 | G178: 1851500 | H178: 26.09 | I178: 1 | J178: 26.53 | K178: 26.63 | L178: 26.01 | M178: 26.09
A179: 169 | B179: 2011-12-13 | C179: 26.95 | D179: 27.37 | E179: 26.91 | F179: 27.05 | G179: 1615100 | H179: 27.05 | I179: 1 | J179: 26.95 | K179: 27.37 | L179: 26.91 | M179: 27.05
A180: 170 | B180: 2011-12-12 | C180: 26.98 | D180: 27 | E180: 26.82 | F180: 26.94 | G180: 1277800 | H180: 26.94 | I180: 1 | J180: 26.98 | K180: 27 | L180: 26.82 | M180: 26.94
A181: 171 | B181: 2011-12-09 | C181: 27.15 | D181: 27.35 | E181: 27.14 | F181: 27.29 | G181: 1114300 | H181: 27.29 | I181: 1 | J181: 27.15 | K181: 27.35 | L181: 27.14 | M181: 27.29
A182: 172 | B182: 2011-12-08 | C182: 27.42 | D182: 27.49 | E182: 27.13 | F182: 27.19 | G182: 2211500 | H182: 27.19 | I182: 1 | J182: 27.42 | K182: 27.49 | L182: 27.13 | M182: 27.19
A183: 173 | B183: 2011-12-07 | C183: 27.74 | D183: 27.75 | E183: 27.41 | F183: 27.54 | G183: 1494200 | H183: 27.54 | I183: 1 | J183: 27.74 | K183: 27.75 | L183: 27.41 | M183: 27.54
A184: 174 | B184: 2011-12-06 | C184: 27.59 | D184: 27.86 | E184: 27.5 | F184: 27.78 | G184: 1075600 | H184: 27.78 | I184: 1 | J184: 27.59 | K184: 27.86 | L184: 27.5 | M184: 27.78
A185: 175 | B185: 2011-12-05 | C185: 27.92 | D185: 27.96 | E185: 27.54 | F185: 27.63 | G185: 1503800 | H185: 27.63 | I185: 1 | J185: 27.92 | K185: 27.96 | L185: 27.54 | M185: 27.63
A186: 176 | B186: 2011-12-02 | C186: 27.73 | D186: 27.82 | E186: 27.6 | F186: 27.78 | G186: 1308600 | H186: 27.78 | I186: 1 | J186: 27.73 | K186: 27.82 | L186: 27.6 | M186: 27.78
A187: 177 | B187: 2011-12-01 | C187: 27.56 | D187: 27.78 | E187: 27.38 | F187: 27.54 | G187: 1844100 | H187: 27.54 | I187: 1 | J187: 27.56 | K187: 27.78 | L187: 27.38 | M187: 27.54
A188: 178 | B188: 2011-11-30 | C188: 27.65 | D188: 27.84 | E188: 27.6 | F188: 27.64 | G188: 1913600 | H188: 27.64 | I188: 1 | J188: 27.65 | K188: 27.84 | L188: 27.6 | M188: 27.64
A189: 179 | B189: 2011-11-29 | C189: 27.13 | D189: 27.38 | E189: 27.1 | F189: 27.32 | G189: 1410300 | H189: 27.32 | I189: 1 | J189: 27.13 | K189: 27.38 | L189: 27.1 | M189: 27.32
A190: 180 | B190: 2011-11-28 | C190: 27.12 | D190: 27.17 | E190: 26.86 | F190: 26.97 | G190: 1063800 | H190: 26.97 | I190: 1 | J190: 27.12 | K190: 27.17 | L190: 26.86 | M190: 26.97
A191: 181 | B191: 2011-11-25 | C191: 26.73 | D191: 26.95 | E191: 26.6 | F191: 26.64 | G191: 514700 | H191: 26.64 | I191: 1 | J191: 26.73 | K191: 26.95 | L191: 26.6 | M191: 26.64
A192: 182 | B192: 2011-11-23 | C192: 27.01 | D192: 27.01 | E192: 26.78 | F192: 26.86 | G192: 1752300 | H192: 26.86 | I192: 1 | J192: 27.01 | K192: 27.01 | L192: 26.78 | M192: 26.86
A193: 183 | B193: 2011-11-22 | C193: 27.15 | D193: 27.36 | E193: 27.06 | F193: 27.27 | G193: 2228300 | H193: 27.27 | I193: 1 | J193: 27.15 | K193: 27.36 | L193: 27.06 | M193: 27.27
A194: 184 | B194: 2011-11-21 | C194: 27.12 | D194: 27.14 | E194: 26.78 | F194: 27.09 | G194: 1181500 | H194: 27.09 | I194: 1 | J194: 27.12 | K194: 27.14 | L194: 26.78 | M194: 27.09
A195: 185 | B195: 2011-11-18 | C195: 27.4 | D195: 27.5 | E195: 27.13 | F195: 27.29 | G195: 6225400 | H195: 27.29 | I195: 1 | J195: 27.4 | K195: 27.5 | L195: 27.13 | M195: 27.29
A196: 186 | B196: 2011-11-17 | C196: 27.8 | D196: 27.84 | E196: 27.29 | F196: 27.33 | G196: 2092500 | H196: 27.33 | I196: 1 | J196: 27.8 | K196: 27.84 | L196: 27.29 | M196: 27.33
A197: 187 | B197: 2011-11-16 | C197: 27.94 | D197: 28.2 | E197: 27.92 | F197: 27.98 | G197: 1248300 | H197: 27.98 | I197: 1 | J197: 27.94 | K197: 28.2 | L197: 27.92 | M197: 27.98
A198: 188 | B198: 2011-11-15 | C198: 27.98 | D198: 28.1 | E198: 27.85 | F198: 28.05 | G198: 759800 | H198: 28.05 | I198: 1 | J198: 27.98 | K198: 28.1 | L198: 27.85 | M198: 28.05
A199: 189 | B199: 2011-11-14 | C199: 28.01 | D199: 28.03 | E199: 27.8 | F199: 27.85 | G199: 700400 | H199: 27.85 | I199: 1 | J199: 28.01 | K199: 28.03 | L199: 27.8 | M199: 27.85
A200: 190 | B200: 2011-11-11 | C200: 27.93 | D200: 28.15 | E200: 27.93 | F200: 28.15 | G200: 826500 | H200: 28.15 | I200: 1 | J200: 27.93 | K200: 28.15 | L200: 27.93 | M200: 28.15
A201: 191 | B201: 2011-11-10 | C201: 28.04 | D201: 28.05 | E201: 27.75 | F201: 27.88 | G201: 1880200 | H201: 27.88 | I201: 1 | J201: 28.04 | K201: 28.05 | L201: 27.75 | M201: 27.88
A202: 192 | B202: 2011-11-09 | C202: 28.14 | D202: 28.34 | E202: 27.86 | F202: 27.91 | G202: 1283400 | H202: 27.91 | I202: 1 | J202: 28.14 | K202: 28.34 | L202: 27.86 | M202: 27.91
A203: 193 | B203: 2011-11-08 | C203: 28.42 | D203: 28.55 | E203: 28.31 | F203: 28.54 | G203: 1335700 | H203: 28.54 | I203: 1 | J203: 28.42 | K203: 28.55 | L203: 28.31 | M203: 28.54
A204: 194 | B204: 2011-11-07 | C204: 28.23 | D204: 28.42 | E204: 28.12 | F204: 28.4 | G204: 1066500 | H204: 28.4 | I204: 1 | J204: 28.23 | K204: 28.42 | L204: 28.12 | M204: 28.4
... 1450 more rows

Sheet InputData-DDM
A1: ProShares Ultra Dow30 (DDM)
B6: Available Input Data Rows | F6: Available Date Range:
B7: =COUNTA(B11:B65000) -> 1550 | F7: From | G7: =OFFSET(B10,B7,0,1,1) -> 2006-06-21
F8: To | G8: =OFFSET(B10,1,0,1,1) -> 2012-08-14
B9: Raw Data Values | H9: Adjusted | I9: Adjustment | J9: Adjusted Values
A10: RelRow | B10: Date | C10: Open | D10: High | E10: Low | F10: Close | G10: Volume | H10: Close | I10: Factor | J10: Open | K10: High | L10: Low | M10: Close
A11: 1 | B11: 2012-08-14 | C11: 71.07 | D11: 71.17 | E11: 70.3 | F11: 70.62 | G11: 333100 | H11: 70.62 | I11: 1 | J11: 71.07 | K11: 71.17 | L11: 70.3 | M11: 70.62
A12: 2 | B12: 2012-08-13 | C12: 70.75 | D12: 70.91 | E12: 69.97 | F12: 70.62 | G12: 190300 | H12: 70.62 | I12: 1 | J12: 70.75 | K12: 70.91 | L12: 69.97 | M12: 70.62
A13: 3 | B13: 2012-08-10 | C13: 70.12 | D13: 70.98 | E13: 69.74 | F13: 70.98 | G13: 405500 | H13: 70.98 | I13: 1 | J13: 70.12 | K13: 70.98 | L13: 69.74 | M13: 70.98
A14: 4 | B14: 2012-08-09 | C14: 70.49 | D14: 70.87 | E14: 70.1 | F14: 70.55 | G14: 190300 | H14: 70.55 | I14: 1 | J14: 70.49 | K14: 70.87 | L14: 70.1 | M14: 70.55
A15: 5 | B15: 2012-08-08 | C15: 69.88 | D15: 70.85 | E15: 69.84 | F15: 70.56 | G15: 223500 | H15: 70.56 | I15: 1 | J15: 69.88 | K15: 70.85 | L15: 69.84 | M15: 70.56
A16: 6 | B16: 2012-08-07 | C16: 70.31 | D16: 70.91 | E16: 70.31 | F16: 70.37 | G16: 437900 | H16: 70.37 | I16: 1 | J16: 70.31 | K16: 70.91 | L16: 70.31 | M16: 70.37
A17: 7 | B17: 2012-08-06 | C17: 69.9 | D17: 70.61 | E17: 69.85 | F17: 69.85 | G17: 330700 | H17: 69.85 | I17: 1 | J17: 69.9 | K17: 70.61 | L17: 69.85 | M17: 69.85
A18: 8 | B18: 2012-08-03 | C18: 68.96 | D18: 70.04 | E18: 68.92 | F18: 69.7 | G18: 518500 | H18: 69.7 | I18: 1 | J18: 68.96 | K18: 70.04 | L18: 68.92 | M18: 69.7
A19: 9 | B19: 2012-08-02 | C19: 67.45 | D19: 68.19 | E19: 66.31 | F19: 67.4 | G19: 615000 | H19: 67.4 | I19: 1 | J19: 67.45 | K19: 68.19 | L19: 66.31 | M19: 67.4
A20: 10 | B20: 2012-08-01 | C20: 69.4 | D20: 69.45 | E20: 68.08 | F20: 68.27 | G20: 617400 | H20: 68.27 | I20: 1 | J20: 69.4 | K20: 69.45 | L20: 68.08 | M20: 68.27
A21: 11 | B21: 2012-07-31 | C21: 69.23 | D21: 69.49 | E21: 68.69 | F21: 68.69 | G21: 729900 | H21: 68.69 | I21: 1 | J21: 69.23 | K21: 69.49 | L21: 68.69 | M21: 68.69
A22: 12 | B22: 2012-07-30 | C22: 69.27 | D22: 69.98 | E22: 69.06 | F22: 69.39 | G22: 543600 | H22: 69.39 | I22: 1 | J22: 69.27 | K22: 69.98 | L22: 69.06 | M22: 69.39
A23: 13 | B23: 2012-07-27 | C23: 67.92 | D23: 69.88 | E23: 67.9 | F23: 69.43 | G23: 1059600 | H23: 69.43 | I23: 1 | J23: 67.92 | K23: 69.88 | L23: 67.9 | M23: 69.43
A24: 14 | B24: 2012-07-26 | C24: 67.06 | D24: 67.91 | E24: 66.84 | F24: 67.43 | G24: 577000 | H24: 67.43 | I24: 1 | J24: 67.06 | K24: 67.91 | L24: 66.84 | M24: 67.43
A25: 15 | B25: 2012-07-25 | C25: 65.47 | D25: 65.86 | E25: 64.8 | F25: 65.36 | G25: 480000 | H25: 65.36 | I25: 1 | J25: 65.47 | K25: 65.86 | L25: 64.8 | M25: 65.36
A26: 16 | B26: 2012-07-24 | C26: 65.67 | D26: 65.81 | E26: 63.72 | F26: 64.66 | G26: 843600 | H26: 64.66 | I26: 1 | J26: 65.67 | K26: 65.81 | L26: 63.72 | M26: 64.66
A27: 17 | B27: 2012-07-23 | C27: 64.74 | D27: 66.03 | E27: 64.33 | F27: 65.78 | G27: 469100 | H27: 65.78 | I27: 1 | J27: 64.74 | K27: 66.03 | L27: 64.33 | M27: 65.78
A28: 18 | B28: 2012-07-20 | C28: 67.21 | D28: 67.55 | E28: 66.71 | F28: 66.89 | G28: 465000 | H28: 66.89 | I28: 1 | J28: 67.21 | K28: 67.55 | L28: 66.71 | M28: 66.89
A29: 19 | B29: 2012-07-19 | C29: 68.02 | D29: 68.47 | E29: 67.53 | F29: 68.1 | G29: 369000 | H29: 68.1 | I29: 1 | J29: 68.02 | K29: 68.47 | L29: 67.53 | M29: 68.1
A30: 20 | B30: 2012-07-18 | C30: 66.2 | D30: 67.88 | E30: 66.11 | F30: 67.73 | G30: 343100 | H30: 67.73 | I30: 1 | J30: 66.2 | K30: 67.88 | L30: 66.11 | M30: 67.73
A31: 21 | B31: 2012-07-17 | C31: 66.26 | D31: 66.83 | E31: 64.94 | F31: 66.51 | G31: 520400 | H31: 66.51 | I31: 1 | J31: 66.26 | K31: 66.83 | L31: 64.94 | M31: 66.51
A32: 22 | B32: 2012-07-16 | C32: 65.89 | D32: 66.2 | E32: 65.38 | F32: 65.78 | G32: 258800 | H32: 65.78 | I32: 1 | J32: 65.89 | K32: 66.2 | L32: 65.38 | M32: 65.78
A33: 23 | B33: 2012-07-13 | C33: 64.57 | D33: 66.38 | E33: 64.51 | F33: 66.29 | G33: 333000 | H33: 66.29 | I33: 1 | J33: 64.57 | K33: 66.38 | L33: 64.51 | M33: 66.29
A34: 24 | B34: 2012-07-12 | C34: 63.84 | D34: 64.81 | E34: 63.4 | F34: 64.22 | G34: 433200 | H34: 64.22 | I34: 1 | J34: 63.84 | K34: 64.81 | L34: 63.4 | M34: 64.22
A35: 25 | B35: 2012-07-11 | C35: 65.15 | D35: 65.15 | E35: 63.83 | F35: 64.55 | G35: 600300 | H35: 64.55 | I35: 1 | J35: 65.15 | K35: 65.15 | L35: 63.83 | M35: 64.55
A36: 26 | B36: 2012-07-10 | C36: 66.69 | D36: 66.86 | E36: 64.58 | F36: 65.03 | G36: 670200 | H36: 65.03 | I36: 1 | J36: 66.69 | K36: 66.86 | L36: 64.58 | M36: 65.03
A37: 27 | B37: 2012-07-09 | C37: 66.13 | D37: 66.23 | E37: 65.4 | F37: 65.91 | G37: 318300 | H37: 65.91 | I37: 1 | J37: 66.13 | K37: 66.23 | L37: 65.4 | M37: 65.91
A38: 28 | B38: 2012-07-06 | C38: 66.5 | D38: 66.54 | E38: 65.57 | F38: 66.27 | G38: 512200 | H38: 66.27 | I38: 1 | J38: 66.5 | K38: 66.54 | L38: 65.57 | M38: 66.27
A39: 29 | B39: 2012-07-05 | C39: 67.44 | D39: 68.22 | E39: 67.08 | F39: 67.56 | G39: 306800 | H39: 67.56 | I39: 1 | J39: 67.44 | K39: 68.22 | L39: 67.08 | M39: 67.56
A40: 30 | B40: 2012-07-03 | C40: 67.14 | D40: 68.04 | E40: 67.04 | F40: 68 | G40: 330600 | H40: 68 | I40: 1 | J40: 67.14 | K40: 68.04 | L40: 67.04 | M40: 68
A41: 31 | B41: 2012-07-02 | C41: 67.45 | D41: 67.57 | E41: 66.45 | F41: 67.16 | G41: 424900 | H41: 67.16 | I41: 1 | J41: 67.45 | K41: 67.57 | L41: 66.45 | M41: 67.16
A42: 32 | B42: 2012-06-29 | C42: 66.52 | D42: 67.35 | E42: 66.2 | F42: 67.32 | G42: 633500 | H42: 67.32 | I42: 1 | J42: 66.52 | K42: 67.35 | L42: 66.2 | M42: 67.32
A43: 33 | B43: 2012-06-28 | C43: 63.66 | D43: 64.58 | E43: 62.95 | F43: 64.49 | G43: 728900 | H43: 64.49 | I43: 1 | J43: 63.66 | K43: 64.58 | L43: 62.95 | M43: 64.49
A44: 34 | B44: 2012-06-27 | C44: 64.14 | D44: 64.94 | E44: 64.04 | F44: 64.75 | G44: 344300 | H44: 64.75 | I44: 1 | J44: 64.14 | K44: 64.94 | L44: 64.04 | M44: 64.75
A45: 35 | B45: 2012-06-26 | C45: 63.77 | D45: 64.2 | E45: 62.96 | F45: 63.83 | G45: 476200 | H45: 63.83 | I45: 1 | J45: 63.77 | K45: 64.2 | L45: 62.96 | M45: 63.83
A46: 36 | B46: 2012-06-25 | C46: 63.77 | D46: 63.8 | E46: 63 | F46: 63.48 | G46: 471200 | H46: 63.48 | I46: 1 | J46: 63.77 | K46: 63.8 | L46: 63 | M46: 63.48
A47: 37 | B47: 2012-06-22 | C47: 64.89 | D47: 65.24 | E47: 64.54 | F47: 65.01 | G47: 558400 | H47: 65.01 | I47: 1 | J47: 64.89 | K47: 65.24 | L47: 64.54 | M47: 65.01
A48: 38 | B48: 2012-06-21 | C48: 67.02 | D48: 67.2 | E48: 64.08 | F48: 64.16 | G48: 765700 | H48: 64.16 | I48: 1 | J48: 67.02 | K48: 67.2 | L48: 64.08 | M48: 64.16
A49: 39 | B49: 2012-06-20 | C49: 67 | D49: 67.36 | E49: 65.99 | F49: 66.77 | G49: 834000 | H49: 66.77 | I49: 1 | J49: 67 | K49: 67.36 | L49: 65.99 | M49: 66.77
A50: 40 | B50: 2012-06-19 | C50: 66.6 | D50: 67.59 | E50: 66.38 | F50: 66.94 | G50: 487500 | H50: 66.94 | I50: 1 | J50: 66.6 | K50: 67.59 | L50: 66.38 | M50: 66.94
A51: 41 | B51: 2012-06-18 | C51: 65.63 | D51: 66.39 | E51: 65.46 | F51: 65.97 | G51: 413200 | H51: 65.97 | I51: 1 | J51: 65.63 | K51: 66.39 | L51: 65.46 | M51: 65.97
A52: 42 | B52: 2012-06-15 | C52: 65.61 | D52: 66.33 | E52: 65.49 | F52: 66.18 | G52: 669700 | H52: 66.18 | I52: 1 | J52: 65.61 | K52: 66.33 | L52: 65.49 | M52: 66.18
A53: 43 | B53: 2012-06-14 | C53: 63.73 | D53: 65.55 | E53: 63.53 | F53: 65.05 | G53: 659300 | H53: 65.05 | I53: 1 | J53: 63.73 | K53: 65.55 | L53: 63.53 | M53: 65.05
A54: 44 | B54: 2012-06-13 | C54: 63.97 | D54: 64.54 | E54: 63.04 | F54: 63.45 | G54: 615200 | H54: 63.45 | I54: 1 | J54: 63.97 | K54: 64.54 | L54: 63.04 | M54: 63.45
A55: 45 | B55: 2012-06-12 | C55: 63.01 | D55: 64.24 | E55: 62.6 | F55: 64.17 | G55: 656800 | H55: 64.17 | I55: 1 | J55: 63.01 | K55: 64.24 | L55: 62.6 | M55: 64.17
A56: 46 | B56: 2012-06-11 | C56: 64.97 | D56: 65.13 | E56: 62.43 | F56: 62.54 | G56: 642600 | H56: 62.54 | I56: 1 | J56: 64.97 | K56: 65.13 | L56: 62.43 | M56: 62.54
A57: 47 | B57: 2012-06-08 | C57: 62.71 | D57: 64.05 | E57: 62.45 | F57: 64.05 | G57: 371700 | H57: 64.05 | I57: 1 | J57: 62.71 | K57: 64.05 | L57: 62.45 | M57: 64.05
A58: 48 | B58: 2012-06-07 | C58: 63.79 | D58: 64.05 | E58: 62.86 | F58: 63.08 | G58: 735800 | H58: 63.08 | I58: 1 | J58: 63.79 | K58: 64.05 | L58: 62.86 | M58: 63.08
A59: 49 | B59: 2012-06-06 | C59: 60.59 | D59: 62.58 | E59: 60.58 | F59: 62.57 | G59: 573800 | H59: 62.57 | I59: 1 | J59: 60.59 | K59: 62.58 | L59: 60.58 | M59: 62.57
A60: 50 | B60: 2012-06-05 | C60: 59.32 | D60: 59.95 | E60: 59.18 | F60: 59.74 | G60: 688300 | H60: 59.74 | I60: 1 | J60: 59.32 | K60: 59.95 | L60: 59.18 | M60: 59.74
A61: 51 | B61: 2012-06-04 | C61: 59.74 | D61: 59.92 | E61: 58.85 | F61: 59.47 | G61: 829000 | H61: 59.47 | I61: 1 | J61: 59.74 | K61: 59.92 | L61: 58.85 | M61: 59.47
